Workbook

Sheet Instructions
C1: Comments and Instructions
C4: Macro Security Comment
C5: This Excel Workbook makes use of embedded macros. Therefore to function properly the macro settings must be enabled.
A7: 1) | C7: The green shaded areas indicate where data can be entered. | E7: 5) | G7: The scroll bars on the side and bottom of the screen can be used to view different portions of the worksheet.
A9: 2) | C9: To enter data, use the mouse, arrow, or tab keys move to and select a green area. | E9: 6) | G9: Comments and instructions are available by moving the mouse cursor near the red triangles. If the displayed text is not completely visible, use the horizontal and vertical scroll bars to move the red triangle closer to the center of the screen then position the cursor near it again.
A11: 3) | C11: Some data can be simply typed in. Other data is selected from a list by "clicking" on the "popup" down arrow with the mouse, then selecting the desired list item. The scroll bar allows the viewing of all list items. | E11: 7) | G11: To save the current values for future use, use the "Save" or "Save As" command under the "File" menu.
A13: 4) | C13: Data entry is conditional in that before information about a litter/manure source or a field can be supplied, the litter/manure source or field must be named. In addition, if the name of one of these is deleted, the associated information will be lost. | E13: 8) | G13: The "command" buttons can be used print the displayed worksheet, clear all the input values, insert example input values, or perform additional calculations.

Sheet Settling Basin Check
A1: Settling Basin Volume Capacity Evaluation Worksheet
A2: Planner: | B2: Ima Planner | J2: Date: | K2: 2017-08-10
A3: Plan Description: | B3: This plan is for Mr. Needa Plannow
A5: This worksheet is based on material developed by Stan Rose and Lane Johnson Ark. NRCS engineers to assist with the writing of liquid manure plans.
A9: Animal type | C9: Boar | D9: Gestating Sow | F9: Lactating Sow | H9: Nursery Pig | J9: Grow-Finish (Replacement Gilts)
A10: Typical Animal Design Information
A11: Animal Wt Range (lb) | H11: 10 to 50 | J11: 50 to 265
A12: Animal Design Wt (lb) | C12: 450 | D12: 425 | F12: 400 | H12: 28 | J12: 158
A13: Animal Cycle Time (d) | C13: 365 | D13: 365 | F13: 365 | H13: 45 | J13: 123
A14: Manure Total Solids Production Design Information
A15: TS (lb/d/au) | C15: 1.9 | D15: 2.5 | F15: 5.9 | H15: 10 | J15: 6.5
A16: Animal Population Information | L16: Totals
A17: Number Animals | C17: 4 | D17: 424 | F17: 84 | L17: =IF(SUM(C17:K17)>0,SUM(C17:K17),"") -> 512
A18: Animal Weight (lb) | C18: 450 | D18: 425 | F18: 400 | L18: =IF(SUM(C18:K18)>0,SUM(C18:K18),"") -> 1275
A19: AU | C19: =IF(OR(ISBLANK(C17),ISBLANK(C18)),"",C17*C18/1000) -> 1.8 | D19: =IF(OR(ISBLANK(D17),ISBLANK(D18)),"",D17*D18/1000) -> 180.2 | F19: =IF(OR(ISBLANK(F17),ISBLANK(F18)),"",F17*F18/1000) -> 33.6 | H19: =IF(OR(ISBLANK(H17),ISBLANK(H18)),"",H17*H18/1000) ->  | J19: =IF(OR(ISBLANK(J17),ISBLANK(J18)),"",J17*J18/1000) ->  | L19: =IF(SUM(C19:K19)>0,SUM(C19:K19),"") -> 215.6
A20: TS (lb/d) | C20: =IF(OR(ISBLANK(C17),ISBLANK(C18),ISBLANK(C21)),"",C15*C$19) -> 3.42 | D20: =IF(OR(ISBLANK(D17),ISBLANK(D18),ISBLANK(C21)),"",D15*D$19) -> 450.5 | F20: =IF(OR(ISBLANK(F17),ISBLANK(F18),ISBLANK(C21)),"",F15*F$19) -> 198.24 | H20: =IF(OR(ISBLANK(H17),ISBLANK(H18),ISBLANK(C21)),"",H15*H$19) ->  | J20: =IF(OR(ISBLANK(J17),ISBLANK(J18),ISBLANK(C21)),"",J15*J$19) ->  | L20: =IF(SUM(C20:K20)>0,SUM(C20:K20),"") -> 652.16
A21: Design Storage Period (d) | C21: 45 | L21: =IF(ISERROR(L20*C21),"",L20*C21) -> 29347.2
A22: Manure Total Solids Production
A23: Required Volume | E23: As-Built Dimensions and Volume | I23: Volume Capacity Comment | O23: Comments
A24: Total Solids Production (lb) | D24: =IF(ISERROR(L21),"",L21) -> 29347.2 | E24: Top Length (ft) | H24: 50 | I24: =INDEX(O24:P27,MATCH(1,O24:O27,0),2) -> Settling Basin Volume is Sufficient. Actual capcity is 52 days. | O24: =IF(COUNTIF(H24:H28,"")>0,1,0) -> 0
E25: Top Width (ft) | H25: 50 | O25: =IF(OR(H29<0,H30<0,H31<0,H32<0),1,0) -> 0 | P25: ERROR! Double check Length, Width, Depth, Side Slope, and Free Board values
A26: Assume 50% TS as setttleable (lb) | D26: =IF(ISERROR(D24*0.5),"",D24*0.5) -> 14673.6 | E26: Total Depth (ft) | H26: 6 | O26: =IF(AND(NOT(ISBLANK(K32)),K32>0),1,0) -> 1 | P26: ="Settling Basin Volume is Sufficient. Actual capcity is "&INT(H32/(D32/C21))& " days." -> Settling Basin Volume is Sufficient. Actual capcity is 52 days.
E27: Side Slopes ( _:1) | H27: 3 | O27: =IF(K32<0,1,0) -> 0 | P27: ="INSUFFICIENT VOLUME! Contact NRCS Engineer for guidance! Actual capacity is "&INT(H32/(D32/C21))& " days." -> INSUFFICIENT VOLUME! Contact NRCS Engineer for guidance! Actual capacity is 52 days.
A28: Assume Sludge 6% solids (lb) | D28: =IF(ISERROR(D26/0.06),"",D26/0.06) -> 244560 | E28: Free Board (ft) | H28: 1
E29: Water Depth (ft) | H29: =IF(COUNTIF(H24:H28,"")>0,"",H26-H28) -> 5
A30: Sludge Volume (cuft @ 62.4 lbs/cuft): | D30: =IF(ISERROR(D28/62.4),"",D28/62.4) -> 3919.230769 | E30: Bottom Length (ft) | H30: =IF(COUNTIF(H24:H28,"")>0,"",H24-2*H26*H27) -> 14
E31: Bottom Width (ft) | H31: =IF(COUNTIF(H24:H28,"")>0,"",H25-2*H26*H27) -> 14 | I31: Volume Surplus/Deficit
A32: Required Basin Volume (cuft) | D32: =IF(ISERROR(D30),"",D30) -> 3919.230769 | E32: As-Built Volume (cuft) | H32: =IF(ISERROR(((4*H27^2*H29^3)/3)+(H27*H30*H29^2)+(H27*H31*H29^2)+(H31*H30*H29)),"",((4*H27^2*H29^3)/3)+(H27*H30*H29^2)+(H27*H31*H29^2)+(H31*H30*H29)) -> 4580 | I32: Volume (cuft) | K32: =IF(ISERROR(H32-D32),"",H32-D32) -> 660.7692308
A33: (cuyd) | D33: =IF(ISERROR(D32/27),"",D32/27) -> 145.1566952 | E33: (cuyd) | H33: =IF(ISERROR(H32/27),"",H32/27) -> 169.6296296 | I33: (cuyd) | K33: =IF(ISERROR(K32/27),"",K32/27) -> 24.47293447
A34: (gal) | D34: =IF(ISERROR(D32*7.48),"",D32*7.48) -> 29315.84615 | E34: (gal) | H34: =IF(ISERROR(H32*7.48),"",H32*7.48) -> 34258.4 | I34: (gal) | K34: =IF(ISERROR(K32*7.48),"",K32*7.48) -> 4942.553846
A35: (1000 gal) | D35: =IF(ISERROR(D34/1000),"",D34/1000) -> 29.31584615 | E35: (1000 gal) | H35: =IF(ISERROR(H34/1000),"",H34/1000) -> 34.2584 | I35: (1000 gal) | K35: =IF(ISERROR(K34/1000),"",K34/1000) -> 4.942553846
A36: Developed by Karl VanDevender (kvan@uaex.edu) using input from NRCS AWFHB and Cargill Pork. 8/2009

Sheet Liquid Manure Production
A1: Annual Liquid Manure Production Worksheet
A2: Planner: | B2: Ima Planner | J2: Date: | K2: 2017-08-10
A3: Plan Description: | B3: This plan is for Mr. Needa Plannow
A5: This worksheet is based on material developed by Stan Rose and Lane Johnson Ark. NRCS engineers to assist with the writing of liquid manure plans.
A7: Settling Basin Annual Manure Volume
A9: Design Storage Period (d) | D9: =IF('Settling Basin Check'!C21=0,"",'Settling Basin Check'!C21) -> 45
A10: Required Storage Volume (1000 gal) | D10: ='Settling Basin Check'!D35 -> 29.31584615
A11: Daily Storage Volume (1000 gal/d) | D11: =IF(COUNTIF(D9:D10,"")>0,"",D10/D9) -> 0.6514632479
A12: Annual Storage Volume (1000 gal) | D12: =IF(COUNTIF(D9:D10,"")>0,"",365*D11) -> 237.7840855
A14: Holding Pond Annual Manure Volume
A16: Waste Storage Pond Storage Period (mn) | D16: 6
A17: Design Operating Period Volume (gal) | D17: 2000000
A18: Daily Storage Volume (gal/d) | D18: =IF(COUNTIF(D16:D17,"")>0,"",D17/(D16/12*365)) -> 10958.90411
A19: Annual Operating Volume (gal) | D19: =IF(COUNTIF(D16:D17,"")>0,"",D18*365) -> 4000000
A20: (1000 gal) | D20: =IF(COUNTIF(D16:D17,"")>0,"",D19/1000) -> 4000

Sheet Poultry Litter Production
A1: Planner: | B1: Jane Doe | F1: Date: | G1: 2017-08-10
A2: Plan Description: | B2: Jon Q. Byrd
A5: The calculations below are based on the formulas used by ANRC in the annual Poultry Feeding Operation Registration process. Any discrepancies should be brought to the attention of Karl VanDevender at kvandevender@uaex.edu.
A11: Litter Production Information
A12: Poultry Type | D12: Broiler under 4 lbs | E12: Broiler 4 lbs and over | F12: Pullet | G12: Breeder | H12: Turkey
A13: Total Number of Birds per Flock | E13: 80000
A14: Target Bird Weight at Market | E14: 4 | I14: lb/bird
A15: Flocks per Year | E15: 5
A16: Number of Days
A17: Est. Farm Litter Production: | D17: =IF(OR(ISBLANK(D13),ISBLANK(D14),ISBLANK(D15)),"",(D13/1000*D14*D15*0.225)) ->  | E17: =IF(OR(ISBLANK(E13),ISBLANK(E14),ISBLANK(E15)),"",(E13/1000*E14*E15*0.25)) -> 400 | F17: =IF(OR(ISBLANK(F13),ISBLANK(F14),ISBLANK(F15),ISBLANK(F16)),"",(F13/1000*F16*F14*0.011*F15/2)) ->  | G17: =IF(OR(ISBLANK(G13),ISBLANK(G14),ISBLANK(G16)),"",(G13/1000*G16*G14*0.015/2)) ->  | H17: =IF(OR(ISBLANK(H13),ISBLANK(H14),ISBLANK(H13)),"",(H13*H15*H16*H14*0.012/2000)) ->  | I17: Ton/Year
A18: Historical Litter Production: | I18: Ton/Year
A19: Litter Production Value to Use: | E19: Estimated
A20: Total Litter Production Used: | D20: =IF(D19="Historical",D18,D17) ->  | E20: =IF(E19="Historical",E18,E17) -> 400 | I20: Ton/Year
A21: Est. % of Total Litter is Cake | E21: 25 | I21: % (0 - 100)
A22: Est. Cake | D22: =IF(OR(ISBLANK(D21),ISERROR(D20*D21/100)),"",D20*D21/100) ->  | E22: =IF(OR(ISBLANK(E21),ISERROR(E20*E21/100)),"",E20*E21/100) -> 100
A23: Historical Cake Production: | I23: Ton/Year
A24: Cake Production Value to Use: | E24: Estimated %
A25: Cake Production Used: | D25: =IF(ISERROR(IF(D24="Historical", D23,D20*D21/100)),"",IF(D24="Historical", D23,D20*D21/100)) ->  | E25: =IF(ISERROR(IF(E24="Historical", E23,E20*E21/100)),"",IF(E24="Historical", E23,E20*E21/100)) -> 100 | I25: Ton/Year
A27: Numbers to Use In Planning Sheet
A28: Annual Cake Production: | D28: =D25 ->  | E28: =E25 -> 100 | I28: Ton/Year
A29: Annual Total Clean Out Production: | D29: =IF(ISERROR(D20-D25),"",D20-D25) ->  | E29: =IF(ISERROR(E20-E25),"",E20-E25) -> 300 | I29: Ton/Year
A30: Annual Combined Litter Production: | D30: =IF(ISERROR(D28+D29),"",D28+D29) ->  | E30: =IF(ISERROR(E28+E29),"",E28+E29) -> 400 | I30: Ton/Year

Sheet Planning
A1: Comments: | B1: =Comments -> 
A2: Arkansas Nutrient Management Planner with 2010 PI and September 2019 Soils Information (ver02/09/2020)
A3: Planner: | B3: Jane Doe | J3: Date: | K3: 2017-09-01
A4: Plan Description: | B4: Jon Q. Byrd
A7: This worksheet is intended to assist in the writing of Nutrient Management Plans for the application of manure to pasture and hay land. To do this, the worksheet estimates the available nutrients for land application, estimates the P Index risk value for the defined conditions of each field, assists with the allocation of nutrients to the various receiving fields, and estimates litter and nutrient surpluses and deficits for the farm. This worksheet is the result of an effort to develop a reliable training/planning tool faithful to the 2010 Arkansas P Index. However, no guarantees are made, and any observed problems or suggestions for improvement should be directed to Karl VanDevender at kvandevender@uaex.edu. This version contains the September 2019 NRCS soils update.
A13: County Information
A14: Farm county | C14: Washington
A15: R | C15: =IF(ISBLANK(C14),"",Data!AG69) -> 311
A16: 10-Yr EI | C16: =IF(ISBLANK(C14),"",Data!AG70) -> 120
A17: Kf adjusted for frost? | C17: =IF(LEN(TRIM(C14))=0,"",IF(Data!AG71=1,"Yes","No")) -> Yes
A19: Nutrient Source and Description Information
A20: Manure Source | B20: Source Type | D20: Amount Available | F20: N Concentration | H20: P2O5 Concentration | J20: K2O Concentration | L20: Water Extractable P | N20: Alum Used?
A21: CleanOut | B21: Dry Litter | D21: 300 | E21: =IF(ISBLANK(B21),"",INDEX(Nutrient_Table,MATCH(B21,Manure_Type,0),5)) -> ton | F21: 64.1 | G21: =IF(ISBLANK(B21),"",INDEX(Nutrient_Table,MATCH(B21,Manure_Type,0),6)) -> lb/ton | H21: 64.8 | I21: =IF(ISBLANK(B21),"",INDEX(Nutrient_Table,MATCH(B21,Manure_Type,0),6)) -> lb/ton | J21: 62.2 | K21: =IF(ISBLANK(B21),"",INDEX(Nutrient_Table,MATCH(B21,Manure_Type,0),6)) -> lb/ton | L21: 5.9 | M21: =IF(ISBLANK(B21),"",INDEX(Nutrient_Table,MATCH(B21,Manure_Type,0),6)) -> lb/ton | N21: No
A22: Cake | B22: Dry Litter | D22: 100 | E22: =IF(ISBLANK(B22),"",INDEX(Nutrient_Table,MATCH(B22,Manure_Type,0),5)) -> ton | F22: 55.6 | G22: =IF(ISBLANK(B22),"",INDEX(Nutrient_Table,MATCH(B22,Manure_Type,0),6)) -> lb/ton | H22: 61.6 | I22: =IF(ISBLANK(B22),"",INDEX(Nutrient_Table,MATCH(B22,Manure_Type,0),6)) -> lb/ton | J22: 59.5 | K22: =IF(ISBLANK(B22),"",INDEX(Nutrient_Table,MATCH(B22,Manure_Type,0),6)) -> lb/ton | L22: 4.9 | M22: =IF(ISBLANK(B22),"",INDEX(Nutrient_Table,MATCH(B22,Manure_Type,0),6)) -> lb/ton | N22: No
E23: =IF(ISBLANK(B23),"",INDEX(Nutrient_Table,MATCH(B23,Manure_Type,0),5)) ->  | G23: =IF(ISBLANK(B23),"",INDEX(Nutrient_Table,MATCH(B23,Manure_Type,0),6)) ->  | I23: =IF(ISBLANK(B23),"",INDEX(Nutrient_Table,MATCH(B23,Manure_Type,0),6)) ->  | K23: =IF(ISBLANK(B23),"",INDEX(Nutrient_Table,MATCH(B23,Manure_Type,0),6)) ->  | M23: =IF(ISBLANK(B23),"",INDEX(Nutrient_Table,MATCH(B23,Manure_Type,0),6)) -> 
E24: =IF(ISBLANK(B24),"",INDEX(Nutrient_Table,MATCH(B24,Manure_Type,0),5)) ->  | G24: =IF(ISBLANK(B24),"",INDEX(Nutrient_Table,MATCH(B24,Manure_Type,0),6)) ->  | I24: =IF(ISBLANK(B24),"",INDEX(Nutrient_Table,MATCH(B24,Manure_Type,0),6)) ->  | K24: =IF(ISBLANK(B24),"",INDEX(Nutrient_Table,MATCH(B24,Manure_Type,0),6)) ->  | M24: =IF(ISBLANK(B24),"",INDEX(Nutrient_Table,MATCH(B24,Manure_Type,0),6)) -> 
E25: =IF(ISBLANK(B25),"",INDEX(Nutrient_Table,MATCH(B25,Manure_Type,0),5)) ->  | G25: =IF(ISBLANK(B25),"",INDEX(Nutrient_Table,MATCH(B25,Manure_Type,0),6)) ->  | I25: =IF(ISBLANK(B25),"",INDEX(Nutrient_Table,MATCH(B25,Manure_Type,0),6)) ->  | K25: =IF(ISBLANK(B25),"",INDEX(Nutrient_Table,MATCH(B25,Manure_Type,0),6)) ->  | M25: =IF(ISBLANK(B25),"",INDEX(Nutrient_Table,MATCH(B25,Manure_Type,0),6)) -> 
A28: Nutrient Loss and Mineralization Factors
A29: Nutrient Source Description | B29: N | D29: P2O5 | F29: K2O
B30: Storage Losses (%) | C30: Appl. Losses (%) | D30: Storage Losses (%) | E30: Appl. Losses (%) | F30: Storage Losses (%) | G30: Appl. Losses (%)
A32: =IF(ISBLANK(A21)," ",A21) -> CleanOut | C32: 0.25
A33: =IF(ISBLANK(A22)," ",A22) -> Cake | C33: 0.25
A34: =IF(ISBLANK(A23)," ",A23) -> 
A35: =IF(ISBLANK(A24)," ",A24) -> 
A36: =IF(ISBLANK(A25)," ",A25) -> 
A38: Estimated Plant Available Nutrients
A39: Nutrient Source Description | B39: N | E39: P2O5 | H39: K2O | K39: Water Extractable P
B40: Concentration | D40: Total (lb) | E40: Concentration | G40: Total (lb) | H40: Concentration | J40: Total (lb) | K40: Concentration | M40: Total (lb)
A41: =IF(ISBLANK(A21)," ",A21) -> CleanOut | B41: =IF(ISBLANK(F21),"",F21*(1-B32)*(1-C32)) -> 48.075 | C41: =IF(ISBLANK(B21),"",INDEX(Nutrient_Source_Description,MATCH(A41,Nutrient_Source,0),5)) -> lb/ton | D41: =IF(OR(ISBLANK(F21),ISBLANK(D21)),"",B41*D21) -> 14422.5 | E41: =IF(ISBLANK(H21),"",H21*(1-D32)*(1-E32)) -> 64.8 | F41: =IF(ISBLANK(B21),"",INDEX(Nutrient_Source_Description,MATCH(A41,Nutrient_Source,0),5)) -> lb/ton | G41: =IF(OR(ISBLANK(H21),ISBLANK(D21)),"",E41*D21) -> 19440 | H41: =IF(ISBLANK(J21),"",J21*(1-F32)*(1-G32)) -> 62.2 | I41: =IF(ISBLANK(B21),"",INDEX(Nutrient_Source_Description,MATCH(A41,Nutrient_Source,0),5)) -> lb/ton | J41: =IF(OR(ISBLANK(J21),ISBLANK(D21)),"",H41*D21) -> 18660 | K41: =IF(ISBLANK(L21),"",L21) -> 5.9 | L41: =IF(ISBLANK(B21),"",INDEX(Nutrient_Source_Description,MATCH(A41,Nutrient_Source,0),5)) -> lb/ton | M41: =IF(OR(ISBLANK(L21),ISBLANK(D21)),"",K41*D21) -> 1770
A42: =IF(ISBLANK(A22)," ",A22) -> Cake | B42: =IF(ISBLANK(F22),"",F22*(1-B33)*(1-C33)) -> 41.7 | C42: =IF(ISBLANK(B22),"",INDEX(Nutrient_Source_Description,MATCH(A42,Nutrient_Source,0),5)) -> lb/ton | D42: =IF(OR(ISBLANK(F22),ISBLANK(D22)),"",B42*D22) -> 4170 | E42: =IF(ISBLANK(H22),"",H22*(1-D33)*(1-E33)) -> 61.6 | F42: =IF(ISBLANK(B22),"",INDEX(Nutrient_Source_Description,MATCH(A42,Nutrient_Source,0),5)) -> lb/ton | G42: =IF(OR(ISBLANK(H22),ISBLANK(D22)),"",E42*D22) -> 6160 | H42: =IF(ISBLANK(J22),"",J22*(1-F33)*(1-G33)) -> 59.5 | I42: =IF(ISBLANK(B22),"",INDEX(Nutrient_Source_Description,MATCH(A42,Nutrient_Source,0),5)) -> lb/ton | J42: =IF(OR(ISBLANK(J22),ISBLANK(D22)),"",H42*D22) -> 5950 | K42: =IF(ISBLANK(L22),"",L22) -> 4.9 | L42: =IF(ISBLANK(B22),"",INDEX(Nutrient_Source_Description,MATCH(A42,Nutrient_Source,0),5)) -> lb/ton | M42: =IF(OR(ISBLANK(L22),ISBLANK(D22)),"",K42*D22) -> 490
A43: =IF(ISBLANK(A23)," ",A23) ->  | B43: =IF(ISBLANK(F23),"",F23*(1-B34)*(1-C34)) ->  | C43: =IF(ISBLANK(B23),"",INDEX(Nutrient_Source_Description,MATCH(A43,Nutrient_Source,0),5)) ->  | D43: =IF(OR(ISBLANK(F23),ISBLANK(D23)),"",B43*D23) ->  | E43: =IF(ISBLANK(H23),"",H23*(1-D34)*(1-E34)) ->  | F43: =IF(ISBLANK(B23),"",INDEX(Nutrient_Source_Description,MATCH(A43,Nutrient_Source,0),5)) ->  | G43: =IF(OR(ISBLANK(H23),ISBLANK(D23)),"",E43*D23) ->  | H43: =IF(ISBLANK(J23),"",J23*(1-F34)*(1-G34)) ->  | I43: =IF(ISBLANK(B23),"",INDEX(Nutrient_Source_Description,MATCH(A43,Nutrient_Source,0),5)) ->  | J43: =IF(OR(ISBLANK(J23),ISBLANK(D23)),"",H43*D23) ->  | K43: =IF(ISBLANK(L23),"",L23) ->  | L43: =IF(ISBLANK(B23),"",INDEX(Nutrient_Source_Description,MATCH(A43,Nutrient_Source,0),5)) ->  | M43: =IF(OR(ISBLANK(L23),ISBLANK(D23)),"",K43*D23) -> 
A44: =IF(ISBLANK(A24)," ",A24) ->  | B44: =IF(ISBLANK(F24),"",F24*(1-B35)*(1-C35)) ->  | C44: =IF(ISBLANK(B24),"",INDEX(Nutrient_Source_Description,MATCH(A44,Nutrient_Source,0),5)) ->  | D44: =IF(OR(ISBLANK(F24),ISBLANK(D24)),"",B44*D24) ->  | E44: =IF(ISBLANK(H24),"",H24*(1-D35)*(1-E35)) ->  | F44: =IF(ISBLANK(B24),"",INDEX(Nutrient_Source_Description,MATCH(A44,Nutrient_Source,0),5)) ->  | G44: =IF(OR(ISBLANK(H24),ISBLANK(D24)),"",E44*D24) ->  | H44: =IF(ISBLANK(J24),"",J24*(1-F35)*(1-G35)) ->  | I44: =IF(ISBLANK(B24),"",INDEX(Nutrient_Source_Description,MATCH(A44,Nutrient_Source,0),5)) ->  | J44: =IF(OR(ISBLANK(J24),ISBLANK(D24)),"",H44*D24) ->  | K44: =IF(ISBLANK(L24),"",L24) ->  | L44: =IF(ISBLANK(B24),"",INDEX(Nutrient_Source_Description,MATCH(A44,Nutrient_Source,0),5)) ->  | M44: =IF(OR(ISBLANK(L24),ISBLANK(D24)),"",K44*D24) -> 
A45: =IF(ISBLANK(A25)," ",A25) ->  | B45: =IF(ISBLANK(F25),"",F25*(1-B36)*(1-C36)) ->  | C45: =IF(ISBLANK(B25),"",INDEX(Nutrient_Source_Description,MATCH(A45,Nutrient_Source,0),5)) ->  | D45: =IF(OR(ISBLANK(F25),ISBLANK(D25)),"",B45*D25) ->  | E45: =IF(ISBLANK(H25),"",H25*(1-D36)*(1-E36)) ->  | F45: =IF(ISBLANK(B25),"",INDEX(Nutrient_Source_Description,MATCH(A45,Nutrient_Source,0),5)) ->  | G45: =IF(OR(ISBLANK(H25),ISBLANK(D25)),"",E45*D25) ->  | H45: =IF(ISBLANK(J25),"",J25*(1-F36)*(1-G36)) ->  | I45: =IF(ISBLANK(B25),"",INDEX(Nutrient_Source_Description,MATCH(A45,Nutrient_Source,0),5)) ->  | J45: =IF(OR(ISBLANK(J25),ISBLANK(D25)),"",H45*D25) ->  | K45: =IF(ISBLANK(L25),"",L25) ->  | L45: =IF(ISBLANK(B25),"",INDEX(Nutrient_Source_Description,MATCH(A45,Nutrient_Source,0),5)) ->  | M45: =IF(OR(ISBLANK(L25),ISBLANK(D25)),"",K45*D25) -> 
A46: Totals | D46: =IF(SUM(D41:D45)=0,"",SUM(D41:D45)) -> 18592.5 | G46: =IF(SUM(G41:G45)=0,"",SUM(G41:G45)) -> 25600 | J46: =IF(SUM(J41:J45)=0,"",SUM(J41:J45)) -> 24610 | M46: =IF(SUM(M41:M45)=0,"",SUM(M41:M45)) -> 2260
A50: Field P Index Calculations
A51: Fields Shown | B51: Soil Test P | D51: Soil Map Unit | E51: Slope Gradient (%) | I51: Slope Length (ft) | M51: Flooding Frequency
A52: 2 | B52: ppm | C52: lb/ac | E52: Min | F52: Max | G52: Rep | H52: Used | I52: Min | J52: Max | K52: Rep | L52: Used
A53: Rotation | B53: 137 | C53: =IF(ISBLANK(B53),"",B53*1.33) -> 182.21 | D53: NaC | E53: =IF(ISBLANK(D53),"",VLOOKUP(D53,INDIRECT(ADDRESS(Data!$AG$67,Data!$AG$65,1,1,"Data")):INDIRECT(ADDRESS(Data!$AG$68,Data!$AG$66,1,1,"Data")),Data!$AG$75,0)) -> 3 | F53: =IF(ISBLANK(D53),"",VLOOKUP(D53,INDIRECT(ADDRESS(Data!$AG$67,Data!$AG$65,1,1,"Data")):INDIRECT(ADDRESS(Data!$AG$68,Data!$AG$66,1,1,"Data")),Data!$AG$77,0)) -> 8 | G53: =IF(ISBLANK(D53),"",VLOOKUP(D53,INDIRECT(ADDRESS(Data!$AG$67,Data!$AG$65,1,1,"Data")):INDIRECT(ADDRESS(Data!$AG$68,Data!$AG$66,1,1,"Data")),Data!$AG$76,0)) -> 5 | H53: 5 | I53: =IF(ISBLANK(D53),"",VLOOKUP(D53,INDIRECT(ADDRESS(Data!$AG$67,Data!$AG$65,1,1,"Data")):INDIRECT(ADDRESS(Data!$AG$68,Data!$AG$66,1,1,"Data")),Data!$AG$78,0)) -> 39 | J53: =IF(ISBLANK(D53),"",VLOOKUP(D53,INDIRECT(ADDRESS(Data!$AG$67,Data!$AG$65,1,1,"Data")):INDIRECT(ADDRESS(Data!$AG$68,Data!$AG$66,1,1,"Data")),Data!$AG$80,0)) -> 60 | K53: =IF(ISBLANK(D53),"",VLOOKUP(D53,INDIRECT(ADDRESS(Data!$AG$67,Data!$AG$65,1,1,"Data")):INDIRECT(ADDRESS(Data!$AG$68,Data!$AG$66,1,1,"Data")),Data!$AG$79,0)) -> 48 | L53: 48 | M53: =IF(ISBLANK(D53),"",VLOOKUP(D53,INDIRECT(ADDRESS(Data!$AG$67,Data!$AG$65,1,1,"Data")):INDIRECT(ADDRESS(Data!$AG$68,Data!$AG$66,1,1,"Data")),Data!$AG$83,0)) -> None
A54: Continuous | B54: 46 | C54: =IF(ISBLANK(B54),"",B54*1.33) -> 61.18 | D54: ClG | E54: =IF(ISBLANK(D54),"",VLOOKUP(D54,INDIRECT(ADDRESS(Data!$AG$67,Data!$AG$65,1,1,"Data")):INDIRECT(ADDRESS(Data!$AG$68,Data!$AG$66,1,1,"Data")),Data!$AG$75,0)) -> 12 | F54: =IF(ISBLANK(D54),"",VLOOKUP(D54,INDIRECT(ADDRESS(Data!$AG$67,Data!$AG$65,1,1,"Data")):INDIRECT(ADDRESS(Data!$AG$68,Data!$AG$66,1,1,"Data")),Data!$AG$77,0)) -> 60 | G54: =IF(ISBLANK(D54),"",VLOOKUP(D54,INDIRECT(ADDRESS(Data!$AG$67,Data!$AG$65,1,1,"Data")):INDIRECT(ADDRESS(Data!$AG$68,Data!$AG$66,1,1,"Data")),Data!$AG$76,0)) -> 36 | H54: 14 | I54: =IF(ISBLANK(D54),"",VLOOKUP(D54,INDIRECT(ADDRESS(Data!$AG$67,Data!$AG$65,1,1,"Data")):INDIRECT(ADDRESS(Data!$AG$68,Data!$AG$66,1,1,"Data")),Data!$AG$78,0)) -> 5 | J54: =IF(ISBLANK(D54),"",VLOOKUP(D54,INDIRECT(ADDRESS(Data!$AG$67,Data!$AG$65,1,1,"Data")):INDIRECT(ADDRESS(Data!$AG$68,Data!$AG$66,1,1,"Data")),Data!$AG$80,0)) -> 30 | K54: =IF(ISBLANK(D54),"",VLOOKUP(D54,INDIRECT(ADDRESS(Data!$AG$67,Data!$AG$65,1,1,"Data")):INDIRECT(ADDRESS(Data!$AG$68,Data!$AG$66,1,1,"Data")),Data!$AG$79,0)) -> 15 | L54: 15 | M54: =IF(ISBLANK(D54),"",VLOOKUP(D54,INDIRECT(ADDRESS(Data!$AG$67,Data!$AG$65,1,1,"Data")):INDIRECT(ADDRESS(Data!$AG$68,Data!$AG$66,1,1,"Data")),Data!$AG$83,0)) -> None
E55: =IF(ISBLANK(D55),"",VLOOKUP(D55,INDIRECT(ADDRESS(Data!$AG$67,Data!$AG$65,1,1,"Data")):INDIRECT(ADDRESS(Data!$AG$68,Data!$AG$66,1,1,"Data")),Data!$AG$75,0)) ->  | F55: =IF(ISBLANK(D55),"",VLOOKUP(D55,INDIRECT(ADDRESS(Data!$AG$67,Data!$AG$65,1,1,"Data")):INDIRECT(ADDRESS(Data!$AG$68,Data!$AG$66,1,1,"Data")),Data!$AG$77,0)) ->  | G55: =IF(ISBLANK(D55),"",VLOOKUP(D55,INDIRECT(ADDRESS(Data!$AG$67,Data!$AG$65,1,1,"Data")):INDIRECT(ADDRESS(Data!$AG$68,Data!$AG$66,1,1,"Data")),Data!$AG$76,0)) ->  | I55: =IF(ISBLANK(D55),"",VLOOKUP(D55,INDIRECT(ADDRESS(Data!$AG$67,Data!$AG$65,1,1,"Data")):INDIRECT(ADDRESS(Data!$AG$68,Data!$AG$66,1,1,"Data")),Data!$AG$78,0)) ->  | J55: =IF(ISBLANK(D55),"",VLOOKUP(D55,INDIRECT(ADDRESS(Data!$AG$67,Data!$AG$65,1,1,"Data")):INDIRECT(ADDRESS(Data!$AG$68,Data!$AG$66,1,1,"Data")),Data!$AG$80,0)) ->  | K55: =IF(ISBLANK(D55),"",VLOOKUP(D55,INDIRECT(ADDRESS(Data!$AG$67,Data!$AG$65,1,1,"Data")):INDIRECT(ADDRESS(Data!$AG$68,Data!$AG$66,1,1,"Data")),Data!$AG$79,0)) ->  | M55: =IF(ISBLANK(D55),"",VLOOKUP(D55,INDIRECT(ADDRESS(Data!$AG$67,Data!$AG$65,1,1,"Data")):INDIRECT(ADDRESS(Data!$AG$68,Data!$AG$66,1,1,"Data")),Data!$AG$83,0)) -> 
E56: =IF(ISBLANK(D56),"",VLOOKUP(D56,INDIRECT(ADDRESS(Data!$AG$67,Data!$AG$65,1,1,"Data")):INDIRECT(ADDRESS(Data!$AG$68,Data!$AG$66,1,1,"Data")),Data!$AG$75,0)) ->  | F56: =IF(ISBLANK(D56),"",VLOOKUP(D56,INDIRECT(ADDRESS(Data!$AG$67,Data!$AG$65,1,1,"Data")):INDIRECT(ADDRESS(Data!$AG$68,Data!$AG$66,1,1,"Data")),Data!$AG$77,0)) ->  | G56: =IF(ISBLANK(D56),"",VLOOKUP(D56,INDIRECT(ADDRESS(Data!$AG$67,Data!$AG$65,1,1,"Data")):INDIRECT(ADDRESS(Data!$AG$68,Data!$AG$66,1,1,"Data")),Data!$AG$76,0)) ->  | I56: =IF(ISBLANK(D56),"",VLOOKUP(D56,INDIRECT(ADDRESS(Data!$AG$67,Data!$AG$65,1,1,"Data")):INDIRECT(ADDRESS(Data!$AG$68,Data!$AG$66,1,1,"Data")),Data!$AG$78,0)) ->  | J56: =IF(ISBLANK(D56),"",VLOOKUP(D56,INDIRECT(ADDRESS(Data!$AG$67,Data!$AG$65,1,1,"Data")):INDIRECT(ADDRESS(Data!$AG$68,Data!$AG$66,1,1,"Data")),Data!$AG$80,0)) ->  | K56: =IF(ISBLANK(D56),"",VLOOKUP(D56,INDIRECT(ADDRESS(Data!$AG$67,Data!$AG$65,1,1,"Data")):INDIRECT(ADDRESS(Data!$AG$68,Data!$AG$66,1,1,"Data")),Data!$AG$79,0)) ->  | M56: =IF(ISBLANK(D56),"",VLOOKUP(D56,INDIRECT(ADDRESS(Data!$AG$67,Data!$AG$65,1,1,"Data")):INDIRECT(ADDRESS(Data!$AG$68,Data!$AG$66,1,1,"Data")),Data!$AG$83,0)) -> 
E57: =IF(ISBLANK(D57),"",VLOOKUP(D57,INDIRECT(ADDRESS(Data!$AG$67,Data!$AG$65,1,1,"Data")):INDIRECT(ADDRESS(Data!$AG$68,Data!$AG$66,1,1,"Data")),Data!$AG$75,0)) ->  | F57: =IF(ISBLANK(D57),"",VLOOKUP(D57,INDIRECT(ADDRESS(Data!$AG$67,Data!$AG$65,1,1,"Data")):INDIRECT(ADDRESS(Data!$AG$68,Data!$AG$66,1,1,"Data")),Data!$AG$77,0)) ->  | G57: =IF(ISBLANK(D57),"",VLOOKUP(D57,INDIRECT(ADDRESS(Data!$AG$67,Data!$AG$65,1,1,"Data")):INDIRECT(ADDRESS(Data!$AG$68,Data!$AG$66,1,1,"Data")),Data!$AG$76,0)) ->  | I57: =IF(ISBLANK(D57),"",VLOOKUP(D57,INDIRECT(ADDRESS(Data!$AG$67,Data!$AG$65,1,1,"Data")):INDIRECT(ADDRESS(Data!$AG$68,Data!$AG$66,1,1,"Data")),Data!$AG$78,0)) ->  | J57: =IF(ISBLANK(D57),"",VLOOKUP(D57,INDIRECT(ADDRESS(Data!$AG$67,Data!$AG$65,1,1,"Data")):INDIRECT(ADDRESS(Data!$AG$68,Data!$AG$66,1,1,"Data")),Data!$AG$80,0)) ->  | K57: =IF(ISBLANK(D57),"",VLOOKUP(D57,INDIRECT(ADDRESS(Data!$AG$67,Data!$AG$65,1,1,"Data")):INDIRECT(ADDRESS(Data!$AG$68,Data!$AG$66,1,1,"Data")),Data!$AG$79,0)) ->  | M57: =IF(ISBLANK(D57),"",VLOOKUP(D57,INDIRECT(ADDRESS(Data!$AG$67,Data!$AG$65,1,1,"Data")):INDIRECT(ADDRESS(Data!$AG$68,Data!$AG$66,1,1,"Data")),Data!$AG$83,0)) -> 
E58: =IF(ISBLANK(D58),"",VLOOKUP(D58,INDIRECT(ADDRESS(Data!$AG$67,Data!$AG$65,1,1,"Data")):INDIRECT(ADDRESS(Data!$AG$68,Data!$AG$66,1,1,"Data")),Data!$AG$75,0)) ->  | F58: =IF(ISBLANK(D58),"",VLOOKUP(D58,INDIRECT(ADDRESS(Data!$AG$67,Data!$AG$65,1,1,"Data")):INDIRECT(ADDRESS(Data!$AG$68,Data!$AG$66,1,1,"Data")),Data!$AG$77,0)) ->  | G58: =IF(ISBLANK(D58),"",VLOOKUP(D58,INDIRECT(ADDRESS(Data!$AG$67,Data!$AG$65,1,1,"Data")):INDIRECT(ADDRESS(Data!$AG$68,Data!$AG$66,1,1,"Data")),Data!$AG$76,0)) ->  | I58: =IF(ISBLANK(D58),"",VLOOKUP(D58,INDIRECT(ADDRESS(Data!$AG$67,Data!$AG$65,1,1,"Data")):INDIRECT(ADDRESS(Data!$AG$68,Data!$AG$66,1,1,"Data")),Data!$AG$78,0)) ->  | J58: =IF(ISBLANK(D58),"",VLOOKUP(D58,INDIRECT(ADDRESS(Data!$AG$67,Data!$AG$65,1,1,"Data")):INDIRECT(ADDRESS(Data!$AG$68,Data!$AG$66,1,1,"Data")),Data!$AG$80,0)) ->  | K58: =IF(ISBLANK(D58),"",VLOOKUP(D58,INDIRECT(ADDRESS(Data!$AG$67,Data!$AG$65,1,1,"Data")):INDIRECT(ADDRESS(Data!$AG$68,Data!$AG$66,1,1,"Data")),Data!$AG$79,0)) ->  | M58: =IF(ISBLANK(D58),"",VLOOKUP(D58,INDIRECT(ADDRESS(Data!$AG$67,Data!$AG$65,1,1,"Data")):INDIRECT(ADDRESS(Data!$AG$68,Data!$AG$66,1,1,"Data")),Data!$AG$83,0)) -> 
E59: =IF(ISBLANK(D59),"",VLOOKUP(D59,INDIRECT(ADDRESS(Data!$AG$67,Data!$AG$65,1,1,"Data")):INDIRECT(ADDRESS(Data!$AG$68,Data!$AG$66,1,1,"Data")),Data!$AG$75,0)) ->  | F59: =IF(ISBLANK(D59),"",VLOOKUP(D59,INDIRECT(ADDRESS(Data!$AG$67,Data!$AG$65,1,1,"Data")):INDIRECT(ADDRESS(Data!$AG$68,Data!$AG$66,1,1,"Data")),Data!$AG$77,0)) ->  | G59: =IF(ISBLANK(D59),"",VLOOKUP(D59,INDIRECT(ADDRESS(Data!$AG$67,Data!$AG$65,1,1,"Data")):INDIRECT(ADDRESS(Data!$AG$68,Data!$AG$66,1,1,"Data")),Data!$AG$76,0)) ->  | I59: =IF(ISBLANK(D59),"",VLOOKUP(D59,INDIRECT(ADDRESS(Data!$AG$67,Data!$AG$65,1,1,"Data")):INDIRECT(ADDRESS(Data!$AG$68,Data!$AG$66,1,1,"Data")),Data!$AG$78,0)) ->  | J59: =IF(ISBLANK(D59),"",VLOOKUP(D59,INDIRECT(ADDRESS(Data!$AG$67,Data!$AG$65,1,1,"Data")):INDIRECT(ADDRESS(Data!$AG$68,Data!$AG$66,1,1,"Data")),Data!$AG$80,0)) ->  | K59: =IF(ISBLANK(D59),"",VLOOKUP(D59,INDIRECT(ADDRESS(Data!$AG$67,Data!$AG$65,1,1,"Data")):INDIRECT(ADDRESS(Data!$AG$68,Data!$AG$66,1,1,"Data")),Data!$AG$79,0)) ->  | M59: =IF(ISBLANK(D59),"",VLOOKUP(D59,INDIRECT(ADDRESS(Data!$AG$67,Data!$AG$65,1,1,"Data")):INDIRECT(ADDRESS(Data!$AG$68,Data!$AG$66,1,1,"Data")),Data!$AG$83,0)) -> 
E60: =IF(ISBLANK(D60),"",VLOOKUP(D60,INDIRECT(ADDRESS(Data!$AG$67,Data!$AG$65,1,1,"Data")):INDIRECT(ADDRESS(Data!$AG$68,Data!$AG$66,1,1,"Data")),Data!$AG$75,0)) ->  | F60: =IF(ISBLANK(D60),"",VLOOKUP(D60,INDIRECT(ADDRESS(Data!$AG$67,Data!$AG$65,1,1,"Data")):INDIRECT(ADDRESS(Data!$AG$68,Data!$AG$66,1,1,"Data")),Data!$AG$77,0)) ->  | G60: =IF(ISBLANK(D60),"",VLOOKUP(D60,INDIRECT(ADDRESS(Data!$AG$67,Data!$AG$65,1,1,"Data")):INDIRECT(ADDRESS(Data!$AG$68,Data!$AG$66,1,1,"Data")),Data!$AG$76,0)) ->  | I60: =IF(ISBLANK(D60),"",VLOOKUP(D60,INDIRECT(ADDRESS(Data!$AG$67,Data!$AG$65,1,1,"Data")):INDIRECT(ADDRESS(Data!$AG$68,Data!$AG$66,1,1,"Data")),Data!$AG$78,0)) ->  | J60: =IF(ISBLANK(D60),"",VLOOKUP(D60,INDIRECT(ADDRESS(Data!$AG$67,Data!$AG$65,1,1,"Data")):INDIRECT(ADDRESS(Data!$AG$68,Data!$AG$66,1,1,"Data")),Data!$AG$80,0)) ->  | K60: =IF(ISBLANK(D60),"",VLOOKUP(D60,INDIRECT(ADDRESS(Data!$AG$67,Data!$AG$65,1,1,"Data")):INDIRECT(ADDRESS(Data!$AG$68,Data!$AG$66,1,1,"Data")),Data!$AG$79,0)) ->  | M60: =IF(ISBLANK(D60),"",VLOOKUP(D60,INDIRECT(ADDRESS(Data!$AG$67,Data!$AG$65,1,1,"Data")):INDIRECT(ADDRESS(Data!$AG$68,Data!$AG$66,1,1,"Data")),Data!$AG$83,0)) -> 
E61: =IF(ISBLANK(D61),"",VLOOKUP(D61,INDIRECT(ADDRESS(Data!$AG$67,Data!$AG$65,1,1,"Data")):INDIRECT(ADDRESS(Data!$AG$68,Data!$AG$66,1,1,"Data")),Data!$AG$75,0)) ->  | F61: =IF(ISBLANK(D61),"",VLOOKUP(D61,INDIRECT(ADDRESS(Data!$AG$67,Data!$AG$65,1,1,"Data")):INDIRECT(ADDRESS(Data!$AG$68,Data!$AG$66,1,1,"Data")),Data!$AG$77,0)) ->  | G61: =IF(ISBLANK(D61),"",VLOOKUP(D61,INDIRECT(ADDRESS(Data!$AG$67,Data!$AG$65,1,1,"Data")):INDIRECT(ADDRESS(Data!$AG$68,Data!$AG$66,1,1,"Data")),Data!$AG$76,0)) ->  | I61: =IF(ISBLANK(D61),"",VLOOKUP(D61,INDIRECT(ADDRESS(Data!$AG$67,Data!$AG$65,1,1,"Data")):INDIRECT(ADDRESS(Data!$AG$68,Data!$AG$66,1,1,"Data")),Data!$AG$78,0)) ->  | J61: =IF(ISBLANK(D61),"",VLOOKUP(D61,INDIRECT(ADDRESS(Data!$AG$67,Data!$AG$65,1,1,"Data")):INDIRECT(ADDRESS(Data!$AG$68,Data!$AG$66,1,1,"Data")),Data!$AG$80,0)) ->  | K61: =IF(ISBLANK(D61),"",VLOOKUP(D61,INDIRECT(ADDRESS(Data!$AG$67,Data!$AG$65,1,1,"Data")):INDIRECT(ADDRESS(Data!$AG$68,Data!$AG$66,1,1,"Data")),Data!$AG$79,0)) ->  | M61: =IF(ISBLANK(D61),"",VLOOKUP(D61,INDIRECT(ADDRESS(Data!$AG$67,Data!$AG$65,1,1,"Data")):INDIRECT(ADDRESS(Data!$AG$68,Data!$AG$66,1,1,"Data")),Data!$AG$83,0)) -> 
E62: =IF(ISBLANK(D62),"",VLOOKUP(D62,INDIRECT(ADDRESS(Data!$AG$67,Data!$AG$65,1,1,"Data")):INDIRECT(ADDRESS(Data!$AG$68,Data!$AG$66,1,1,"Data")),Data!$AG$75,0)) ->  | F62: =IF(ISBLANK(D62),"",VLOOKUP(D62,INDIRECT(ADDRESS(Data!$AG$67,Data!$AG$65,1,1,"Data")):INDIRECT(ADDRESS(Data!$AG$68,Data!$AG$66,1,1,"Data")),Data!$AG$77,0)) ->  | G62: =IF(ISBLANK(D62),"",VLOOKUP(D62,INDIRECT(ADDRESS(Data!$AG$67,Data!$AG$65,1,1,"Data")):INDIRECT(ADDRESS(Data!$AG$68,Data!$AG$66,1,1,"Data")),Data!$AG$76,0)) ->  | I62: =IF(ISBLANK(D62),"",VLOOKUP(D62,INDIRECT(ADDRESS(Data!$AG$67,Data!$AG$65,1,1,"Data")):INDIRECT(ADDRESS(Data!$AG$68,Data!$AG$66,1,1,"Data")),Data!$AG$78,0)) ->  | J62: =IF(ISBLANK(D62),"",VLOOKUP(D62,INDIRECT(ADDRESS(Data!$AG$67,Data!$AG$65,1,1,"Data")):INDIRECT(ADDRESS(Data!$AG$68,Data!$AG$66,1,1,"Data")),Data!$AG$80,0)) ->  | K62: =IF(ISBLANK(D62),"",VLOOKUP(D62,INDIRECT(ADDRESS(Data!$AG$67,Data!$AG$65,1,1,"Data")):INDIRECT(ADDRESS(Data!$AG$68,Data!$AG$66,1,1,"Data")),Data!$AG$79,0)) ->  | M62: =IF(ISBLANK(D62),"",VLOOKUP(D62,INDIRECT(ADDRESS(Data!$AG$67,Data!$AG$65,1,1,"Data")):INDIRECT(ADDRESS(Data!$AG$68,Data!$AG$66,1,1,"Data")),Data!$AG$83,0)) -> 
E63: =IF(ISBLANK(D63),"",VLOOKUP(D63,INDIRECT(ADDRESS(Data!$AG$67,Data!$AG$65,1,1,"Data")):INDIRECT(ADDRESS(Data!$AG$68,Data!$AG$66,1,1,"Data")),Data!$AG$75,0)) ->  | F63: =IF(ISBLANK(D63),"",VLOOKUP(D63,INDIRECT(ADDRESS(Data!$AG$67,Data!$AG$65,1,1,"Data")):INDIRECT(ADDRESS(Data!$AG$68,Data!$AG$66,1,1,"Data")),Data!$AG$77,0)) ->  | G63: =IF(ISBLANK(D63),"",VLOOKUP(D63,INDIRECT(ADDRESS(Data!$AG$67,Data!$AG$65,1,1,"Data")):INDIRECT(ADDRESS(Data!$AG$68,Data!$AG$66,1,1,"Data")),Data!$AG$76,0)) ->  | I63: =IF(ISBLANK(D63),"",VLOOKUP(D63,INDIRECT(ADDRESS(Data!$AG$67,Data!$AG$65,1,1,"Data")):INDIRECT(ADDRESS(Data!$AG$68,Data!$AG$66,1,1,"Data")),Data!$AG$78,0)) ->  | J63: =IF(ISBLANK(D63),"",VLOOKUP(D63,INDIRECT(ADDRESS(Data!$AG$67,Data!$AG$65,1,1,"Data")):INDIRECT(ADDRESS(Data!$AG$68,Data!$AG$66,1,1,"Data")),Data!$AG$80,0)) ->  | K63: =IF(ISBLANK(D63),"",VLOOKUP(D63,INDIRECT(ADDRESS(Data!$AG$67,Data!$AG$65,1,1,"Data")):INDIRECT(ADDRESS(Data!$AG$68,Data!$AG$66,1,1,"Data")),Data!$AG$79,0)) ->  | M63: =IF(ISBLANK(D63),"",VLOOKUP(D63,INDIRECT(ADDRESS(Data!$AG$67,Data!$AG$65,1,1,"Data")):INDIRECT(ADDRESS(Data!$AG$68,Data!$AG$66,1,1,"Data")),Data!$AG$83,0)) -> 
E64: =IF(ISBLANK(D64),"",VLOOKUP(D64,INDIRECT(ADDRESS(Data!$AG$67,Data!$AG$65,1,1,"Data")):INDIRECT(ADDRESS(Data!$AG$68,Data!$AG$66,1,1,"Data")),Data!$AG$75,0)) ->  | F64: =IF(ISBLANK(D64),"",VLOOKUP(D64,INDIRECT(ADDRESS(Data!$AG$67,Data!$AG$65,1,1,"Data")):INDIRECT(ADDRESS(Data!$AG$68,Data!$AG$66,1,1,"Data")),Data!$AG$77,0)) ->  | G64: =IF(ISBLANK(D64),"",VLOOKUP(D64,INDIRECT(ADDRESS(Data!$AG$67,Data!$AG$65,1,1,"Data")):INDIRECT(ADDRESS(Data!$AG$68,Data!$AG$66,1,1,"Data")),Data!$AG$76,0)) ->  | I64: =IF(ISBLANK(D64),"",VLOOKUP(D64,INDIRECT(ADDRESS(Data!$AG$67,Data!$AG$65,1,1,"Data")):INDIRECT(ADDRESS(Data!$AG$68,Data!$AG$66,1,1,"Data")),Data!$AG$78,0)) ->  | J64: =IF(ISBLANK(D64),"",VLOOKUP(D64,INDIRECT(ADDRESS(Data!$AG$67,Data!$AG$65,1,1,"Data")):INDIRECT(ADDRESS(Data!$AG$68,Data!$AG$66,1,1,"Data")),Data!$AG$80,0)) ->  | K64: =IF(ISBLANK(D64),"",VLOOKUP(D64,INDIRECT(ADDRESS(Data!$AG$67,Data!$AG$65,1,1,"Data")):INDIRECT(ADDRESS(Data!$AG$68,Data!$AG$66,1,1,"Data")),Data!$AG$79,0)) ->  | M64: =IF(ISBLANK(D64),"",VLOOKUP(D64,INDIRECT(ADDRESS(Data!$AG$67,Data!$AG$65,1,1,"Data")):INDIRECT(ADDRESS(Data!$AG$68,Data!$AG$66,1,1,"Data")),Data!$AG$83,0)) -> 
E65: =IF(ISBLANK(D65),"",VLOOKUP(D65,INDIRECT(ADDRESS(Data!$AG$67,Data!$AG$65,1,1,"Data")):INDIRECT(ADDRESS(Data!$AG$68,Data!$AG$66,1,1,"Data")),Data!$AG$75,0)) ->  | F65: =IF(ISBLANK(D65),"",VLOOKUP(D65,INDIRECT(ADDRESS(Data!$AG$67,Data!$AG$65,1,1,"Data")):INDIRECT(ADDRESS(Data!$AG$68,Data!$AG$66,1,1,"Data")),Data!$AG$77,0)) ->  | G65: =IF(ISBLANK(D65),"",VLOOKUP(D65,INDIRECT(ADDRESS(Data!$AG$67,Data!$AG$65,1,1,"Data")):INDIRECT(ADDRESS(Data!$AG$68,Data!$AG$66,1,1,"Data")),Data!$AG$76,0)) ->  | I65: =IF(ISBLANK(D65),"",VLOOKUP(D65,INDIRECT(ADDRESS(Data!$AG$67,Data!$AG$65,1,1,"Data")):INDIRECT(ADDRESS(Data!$AG$68,Data!$AG$66,1,1,"Data")),Data!$AG$78,0)) ->  | J65: =IF(ISBLANK(D65),"",VLOOKUP(D65,INDIRECT(ADDRESS(Data!$AG$67,Data!$AG$65,1,1,"Data")):INDIRECT(ADDRESS(Data!$AG$68,Data!$AG$66,1,1,"Data")),Data!$AG$80,0)) ->  | K65: =IF(ISBLANK(D65),"",VLOOKUP(D65,INDIRECT(ADDRESS(Data!$AG$67,Data!$AG$65,1,1,"Data")):INDIRECT(ADDRESS(Data!$AG$68,Data!$AG$66,1,1,"Data")),Data!$AG$79,0)) ->  | M65: =IF(ISBLANK(D65),"",VLOOKUP(D65,INDIRECT(ADDRESS(Data!$AG$67,Data!$AG$65,1,1,"Data")):INDIRECT(ADDRESS(Data!$AG$68,Data!$AG$66,1,1,"Data")),Data!$AG$83,0)) -> 
E66: =IF(ISBLANK(D66),"",VLOOKUP(D66,INDIRECT(ADDRESS(Data!$AG$67,Data!$AG$65,1,1,"Data")):INDIRECT(ADDRESS(Data!$AG$68,Data!$AG$66,1,1,"Data")),Data!$AG$75,0)) ->  | F66: =IF(ISBLANK(D66),"",VLOOKUP(D66,INDIRECT(ADDRESS(Data!$AG$67,Data!$AG$65,1,1,"Data")):INDIRECT(ADDRESS(Data!$AG$68,Data!$AG$66,1,1,"Data")),Data!$AG$77,0)) ->  | G66: =IF(ISBLANK(D66),"",VLOOKUP(D66,INDIRECT(ADDRESS(Data!$AG$67,Data!$AG$65,1,1,"Data")):INDIRECT(ADDRESS(Data!$AG$68,Data!$AG$66,1,1,"Data")),Data!$AG$76,0)) ->  | I66: =IF(ISBLANK(D66),"",VLOOKUP(D66,INDIRECT(ADDRESS(Data!$AG$67,Data!$AG$65,1,1,"Data")):INDIRECT(ADDRESS(Data!$AG$68,Data!$AG$66,1,1,"Data")),Data!$AG$78,0)) ->  | J66: =IF(ISBLANK(D66),"",VLOOKUP(D66,INDIRECT(ADDRESS(Data!$AG$67,Data!$AG$65,1,1,"Data")):INDIRECT(ADDRESS(Data!$AG$68,Data!$AG$66,1,1,"Data")),Data!$AG$80,0)) ->  | K66: =IF(ISBLANK(D66),"",VLOOKUP(D66,INDIRECT(ADDRESS(Data!$AG$67,Data!$AG$65,1,1,"Data")):INDIRECT(ADDRESS(Data!$AG$68,Data!$AG$66,1,1,"Data")),Data!$AG$79,0)) ->  | M66: =IF(ISBLANK(D66),"",VLOOKUP(D66,INDIRECT(ADDRESS(Data!$AG$67,Data!$AG$65,1,1,"Data")):INDIRECT(ADDRESS(Data!$AG$68,Data!$AG$66,1,1,"Data")),Data!$AG$83,0)) -> 
E67: =IF(ISBLANK(D67),"",VLOOKUP(D67,INDIRECT(ADDRESS(Data!$AG$67,Data!$AG$65,1,1,"Data")):INDIRECT(ADDRESS(Data!$AG$68,Data!$AG$66,1,1,"Data")),Data!$AG$75,0)) ->  | F67: =IF(ISBLANK(D67),"",VLOOKUP(D67,INDIRECT(ADDRESS(Data!$AG$67,Data!$AG$65,1,1,"Data")):INDIRECT(ADDRESS(Data!$AG$68,Data!$AG$66,1,1,"Data")),Data!$AG$77,0)) ->  | G67: =IF(ISBLANK(D67),"",VLOOKUP(D67,INDIRECT(ADDRESS(Data!$AG$67,Data!$AG$65,1,1,"Data")):INDIRECT(ADDRESS(Data!$AG$68,Data!$AG$66,1,1,"Data")),Data!$AG$76,0)) ->  | I67: =IF(ISBLANK(D67),"",VLOOKUP(D67,INDIRECT(ADDRESS(Data!$AG$67,Data!$AG$65,1,1,"Data")):INDIRECT(ADDRESS(Data!$AG$68,Data!$AG$66,1,1,"Data")),Data!$AG$78,0)) ->  | J67: =IF(ISBLANK(D67),"",VLOOKUP(D67,INDIRECT(ADDRESS(Data!$AG$67,Data!$AG$65,1,1,"Data")):INDIRECT(ADDRESS(Data!$AG$68,Data!$AG$66,1,1,"Data")),Data!$AG$80,0)) ->  | K67: =IF(ISBLANK(D67),"",VLOOKUP(D67,INDIRECT(ADDRESS(Data!$AG$67,Data!$AG$65,1,1,"Data")):INDIRECT(ADDRESS(Data!$AG$68,Data!$AG$66,1,1,"Data")),Data!$AG$79,0)) ->  | M67: =IF(ISBLANK(D67),"",VLOOKUP(D67,INDIRECT(ADDRESS(Data!$AG$67,Data!$AG$65,1,1,"Data")):INDIRECT(ADDRESS(Data!$AG$68,Data!$AG$66,1,1,"Data")),Data!$AG$83,0)) -> 
E68: =IF(ISBLANK(D68),"",VLOOKUP(D68,INDIRECT(ADDRESS(Data!$AG$67,Data!$AG$65,1,1,"Data")):INDIRECT(ADDRESS(Data!$AG$68,Data!$AG$66,1,1,"Data")),Data!$AG$75,0)) ->  | F68: =IF(ISBLANK(D68),"",VLOOKUP(D68,INDIRECT(ADDRESS(Data!$AG$67,Data!$AG$65,1,1,"Data")):INDIRECT(ADDRESS(Data!$AG$68,Data!$AG$66,1,1,"Data")),Data!$AG$77,0)) ->  | G68: =IF(ISBLANK(D68),"",VLOOKUP(D68,INDIRECT(ADDRESS(Data!$AG$67,Data!$AG$65,1,1,"Data")):INDIRECT(ADDRESS(Data!$AG$68,Data!$AG$66,1,1,"Data")),Data!$AG$76,0)) ->  | I68: =IF(ISBLANK(D68),"",VLOOKUP(D68,INDIRECT(ADDRESS(Data!$AG$67,Data!$AG$65,1,1,"Data")):INDIRECT(ADDRESS(Data!$AG$68,Data!$AG$66,1,1,"Data")),Data!$AG$78,0)) ->  | J68: =IF(ISBLANK(D68),"",VLOOKUP(D68,INDIRECT(ADDRESS(Data!$AG$67,Data!$AG$65,1,1,"Data")):INDIRECT(ADDRESS(Data!$AG$68,Data!$AG$66,1,1,"Data")),Data!$AG$80,0)) ->  | K68: =IF(ISBLANK(D68),"",VLOOKUP(D68,INDIRECT(ADDRESS(Data!$AG$67,Data!$AG$65,1,1,"Data")):INDIRECT(ADDRESS(Data!$AG$68,Data!$AG$66,1,1,"Data")),Data!$AG$79,0)) ->  | M68: =IF(ISBLANK(D68),"",VLOOKUP(D68,INDIRECT(ADDRESS(Data!$AG$67,Data!$AG$65,1,1,"Data")):INDIRECT(ADDRESS(Data!$AG$68,Data!$AG$66,1,1,"Data")),Data!$AG$83,0)) -> 
E69: =IF(ISBLANK(D69),"",VLOOKUP(D69,INDIRECT(ADDRESS(Data!$AG$67,Data!$AG$65,1,1,"Data")):INDIRECT(ADDRESS(Data!$AG$68,Data!$AG$66,1,1,"Data")),Data!$AG$75,0)) ->  | F69: =IF(ISBLANK(D69),"",VLOOKUP(D69,INDIRECT(ADDRESS(Data!$AG$67,Data!$AG$65,1,1,"Data")):INDIRECT(ADDRESS(Data!$AG$68,Data!$AG$66,1,1,"Data")),Data!$AG$77,0)) ->  | G69: =IF(ISBLANK(D69),"",VLOOKUP(D69,INDIRECT(ADDRESS(Data!$AG$67,Data!$AG$65,1,1,"Data")):INDIRECT(ADDRESS(Data!$AG$68,Data!$AG$66,1,1,"Data")),Data!$AG$76,0)) ->  | I69: =IF(ISBLANK(D69),"",VLOOKUP(D69,INDIRECT(ADDRESS(Data!$AG$67,Data!$AG$65,1,1,"Data")):INDIRECT(ADDRESS(Data!$AG$68,Data!$AG$66,1,1,"Data")),Data!$AG$78,0)) ->  | J69: =IF(ISBLANK(D69),"",VLOOKUP(D69,INDIRECT(ADDRESS(Data!$AG$67,Data!$AG$65,1,1,"Data")):INDIRECT(ADDRESS(Data!$AG$68,Data!$AG$66,1,1,"Data")),Data!$AG$80,0)) ->  | K69: =IF(ISBLANK(D69),"",VLOOKUP(D69,INDIRECT(ADDRESS(Data!$AG$67,Data!$AG$65,1,1,"Data")):INDIRECT(ADDRESS(Data!$AG$68,Data!$AG$66,1,1,"Data")),Data!$AG$79,0)) ->  | M69: =IF(ISBLANK(D69),"",VLOOKUP(D69,INDIRECT(ADDRESS(Data!$AG$67,Data!$AG$65,1,1,"Data")):INDIRECT(ADDRESS(Data!$AG$68,Data!$AG$66,1,1,"Data")),Data!$AG$83,0)) -> 
E70: =IF(ISBLANK(D70),"",VLOOKUP(D70,INDIRECT(ADDRESS(Data!$AG$67,Data!$AG$65,1,1,"Data")):INDIRECT(ADDRESS(Data!$AG$68,Data!$AG$66,1,1,"Data")),Data!$AG$75,0)) ->  | F70: =IF(ISBLANK(D70),"",VLOOKUP(D70,INDIRECT(ADDRESS(Data!$AG$67,Data!$AG$65,1,1,"Data")):INDIRECT(ADDRESS(Data!$AG$68,Data!$AG$66,1,1,"Data")),Data!$AG$77,0)) ->  | G70: =IF(ISBLANK(D70),"",VLOOKUP(D70,INDIRECT(ADDRESS(Data!$AG$67,Data!$AG$65,1,1,"Data")):INDIRECT(ADDRESS(Data!$AG$68,Data!$AG$66,1,1,"Data")),Data!$AG$76,0)) ->  | I70: =IF(ISBLANK(D70),"",VLOOKUP(D70,INDIRECT(ADDRESS(Data!$AG$67,Data!$AG$65,1,1,"Data")):INDIRECT(ADDRESS(Data!$AG$68,Data!$AG$66,1,1,"Data")),Data!$AG$78,0)) ->  | J70: =IF(ISBLANK(D70),"",VLOOKUP(D70,INDIRECT(ADDRESS(Data!$AG$67,Data!$AG$65,1,1,"Data")):INDIRECT(ADDRESS(Data!$AG$68,Data!$AG$66,1,1,"Data")),Data!$AG$80,0)) ->  | K70: =IF(ISBLANK(D70),"",VLOOKUP(D70,INDIRECT(ADDRESS(Data!$AG$67,Data!$AG$65,1,1,"Data")):INDIRECT(ADDRESS(Data!$AG$68,Data!$AG$66,1,1,"Data")),Data!$AG$79,0)) ->  | M70: =IF(ISBLANK(D70),"",VLOOKUP(D70,INDIRECT(ADDRESS(Data!$AG$67,Data!$AG$65,1,1,"Data")):INDIRECT(ADDRESS(Data!$AG$68,Data!$AG$66,1,1,"Data")),Data!$AG$83,0)) -> 
E71: =IF(ISBLANK(D71),"",VLOOKUP(D71,INDIRECT(ADDRESS(Data!$AG$67,Data!$AG$65,1,1,"Data")):INDIRECT(ADDRESS(Data!$AG$68,Data!$AG$66,1,1,"Data")),Data!$AG$75,0)) ->  | F71: =IF(ISBLANK(D71),"",VLOOKUP(D71,INDIRECT(ADDRESS(Data!$AG$67,Data!$AG$65,1,1,"Data")):INDIRECT(ADDRESS(Data!$AG$68,Data!$AG$66,1,1,"Data")),Data!$AG$77,0)) ->  | G71: =IF(ISBLANK(D71),"",VLOOKUP(D71,INDIRECT(ADDRESS(Data!$AG$67,Data!$AG$65,1,1,"Data")):INDIRECT(ADDRESS(Data!$AG$68,Data!$AG$66,1,1,"Data")),Data!$AG$76,0)) ->  | I71: =IF(ISBLANK(D71),"",VLOOKUP(D71,INDIRECT(ADDRESS(Data!$AG$67,Data!$AG$65,1,1,"Data")):INDIRECT(ADDRESS(Data!$AG$68,Data!$AG$66,1,1,"Data")),Data!$AG$78,0)) ->  | J71: =IF(ISBLANK(D71),"",VLOOKUP(D71,INDIRECT(ADDRESS(Data!$AG$67,Data!$AG$65,1,1,"Data")):INDIRECT(ADDRESS(Data!$AG$68,Data!$AG$66,1,1,"Data")),Data!$AG$80,0)) ->  | K71: =IF(ISBLANK(D71),"",VLOOKUP(D71,INDIRECT(ADDRESS(Data!$AG$67,Data!$AG$65,1,1,"Data")):INDIRECT(ADDRESS(Data!$AG$68,Data!$AG$66,1,1,"Data")),Data!$AG$79,0)) ->  | M71: =IF(ISBLANK(D71),"",VLOOKUP(D71,INDIRECT(ADDRESS(Data!$AG$67,Data!$AG$65,1,1,"Data")):INDIRECT(ADDRESS(Data!$AG$68,Data!$AG$66,1,1,"Data")),Data!$AG$83,0)) -> 
E72: =IF(ISBLANK(D72),"",VLOOKUP(D72,INDIRECT(ADDRESS(Data!$AG$67,Data!$AG$65,1,1,"Data")):INDIRECT(ADDRESS(Data!$AG$68,Data!$AG$66,1,1,"Data")),Data!$AG$75,0)) ->  | F72: =IF(ISBLANK(D72),"",VLOOKUP(D72,INDIRECT(ADDRESS(Data!$AG$67,Data!$AG$65,1,1,"Data")):INDIRECT(ADDRESS(Data!$AG$68,Data!$AG$66,1,1,"Data")),Data!$AG$77,0)) ->  | G72: =IF(ISBLANK(D72),"",VLOOKUP(D72,INDIRECT(ADDRESS(Data!$AG$67,Data!$AG$65,1,1,"Data")):INDIRECT(ADDRESS(Data!$AG$68,Data!$AG$66,1,1,"Data")),Data!$AG$76,0)) ->  | I72: =IF(ISBLANK(D72),"",VLOOKUP(D72,INDIRECT(ADDRESS(Data!$AG$67,Data!$AG$65,1,1,"Data")):INDIRECT(ADDRESS(Data!$AG$68,Data!$AG$66,1,1,"Data")),Data!$AG$78,0)) ->  | J72: =IF(ISBLANK(D72),"",VLOOKUP(D72,INDIRECT(ADDRESS(Data!$AG$67,Data!$AG$65,1,1,"Data")):INDIRECT(ADDRESS(Data!$AG$68,Data!$AG$66,1,1,"Data")),Data!$AG$80,0)) ->  | K72: =IF(ISBLANK(D72),"",VLOOKUP(D72,INDIRECT(ADDRESS(Data!$AG$67,Data!$AG$65,1,1,"Data")):INDIRECT(ADDRESS(Data!$AG$68,Data!$AG$66,1,1,"Data")),Data!$AG$79,0)) ->  | M72: =IF(ISBLANK(D72),"",VLOOKUP(D72,INDIRECT(ADDRESS(Data!$AG$67,Data!$AG$65,1,1,"Data")):INDIRECT(ADDRESS(Data!$AG$68,Data!$AG$66,1,1,"Data")),Data!$AG$83,0)) -> 
E73: =IF(ISBLANK(D73),"",VLOOKUP(D73,INDIRECT(ADDRESS(Data!$AG$67,Data!$AG$65,1,1,"Data")):INDIRECT(ADDRESS(Data!$AG$68,Data!$AG$66,1,1,"Data")),Data!$AG$75,0)) ->  | F73: =IF(ISBLANK(D73),"",VLOOKUP(D73,INDIRECT(ADDRESS(Data!$AG$67,Data!$AG$65,1,1,"Data")):INDIRECT(ADDRESS(Data!$AG$68,Data!$AG$66,1,1,"Data")),Data!$AG$77,0)) ->  | G73: =IF(ISBLANK(D73),"",VLOOKUP(D73,INDIRECT(ADDRESS(Data!$AG$67,Data!$AG$65,1,1,"Data")):INDIRECT(ADDRESS(Data!$AG$68,Data!$AG$66,1,1,"Data")),Data!$AG$76,0)) ->  | I73: =IF(ISBLANK(D73),"",VLOOKUP(D73,INDIRECT(ADDRESS(Data!$AG$67,Data!$AG$65,1,1,"Data")):INDIRECT(ADDRESS(Data!$AG$68,Data!$AG$66,1,1,"Data")),Data!$AG$78,0)) ->  | J73: =IF(ISBLANK(D73),"",VLOOKUP(D73,INDIRECT(ADDRESS(Data!$AG$67,Data!$AG$65,1,1,"Data")):INDIRECT(ADDRESS(Data!$AG$68,Data!$AG$66,1,1,"Data")),Data!$AG$80,0)) ->  | K73: =IF(ISBLANK(D73),"",VLOOKUP(D73,INDIRECT(ADDRESS(Data!$AG$67,Data!$AG$65,1,1,"Data")):INDIRECT(ADDRESS(Data!$AG$68,Data!$AG$66,1,1,"Data")),Data!$AG$79,0)) ->  | M73: =IF(ISBLANK(D73),"",VLOOKUP(D73,INDIRECT(ADDRESS(Data!$AG$67,Data!$AG$65,1,1,"Data")):INDIRECT(ADDRESS(Data!$AG$68,Data!$AG$66,1,1,"Data")),Data!$AG$83,0)) -> 
E74: =IF(ISBLANK(D74),"",VLOOKUP(D74,INDIRECT(ADDRESS(Data!$AG$67,Data!$AG$65,1,1,"Data")):INDIRECT(ADDRESS(Data!$AG$68,Data!$AG$66,1,1,"Data")),Data!$AG$75,0)) ->  | F74: =IF(ISBLANK(D74),"",VLOOKUP(D74,INDIRECT(ADDRESS(Data!$AG$67,Data!$AG$65,1,1,"Data")):INDIRECT(ADDRESS(Data!$AG$68,Data!$AG$66,1,1,"Data")),Data!$AG$77,0)) ->  | G74: =IF(ISBLANK(D74),"",VLOOKUP(D74,INDIRECT(ADDRESS(Data!$AG$67,Data!$AG$65,1,1,"Data")):INDIRECT(ADDRESS(Data!$AG$68,Data!$AG$66,1,1,"Data")),Data!$AG$76,0)) ->  | I74: =IF(ISBLANK(D74),"",VLOOKUP(D74,INDIRECT(ADDRESS(Data!$AG$67,Data!$AG$65,1,1,"Data")):INDIRECT(ADDRESS(Data!$AG$68,Data!$AG$66,1,1,"Data")),Data!$AG$78,0)) ->  | J74: =IF(ISBLANK(D74),"",VLOOKUP(D74,INDIRECT(ADDRESS(Data!$AG$67,Data!$AG$65,1,1,"Data")):INDIRECT(ADDRESS(Data!$AG$68,Data!$AG$66,1,1,"Data")),Data!$AG$80,0)) ->  | K74: =IF(ISBLANK(D74),"",VLOOKUP(D74,INDIRECT(ADDRESS(Data!$AG$67,Data!$AG$65,1,1,"Data")):INDIRECT(ADDRESS(Data!$AG$68,Data!$AG$66,1,1,"Data")),Data!$AG$79,0)) ->  | M74: =IF(ISBLANK(D74),"",VLOOKUP(D74,INDIRECT(ADDRESS(Data!$AG$67,Data!$AG$65,1,1,"Data")):INDIRECT(ADDRESS(Data!$AG$68,Data!$AG$66,1,1,"Data")),Data!$AG$83,0)) -> 
E75: =IF(ISBLANK(D75),"",VLOOKUP(D75,INDIRECT(ADDRESS(Data!$AG$67,Data!$AG$65,1,1,"Data")):INDIRECT(ADDRESS(Data!$AG$68,Data!$AG$66,1,1,"Data")),Data!$AG$75,0)) ->  | F75: =IF(ISBLANK(D75),"",VLOOKUP(D75,INDIRECT(ADDRESS(Data!$AG$67,Data!$AG$65,1,1,"Data")):INDIRECT(ADDRESS(Data!$AG$68,Data!$AG$66,1,1,"Data")),Data!$AG$77,0)) ->  | G75: =IF(ISBLANK(D75),"",VLOOKUP(D75,INDIRECT(ADDRESS(Data!$AG$67,Data!$AG$65,1,1,"Data")):INDIRECT(ADDRESS(Data!$AG$68,Data!$AG$66,1,1,"Data")),Data!$AG$76,0)) ->  | I75: =IF(ISBLANK(D75),"",VLOOKUP(D75,INDIRECT(ADDRESS(Data!$AG$67,Data!$AG$65,1,1,"Data")):INDIRECT(ADDRESS(Data!$AG$68,Data!$AG$66,1,1,"Data")),Data!$AG$78,0)) ->  | J75: =IF(ISBLANK(D75),"",VLOOKUP(D75,INDIRECT(ADDRESS(Data!$AG$67,Data!$AG$65,1,1,"Data")):INDIRECT(ADDRESS(Data!$AG$68,Data!$AG$66,1,1,"Data")),Data!$AG$80,0)) ->  | K75: =IF(ISBLANK(D75),"",VLOOKUP(D75,INDIRECT(ADDRESS(Data!$AG$67,Data!$AG$65,1,1,"Data")):INDIRECT(ADDRESS(Data!$AG$68,Data!$AG$66,1,1,"Data")),Data!$AG$79,0)) ->  | M75: =IF(ISBLANK(D75),"",VLOOKUP(D75,INDIRECT(ADDRESS(Data!$AG$67,Data!$AG$65,1,1,"Data")):INDIRECT(ADDRESS(Data!$AG$68,Data!$AG$66,1,1,"Data")),Data!$AG$83,0)) -> 
E76: =IF(ISBLANK(D76),"",VLOOKUP(D76,INDIRECT(ADDRESS(Data!$AG$67,Data!$AG$65,1,1,"Data")):INDIRECT(ADDRESS(Data!$AG$68,Data!$AG$66,1,1,"Data")),Data!$AG$75,0)) ->  | F76: =IF(ISBLANK(D76),"",VLOOKUP(D76,INDIRECT(ADDRESS(Data!$AG$67,Data!$AG$65,1,1,"Data")):INDIRECT(ADDRESS(Data!$AG$68,Data!$AG$66,1,1,"Data")),Data!$AG$77,0)) ->  | G76: =IF(ISBLANK(D76),"",VLOOKUP(D76,INDIRECT(ADDRESS(Data!$AG$67,Data!$AG$65,1,1,"Data")):INDIRECT(ADDRESS(Data!$AG$68,Data!$AG$66,1,1,"Data")),Data!$AG$76,0)) ->  | I76: =IF(ISBLANK(D76),"",VLOOKUP(D76,INDIRECT(ADDRESS(Data!$AG$67,Data!$AG$65,1,1,"Data")):INDIRECT(ADDRESS(Data!$AG$68,Data!$AG$66,1,1,"Data")),Data!$AG$78,0)) ->  | J76: =IF(ISBLANK(D76),"",VLOOKUP(D76,INDIRECT(ADDRESS(Data!$AG$67,Data!$AG$65,1,1,"Data")):INDIRECT(ADDRESS(Data!$AG$68,Data!$AG$66,1,1,"Data")),Data!$AG$80,0)) ->  | K76: =IF(ISBLANK(D76),"",VLOOKUP(D76,INDIRECT(ADDRESS(Data!$AG$67,Data!$AG$65,1,1,"Data")):INDIRECT(ADDRESS(Data!$AG$68,Data!$AG$66,1,1,"Data")),Data!$AG$79,0)) ->  | M76: =IF(ISBLANK(D76),"",VLOOKUP(D76,INDIRECT(ADDRESS(Data!$AG$67,Data!$AG$65,1,1,"Data")):INDIRECT(ADDRESS(Data!$AG$68,Data!$AG$66,1,1,"Data")),Data!$AG$83,0)) -> 
E77: =IF(ISBLANK(D77),"",VLOOKUP(D77,INDIRECT(ADDRESS(Data!$AG$67,Data!$AG$65,1,1,"Data")):INDIRECT(ADDRESS(Data!$AG$68,Data!$AG$66,1,1,"Data")),Data!$AG$75,0)) ->  | F77: =IF(ISBLANK(D77),"",VLOOKUP(D77,INDIRECT(ADDRESS(Data!$AG$67,Data!$AG$65,1,1,"Data")):INDIRECT(ADDRESS(Data!$AG$68,Data!$AG$66,1,1,"Data")),Data!$AG$77,0)) ->  | G77: =IF(ISBLANK(D77),"",VLOOKUP(D77,INDIRECT(ADDRESS(Data!$AG$67,Data!$AG$65,1,1,"Data")):INDIRECT(ADDRESS(Data!$AG$68,Data!$AG$66,1,1,"Data")),Data!$AG$76,0)) ->  | I77: =IF(ISBLANK(D77),"",VLOOKUP(D77,INDIRECT(ADDRESS(Data!$AG$67,Data!$AG$65,1,1,"Data")):INDIRECT(ADDRESS(Data!$AG$68,Data!$AG$66,1,1,"Data")),Data!$AG$78,0)) ->  | J77: =IF(ISBLANK(D77),"",VLOOKUP(D77,INDIRECT(ADDRESS(Data!$AG$67,Data!$AG$65,1,1,"Data")):INDIRECT(ADDRESS(Data!$AG$68,Data!$AG$66,1,1,"Data")),Data!$AG$80,0)) ->  | K77: =IF(ISBLANK(D77),"",VLOOKUP(D77,INDIRECT(ADDRESS(Data!$AG$67,Data!$AG$65,1,1,"Data")):INDIRECT(ADDRESS(Data!$AG$68,Data!$AG$66,1,1,"Data")),Data!$AG$79,0)) ->  | M77: =IF(ISBLANK(D77),"",VLOOKUP(D77,INDIRECT(ADDRESS(Data!$AG$67,Data!$AG$65,1,1,"Data")):INDIRECT(ADDRESS(Data!$AG$68,Data!$AG$66,1,1,"Data")),Data!$AG$83,0)) -> 
E78: =IF(ISBLANK(D78),"",VLOOKUP(D78,INDIRECT(ADDRESS(Data!$AG$67,Data!$AG$65,1,1,"Data")):INDIRECT(ADDRESS(Data!$AG$68,Data!$AG$66,1,1,"Data")),Data!$AG$75,0)) ->  | F78: =IF(ISBLANK(D78),"",VLOOKUP(D78,INDIRECT(ADDRESS(Data!$AG$67,Data!$AG$65,1,1,"Data")):INDIRECT(ADDRESS(Data!$AG$68,Data!$AG$66,1,1,"Data")),Data!$AG$77,0)) ->  | G78: =IF(ISBLANK(D78),"",VLOOKUP(D78,INDIRECT(ADDRESS(Data!$AG$67,Data!$AG$65,1,1,"Data")):INDIRECT(ADDRESS(Data!$AG$68,Data!$AG$66,1,1,"Data")),Data!$AG$76,0)) ->  | I78: =IF(ISBLANK(D78),"",VLOOKUP(D78,INDIRECT(ADDRESS(Data!$AG$67,Data!$AG$65,1,1,"Data")):INDIRECT(ADDRESS(Data!$AG$68,Data!$AG$66,1,1,"Data")),Data!$AG$78,0)) ->  | J78: =IF(ISBLANK(D78),"",VLOOKUP(D78,INDIRECT(ADDRESS(Data!$AG$67,Data!$AG$65,1,1,"Data")):INDIRECT(ADDRESS(Data!$AG$68,Data!$AG$66,1,1,"Data")),Data!$AG$80,0)) ->  | K78: =IF(ISBLANK(D78),"",VLOOKUP(D78,INDIRECT(ADDRESS(Data!$AG$67,Data!$AG$65,1,1,"Data")):INDIRECT(ADDRESS(Data!$AG$68,Data!$AG$66,1,1,"Data")),Data!$AG$79,0)) ->  | M78: =IF(ISBLANK(D78),"",VLOOKUP(D78,INDIRECT(ADDRESS(Data!$AG$67,Data!$AG$65,1,1,"Data")):INDIRECT(ADDRESS(Data!$AG$68,Data!$AG$66,1,1,"Data")),Data!$AG$83,0)) -> 
E79: =IF(ISBLANK(D79),"",VLOOKUP(D79,INDIRECT(ADDRESS(Data!$AG$67,Data!$AG$65,1,1,"Data")):INDIRECT(ADDRESS(Data!$AG$68,Data!$AG$66,1,1,"Data")),Data!$AG$75,0)) ->  | F79: =IF(ISBLANK(D79),"",VLOOKUP(D79,INDIRECT(ADDRESS(Data!$AG$67,Data!$AG$65,1,1,"Data")):INDIRECT(ADDRESS(Data!$AG$68,Data!$AG$66,1,1,"Data")),Data!$AG$77,0)) ->  | G79: =IF(ISBLANK(D79),"",VLOOKUP(D79,INDIRECT(ADDRESS(Data!$AG$67,Data!$AG$65,1,1,"Data")):INDIRECT(ADDRESS(Data!$AG$68,Data!$AG$66,1,1,"Data")),Data!$AG$76,0)) ->  | I79: =IF(ISBLANK(D79),"",VLOOKUP(D79,INDIRECT(ADDRESS(Data!$AG$67,Data!$AG$65,1,1,"Data")):INDIRECT(ADDRESS(Data!$AG$68,Data!$AG$66,1,1,"Data")),Data!$AG$78,0)) ->  | J79: =IF(ISBLANK(D79),"",VLOOKUP(D79,INDIRECT(ADDRESS(Data!$AG$67,Data!$AG$65,1,1,"Data")):INDIRECT(ADDRESS(Data!$AG$68,Data!$AG$66,1,1,"Data")),Data!$AG$80,0)) ->  | K79: =IF(ISBLANK(D79),"",VLOOKUP(D79,INDIRECT(ADDRESS(Data!$AG$67,Data!$AG$65,1,1,"Data")):INDIRECT(ADDRESS(Data!$AG$68,Data!$AG$66,1,1,"Data")),Data!$AG$79,0)) ->  | M79: =IF(ISBLANK(D79),"",VLOOKUP(D79,INDIRECT(ADDRESS(Data!$AG$67,Data!$AG$65,1,1,"Data")):INDIRECT(ADDRESS(Data!$AG$68,Data!$AG$66,1,1,"Data")),Data!$AG$83,0)) -> 
E80: =IF(ISBLANK(D80),"",VLOOKUP(D80,INDIRECT(ADDRESS(Data!$AG$67,Data!$AG$65,1,1,"Data")):INDIRECT(ADDRESS(Data!$AG$68,Data!$AG$66,1,1,"Data")),Data!$AG$75,0)) ->  | F80: =IF(ISBLANK(D80),"",VLOOKUP(D80,INDIRECT(ADDRESS(Data!$AG$67,Data!$AG$65,1,1,"Data")):INDIRECT(ADDRESS(Data!$AG$68,Data!$AG$66,1,1,"Data")),Data!$AG$77,0)) ->  | G80: =IF(ISBLANK(D80),"",VLOOKUP(D80,INDIRECT(ADDRESS(Data!$AG$67,Data!$AG$65,1,1,"Data")):INDIRECT(ADDRESS(Data!$AG$68,Data!$AG$66,1,1,"Data")),Data!$AG$76,0)) ->  | I80: =IF(ISBLANK(D80),"",VLOOKUP(D80,INDIRECT(ADDRESS(Data!$AG$67,Data!$AG$65,1,1,"Data")):INDIRECT(ADDRESS(Data!$AG$68,Data!$AG$66,1,1,"Data")),Data!$AG$78,0)) ->  | J80: =IF(ISBLANK(D80),"",VLOOKUP(D80,INDIRECT(ADDRESS(Data!$AG$67,Data!$AG$65,1,1,"Data")):INDIRECT(ADDRESS(Data!$AG$68,Data!$AG$66,1,1,"Data")),Data!$AG$80,0)) ->  | K80: =IF(ISBLANK(D80),"",VLOOKUP(D80,INDIRECT(ADDRESS(Data!$AG$67,Data!$AG$65,1,1,"Data")):INDIRECT(ADDRESS(Data!$AG$68,Data!$AG$66,1,1,"Data")),Data!$AG$79,0)) ->  | M80: =IF(ISBLANK(D80),"",VLOOKUP(D80,INDIRECT(ADDRESS(Data!$AG$67,Data!$AG$65,1,1,"Data")):INDIRECT(ADDRESS(Data!$AG$68,Data!$AG$66,1,1,"Data")),Data!$AG$83,0)) -> 
E81: =IF(ISBLANK(D81),"",VLOOKUP(D81,INDIRECT(ADDRESS(Data!$AG$67,Data!$AG$65,1,1,"Data")):INDIRECT(ADDRESS(Data!$AG$68,Data!$AG$66,1,1,"Data")),Data!$AG$75,0)) ->  | F81: =IF(ISBLANK(D81),"",VLOOKUP(D81,INDIRECT(ADDRESS(Data!$AG$67,Data!$AG$65,1,1,"Data")):INDIRECT(ADDRESS(Data!$AG$68,Data!$AG$66,1,1,"Data")),Data!$AG$77,0)) ->  | G81: =IF(ISBLANK(D81),"",VLOOKUP(D81,INDIRECT(ADDRESS(Data!$AG$67,Data!$AG$65,1,1,"Data")):INDIRECT(ADDRESS(Data!$AG$68,Data!$AG$66,1,1,"Data")),Data!$AG$76,0)) ->  | I81: =IF(ISBLANK(D81),"",VLOOKUP(D81,INDIRECT(ADDRESS(Data!$AG$67,Data!$AG$65,1,1,"Data")):INDIRECT(ADDRESS(Data!$AG$68,Data!$AG$66,1,1,"Data")),Data!$AG$78,0)) ->  | J81: =IF(ISBLANK(D81),"",VLOOKUP(D81,INDIRECT(ADDRESS(Data!$AG$67,Data!$AG$65,1,1,"Data")):INDIRECT(ADDRESS(Data!$AG$68,Data!$AG$66,1,1,"Data")),Data!$AG$80,0)) ->  | K81: =IF(ISBLANK(D81),"",VLOOKUP(D81,INDIRECT(ADDRESS(Data!$AG$67,Data!$AG$65,1,1,"Data")):INDIRECT(ADDRESS(Data!$AG$68,Data!$AG$66,1,1,"Data")),Data!$AG$79,0)) ->  | M81: =IF(ISBLANK(D81),"",VLOOKUP(D81,INDIRECT(ADDRESS(Data!$AG$67,Data!$AG$65,1,1,"Data")):INDIRECT(ADDRESS(Data!$AG$68,Data!$AG$66,1,1,"Data")),Data!$AG$83,0)) -> 
E82: =IF(ISBLANK(D82),"",VLOOKUP(D82,INDIRECT(ADDRESS(Data!$AG$67,Data!$AG$65,1,1,"Data")):INDIRECT(ADDRESS(Data!$AG$68,Data!$AG$66,1,1,"Data")),Data!$AG$75,0)) ->  | F82: =IF(ISBLANK(D82),"",VLOOKUP(D82,INDIRECT(ADDRESS(Data!$AG$67,Data!$AG$65,1,1,"Data")):INDIRECT(ADDRESS(Data!$AG$68,Data!$AG$66,1,1,"Data")),Data!$AG$77,0)) ->  | G82: =IF(ISBLANK(D82),"",VLOOKUP(D82,INDIRECT(ADDRESS(Data!$AG$67,Data!$AG$65,1,1,"Data")):INDIRECT(ADDRESS(Data!$AG$68,Data!$AG$66,1,1,"Data")),Data!$AG$76,0)) ->  | I82: =IF(ISBLANK(D82),"",VLOOKUP(D82,INDIRECT(ADDRESS(Data!$AG$67,Data!$AG$65,1,1,"Data")):INDIRECT(ADDRESS(Data!$AG$68,Data!$AG$66,1,1,"Data")),Data!$AG$78,0)) ->  | J82: =IF(ISBLANK(D82),"",VLOOKUP(D82,INDIRECT(ADDRESS(Data!$AG$67,Data!$AG$65,1,1,"Data")):INDIRECT(ADDRESS(Data!$AG$68,Data!$AG$66,1,1,"Data")),Data!$AG$80,0)) ->  | K82: =IF(ISBLANK(D82),"",VLOOKUP(D82,INDIRECT(ADDRESS(Data!$AG$67,Data!$AG$65,1,1,"Data")):INDIRECT(ADDRESS(Data!$AG$68,Data!$AG$66,1,1,"Data")),Data!$AG$79,0)) ->  | M82: =IF(ISBLANK(D82),"",VLOOKUP(D82,INDIRECT(ADDRESS(Data!$AG$67,Data!$AG$65,1,1,"Data")):INDIRECT(ADDRESS(Data!$AG$68,Data!$AG$66,1,1,"Data")),Data!$AG$83,0)) -> 
E83: =IF(ISBLANK(D83),"",VLOOKUP(D83,INDIRECT(ADDRESS(Data!$AG$67,Data!$AG$65,1,1,"Data")):INDIRECT(ADDRESS(Data!$AG$68,Data!$AG$66,1,1,"Data")),Data!$AG$75,0)) ->  | F83: =IF(ISBLANK(D83),"",VLOOKUP(D83,INDIRECT(ADDRESS(Data!$AG$67,Data!$AG$65,1,1,"Data")):INDIRECT(ADDRESS(Data!$AG$68,Data!$AG$66,1,1,"Data")),Data!$AG$77,0)) ->  | G83: =IF(ISBLANK(D83),"",VLOOKUP(D83,INDIRECT(ADDRESS(Data!$AG$67,Data!$AG$65,1,1,"Data")):INDIRECT(ADDRESS(Data!$AG$68,Data!$AG$66,1,1,"Data")),Data!$AG$76,0)) ->  | I83: =IF(ISBLANK(D83),"",VLOOKUP(D83,INDIRECT(ADDRESS(Data!$AG$67,Data!$AG$65,1,1,"Data")):INDIRECT(ADDRESS(Data!$AG$68,Data!$AG$66,1,1,"Data")),Data!$AG$78,0)) ->  | J83: =IF(ISBLANK(D83),"",VLOOKUP(D83,INDIRECT(ADDRESS(Data!$AG$67,Data!$AG$65,1,1,"Data")):INDIRECT(ADDRESS(Data!$AG$68,Data!$AG$66,1,1,"Data")),Data!$AG$80,0)) ->  | K83: =IF(ISBLANK(D83),"",VLOOKUP(D83,INDIRECT(ADDRESS(Data!$AG$67,Data!$AG$65,1,1,"Data")):INDIRECT(ADDRESS(Data!$AG$68,Data!$AG$66,1,1,"Data")),Data!$AG$79,0)) ->  | M83: =IF(ISBLANK(D83),"",VLOOKUP(D83,INDIRECT(ADDRESS(Data!$AG$67,Data!$AG$65,1,1,"Data")):INDIRECT(ADDRESS(Data!$AG$68,Data!$AG$66,1,1,"Data")),Data!$AG$83,0)) -> 
E84: =IF(ISBLANK(D84),"",VLOOKUP(D84,INDIRECT(ADDRESS(Data!$AG$67,Data!$AG$65,1,1,"Data")):INDIRECT(ADDRESS(Data!$AG$68,Data!$AG$66,1,1,"Data")),Data!$AG$75,0)) ->  | F84: =IF(ISBLANK(D84),"",VLOOKUP(D84,INDIRECT(ADDRESS(Data!$AG$67,Data!$AG$65,1,1,"Data")):INDIRECT(ADDRESS(Data!$AG$68,Data!$AG$66,1,1,"Data")),Data!$AG$77,0)) ->  | G84: =IF(ISBLANK(D84),"",VLOOKUP(D84,INDIRECT(ADDRESS(Data!$AG$67,Data!$AG$65,1,1,"Data")):INDIRECT(ADDRESS(Data!$AG$68,Data!$AG$66,1,1,"Data")),Data!$AG$76,0)) ->  | I84: =IF(ISBLANK(D84),"",VLOOKUP(D84,INDIRECT(ADDRESS(Data!$AG$67,Data!$AG$65,1,1,"Data")):INDIRECT(ADDRESS(Data!$AG$68,Data!$AG$66,1,1,"Data")),Data!$AG$78,0)) ->  | J84: =IF(ISBLANK(D84),"",VLOOKUP(D84,INDIRECT(ADDRESS(Data!$AG$67,Data!$AG$65,1,1,"Data")):INDIRECT(ADDRESS(Data!$AG$68,Data!$AG$66,1,1,"Data")),Data!$AG$80,0)) ->  | K84: =IF(ISBLANK(D84),"",VLOOKUP(D84,INDIRECT(ADDRESS(Data!$AG$67,Data!$AG$65,1,1,"Data")):INDIRECT(ADDRESS(Data!$AG$68,Data!$AG$66,1,1,"Data")),Data!$AG$79,0)) ->  | M84: =IF(ISBLANK(D84),"",VLOOKUP(D84,INDIRECT(ADDRESS(Data!$AG$67,Data!$AG$65,1,1,"Data")):INDIRECT(ADDRESS(Data!$AG$68,Data!$AG$66,1,1,"Data")),Data!$AG$83,0)) -> 
E85: =IF(ISBLANK(D85),"",VLOOKUP(D85,INDIRECT(ADDRESS(Data!$AG$67,Data!$AG$65,1,1,"Data")):INDIRECT(ADDRESS(Data!$AG$68,Data!$AG$66,1,1,"Data")),Data!$AG$75,0)) ->  | F85: =IF(ISBLANK(D85),"",VLOOKUP(D85,INDIRECT(ADDRESS(Data!$AG$67,Data!$AG$65,1,1,"Data")):INDIRECT(ADDRESS(Data!$AG$68,Data!$AG$66,1,1,"Data")),Data!$AG$77,0)) ->  | G85: =IF(ISBLANK(D85),"",VLOOKUP(D85,INDIRECT(ADDRESS(Data!$AG$67,Data!$AG$65,1,1,"Data")):INDIRECT(ADDRESS(Data!$AG$68,Data!$AG$66,1,1,"Data")),Data!$AG$76,0)) ->  | I85: =IF(ISBLANK(D85),"",VLOOKUP(D85,INDIRECT(ADDRESS(Data!$AG$67,Data!$AG$65,1,1,"Data")):INDIRECT(ADDRESS(Data!$AG$68,Data!$AG$66,1,1,"Data")),Data!$AG$78,0)) ->  | J85: =IF(ISBLANK(D85),"",VLOOKUP(D85,INDIRECT(ADDRESS(Data!$AG$67,Data!$AG$65,1,1,"Data")):INDIRECT(ADDRESS(Data!$AG$68,Data!$AG$66,1,1,"Data")),Data!$AG$80,0)) ->  | K85: =IF(ISBLANK(D85),"",VLOOKUP(D85,INDIRECT(ADDRESS(Data!$AG$67,Data!$AG$65,1,1,"Data")):INDIRECT(ADDRESS(Data!$AG$68,Data!$AG$66,1,1,"Data")),Data!$AG$79,0)) ->  | M85: =IF(ISBLANK(D85),"",VLOOKUP(D85,INDIRECT(ADDRESS(Data!$AG$67,Data!$AG$65,1,1,"Data")):INDIRECT(ADDRESS(Data!$AG$68,Data!$AG$66,1,1,"Data")),Data!$AG$83,0)) -> 
E86: =IF(ISBLANK(D86),"",VLOOKUP(D86,INDIRECT(ADDRESS(Data!$AG$67,Data!$AG$65,1,1,"Data")):INDIRECT(ADDRESS(Data!$AG$68,Data!$AG$66,1,1,"Data")),Data!$AG$75,0)) ->  | F86: =IF(ISBLANK(D86),"",VLOOKUP(D86,INDIRECT(ADDRESS(Data!$AG$67,Data!$AG$65,1,1,"Data")):INDIRECT(ADDRESS(Data!$AG$68,Data!$AG$66,1,1,"Data")),Data!$AG$77,0)) ->  | G86: =IF(ISBLANK(D86),"",VLOOKUP(D86,INDIRECT(ADDRESS(Data!$AG$67,Data!$AG$65,1,1,"Data")):INDIRECT(ADDRESS(Data!$AG$68,Data!$AG$66,1,1,"Data")),Data!$AG$76,0)) ->  | I86: =IF(ISBLANK(D86),"",VLOOKUP(D86,INDIRECT(ADDRESS(Data!$AG$67,Data!$AG$65,1,1,"Data")):INDIRECT(ADDRESS(Data!$AG$68,Data!$AG$66,1,1,"Data")),Data!$AG$78,0)) ->  | J86: =IF(ISBLANK(D86),"",VLOOKUP(D86,INDIRECT(ADDRESS(Data!$AG$67,Data!$AG$65,1,1,"Data")):INDIRECT(ADDRESS(Data!$AG$68,Data!$AG$66,1,1,"Data")),Data!$AG$80,0)) ->  | K86: =IF(ISBLANK(D86),"",VLOOKUP(D86,INDIRECT(ADDRESS(Data!$AG$67,Data!$AG$65,1,1,"Data")):INDIRECT(ADDRESS(Data!$AG$68,Data!$AG$66,1,1,"Data")),Data!$AG$79,0)) ->  | M86: =IF(ISBLANK(D86),"",VLOOKUP(D86,INDIRECT(ADDRESS(Data!$AG$67,Data!$AG$65,1,1,"Data")):INDIRECT(ADDRESS(Data!$AG$68,Data!$AG$66,1,1,"Data")),Data!$AG$83,0)) -> 
E87: =IF(ISBLANK(D87),"",VLOOKUP(D87,INDIRECT(ADDRESS(Data!$AG$67,Data!$AG$65,1,1,"Data")):INDIRECT(ADDRESS(Data!$AG$68,Data!$AG$66,1,1,"Data")),Data!$AG$75,0)) ->  | F87: =IF(ISBLANK(D87),"",VLOOKUP(D87,INDIRECT(ADDRESS(Data!$AG$67,Data!$AG$65,1,1,"Data")):INDIRECT(ADDRESS(Data!$AG$68,Data!$AG$66,1,1,"Data")),Data!$AG$77,0)) ->  | G87: =IF(ISBLANK(D87),"",VLOOKUP(D87,INDIRECT(ADDRESS(Data!$AG$67,Data!$AG$65,1,1,"Data")):INDIRECT(ADDRESS(Data!$AG$68,Data!$AG$66,1,1,"Data")),Data!$AG$76,0)) ->  | I87: =IF(ISBLANK(D87),"",VLOOKUP(D87,INDIRECT(ADDRESS(Data!$AG$67,Data!$AG$65,1,1,"Data")):INDIRECT(ADDRESS(Data!$AG$68,Data!$AG$66,1,1,"Data")),Data!$AG$78,0)) ->  | J87: =IF(ISBLANK(D87),"",VLOOKUP(D87,INDIRECT(ADDRESS(Data!$AG$67,Data!$AG$65,1,1,"Data")):INDIRECT(ADDRESS(Data!$AG$68,Data!$AG$66,1,1,"Data")),Data!$AG$80,0)) ->  | K87: =IF(ISBLANK(D87),"",VLOOKUP(D87,INDIRECT(ADDRESS(Data!$AG$67,Data!$AG$65,1,1,"Data")):INDIRECT(ADDRESS(Data!$AG$68,Data!$AG$66,1,1,"Data")),Data!$AG$79,0)) ->  | M87: =IF(ISBLANK(D87),"",VLOOKUP(D87,INDIRECT(ADDRESS(Data!$AG$67,Data!$AG$65,1,1,"Data")):INDIRECT(ADDRESS(Data!$AG$68,Data!$AG$66,1,1,"Data")),Data!$AG$83,0)) -> 
E88: =IF(ISBLANK(D88),"",VLOOKUP(D88,INDIRECT(ADDRESS(Data!$AG$67,Data!$AG$65,1,1,"Data")):INDIRECT(ADDRESS(Data!$AG$68,Data!$AG$66,1,1,"Data")),Data!$AG$75,0)) ->  | F88: =IF(ISBLANK(D88),"",VLOOKUP(D88,INDIRECT(ADDRESS(Data!$AG$67,Data!$AG$65,1,1,"Data")):INDIRECT(ADDRESS(Data!$AG$68,Data!$AG$66,1,1,"Data")),Data!$AG$77,0)) ->  | G88: =IF(ISBLANK(D88),"",VLOOKUP(D88,INDIRECT(ADDRESS(Data!$AG$67,Data!$AG$65,1,1,"Data")):INDIRECT(ADDRESS(Data!$AG$68,Data!$AG$66,1,1,"Data")),Data!$AG$76,0)) ->  | I88: =IF(ISBLANK(D88),"",VLOOKUP(D88,INDIRECT(ADDRESS(Data!$AG$67,Data!$AG$65,1,1,"Data")):INDIRECT(ADDRESS(Data!$AG$68,Data!$AG$66,1,1,"Data")),Data!$AG$78,0)) ->  | J88: =IF(ISBLANK(D88),"",VLOOKUP(D88,INDIRECT(ADDRESS(Data!$AG$67,Data!$AG$65,1,1,"Data")):INDIRECT(ADDRESS(Data!$AG$68,Data!$AG$66,1,1,"Data")),Data!$AG$80,0)) ->  | K88: =IF(ISBLANK(D88),"",VLOOKUP(D88,INDIRECT(ADDRESS(Data!$AG$67,Data!$AG$65,1,1,"Data")):INDIRECT(ADDRESS(Data!$AG$68,Data!$AG$66,1,1,"Data")),Data!$AG$79,0)) ->  | M88: =IF(ISBLANK(D88),"",VLOOKUP(D88,INDIRECT(ADDRESS(Data!$AG$67,Data!$AG$65,1,1,"Data")):INDIRECT(ADDRESS(Data!$AG$68,Data!$AG$66,1,1,"Data")),Data!$AG$83,0)) -> 
E89: =IF(ISBLANK(D89),"",VLOOKUP(D89,INDIRECT(ADDRESS(Data!$AG$67,Data!$AG$65,1,1,"Data")):INDIRECT(ADDRESS(Data!$AG$68,Data!$AG$66,1,1,"Data")),Data!$AG$75,0)) ->  | F89: =IF(ISBLANK(D89),"",VLOOKUP(D89,INDIRECT(ADDRESS(Data!$AG$67,Data!$AG$65,1,1,"Data")):INDIRECT(ADDRESS(Data!$AG$68,Data!$AG$66,1,1,"Data")),Data!$AG$77,0)) ->  | G89: =IF(ISBLANK(D89),"",VLOOKUP(D89,INDIRECT(ADDRESS(Data!$AG$67,Data!$AG$65,1,1,"Data")):INDIRECT(ADDRESS(Data!$AG$68,Data!$AG$66,1,1,"Data")),Data!$AG$76,0)) ->  | I89: =IF(ISBLANK(D89),"",VLOOKUP(D89,INDIRECT(ADDRESS(Data!$AG$67,Data!$AG$65,1,1,"Data")):INDIRECT(ADDRESS(Data!$AG$68,Data!$AG$66,1,1,"Data")),Data!$AG$78,0)) ->  | J89: =IF(ISBLANK(D89),"",VLOOKUP(D89,INDIRECT(ADDRESS(Data!$AG$67,Data!$AG$65,1,1,"Data")):INDIRECT(ADDRESS(Data!$AG$68,Data!$AG$66,1,1,"Data")),Data!$AG$80,0)) ->  | K89: =IF(ISBLANK(D89),"",VLOOKUP(D89,INDIRECT(ADDRESS(Data!$AG$67,Data!$AG$65,1,1,"Data")):INDIRECT(ADDRESS(Data!$AG$68,Data!$AG$66,1,1,"Data")),Data!$AG$79,0)) ->  | M89: =IF(ISBLANK(D89),"",VLOOKUP(D89,INDIRECT(ADDRESS(Data!$AG$67,Data!$AG$65,1,1,"Data")):INDIRECT(ADDRESS(Data!$AG$68,Data!$AG$66,1,1,"Data")),Data!$AG$83,0)) -> 
E90: =IF(ISBLANK(D90),"",VLOOKUP(D90,INDIRECT(ADDRESS(Data!$AG$67,Data!$AG$65,1,1,"Data")):INDIRECT(ADDRESS(Data!$AG$68,Data!$AG$66,1,1,"Data")),Data!$AG$75,0)) ->  | F90: =IF(ISBLANK(D90),"",VLOOKUP(D90,INDIRECT(ADDRESS(Data!$AG$67,Data!$AG$65,1,1,"Data")):INDIRECT(ADDRESS(Data!$AG$68,Data!$AG$66,1,1,"Data")),Data!$AG$77,0)) ->  | G90: =IF(ISBLANK(D90),"",VLOOKUP(D90,INDIRECT(ADDRESS(Data!$AG$67,Data!$AG$65,1,1,"Data")):INDIRECT(ADDRESS(Data!$AG$68,Data!$AG$66,1,1,"Data")),Data!$AG$76,0)) ->  | I90: =IF(ISBLANK(D90),"",VLOOKUP(D90,INDIRECT(ADDRESS(Data!$AG$67,Data!$AG$65,1,1,"Data")):INDIRECT(ADDRESS(Data!$AG$68,Data!$AG$66,1,1,"Data")),Data!$AG$78,0)) ->  | J90: =IF(ISBLANK(D90),"",VLOOKUP(D90,INDIRECT(ADDRESS(Data!$AG$67,Data!$AG$65,1,1,"Data")):INDIRECT(ADDRESS(Data!$AG$68,Data!$AG$66,1,1,"Data")),Data!$AG$80,0)) ->  | K90: =IF(ISBLANK(D90),"",VLOOKUP(D90,INDIRECT(ADDRESS(Data!$AG$67,Data!$AG$65,1,1,"Data")):INDIRECT(ADDRESS(Data!$AG$68,Data!$AG$66,1,1,"Data")),Data!$AG$79,0)) ->  | M90: =IF(ISBLANK(D90),"",VLOOKUP(D90,INDIRECT(ADDRESS(Data!$AG$67,Data!$AG$65,1,1,"Data")):INDIRECT(ADDRESS(Data!$AG$68,Data!$AG$66,1,1,"Data")),Data!$AG$83,0)) -> 
E91: =IF(ISBLANK(D91),"",VLOOKUP(D91,INDIRECT(ADDRESS(Data!$AG$67,Data!$AG$65,1,1,"Data")):INDIRECT(ADDRESS(Data!$AG$68,Data!$AG$66,1,1,"Data")),Data!$AG$75,0)) ->  | F91: =IF(ISBLANK(D91),"",VLOOKUP(D91,INDIRECT(ADDRESS(Data!$AG$67,Data!$AG$65,1,1,"Data")):INDIRECT(ADDRESS(Data!$AG$68,Data!$AG$66,1,1,"Data")),Data!$AG$77,0)) ->  | G91: =IF(ISBLANK(D91),"",VLOOKUP(D91,INDIRECT(ADDRESS(Data!$AG$67,Data!$AG$65,1,1,"Data")):INDIRECT(ADDRESS(Data!$AG$68,Data!$AG$66,1,1,"Data")),Data!$AG$76,0)) ->  | I91: =IF(ISBLANK(D91),"",VLOOKUP(D91,INDIRECT(ADDRESS(Data!$AG$67,Data!$AG$65,1,1,"Data")):INDIRECT(ADDRESS(Data!$AG$68,Data!$AG$66,1,1,"Data")),Data!$AG$78,0)) ->  | J91: =IF(ISBLANK(D91),"",VLOOKUP(D91,INDIRECT(ADDRESS(Data!$AG$67,Data!$AG$65,1,1,"Data")):INDIRECT(ADDRESS(Data!$AG$68,Data!$AG$66,1,1,"Data")),Data!$AG$80,0)) ->  | K91: =IF(ISBLANK(D91),"",VLOOKUP(D91,INDIRECT(ADDRESS(Data!$AG$67,Data!$AG$65,1,1,"Data")):INDIRECT(ADDRESS(Data!$AG$68,Data!$AG$66,1,1,"Data")),Data!$AG$79,0)) ->  | M91: =IF(ISBLANK(D91),"",VLOOKUP(D91,INDIRECT(ADDRESS(Data!$AG$67,Data!$AG$65,1,1,"Data")):INDIRECT(ADDRESS(Data!$AG$68,Data!$AG$66,1,1,"Data")),Data!$AG$83,0)) -> 
E92: =IF(ISBLANK(D92),"",VLOOKUP(D92,INDIRECT(ADDRESS(Data!$AG$67,Data!$AG$65,1,1,"Data")):INDIRECT(ADDRESS(Data!$AG$68,Data!$AG$66,1,1,"Data")),Data!$AG$75,0)) ->  | F92: =IF(ISBLANK(D92),"",VLOOKUP(D92,INDIRECT(ADDRESS(Data!$AG$67,Data!$AG$65,1,1,"Data")):INDIRECT(ADDRESS(Data!$AG$68,Data!$AG$66,1,1,"Data")),Data!$AG$77,0)) ->  | G92: =IF(ISBLANK(D92),"",VLOOKUP(D92,INDIRECT(ADDRESS(Data!$AG$67,Data!$AG$65,1,1,"Data")):INDIRECT(ADDRESS(Data!$AG$68,Data!$AG$66,1,1,"Data")),Data!$AG$76,0)) ->  | I92: =IF(ISBLANK(D92),"",VLOOKUP(D92,INDIRECT(ADDRESS(Data!$AG$67,Data!$AG$65,1,1,"Data")):INDIRECT(ADDRESS(Data!$AG$68,Data!$AG$66,1,1,"Data")),Data!$AG$78,0)) ->  | J92: =IF(ISBLANK(D92),"",VLOOKUP(D92,INDIRECT(ADDRESS(Data!$AG$67,Data!$AG$65,1,1,"Data")):INDIRECT(ADDRESS(Data!$AG$68,Data!$AG$66,1,1,"Data")),Data!$AG$80,0)) ->  | K92: =IF(ISBLANK(D92),"",VLOOKUP(D92,INDIRECT(ADDRESS(Data!$AG$67,Data!$AG$65,1,1,"Data")):INDIRECT(ADDRESS(Data!$AG$68,Data!$AG$66,1,1,"Data")),Data!$AG$79,0)) ->  | M92: =IF(ISBLANK(D92),"",VLOOKUP(D92,INDIRECT(ADDRESS(Data!$AG$67,Data!$AG$65,1,1,"Data")):INDIRECT(ADDRESS(Data!$AG$68,Data!$AG$66,1,1,"Data")),Data!$AG$83,0)) -> 
E93: =IF(ISBLANK(D93),"",VLOOKUP(D93,INDIRECT(ADDRESS(Data!$AG$67,Data!$AG$65,1,1,"Data")):INDIRECT(ADDRESS(Data!$AG$68,Data!$AG$66,1,1,"Data")),Data!$AG$75,0)) ->  | F93: =IF(ISBLANK(D93),"",VLOOKUP(D93,INDIRECT(ADDRESS(Data!$AG$67,Data!$AG$65,1,1,"Data")):INDIRECT(ADDRESS(Data!$AG$68,Data!$AG$66,1,1,"Data")),Data!$AG$77,0)) ->  | G93: =IF(ISBLANK(D93),"",VLOOKUP(D93,INDIRECT(ADDRESS(Data!$AG$67,Data!$AG$65,1,1,"Data")):INDIRECT(ADDRESS(Data!$AG$68,Data!$AG$66,1,1,"Data")),Data!$AG$76,0)) ->  | I93: =IF(ISBLANK(D93),"",VLOOKUP(D93,INDIRECT(ADDRESS(Data!$AG$67,Data!$AG$65,1,1,"Data")):INDIRECT(ADDRESS(Data!$AG$68,Data!$AG$66,1,1,"Data")),Data!$AG$78,0)) ->  | J93: =IF(ISBLANK(D93),"",VLOOKUP(D93,INDIRECT(ADDRESS(Data!$AG$67,Data!$AG$65,1,1,"Data")):INDIRECT(ADDRESS(Data!$AG$68,Data!$AG$66,1,1,"Data")),Data!$AG$80,0)) ->  | K93: =IF(ISBLANK(D93),"",VLOOKUP(D93,INDIRECT(ADDRESS(Data!$AG$67,Data!$AG$65,1,1,"Data")):INDIRECT(ADDRESS(Data!$AG$68,Data!$AG$66,1,1,"Data")),Data!$AG$79,0)) ->  | M93: =IF(ISBLANK(D93),"",VLOOKUP(D93,INDIRECT(ADDRESS(Data!$AG$67,Data!$AG$65,1,1,"Data")):INDIRECT(ADDRESS(Data!$AG$68,Data!$AG$66,1,1,"Data")),Data!$AG$83,0)) -> 
E94: =IF(ISBLANK(D94),"",VLOOKUP(D94,INDIRECT(ADDRESS(Data!$AG$67,Data!$AG$65,1,1,"Data")):INDIRECT(ADDRESS(Data!$AG$68,Data!$AG$66,1,1,"Data")),Data!$AG$75,0)) ->  | F94: =IF(ISBLANK(D94),"",VLOOKUP(D94,INDIRECT(ADDRESS(Data!$AG$67,Data!$AG$65,1,1,"Data")):INDIRECT(ADDRESS(Data!$AG$68,Data!$AG$66,1,1,"Data")),Data!$AG$77,0)) ->  | G94: =IF(ISBLANK(D94),"",VLOOKUP(D94,INDIRECT(ADDRESS(Data!$AG$67,Data!$AG$65,1,1,"Data")):INDIRECT(ADDRESS(Data!$AG$68,Data!$AG$66,1,1,"Data")),Data!$AG$76,0)) ->  | I94: =IF(ISBLANK(D94),"",VLOOKUP(D94,INDIRECT(ADDRESS(Data!$AG$67,Data!$AG$65,1,1,"Data")):INDIRECT(ADDRESS(Data!$AG$68,Data!$AG$66,1,1,"Data")),Data!$AG$78,0)) ->  | J94: =IF(ISBLANK(D94),"",VLOOKUP(D94,INDIRECT(ADDRESS(Data!$AG$67,Data!$AG$65,1,1,"Data")):INDIRECT(ADDRESS(Data!$AG$68,Data!$AG$66,1,1,"Data")),Data!$AG$80,0)) ->  | K94: =IF(ISBLANK(D94),"",VLOOKUP(D94,INDIRECT(ADDRESS(Data!$AG$67,Data!$AG$65,1,1,"Data")):INDIRECT(ADDRESS(Data!$AG$68,Data!$AG$66,1,1,"Data")),Data!$AG$79,0)) ->  | M94: =IF(ISBLANK(D94),"",VLOOKUP(D94,INDIRECT(ADDRESS(Data!$AG$67,Data!$AG$65,1,1,"Data")):INDIRECT(ADDRESS(Data!$AG$68,Data!$AG$66,1,1,"Data")),Data!$AG$83,0)) -> 
E95: =IF(ISBLANK(D95),"",VLOOKUP(D95,INDIRECT(ADDRESS(Data!$AG$67,Data!$AG$65,1,1,"Data")):INDIRECT(ADDRESS(Data!$AG$68,Data!$AG$66,1,1,"Data")),Data!$AG$75,0)) ->  | F95: =IF(ISBLANK(D95),"",VLOOKUP(D95,INDIRECT(ADDRESS(Data!$AG$67,Data!$AG$65,1,1,"Data")):INDIRECT(ADDRESS(Data!$AG$68,Data!$AG$66,1,1,"Data")),Data!$AG$77,0)) ->  | G95: =IF(ISBLANK(D95),"",VLOOKUP(D95,INDIRECT(ADDRESS(Data!$AG$67,Data!$AG$65,1,1,"Data")):INDIRECT(ADDRESS(Data!$AG$68,Data!$AG$66,1,1,"Data")),Data!$AG$76,0)) ->  | I95: =IF(ISBLANK(D95),"",VLOOKUP(D95,INDIRECT(ADDRESS(Data!$AG$67,Data!$AG$65,1,1,"Data")):INDIRECT(ADDRESS(Data!$AG$68,Data!$AG$66,1,1,"Data")),Data!$AG$78,0)) ->  | J95: =IF(ISBLANK(D95),"",VLOOKUP(D95,INDIRECT(ADDRESS(Data!$AG$67,Data!$AG$65,1,1,"Data")):INDIRECT(ADDRESS(Data!$AG$68,Data!$AG$66,1,1,"Data")),Data!$AG$80,0)) ->  | K95: =IF(ISBLANK(D95),"",VLOOKUP(D95,INDIRECT(ADDRESS(Data!$AG$67,Data!$AG$65,1,1,"Data")):INDIRECT(ADDRESS(Data!$AG$68,Data!$AG$66,1,1,"Data")),Data!$AG$79,0)) ->  | M95: =IF(ISBLANK(D95),"",VLOOKUP(D95,INDIRECT(ADDRESS(Data!$AG$67,Data!$AG$65,1,1,"Data")):INDIRECT(ADDRESS(Data!$AG$68,Data!$AG$66,1,1,"Data")),Data!$AG$83,0)) -> 
E96: =IF(ISBLANK(D96),"",VLOOKUP(D96,INDIRECT(ADDRESS(Data!$AG$67,Data!$AG$65,1,1,"Data")):INDIRECT(ADDRESS(Data!$AG$68,Data!$AG$66,1,1,"Data")),Data!$AG$75,0)) ->  | F96: =IF(ISBLANK(D96),"",VLOOKUP(D96,INDIRECT(ADDRESS(Data!$AG$67,Data!$AG$65,1,1,"Data")):INDIRECT(ADDRESS(Data!$AG$68,Data!$AG$66,1,1,"Data")),Data!$AG$77,0)) ->  | G96: =IF(ISBLANK(D96),"",VLOOKUP(D96,INDIRECT(ADDRESS(Data!$AG$67,Data!$AG$65,1,1,"Data")):INDIRECT(ADDRESS(Data!$AG$68,Data!$AG$66,1,1,"Data")),Data!$AG$76,0)) ->  | I96: =IF(ISBLANK(D96),"",VLOOKUP(D96,INDIRECT(ADDRESS(Data!$AG$67,Data!$AG$65,1,1,"Data")):INDIRECT(ADDRESS(Data!$AG$68,Data!$AG$66,1,1,"Data")),Data!$AG$78,0)) ->  | J96: =IF(ISBLANK(D96),"",VLOOKUP(D96,INDIRECT(ADDRESS(Data!$AG$67,Data!$AG$65,1,1,"Data")):INDIRECT(ADDRESS(Data!$AG$68,Data!$AG$66,1,1,"Data")),Data!$AG$80,0)) ->  | K96: =IF(ISBLANK(D96),"",VLOOKUP(D96,INDIRECT(ADDRESS(Data!$AG$67,Data!$AG$65,1,1,"Data")):INDIRECT(ADDRESS(Data!$AG$68,Data!$AG$66,1,1,"Data")),Data!$AG$79,0)) ->  | M96: =IF(ISBLANK(D96),"",VLOOKUP(D96,INDIRECT(ADDRESS(Data!$AG$67,Data!$AG$65,1,1,"Data")):INDIRECT(ADDRESS(Data!$AG$68,Data!$AG$66,1,1,"Data")),Data!$AG$83,0)) -> 
E97: =IF(ISBLANK(D97),"",VLOOKUP(D97,INDIRECT(ADDRESS(Data!$AG$67,Data!$AG$65,1,1,"Data")):INDIRECT(ADDRESS(Data!$AG$68,Data!$AG$66,1,1,"Data")),Data!$AG$75,0)) ->  | F97: =IF(ISBLANK(D97),"",VLOOKUP(D97,INDIRECT(ADDRESS(Data!$AG$67,Data!$AG$65,1,1,"Data")):INDIRECT(ADDRESS(Data!$AG$68,Data!$AG$66,1,1,"Data")),Data!$AG$77,0)) ->  | G97: =IF(ISBLANK(D97),"",VLOOKUP(D97,INDIRECT(ADDRESS(Data!$AG$67,Data!$AG$65,1,1,"Data")):INDIRECT(ADDRESS(Data!$AG$68,Data!$AG$66,1,1,"Data")),Data!$AG$76,0)) ->  | I97: =IF(ISBLANK(D97),"",VLOOKUP(D97,INDIRECT(ADDRESS(Data!$AG$67,Data!$AG$65,1,1,"Data")):INDIRECT(ADDRESS(Data!$AG$68,Data!$AG$66,1,1,"Data")),Data!$AG$78,0)) ->  | J97: =IF(ISBLANK(D97),"",VLOOKUP(D97,INDIRECT(ADDRESS(Data!$AG$67,Data!$AG$65,1,1,"Data")):INDIRECT(ADDRESS(Data!$AG$68,Data!$AG$66,1,1,"Data")),Data!$AG$80,0)) ->  | K97: =IF(ISBLANK(D97),"",VLOOKUP(D97,INDIRECT(ADDRESS(Data!$AG$67,Data!$AG$65,1,1,"Data")):INDIRECT(ADDRESS(Data!$AG$68,Data!$AG$66,1,1,"Data")),Data!$AG$79,0)) ->  | M97: =IF(ISBLANK(D97),"",VLOOKUP(D97,INDIRECT(ADDRESS(Data!$AG$67,Data!$AG$65,1,1,"Data")):INDIRECT(ADDRESS(Data!$AG$68,Data!$AG$66,1,1,"Data")),Data!$AG$83,0)) -> 
E98: =IF(ISBLANK(D98),"",VLOOKUP(D98,INDIRECT(ADDRESS(Data!$AG$67,Data!$AG$65,1,1,"Data")):INDIRECT(ADDRESS(Data!$AG$68,Data!$AG$66,1,1,"Data")),Data!$AG$75,0)) ->  | F98: =IF(ISBLANK(D98),"",VLOOKUP(D98,INDIRECT(ADDRESS(Data!$AG$67,Data!$AG$65,1,1,"Data")):INDIRECT(ADDRESS(Data!$AG$68,Data!$AG$66,1,1,"Data")),Data!$AG$77,0)) ->  | G98: =IF(ISBLANK(D98),"",VLOOKUP(D98,INDIRECT(ADDRESS(Data!$AG$67,Data!$AG$65,1,1,"Data")):INDIRECT(ADDRESS(Data!$AG$68,Data!$AG$66,1,1,"Data")),Data!$AG$76,0)) ->  | I98: =IF(ISBLANK(D98),"",VLOOKUP(D98,INDIRECT(ADDRESS(Data!$AG$67,Data!$AG$65,1,1,"Data")):INDIRECT(ADDRESS(Data!$AG$68,Data!$AG$66,1,1,"Data")),Data!$AG$78,0)) ->  | J98: =IF(ISBLANK(D98),"",VLOOKUP(D98,INDIRECT(ADDRESS(Data!$AG$67,Data!$AG$65,1,1,"Data")):INDIRECT(ADDRESS(Data!$AG$68,Data!$AG$66,1,1,"Data")),Data!$AG$80,0)) ->  | K98: =IF(ISBLANK(D98),"",VLOOKUP(D98,INDIRECT(ADDRESS(Data!$AG$67,Data!$AG$65,1,1,"Data")):INDIRECT(ADDRESS(Data!$AG$68,Data!$AG$66,1,1,"Data")),Data!$AG$79,0)) ->  | M98: =IF(ISBLANK(D98),"",VLOOKUP(D98,INDIRECT(ADDRESS(Data!$AG$67,Data!$AG$65,1,1,"Data")):INDIRECT(ADDRESS(Data!$AG$68,Data!$AG$66,1,1,"Data")),Data!$AG$83,0)) -> 
E99: =IF(ISBLANK(D99),"",VLOOKUP(D99,INDIRECT(ADDRESS(Data!$AG$67,Data!$AG$65,1,1,"Data")):INDIRECT(ADDRESS(Data!$AG$68,Data!$AG$66,1,1,"Data")),Data!$AG$75,0)) ->  | F99: =IF(ISBLANK(D99),"",VLOOKUP(D99,INDIRECT(ADDRESS(Data!$AG$67,Data!$AG$65,1,1,"Data")):INDIRECT(ADDRESS(Data!$AG$68,Data!$AG$66,1,1,"Data")),Data!$AG$77,0)) ->  | G99: =IF(ISBLANK(D99),"",VLOOKUP(D99,INDIRECT(ADDRESS(Data!$AG$67,Data!$AG$65,1,1,"Data")):INDIRECT(ADDRESS(Data!$AG$68,Data!$AG$66,1,1,"Data")),Data!$AG$76,0)) ->  | I99: =IF(ISBLANK(D99),"",VLOOKUP(D99,INDIRECT(ADDRESS(Data!$AG$67,Data!$AG$65,1,1,"Data")):INDIRECT(ADDRESS(Data!$AG$68,Data!$AG$66,1,1,"Data")),Data!$AG$78,0)) ->  | J99: =IF(ISBLANK(D99),"",VLOOKUP(D99,INDIRECT(ADDRESS(Data!$AG$67,Data!$AG$65,1,1,"Data")):INDIRECT(ADDRESS(Data!$AG$68,Data!$AG$66,1,1,"Data")),Data!$AG$80,0)) ->  | K99: =IF(ISBLANK(D99),"",VLOOKUP(D99,INDIRECT(ADDRESS(Data!$AG$67,Data!$AG$65,1,1,"Data")):INDIRECT(ADDRESS(Data!$AG$68,Data!$AG$66,1,1,"Data")),Data!$AG$79,0)) ->  | M99: =IF(ISBLANK(D99),"",VLOOKUP(D99,INDIRECT(ADDRESS(Data!$AG$67,Data!$AG$65,1,1,"Data")):INDIRECT(ADDRESS(Data!$AG$68,Data!$AG$66,1,1,"Data")),Data!$AG$83,0)) -> 
E100: =IF(ISBLANK(D100),"",VLOOKUP(D100,INDIRECT(ADDRESS(Data!$AG$67,Data!$AG$65,1,1,"Data")):INDIRECT(ADDRESS(Data!$AG$68,Data!$AG$66,1,1,"Data")),Data!$AG$75,0)) ->  | F100: =IF(ISBLANK(D100),"",VLOOKUP(D100,INDIRECT(ADDRESS(Data!$AG$67,Data!$AG$65,1,1,"Data")):INDIRECT(ADDRESS(Data!$AG$68,Data!$AG$66,1,1,"Data")),Data!$AG$77,0)) ->  | G100: =IF(ISBLANK(D100),"",VLOOKUP(D100,INDIRECT(ADDRESS(Data!$AG$67,Data!$AG$65,1,1,"Data")):INDIRECT(ADDRESS(Data!$AG$68,Data!$AG$66,1,1,"Data")),Data!$AG$76,0)) ->  | I100: =IF(ISBLANK(D100),"",VLOOKUP(D100,INDIRECT(ADDRESS(Data!$AG$67,Data!$AG$65,1,1,"Data")):INDIRECT(ADDRESS(Data!$AG$68,Data!$AG$66,1,1,"Data")),Data!$AG$78,0)) ->  | J100: =IF(ISBLANK(D100),"",VLOOKUP(D100,INDIRECT(ADDRESS(Data!$AG$67,Data!$AG$65,1,1,"Data")):INDIRECT(ADDRESS(Data!$AG$68,Data!$AG$66,1,1,"Data")),Data!$AG$80,0)) ->  | K100: =IF(ISBLANK(D100),"",VLOOKUP(D100,INDIRECT(ADDRESS(Data!$AG$67,Data!$AG$65,1,1,"Data")):INDIRECT(ADDRESS(Data!$AG$68,Data!$AG$66,1,1,"Data")),Data!$AG$79,0)) ->  | M100: =IF(ISBLANK(D100),"",VLOOKUP(D100,INDIRECT(ADDRESS(Data!$AG$67,Data!$AG$65,1,1,"Data")):INDIRECT(ADDRESS(Data!$AG$68,Data!$AG$66,1,1,"Data")),Data!$AG$83,0)) -> 
E101: =IF(ISBLANK(D101),"",VLOOKUP(D101,INDIRECT(ADDRESS(Data!$AG$67,Data!$AG$65,1,1,"Data")):INDIRECT(ADDRESS(Data!$AG$68,Data!$AG$66,1,1,"Data")),Data!$AG$75,0)) ->  | F101: =IF(ISBLANK(D101),"",VLOOKUP(D101,INDIRECT(ADDRESS(Data!$AG$67,Data!$AG$65,1,1,"Data")):INDIRECT(ADDRESS(Data!$AG$68,Data!$AG$66,1,1,"Data")),Data!$AG$77,0)) ->  | G101: =IF(ISBLANK(D101),"",VLOOKUP(D101,INDIRECT(ADDRESS(Data!$AG$67,Data!$AG$65,1,1,"Data")):INDIRECT(ADDRESS(Data!$AG$68,Data!$AG$66,1,1,"Data")),Data!$AG$76,0)) ->  | I101: =IF(ISBLANK(D101),"",VLOOKUP(D101,INDIRECT(ADDRESS(Data!$AG$67,Data!$AG$65,1,1,"Data")):INDIRECT(ADDRESS(Data!$AG$68,Data!$AG$66,1,1,"Data")),Data!$AG$78,0)) ->  | J101: =IF(ISBLANK(D101),"",VLOOKUP(D101,INDIRECT(ADDRESS(Data!$AG$67,Data!$AG$65,1,1,"Data")):INDIRECT(ADDRESS(Data!$AG$68,Data!$AG$66,1,1,"Data")),Data!$AG$80,0)) ->  | K101: =IF(ISBLANK(D101),"",VLOOKUP(D101,INDIRECT(ADDRESS(Data!$AG$67,Data!$AG$65,1,1,"Data")):INDIRECT(ADDRESS(Data!$AG$68,Data!$AG$66,1,1,"Data")),Data!$AG$79,0)) ->  | M101: =IF(ISBLANK(D101),"",VLOOKUP(D101,INDIRECT(ADDRESS(Data!$AG$67,Data!$AG$65,1,1,"Data")):INDIRECT(ADDRESS(Data!$AG$68,Data!$AG$66,1,1,"Data")),Data!$AG$83,0)) -> 
E102: =IF(ISBLANK(D102),"",VLOOKUP(D102,INDIRECT(ADDRESS(Data!$AG$67,Data!$AG$65,1,1,"Data")):INDIRECT(ADDRESS(Data!$AG$68,Data!$AG$66,1,1,"Data")),Data!$AG$75,0)) ->  | F102: =IF(ISBLANK(D102),"",VLOOKUP(D102,INDIRECT(ADDRESS(Data!$AG$67,Data!$AG$65,1,1,"Data")):INDIRECT(ADDRESS(Data!$AG$68,Data!$AG$66,1,1,"Data")),Data!$AG$77,0)) ->  | G102: =IF(ISBLANK(D102),"",VLOOKUP(D102,INDIRECT(ADDRESS(Data!$AG$67,Data!$AG$65,1,1,"Data")):INDIRECT(ADDRESS(Data!$AG$68,Data!$AG$66,1,1,"Data")),Data!$AG$76,0)) ->  | I102: =IF(ISBLANK(D102),"",VLOOKUP(D102,INDIRECT(ADDRESS(Data!$AG$67,Data!$AG$65,1,1,"Data")):INDIRECT(ADDRESS(Data!$AG$68,Data!$AG$66,1,1,"Data")),Data!$AG$78,0)) ->  | J102: =IF(ISBLANK(D102),"",VLOOKUP(D102,INDIRECT(ADDRESS(Data!$AG$67,Data!$AG$65,1,1,"Data")):INDIRECT(ADDRESS(Data!$AG$68,Data!$AG$66,1,1,"Data")),Data!$AG$80,0)) ->  | K102: =IF(ISBLANK(D102),"",VLOOKUP(D102,INDIRECT(ADDRESS(Data!$AG$67,Data!$AG$65,1,1,"Data")):INDIRECT(ADDRESS(Data!$AG$68,Data!$AG$66,1,1,"Data")),Data!$AG$79,0)) ->  | M102: =IF(ISBLANK(D102),"",VLOOKUP(D102,INDIRECT(ADDRESS(Data!$AG$67,Data!$AG$65,1,1,"Data")):INDIRECT(ADDRESS(Data!$AG$68,Data!$AG$66,1,1,"Data")),Data!$AG$83,0)) -> 
A104: Field | B104: Field Area (ac) | C104: Buffer Length (ft) | D104: Buffer Width (ft) | E104: Appl Area (ac) | F104: Predominant Vegetation | H104: Percent Ground Cover | J104: Conservation Support Practices (P) | L104: RUSLE 1 (ton/ac) | M104: RUSLE 2 (ton/ac)
A105: =IF(ISBLANK(A53),"",A53) -> Rotation | B105: 35 | E105: =IF(OR(ISBLANK(A105),ISBLANK(B105)),"",B105-C105*D105/43560) -> 35 | F105: Grass | H105: 95-100 | J105: None in place | L105: =IF(ISNA(Calcs!AI29),"",Calcs!AI29) -> 0.143682 | M105: 0.1888392
A106: =IF(ISBLANK(A54),"",A54) -> Continuous | B106: 32 | E106: =IF(OR(ISBLANK(A106),ISBLANK(B106)),"",B106-C106*D106/43560) -> 32 | F106: Grass | H106: 95-100 | J106: None in place | L106: =IF(ISNA(Calcs!AI30),"",Calcs!AI30) -> 0.274302 | M106: 0.274302
E107: =IF(OR(ISBLANK(A107),ISBLANK(B107)),"",B107-C107*D107/43560) ->  | L107: =IF(ISNA(Calcs!AI31),"",Calcs!AI31) -> 
E108: =IF(OR(ISBLANK(A108),ISBLANK(B108)),"",B108-C108*D108/43560) ->  | L108: =IF(ISNA(Calcs!AI32),"",Calcs!AI32) -> 
L109: =IF(ISNA(Calcs!AI33),"",Calcs!AI33) -> 
L110: =IF(ISNA(Calcs!AI34),"",Calcs!AI34) -> 
L111: =IF(ISNA(Calcs!AI35),"",Calcs!AI35) -> 
L112: =IF(ISNA(Calcs!AI36),"",Calcs!AI36) -> 
L113: =IF(ISNA(Calcs!AI37),"",Calcs!AI37) -> 
L114: =IF(ISNA(Calcs!AI38),"",Calcs!AI38) -> 
L115: =IF(ISNA(Calcs!AI39),"",Calcs!AI39) -> 
L116: =IF(ISNA(Calcs!AI40),"",Calcs!AI40) -> 
L117: =IF(ISNA(Calcs!AI41),"",Calcs!AI41) -> 
L118: =IF(ISNA(Calcs!AI42),"",Calcs!AI42) -> 
L119: =IF(ISNA(Calcs!AI43),"",Calcs!AI43) -> 
L120: =IF(ISNA(Calcs!AI44),"",Calcs!AI44) -> 
L121: =IF(ISNA(Calcs!AI45),"",Calcs!AI45) -> 
L122: =IF(ISNA(Calcs!AI46),"",Calcs!AI46) -> 
L123: =IF(ISNA(Calcs!AI47),"",Calcs!AI47) -> 
L124: =IF(ISNA(Calcs!AI48),"",Calcs!AI48) -> 
L125: =IF(ISNA(Calcs!AI49),"",Calcs!AI49) -> 
L126: =IF(ISNA(Calcs!AI50),"",Calcs!AI50) -> 
L127: =IF(ISNA(Calcs!AI51),"",Calcs!AI51) -> 
L128: =IF(ISNA(Calcs!AI52),"",Calcs!AI52) -> 
L129: =IF(ISNA(Calcs!AI53),"",Calcs!AI53) -> 
L130: =IF(ISNA(Calcs!AI54),"",Calcs!AI54) -> 
L131: =IF(ISNA(Calcs!AI55),"",Calcs!AI55) -> 
L132: =IF(ISNA(Calcs!AI56),"",Calcs!AI56) -> 
L133: =IF(ISNA(Calcs!AI57),"",Calcs!AI57) -> 
L134: =IF(ISNA(Calcs!AI58),"",Calcs!AI58) -> 
L135: =IF(ISNA(Calcs!AI59),"",Calcs!AI59) -> 
L136: =IF(ISNA(Calcs!AI60),"",Calcs!AI60) -> 
L137: =IF(ISNA(Calcs!AI61),"",Calcs!AI61) -> 
L138: =IF(ISNA(Calcs!AI62),"",Calcs!AI62) -> 
L139: =IF(ISNA(Calcs!AI63),"",Calcs!AI63) -> 
L140: =IF(ISNA(Calcs!AI64),"",Calcs!AI64) -> 
L141: =IF(ISNA(Calcs!AI65),"",Calcs!AI65) -> 
L142: =IF(ISNA(Calcs!AI66),"",Calcs!AI66) -> 
L143: =IF(ISNA(Calcs!AI67),"",Calcs!AI67) -> 
L144: =IF(ISNA(Calcs!AI68),"",Calcs!AI68) -> 
L145: =IF(ISNA(Calcs!AI69),"",Calcs!AI69) -> 
L146: =IF(ISNA(Calcs!AI70),"",Calcs!AI70) -> 
L147: =IF(ISNA(Calcs!AI71),"",Calcs!AI71) -> 
L148: =IF(ISNA(Calcs!AI72),"",Calcs!AI72) -> 
L149: =IF(ISNA(Calcs!AI73),"",Calcs!AI73) -> 
L150: =IF(ISNA(Calcs!AI74),"",Calcs!AI74) -> 
L151: =IF(ISNA(Calcs!AI75),"",Calcs!AI75) -> 
L152: =IF(ISNA(Calcs!AI76),"",Calcs!AI76) -> 
L153: =IF(ISNA(Calcs!AI77),"",Calcs!AI77) -> 
L154: =IF(ISNA(Calcs!AI78),"",Calcs!AI78) -> 
B155: =SUM(B105:B154) -> 67 | E155: =SUM(E105:E154) -> 67
A158: Field | B158: Pasture Use | F158: Application Method | H158: Application Timing | I158: Nutrient Source | J158: Application Rate | L158: Pre BMP PI Value | M158: P Index Range | N158: Target Post BMPs PI Values
A159: =IF(ISBLANK(A53),"",A53) -> Rotation | B159: Rotational Grazing | F159: Surface Applied | H159: March-June | I159: Cake | J159: 1.62 | K159: =IF(ISBLANK(I159),"",INDEX(Nutrient_Source_Description,MATCH(I159,Nutrient_Source,0),6)) -> ton/ac | L159: =IF(ISNA(Calcs!AY29),"",Calcs!AY29) -> 66 | M159: =IF(ISNA(Calcs!AZ29),"",Calcs!AZ29) -> Medium | N159: 66
A160: =IF(ISBLANK(A54),"",A54) -> Continuous | B160: Continuously Grazed <0.75 An.Units | F160: Surface Applied | H160: March-June | I160: Cake | J160: 3.588157895 | K160: =IF(ISBLANK(I160),"",INDEX(Nutrient_Source_Description,MATCH(I160,Nutrient_Source,0),6)) -> ton/ac | L160: =IF(ISNA(Calcs!AY30),"",Calcs!AY30) -> 66 | M160: =IF(ISNA(Calcs!AZ30),"",Calcs!AZ30) -> Medium | N160: 66
L161: =IF(ISNA(Calcs!AY31),"",Calcs!AY31) ->  | M161: =IF(ISNA(Calcs!AZ31),"",Calcs!AZ31) -> 
L162: =IF(ISNA(Calcs!AY32),"",Calcs!AY32) ->  | M162: =IF(ISNA(Calcs!AZ32),"",Calcs!AZ32) -> 
L163: =IF(ISNA(Calcs!AY33),"",Calcs!AY33) ->  | M163: =IF(ISNA(Calcs!AZ33),"",Calcs!AZ33) -> 
L164: =IF(ISNA(Calcs!AY34),"",Calcs!AY34) ->  | M164: =IF(ISNA(Calcs!AZ34),"",Calcs!AZ34) -> 
L165: =IF(ISNA(Calcs!AY35),"",Calcs!AY35) ->  | M165: =IF(ISNA(Calcs!AZ35),"",Calcs!AZ35) -> 
L166: =IF(ISNA(Calcs!AY36),"",Calcs!AY36) ->  | M166: =IF(ISNA(Calcs!AZ36),"",Calcs!AZ36) -> 
L167: =IF(ISNA(Calcs!AY37),"",Calcs!AY37) ->  | M167: =IF(ISNA(Calcs!AZ37),"",Calcs!AZ37) -> 
L168: =IF(ISNA(Calcs!AY38),"",Calcs!AY38) ->  | M168: =IF(ISNA(Calcs!AZ38),"",Calcs!AZ38) -> 
L169: =IF(ISNA(Calcs!AY39),"",Calcs!AY39) ->  | M169: =IF(ISNA(Calcs!AZ39),"",Calcs!AZ39) -> 
L170: =IF(ISNA(Calcs!AY40),"",Calcs!AY40) ->  | M170: =IF(ISNA(Calcs!AZ40),"",Calcs!AZ40) -> 
L171: =IF(ISNA(Calcs!AY41),"",Calcs!AY41) ->  | M171: =IF(ISNA(Calcs!AZ41),"",Calcs!AZ41) -> 
L172: =IF(ISNA(Calcs!AY42),"",Calcs!AY42) ->  | M172: =IF(ISNA(Calcs!AZ42),"",Calcs!AZ42) -> 
L173: =IF(ISNA(Calcs!AY43),"",Calcs!AY43) ->  | M173: =IF(ISNA(Calcs!AZ43),"",Calcs!AZ43) -> 
L174: =IF(ISNA(Calcs!AY44),"",Calcs!AY44) ->  | M174: =IF(ISNA(Calcs!AZ44),"",Calcs!AZ44) -> 
L175: =IF(ISNA(Calcs!AY45),"",Calcs!AY45) ->  | M175: =IF(ISNA(Calcs!AZ45),"",Calcs!AZ45) -> 
L176: =IF(ISNA(Calcs!AY46),"",Calcs!AY46) ->  | M176: =IF(ISNA(Calcs!AZ46),"",Calcs!AZ46) -> 
L177: =IF(ISNA(Calcs!AY47),"",Calcs!AY47) ->  | M177: =IF(ISNA(Calcs!AZ47),"",Calcs!AZ47) -> 
L178: =IF(ISNA(Calcs!AY48),"",Calcs!AY48) ->  | M178: =IF(ISNA(Calcs!AZ48),"",Calcs!AZ48) -> 
L179: =IF(ISNA(Calcs!AY49),"",Calcs!AY49) ->  | M179: =IF(ISNA(Calcs!AZ49),"",Calcs!AZ49) -> 
L180: =IF(ISNA(Calcs!AY50),"",Calcs!AY50) ->  | M180: =IF(ISNA(Calcs!AZ50),"",Calcs!AZ50) -> 
L181: =IF(ISNA(Calcs!AY51),"",Calcs!AY51) ->  | M181: =IF(ISNA(Calcs!AZ51),"",Calcs!AZ51) -> 
L182: =IF(ISNA(Calcs!AY52),"",Calcs!AY52) ->  | M182: =IF(ISNA(Calcs!AZ52),"",Calcs!AZ52) -> 
L183: =IF(ISNA(Calcs!AY53),"",Calcs!AY53) ->  | M183: =IF(ISNA(Calcs!AZ53),"",Calcs!AZ53) -> 
L184: =IF(ISNA(Calcs!AY54),"",Calcs!AY54) ->  | M184: =IF(ISNA(Calcs!AZ54),"",Calcs!AZ54) -> 
L185: =IF(ISNA(Calcs!AY55),"",Calcs!AY55) ->  | M185: =IF(ISNA(Calcs!AZ55),"",Calcs!AZ55) -> 
L186: =IF(ISNA(Calcs!AY56),"",Calcs!AY56) ->  | M186: =IF(ISNA(Calcs!AZ56),"",Calcs!AZ56) -> 
L187: =IF(ISNA(Calcs!AY57),"",Calcs!AY57) ->  | M187: =IF(ISNA(Calcs!AZ57),"",Calcs!AZ57) -> 
L188: =IF(ISNA(Calcs!AY58),"",Calcs!AY58) ->  | M188: =IF(ISNA(Calcs!AZ58),"",Calcs!AZ58) -> 
L189: =IF(ISNA(Calcs!AY59),"",Calcs!AY59) ->  | M189: =IF(ISNA(Calcs!AZ59),"",Calcs!AZ59) -> 
L190: =IF(ISNA(Calcs!AY60),"",Calcs!AY60) ->  | M190: =IF(ISNA(Calcs!AZ60),"",Calcs!AZ60) -> 
L191: =IF(ISNA(Calcs!AY61),"",Calcs!AY61) ->  | M191: =IF(ISNA(Calcs!AZ61),"",Calcs!AZ61) -> 
L192: =IF(ISNA(Calcs!AY62),"",Calcs!AY62) ->  | M192: =IF(ISNA(Calcs!AZ62),"",Calcs!AZ62) -> 
L193: =IF(ISNA(Calcs!AY63),"",Calcs!AY63) ->  | M193: =IF(ISNA(Calcs!AZ63),"",Calcs!AZ63) -> 
L194: =IF(ISNA(Calcs!AY64),"",Calcs!AY64) ->  | M194: =IF(ISNA(Calcs!AZ64),"",Calcs!AZ64) -> 
L195: =IF(ISNA(Calcs!AY65),"",Calcs!AY65) ->  | M195: =IF(ISNA(Calcs!AZ65),"",Calcs!AZ65) -> 
L196: =IF(ISNA(Calcs!AY66),"",Calcs!AY66) ->  | M196: =IF(ISNA(Calcs!AZ66),"",Calcs!AZ66) -> 
L197: =IF(ISNA(Calcs!AY67),"",Calcs!AY67) ->  | M197: =IF(ISNA(Calcs!AZ67),"",Calcs!AZ67) -> 
L198: =IF(ISNA(Calcs!AY68),"",Calcs!AY68) ->  | M198: =IF(ISNA(Calcs!AZ68),"",Calcs!AZ68) -> 
K199: =IF(ISBLANK(I199),"",INDEX(Nutrient_Source_Description,MATCH(I199,Nutrient_Source,0),6)) ->  | L199: =IF(ISNA(Calcs!AY69),"",Calcs!AY69) ->  | M199: =IF(ISNA(Calcs!AZ69),"",Calcs!AZ69) -> 
K200: =IF(ISBLANK(I200),"",INDEX(Nutrient_Source_Description,MATCH(I200,Nutrient_Source,0),6)) ->  | L200: =IF(ISNA(Calcs!AY70),"",Calcs!AY70) ->  | M200: =IF(ISNA(Calcs!AZ70),"",Calcs!AZ70) -> 
L201: =IF(ISNA(Calcs!AY71),"",Calcs!AY71) ->  | M201: =IF(ISNA(Calcs!AZ71),"",Calcs!AZ71) -> 
L202: =IF(ISNA(Calcs!AY72),"",Calcs!AY72) ->  | M202: =IF(ISNA(Calcs!AZ72),"",Calcs!AZ72) -> 
L203: =IF(ISNA(Calcs!AY73),"",Calcs!AY73) ->  | M203: =IF(ISNA(Calcs!AZ73),"",Calcs!AZ73) -> 
L204: =IF(ISNA(Calcs!AY74),"",Calcs!AY74) ->  | M204: =IF(ISNA(Calcs!AZ74),"",Calcs!AZ74) -> 
L205: =IF(ISNA(Calcs!AY75),"",Calcs!AY75) ->  | M205: =IF(ISNA(Calcs!AZ75),"",Calcs!AZ75) -> 
L206: =IF(ISNA(Calcs!AY76),"",Calcs!AY76) ->  | M206: =IF(ISNA(Calcs!AZ76),"",Calcs!AZ76) -> 
L207: =IF(ISNA(Calcs!AY77),"",Calcs!AY77) ->  | M207: =IF(ISNA(Calcs!AZ77),"",Calcs!AZ77) -> 
L208: =IF(ISNA(Calcs!AY78),"",Calcs!AY78) ->  | M208: =IF(ISNA(Calcs!AZ78),"",Calcs!AZ78) -> 
A210: Best Management Practices
A211: Field | B211: Diversion | C211: Terrace | D211: Pond | E211: Filter Strip | F211: Grassed Waterway | G211: Fencing | H211: Riparian Forest Buffer | I211: Riparian Herbaceous Cover | J211: Field Borders | K211: Post BMP PI Value | L211: P Index Range
A212: =IF(ISBLANK(A53),"",A53) -> Rotation | K212: =IF(ISNA(Calcs!BK29),"",Calcs!BK29) -> 66 | L212: =IF(ISNA(Calcs!BL29),"",Calcs!BL29) -> Medium
A213: =IF(ISBLANK(A54),"",A54) -> Continuous | K213: =IF(ISNA(Calcs!BK30),"",Calcs!BK30) -> 66 | L213: =IF(ISNA(Calcs!BL30),"",Calcs!BL30) -> Medium
K214: =IF(ISNA(Calcs!BK31),"",Calcs!BK31) ->  | L214: =IF(ISNA(Calcs!BL31),"",Calcs!BL31) -> 
K215: =IF(ISNA(Calcs!BK32),"",Calcs!BK32) ->  | L215: =IF(ISNA(Calcs!BL32),"",Calcs!BL32) -> 
K216: =IF(ISNA(Calcs!BK33),"",Calcs!BK33) ->  | L216: =IF(ISNA(Calcs!BL33),"",Calcs!BL33) -> 
K217: =IF(ISNA(Calcs!BK34),"",Calcs!BK34) ->  | L217: =IF(ISNA(Calcs!BL34),"",Calcs!BL34) -> 
K218: =IF(ISNA(Calcs!BK35),"",Calcs!BK35) ->  | L218: =IF(ISNA(Calcs!BL35),"",Calcs!BL35) -> 
K219: =IF(ISNA(Calcs!BK36),"",Calcs!BK36) ->  | L219: =IF(ISNA(Calcs!BL36),"",Calcs!BL36) -> 
... 75 more rows

Sheet BMP Summary
A1: 2010 PI Best Management Practices
A3: Diversion 362
B4: Diversions must comply with NRCS conservation practice 362.
B6: The maximum percent effectiveness allowed is 5%.
B8: The desired assigned value should be entered as whole number, for example 5 for 5%.
A10: Terrace 600
B11: Terraces must comply with NRCS conservation practice 600.
B13: The maximum percent effectiveness allowed is 10%.
B15: The desired assigned value should be entered as whole number, for example 10 for 10%.
A17: Pond 378
B18: Ponds must comply with NRCS conservation practice 378.
B20: The maximum percent effectiveness allowed is 20% if the pond is not fenced. If fenced the maximum percent effectiveness allowed is 30%.
B22: If fencing is used it must comply with NRCS conservation practice 382. The fencing associated with this practice should not receive any additional Fencing Supplemental Management Practice credit.
B24: The percent effectiveness is prorated based on the amount of the field that drains into the pond. For example if ½ the field drains into the pond the percent effectiveness for this practice for this field is ½ of the 20% or 10%.
B26: The desired assigned value should be entered as whole number, for example 20 for 20%. If desired the proration calculations can be done in the spread sheet by entering the formula in the appropriate cell. For the example above “=0.5*0.2” is entered.
B28: The determination of the percentage of the field that drains into the pond will be made by professional judgment utilizing at least a visual inspection. Use of topographic maps and other tools may also be used.
A30: Fencing 382
B31: Fencing must comply with NRCS conservation practice 382.
B33: The maximum percent effectiveness allowed is 30%.
B35: Normally Fencing is associated with other practices such as Ponds, Riparian Forest Buffers, Riparian Herbaceous Covers, and Filter Strips. When associated with these practices the presence of the fence increases the allowed maximum effectiveness.
B37: Normally the effectiveness of fencing is accounted for in the other Supplemental Management Practice areas and therefore the assigned Fencing effectiveness is not entered or set to 0.
A39: Field Borders 386
B40: Field Borders must comply with NRCS conservation practice 386.
B42: The maximum percent effectiveness allowed is 10%.
A44: Riparian Herbaceous Cover 390
B45: Riparian Herbaceous Covers must comply with NRCS conservation practice 393.
B47: The maximum percent effectiveness allowed is 20% if the practice is not fenced. If fenced the maximum percent effectiveness allowed is 30%.
B49: If fencing is used it must comply with NRCS conservation practice 382. The fencing associated with this practice should not receive any additional Fencing Supplemental Management Practice credit.
B51: The desired assigned value should be entered as whole number, for example 20 for 20%.
A53: Riparian Forest Buffer 391
B54: Riparian Forest Buffers must comply with NRCS conservation practice 391.
B56: The maximum percent effectiveness allowed is 20% if the practice is not fenced. If fenced the maximum percent effectiveness allowed is 35%.
B58: If fencing is used it must comply with NRCS conservation practice 382. The fencing associated with this practice should not receive any additional Fencing Supplemental Management Practice credit.
B60: The desired assigned value should be entered as whole number, for example 20 for 20%.
A62: Filter Strip 393
B63: Filter Strips must comply with NRCS conservation practice 393.
B65: The maximum percent effectiveness allowed is 20% if the practice is not fenced. If fenced the maximum percent effectiveness allowed is 30%.
B67: If fencing is used it must comply with NRCS conservation practice 382. The fencing associated with this practice should not receive any additional Fencing Supplemental Management Practice credit.
B69: The desired assigned value should be entered as whole number, for example 20 for 20%.
A71: Grassed Waterway 412
B72: Grassed Waterways must comply with NRCS conservation practice 412.
B74: The maximum percent effectiveness allowed is 5%.
B76: The desired assigned value should be entered as whole number, for example 5 for 5%.

Sheet Data (hidden)
AW58: cells below indicate NRCS Missing soils values replaced with best estimate
AA59: County and Soil Data
AM60: Soil Codes | AS60: 0 | AT60: 1 | AU60: 2 | AV60: 3 | AW60: 4 | AX60: 5 | AY60: 6 | AZ60: 7 | BA60: 8 | BB60: 9 | BC60: 10 | BD60: 11 | BE60: 12 | BF60: 13
B61: Menu & Data block | AL61: Count | AM61: row Num | AN61: code | AS61: County | AT61: Soil Code | AU61: Soil Name | AV61: Slope Grad Min | AW61: Slope Grad Rep | AX61: Slope Grad Max | AY61: Slope Len Min | AZ61: Slope Len Rep | BA61: Slope Len Max | BB61: K | BC61: T | BD61: Flood Frequency | BE61: Hydrologic Group | BF61: row
AQ62: ="Blank Co content ="&"|"&AS62&"|" -> Blank Co content =| | | AR62: seq | BF62: =CELL("row",AR62) -> 62
C63: Annual Percepitation and Weight Factors | J63: Field Num | K63: Field names | M63: Manure Production Value to Use | Q63: Alum Used | AF63: Rusle Info X Refence Guide | AL63: 1 | AM63: =$AG$67 -> 3177 | AN63: =IF(AM63<=$AG$68,INDIRECT(ADDRESS(AM63,CELL("col",$AT$61),1,1)),"") -> AeC | AR63: 1 | AS63: Arkansas | AT63: 1C | AU63: Crevasse loamy fine sand, 0 to 5 percent slopes, occasionally flooded | AV63: 0 | AW63: 2.5 | AX63: 5 | AY63: 15 | AZ63: 30 | BA63: 45 | BB63: 0.1 | BC63: 5 | BD63: Occasional | BE63: A | BF63: 63
AF64: Current County | AG64: =IF(ISNA(VLOOKUP(Planning!$C$14,$AF$89:$AK$164,1,0)),"",VLOOKUP(Planning!$C$14,$AF$89:$AK$164,1,0)) -> Washington | AL64: 2 | AM64: =IF(AM63<$AG$68,AM63+1,$AG$68+1) -> 3178 | AN64: =IF(AM64<=$AG$68,INDIRECT(ADDRESS(AM64,CELL("col",$AT$61),1,1)),"") -> AeC2 | AR64: 2 | AS64: Arkansas | AT64: 2B | AU64: Desha silty clay, 0 to 3 percent slopes, occasionally flooded | AV64: 0 | AW64: 1.5 | AX64: 3 | AY64: 15 | AZ64: 45 | BA64: 75 | BB64: 0.28 | BC64: 5 | BD64: Occasional | BE64: D | BF64: 64
C65: 0-10 | D65: 0.2 | J65: 1 | K65: =IF(ISBLANK(Planning!A53),"",Planning!A53) -> Rotation | M65: Calculated | Q65: No | R65: 0.05 | AF65: Current Start Col | AG65: =CELL("col",AT61) -> 46 | AL65: 3 | AM65: 3179 | AN65: AeD2 | AR65: 3 | AS65: Arkansas | AT65: 3A | AU65: Dewitt silt loam, 0 to 1 percent slopes | AV65: 0 | AW65: 0.5 | AX65: 1 | AY65: 30 | AZ65: 75 | BA65: 150 | BB65: 0.43 | BC65: 5 | BD65: None | BE65: D | BF65: 65
C66: 10-20 | D66: 0.4 | J66: 2 | K66: =IF(ISBLANK(Planning!A76),"",Planning!A76) ->  | M66: Historical | Q66: Yes | R66: 0.005 | AF66: Current End Col | AG66: =CELL("col",BE61) -> 57 | AL66: 4 | AM66: 3180 | AN66: AgD | AR66: 4 | AS66: Arkansas | AT66: 4B | AU66: Dubbs silt loam, 0 to 3 percent slopes | AV66: 0 | AW66: 2 | AX66: 3 | AY66: 15 | AZ66: 45 | BA66: 75 | BB66: 0.49 | BC66: 5 | BD66: None | BE66: B | BF66: 66
C67: 20-30 | D67: 0.6 | J67: 3 | K67: =IF(ISBLANK(Planning!A77),"",Planning!A77) ->  | AF67: Current Start Row | AG67: =VLOOKUP($AG$64,$AF$89:$AK$164,2,0) -> 3177 | AL67: 5 | AM67: 3181 | AN67: AgF | AR67: 5 | AS67: Arkansas | AT67: 5B | AU67: Dundee silt loam, 0 to 2 percent slopes, occasionally flooded | AV67: 0 | AW67: 1 | AX67: 2 | AY67: 15 | AZ67: 45 | BA67: 75 | BB67: 0.43 | BC67: 5 | BD67: Occasional | BE67: C | BF67: 67
C68: 30-40 | D68: 0.8 | J68: 4 | K68: =IF(ISBLANK(Planning!A78),"",Planning!A78) ->  | O68: Litter Num | P68: =Planning!A20 -> Manure Source | Q68: Manure Type | R68: Base Unit | S68: Conc Unit | T68: Rate Unit | U68: WEP Unit | V68: WEP lb/ac Conv | W68: Calc PI | AF68: Current End Row | AG68: =VLOOKUP($AG$64,$AF$89:$AK$164,3,0) -> 3260 | AL68: 6 | AM68: 3182 | AN68: AhF | AR68: 6 | AS68: Arkansas | AT68: 6A | AU68: Ethel silt loam, 0 to 1 percent slopes | AV68: 0 | AW68: 0.5 | AX68: 1 | AY68: 30 | AZ68: 75 | BA68: 150 | BB68: 0.49 | BC68: 5 | BD68: None | BE68: D | BF68: 68
C69: 40-50 | D69: 1 | J69: 5 | K69: =IF(ISBLANK(Planning!A79),"",Planning!A79) ->  | AA69: Table 6-2. Average Annual K Factors K-Factor Ratio: .79 - .84 | AF69: R Factor | AG69: =VLOOKUP($AG$64,$AF$89:$AK$164,4,0) -> 311 | AL69: 7 | AM69: 3183 | AN69: AhG | AR69: 7 | AS69: Arkansas | AT69: 7A | AU69: Forestdale silty clay loam, 0 to 1 percent slopes, frequently flooded | AV69: 0 | AW69: 0.5 | AX69: 1 | AY69: 30 | AZ69: 75 | BA69: 150 | BB69: 0.37 | BC69: 5 | BD69: Frequent | BE69: D | BF69: 69
C70: 50-60 | D70: 1.2 | J70: 6 | K70: =IF(ISBLANK(Planning!A80),"",Planning!A80) ->  | O70: 1 | P70: =IF(ISBLANK(Planning!A21),"",Planning!A21) -> CleanOut | Q70: =IF(ISBLANK(Planning!A21),"",Planning!B21) -> Dry Litter | R70: =IF(ISBLANK(Planning!A21),"",INDEX(Nutrient_Table,MATCH(Q70,Manure_Type,0),5)) -> ton | S70: =IF(ISBLANK(Planning!A21),"",INDEX(Nutrient_Table,MATCH(Q70,Manure_Type,0),6)) -> lb/ton | T70: =IF(ISBLANK(Planning!A21),"",INDEX(Nutrient_Table,MATCH(Q70,Manure_Type,0),7)) -> ton/ac | U70: =IF(ISBLANK(Planning!A21),"",INDEX(Nutrient_Table,MATCH(Q70,Manure_Type,0),8)) -> ppm | AA70: Kf | AB70: Adj Kf | AC70: Check to make sure Soil Kfs match list does after missing value Arkansas 22 is set equal to .32 (assusmes near worst erosion potential) | AF70: 10 Yr-EI | AG70: =VLOOKUP($AG$64,$AF$89:$AK$164,5,0) -> 120 | AL70: 8 | AM70: 3184 | AN70: AlC2 | AR70: 8 | AS70: Arkansas | AT70: 8A | AU70: Hebert silt loam, 0 to 1 percent slopes | AV70: 0 | AW70: 0.5 | AX70: 1 | AY70: 30 | AZ70: 46 | BA70: 61 | BB70: 0.43 | BC70: 5 | BD70: None | BE70: C | BF70: 70
C71: 60-70 | D71: 1.4 | J71: 7 | K71: =IF(ISBLANK(Planning!A93),"",Planning!A93) ->  | O71: 2 | P71: =IF(ISBLANK(Planning!A22),"",Planning!A22) -> Cake | Q71: =IF(ISBLANK(Planning!A22),"",Planning!B22) -> Dry Litter | R71: =IF(ISBLANK(Planning!A22),"",INDEX(Nutrient_Table,MATCH(Q71,Manure_Type,0),5)) -> ton | S71: =IF(ISBLANK(Planning!A22),"",INDEX(Nutrient_Table,MATCH(Q71,Manure_Type,0),6)) -> lb/ton | T71: =IF(ISBLANK(Planning!A22),"",INDEX(Nutrient_Table,MATCH(Q71,Manure_Type,0),7)) -> ton/ac | U71: =IF(ISBLANK(Planning!A22),"",INDEX(Nutrient_Table,MATCH(Q71,Manure_Type,0),8)) -> ppm | AA71: 1 | AC71: =COUNTIF($BB$63:$BB$3453,AA71) -> 0 | AF71: Kf adj flag | AG71: =IF(VLOOKUP($AG$64,$AF$89:$AK$164,6,0)="","",VLOOKUP($AG$64,$AF$89:$AK$164,6,0)) -> 1 | AL71: 9 | AM71: 3185 | AN71: AlD2 | AR71: 9 | AS71: Arkansas | AT71: 9A | AU71: Immanuel silt loam, 0 to 1 percent slopes | AV71: 0 | AW71: 0.5 | AX71: 1 | AY71: 30 | AZ71: 75 | BA71: 150 | BB71: 0.55 | BC71: 4 | BD71: None | BE71: C | BF71: 71
J72: 8 | K72: =IF(ISBLANK(Planning!A94),"",Planning!A94) ->  | O72: 3 | P72: =IF(ISBLANK(Planning!A23),"",Planning!A23) ->  | Q72: =IF(ISBLANK(Planning!A23),"",Planning!B23) ->  | R72: =IF(ISBLANK(Planning!A23),"",INDEX(Nutrient_Table,MATCH(Q72,Manure_Type,0),5)) ->  | S72: =IF(ISBLANK(Planning!A23),"",INDEX(Nutrient_Table,MATCH(Q72,Manure_Type,0),6)) ->  | T72: =IF(ISBLANK(Planning!A23),"",INDEX(Nutrient_Table,MATCH(Q72,Manure_Type,0),7)) ->  | U72: =IF(ISBLANK(Planning!A23),"",INDEX(Nutrient_Table,MATCH(Q72,Manure_Type,0),8)) ->  | V72: =IF(ISBLANK(Planning!A23),"",INDEX(Nutrient_Table,MATCH(Q72,Manure_Type,0),9)) ->  | W72: =IF(ISBLANK(Planning!A23),"",INDEX(Nutrient_Table,MATCH(Q72,Manure_Type,0),10)) ->  | AA72: 0.02 | AB72: 0.02 | AC72: 6 | AF72: County | AG72: 0 | AL72: 10 | AM72: 3186 | AN72: AlE2 | AR72: 10 | AS72: Arkansas | AT72: 9B | AU72: Immanuel silt loam, 1 to 3 percent slopes | AV72: 1 | AW72: 2 | AX72: 3 | AY72: 15 | AZ72: 60 | BA72: 100 | BB72: 0.55 | BC72: 4 | BD72: None | BE72: C | BF72: 72
J73: 9 | K73: =IF(ISBLANK(Planning!A101),"",Planning!A101) ->  | O73: 4 | P73: =IF(ISBLANK(Planning!A24),"",Planning!A24) ->  | Q73: =IF(ISBLANK(Planning!A24),"",Planning!B24) ->  | R73: =IF(ISBLANK(Planning!A24),"",INDEX(Nutrient_Table,MATCH(Q73,Manure_Type,0),5)) ->  | S73: =IF(ISBLANK(Planning!A24),"",INDEX(Nutrient_Table,MATCH(Q73,Manure_Type,0),6)) ->  | T73: =IF(ISBLANK(Planning!A24),"",INDEX(Nutrient_Table,MATCH(Q73,Manure_Type,0),7)) ->  | U73: =IF(ISBLANK(Planning!A24),"",INDEX(Nutrient_Table,MATCH(Q73,Manure_Type,0),8)) ->  | V73: =IF(ISBLANK(Planning!A24),"",INDEX(Nutrient_Table,MATCH(Q73,Manure_Type,0),9)) ->  | W73: =IF(ISBLANK(Planning!A24),"",INDEX(Nutrient_Table,MATCH(Q73,Manure_Type,0),10)) ->  | AA73: 0.05 | AB73: 0.05 | AC73: 8 | AF73: Soil Code | AG73: 1 | AL73: 11 | AM73: 3187 | AN73: AnE | AR73: 11 | AS73: Arkansas | AT73: 9E | AU73: Immanuel silt loam, 15 to 25 percent slopes | AV73: 15 | AW73: 20 | AX73: 25 | AY73: 5 | AZ73: 15 | BA73: 30 | BB73: 0.55 | BC73: 4 | BD73: None | BE73: C | BF73: 73
J74: 10 | K74: =IF(ISBLANK(Planning!A102),"",Planning!A102) ->  | O74: 5 | P74: =IF(ISBLANK(Planning!A25),"",Planning!A25) ->  | Q74: =IF(ISBLANK(Planning!A25),"",Planning!B25) ->  | R74: =IF(ISBLANK(Planning!A25),"",INDEX(Nutrient_Table,MATCH(Q74,Manure_Type,0),5)) ->  | S74: =IF(ISBLANK(Planning!A25),"",INDEX(Nutrient_Table,MATCH(Q74,Manure_Type,0),6)) ->  | T74: =IF(ISBLANK(Planning!A25),"",INDEX(Nutrient_Table,MATCH(Q74,Manure_Type,0),7)) ->  | U74: =IF(ISBLANK(Planning!A25),"",INDEX(Nutrient_Table,MATCH(Q74,Manure_Type,0),8)) ->  | V74: =IF(ISBLANK(Planning!A25),"",INDEX(Nutrient_Table,MATCH(Q74,Manure_Type,0),9)) ->  | W74: =IF(ISBLANK(Planning!A25),"",INDEX(Nutrient_Table,MATCH(Q74,Manure_Type,0),10)) ->  | AA74: 0.1 | AB74: 0.08 | AC74: 41 | AF74: Soil Name | AG74: 2 | AL74: 12 | AM74: 3188 | AN74: AoF | AR74: 12 | AS74: Arkansas | AT74: 9C | AU74: Immanuel silt loam, 3 to 8 percent slopes | AV74: 3 | AW74: 5.5 | AX74: 8 | AY74: 15 | AZ74: 45 | BA74: 75 | BB74: 0.43 | BC74: 5 | BD74: None | BE74: C | BF74: 74
AA75: 0.15 | AB75: 0.12 | AC75: 44 | AF75: Slope Grad Min | AG75: 3 | AL75: 13 | AM75: 3189 | AN75: ApB | AR75: 13 | AS75: Arkansas | AT75: 9D | AU75: Immanuel silt loam, 8 to 15 percent slopes | AV75: 8 | AW75: 11.5 | AX75: 15 | AY75: 15 | AZ75: 30 | BA75: 45 | BB75: 0.55 | BC75: 4 | BD75: None | BE75: C | BF75: 75
AA76: 0.17 | AB76: 0.15 | AC76: 50 | AF76: Slope Grad Rep | AG76: 4 | AL76: 14 | AM76: 3190 | AN76: ApC2 | AR76: 14 | AS76: Arkansas | AT76: 10A | AU76: Keo loam, 0 to 1 percent slopes, occasionally flooded | AV76: 0 | AW76: 0.5 | AX76: 1 | AY76: 30 | AZ76: 75 | BA76: 150 | BB76: 0.43 | BC76: 5 | BD76: Occasional | BE76: B | BF76: 76
AA77: 0.2 | AB77: 0.17 | AC77: 224 | AF77: Slope Grad Max | AG77: 5 | AL77: 15 | AM77: 3191 | AN77: AsC2 | AR77: 15 | AS77: Arkansas | AT77: 10C | AU77: Keo loam, 1 to 6 percent slopes, occasionally flooded | AV77: 1 | AW77: 3.5 | AX77: 6 | AY77: 15 | AZ77: 45 | BA77: 75 | BB77: 0.43 | BC77: 5 | BD77: Occasional | BE77: B | BF77: 77
C78: Predominate Vegetation | G78: Percent Ground Cover | J78: Conservation Support Practices (P) | N78: Not used Potential use for full C table | S78: Poultry Type | AA78: 0.24 | AB78: 0.2 | AC78: 514 | AF78: Slope Len Min | AG78: 6 | AL78: 16 | AM78: 3192 | AN78: BaC | AR78: 16 | AS78: Arkansas | AT78: 11A | AU78: Kobel silty clay, 0 to 1 percent slopes, frequently flooded | AV78: 0 | AW78: 0.5 | AX78: 1 | AY78: 30 | AZ78: 75 | BA78: 150 | BB78: 0.32 | BC78: 5 | BD78: Frequent | BE78: D | BF78: 78
N79: Vegetal Canopy: Type and Height of Raised Canopy | S79: Type | T79: XLable1 | U79: XLable2 | V79: XLable3 | W79: XLable4 | X79: Prod Rate | Y79: Rate Units | Z79: Index | AA79: 0.28 | AB79: 0.22 | AC79: 376 | AF79: Slope Len Rep | AG79: 7 | AL79: 17 | AM79: 3193 | AN79: BaD | AR79: 17 | AS79: Arkansas | AT79: 12A | AU79: Kobel silty clay, ponded, 0 to 1 percent slopes, frequently flooded | AV79: 0 | AW79: 0.5 | AX79: 1 | AY79: 30 | AZ79: 75 | BA79: 150 | BB79: 0.32 | BC79: 5 | BD79: Frequent | BE79: D | BF79: 79
C80: Grass | D80: 1 | G80: 0 | H80: 1 | J80: None in place | K80: No | Z80: 1 | AA80: 0.32 | AB80: 0.26 | AC80: 346 | AF80: Slope Len Max | AG80: 8 | AL80: 18 | AM80: 3194 | AN80: BaE | AR80: 18 | AS80: Arkansas | AT80: 13A | AU80: Lagrue silty clay loam, 0 to 1 percent slopes | AV80: 0 | AW80: 0.5 | AX80: 1 | AY80: 30 | AZ80: 75 | BA80: 150 | BB80: 0.37 | BC80: 5 | BD80: None | BE80: D | BF80: 80
C81: Weed | D81: 2 | G81: 20 | H81: 2 | J81: At least one in place | K81: Yes | N81: No appreciable canopy of tall weeds or brush | O81: =B155 -> 1 | S81: Broiler/Cornish | T81: Number Houses: | U81: Flocks/Year: | V81: Birds/House: | W81: Market Wt (lb/bird): | X81: =IF(#REF!<=0,0,IF(#REF!<=4,0.275*#REF!-0.1,IF(#REF!>4,0.25*#REF!))) ->  | Y81: Ton/1000 Birds/Flock | Z81: 2 | AA81: 0.37 | AB81: 0.3 | AC81: 478 | AF81: K | AG81: 9 | AL81: 19 | AM81: 3195 | AN81: BaF | AR81: 19 | AS81: Arkansas | AT81: 14B | AU81: Muskogee silt loam, 1 to 3 percent slopes | AV81: 1 | AW81: 2 | AX81: 3 | AY81: 15 | AZ81: 60 | BA81: 100 | BB81: 0.49 | BC81: 5 | BD81: None | BE81: D | BF81: 81
G82: 40 | H82: 3 | N82: Canopy of tall weeds or short brush (20 in. fall ht.) | O82: =B157 -> 3 | S82: Hen | T82: Number Houses: | U82: Birds/House: | X82: 0.016 | Y82: Ton/Bird | Z82: 3 | AA82: 0.43 | AB82: 0.35 | AC82: 566 | AF82: T | AG82: 10 | AL82: 20 | AM82: 3196 | AN82: CaB | AR82: 20 | AS82: Arkansas | AT82: 14C | AU82: Muskogee silt loam, 3 to 8 percent slopes | AV82: 3 | AW82: 5.5 | AX82: 8 | AY82: 15 | AZ82: 45 | BA82: 75 | BB82: 0.49 | BC82: 5 | BD82: None | BE82: D | BF82: 82
G83: 60 | H83: 4 | N83: Canopy of tall weeds or short brush (6.5 ft fall ht.) | O83: =B164 -> 10 | S83: Pullets | T83: Number Houses: | U83: Flocks/Year: | X83: 45 | Y83: Ton/flock/House | Z83: 4 | AA83: 0.49 | AB83: 0.4 | AC83: 585 | AF83: Flood Frequency | AG83: 11 | AL83: 21 | AM83: 3197 | AN83: CaC | AR83: 21 | AS83: Arkansas | AT83: 14D | AU83: Muskogee silt loam, 8 to 15 percent slopes | AV83: 8 | AW83: 11.5 | AX83: 15 | AY83: 15 | AZ83: 30 | BA83: 45 | BB83: 0.49 | BC83: 5 | BD83: None | BE83: D | BF83: 83
G84: 80 | H84: 5 | J84: Pasture Use | N84: Canopy of tall weeds or short brush (13 ft fall ht.) | O84: =B171 -> 17 | S84: Turkey | T84: Number Houses: | U84: Birds/House: | X84: 0.012 | Y84: Ton/Bird | Z84: 5 | AA84: 0.55 | AB84: 0.46 | AC84: 125 | AF84: Hydrologic Group | AG84: 12 | AL84: 22 | AM84: 3198 | AN84: CaC2 | AR84: 22 | AS84: Arkansas | AT84: 15A | AU84: Oaklimeter silt loam, 0 to 1 percent slopes, occasionally flooded | AV84: 0 | AW84: 0.5 | AX84: 1 | AY84: 30 | AZ84: 75 | BA84: 150 | BB84: 0.49 | BC84: 5 | BD84: Occasional | BE84: C | BF84: 84
G85: 95-100 | H85: 6 | AA85: 0.64 | AB85: 0.52 | AC85: 8 | AL85: 23 | AM85: 3199 | AN85: Ch | AR85: 23 | AS85: Arkansas | AT85: 16A | AU85: Overcup silt loam, 0 to 1 percent slopes | AV85: 0 | AW85: 0.5 | AX85: 1 | AY85: 30 | AZ85: 75 | BA85: 150 | BB85: 0.43 | BC85: 3 | BD85: None | BE85: D | BF85: 85
J86: Continuously Grazed >0.75 An.Units | S86: Number Houses: | T86: Flocks/Year: | U86: Birds/House: | V86: Bird Market Weight: | W86: Prod Rate | AC86: =SUM(AC71:AC85) -> 3371 | AD86: =COUNT($BB$63:$BB$3453) -> 3371 | AL86: 24 | AM86: 3200 | AN86: Ck | AR86: 24 | AS86: Arkansas | AT86: 17A | AU86: Perry clay, 0 to 1 percent slopes | AV86: 0 | AW86: 0.5 | AX86: 1 | AY86: 30 | AZ86: 75 | BA86: 150 | BB86: 0.24 | BC86: 5 | BD86: None | BE86: D | BF86: 86
J87: Continuously Grazed <0.75 An.Units | AL87: 25 | AM87: 3201 | AN87: ClG | AR87: 25 | AS87: Arkansas | AT87: 18A | AU87: Perry clay, 0 to 1 percent slopes, frequently flooded | AV87: 0 | AW87: 0.5 | AX87: 1 | AY87: 30 | AZ87: 75 | BA87: 150 | BB87: 0.24 | BC87: 5 | BD87: Frequent | BE87: D | BF87: 87
J88: Rotational Grazing | N88: Not used Potential use for full C table | AF88: county | AG88: Start row | AH88: End row | AI88: R factor | AJ88: 10-Yr EI | AK88: Kf adj Flag | AL88: 26 | AM88: 3202 | AN88: Cr | AR88: 26 | AS88: Arkansas | AT88: 19A | AU88: Portland clay, 0 to 1 percent slopes | AV88: 0 | AW88: 0.5 | AX88: 1 | AY88: 30 | AZ88: 75 | BA88: 150 | BB88: 0.24 | BC88: 5 | BD88: None | BE88: D | BF88: 88
C89: Pasture Condition and Runoff Curve Numbers | J89: Hayland | N89: Vegetal Canopy: Canopy Cover (percent) | S89: Soil Sample Depth | AG89: =BF62 -> 62 | AH89: =AG90-1 -> 62 | AL89: 27 | AM89: 3203 | AN89: Ec | AR89: 27 | AS89: Arkansas | AT89: 20A | AU89: Portland clay, 0 to 1 percent slopes, frequently flooded | AV89: 0 | AW89: 0.5 | AX89: 1 | AY89: 30 | AZ89: 75 | BA89: 150 | BB89: 0.24 | BC89: 5 | BD89: Frequent | BE89: D | BF89: 89
D90: A | E90: B | F90: C | G90: D | AE90: 1 | AF90: Arkansas | AG90: =VLOOKUP(AF90,$AS$62:$BF$3455,14,0) -> 63 | AH90: =AG91-1 -> 99 | AI90: 357 | AJ90: 140 | AK90: 0 | AL90: 28 | AM90: 3204 | AN90: Eg | AR90: 28 | AS90: Arkansas | AT90: 21A | AU90: Rilla silt loam, 0 to 1 percent slopes | AV90: 0 | AW90: 0.5 | AX90: 1 | AY90: 15 | AZ90: 45 | BA90: 75 | BB90: 0.49 | BC90: 5 | BD90: None | BE90: B | BF90: 90
C91: Continuously Grazed <0.75 An.Units | D91: 49 | E91: 69 | F91: 79 | G91: 84 | J91: Grazing Management | N91: 0 (No appreciable weed canopy) | O91: 0 | S91: 4 in | AE91: 2 | AF91: Ashley | AG91: 100 | AH91: =AG92-1 -> 133 | AI91: 425 | AJ91: 160 | AK91: 0 | AL91: 29 | AM91: 3205 | AN91: EnC | AR91: 29 | AS91: Arkansas | AT91: 21B | AU91: Rilla silt loam, 1 to 3 percent slopes | AV91: 1 | AW91: 2 | AX91: 3 | AY91: 15 | AZ91: 45 | BA91: 75 | BB91: 0.49 | BC91: 5 | BD91: None | BE91: B | BF91: 91
C92: Continuously Grazed >0.75 An.Units | D92: 68 | E92: 79 | F92: 86 | G92: 89 | N92: 25 | O92: 1 | S92: 6 in | AE92: 3 | AF92: Baxter | AG92: 134 | AH92: 173 | AI92: 264 | AJ92: 100 | AK92: 1 | AL92: 30 | AM92: 3206 | AN92: EnC2 | AR92: 30 | AS92: Arkansas | AT92: 22 | AU92: Riverwash, sandy, frequently flooded | AV92: 0 | AW92: 2 | AX92: 4 | AY92: 15 | AZ92: 45 | BA92: 75 | BB92: 0.02 | BC92: 5 | BD92: Frequent | BE92: A | BF92: 92
C93: Hayland | D93: 30 | E93: 58 | F93: 71 | G93: 78 | J93: Grazed | K93: 0.3 | N93: 50 | O93: 3 | AE93: 4 | AF93: Benton | AG93: 174 | AH93: 210 | AI93: 285 | AJ93: 110 | AK93: 1 | AL93: 31 | AM93: 3207 | AN93: EnD | AR93: 31 | AS93: Arkansas | AT93: 23A | AU93: Stuttgart silt loam, 0 to 1 percent slopes | AV93: 0 | AW93: 0.5 | AX93: 1 | AY93: 30 | AZ93: 75 | BA93: 150 | BB93: 0.49 | BC93: 3 | BD93: None | BE93: D | BF93: 93
C94: Rotational Grazing | D94: 39 | E94: 61 | F94: 74 | G94: 80 | J94: Grazed and Hayed | K94: 0.2 | N94: 75 | O94: 5 | AE94: 5 | AF94: Boone | AG94: 211 | AH94: 252 | AI94: 275 | AJ94: 100 | AK94: 1 | AL94: 32 | AM94: 3208 | AN94: EnD2 | AR94: 32 | AS94: Arkansas | AT94: 23B | AU94: Stuttgart silt loam, 1 to 3 percent slopes | AV94: 1 | AW94: 2 | AX94: 3 | AY94: 15 | AZ94: 60 | BA94: 100 | BB94: 0.49 | BC94: 3 | BD94: None | BE94: D | BF94: 94
J95: Hayed only | K95: 0.1 | AE95: 6 | AF95: Bradley | AG95: 253 | AH95: 327 | AI95: 413 | AJ95: 160 | AK95: 0 | AL95: 33 | AM95: 3209 | AN95: =IF(AM95<=$AG$68,INDIRECT(ADDRESS(AM95,CELL("col",$AT$61),1,1)),"") -> EoD | AR95: 33 | AS95: Arkansas | AT95: 24A | AU95: Tichnor silt loam, 0 to 1 percent slopes, frequently flooded | AV95: 0 | AW95: 0.5 | AX95: 1 | AY95: 15 | AZ95: 75 | BA95: 150 | BB95: 0.55 | BC95: 5 | BD95: Frequent | BE95: D | BF95: 95
AE96: 7 | AF96: Calhoun | AG96: 328 | AH96: 358 | AI96: 394 | AJ96: 150 | AK96: 0 | AL96: 34 | AM96: =IF(AM95<$AG$68,AM95+1,$AG$68+1) -> 3210 | AN96: ErE | AR96: 34 | AS96: Arkansas | AT96: 25A | AU96: Tichnor silt loam, ponded, 0 to 1 percent slopes, frequently flooded | AV96: 0 | AW96: 0.5 | AX96: 1 | AY96: 30 | AZ96: 75 | BA96: 150 | BB96: 0.49 | BC96: 5 | BD96: Frequent | BE96: D | BF96: 96
C97: Application Method | G97: Application Timing | J97: Add Cons Practices | N97: Manure Type & P source Coeffiencients | AE97: 8 | AF97: Carroll | AG97: 359 | AH97: 392 | AI97: 264 | AJ97: 100 | AK97: 1 | AL97: 35 | AM97: 3211 | AN97: ErF | AR97: 35 | AS97: Arkansas | AT97: 26C | AU97: Udipsamments, 0 to 8 percent slopes | AV97: 0 | AW97: 3 | AX97: 5 | AY97: 15 | AZ97: 30 | BA97: 45 | BB97: 0.15 | BC97: 5 | BD97: Occasional | BE97: A | BF97: 97
J98: 0 | N98: ManureType | O98: Manure | P98: Soil | Q98: Units | R98: Base Unit | S98: Conc Unit | T98: Rate Unit | U98: WEP Unit | V98: WEP lb/ac Conv | W98: Calc PI | AE98: 9 | AF98: Chicot | AG98: 393 | AH98: 428 | AI98: 405 | AJ98: 140 | AK98: 0 | AL98: 36 | AM98: 3212 | AN98: FaC2 | AR98: 36 | AS98: Arkansas | AT98: 28B | AU98: Yancopin silty clay loam, 1 to 3 percent slopes, frequently flooded | AV98: 1 | AW98: 2 | AX98: 3 | AY98: 15 | AZ98: 60 | BA98: 100 | BB98: 0.37 | BC98: 5 | BD98: Frequent | BE98: C | BF98: 98
C99: Incorporated | D99: 0.1 | G99: July-Oct | H99: 0.1 | J99: 1 | W99: No | AE99: 10 | AF99: Clark | AG99: 429 | AH99: 518 | AI99: 390 | AJ99: 130 | AK99: 0 | AL99: 37 | AM99: 3213 | AN99: FaD2 | AR99: 37 | AS99: Arkansas | AT99: 29A | AU99: Yorktown silty clay, 0 to 1 percent slopes, frequently flooded, frequently ponded | AV99: 0 | AW99: 0.5 | AX99: 1 | AY99: 15 | AZ99: 75 | BA99: 150 | BB99: 0.28 | BC99: 5 | BD99: Frequent | BE99: D | BF99: 99
C100: Surface Applied | D100: 0.2 | G100: March-June | H100: 0.25 | J100: 2 | N100: Dry Litter | O100: 0.095 | P100: 0.0018 | Q100: dry | R100: ton | S100: lb/ton | T100: ton/ac | U100: ppm | W100: Yes | AE100: 11 | AF100: Clay | AG100: 519 | AH100: 547 | AI100: 287 | AJ100: 120 | AK100: 0 | AL100: 38 | AM100: 3214 | AN100: FaE2 | AR100: 38 | AS100: Ashley | AT100: 1 | AU100: Amy silt loam, 0 to 1 percent slopes | AV100: 0 | AW100: 0.5 | AX100: 1 | AY100: 30 | AZ100: 30 | BA100: 61 | BB100: 0.49 | BC100: 5 | BD100: None | BE100: D | BF100: 100
C101: Surface Applied - Frozen Ground/Snow | D101: 0.5 | G101: Nov-Feb | H101: 0.6 | J101: 3 | N101: Liquid Manure | O101: 0.031 | P101: 0.0018 | Q101: liquid | R101: 1000 gal | S101: lb/1000 gal | T101: 1000 gal/ac | U101: mg/L | W101: Yes | AE101: 12 | AF101: Cleburne | AG101: 548 | AH101: 581 | AI101: 325 | AJ101: 120 | AK101: 1 | AL101: 39 | AM101: 3215 | AN101: FeF | AR101: 39 | AS101: Ashley | AT101: 2 | AU101: Arkabutla silt loam, 0 to 1 percent slopes, frequently flooded | AV101: 0 | AW101: 0.5 | AX101: 1 | AY101: 30 | AZ101: 61 | BA101: 91 | BB101: 0.43 | BC101: 5 | BD101: Frequent | BE101: D | BF101: 101
N102: Biosolids Cake | O102: 0.058 | P102: 0.0018 | Q102: dry | R102: ton | S102: lb/ton | T102: ton/ac | U102: ppm | W102: Yes | AE102: 13 | AF102: Cleveland | AG102: 582 | AH102: 637 | AI102: 388 | AJ102: 160 | AK102: 0 | AL102: 40 | AM102: 3216 | AN102: FhF | AR102: 40 | AS102: Ashley | AT102: 3 | AU102: Bude silt loam, 0 to 2 percent slopes | AV102: 0 | AW102: 1 | AX102: 2 | AY102: 15 | AZ102: 45 | BA102: 75 | BB102: 0.49 | BC102: 4 | BD102: None | BE102: D | BF102: 102
N103: Liquid Biosolids | O103: 0.029 | P103: 0.0018 | Q103: liquid | R103: 1000 gal | S103: lb/1000 gal | T103: 1000 gal/ac | U103: mg/L | W103: Yes | AE103: 14 | AF103: Columbia | AG103: 638 | AH103: 667 | AI103: 400 | AJ103: 120 | AK103: 0 | AL103: 41 | AM103: 3217 | AN103: GuC | AR103: 41 | AS103: Ashley | AT103: 4 | AU103: Calhoun silt loam, 0 to 1 percent slopes | AV103: 0 | AW103: 0.5 | AX103: 1 | AY103: 15 | AZ103: 37 | BA103: 75 | BB103: 0.55 | BC103: 5 | BD103: None | BE103: D | BF103: 103
C104: Soil Runoff Class LRV | F104: Flooding Frequency | J104: Soil Erosion factor | AE104: 15 | AF104: Conway | AG104: 668 | AH104: 703 | AI104: 319 | AJ104: 120 | AK104: 1 | AL104: 42 | AM104: 3218 | AN104: HmC | AR104: 42 | AS104: Ashley | AT104: 5 | AU104: Calloway silt loam, 0 to 1 percent slopes | AV104: 0 | AW104: 0.5 | AX104: 1 | AY104: 15 | AZ104: 75 | BA104: 150 | BB104: 0.43 | BC104: 4 | BD104: None | BE104: D | BF104: 104
C105: H | D105: 1 | F105: Frequent | G105: 2 | J105: 0 | K105: 0 | AE105: 16 | AF105: Craighead | AG105: 704 | AH105: 743 | AI105: 300 | AJ105: 120 | AK105: 0 | AL105: 43 | AM105: 3219 | AN105: HmD | AR105: 43 | AS105: Ashley | AT105: 6 | AU105: Calloway silt loam, 1 to 3 percent slopes | AV105: 1 | AW105: 2 | AX105: 3 | AY105: 15 | AZ105: 60 | BA105: 100 | BB105: 0.43 | BC105: 4 | BD105: None | BE105: D | BF105: 105
C106: L | D106: 0.2 | F106: None | G106: 0 | J106: 1 | K106: 0.1 | AE106: 17 | AF106: Crawford | AG106: 744 | AH106: 773 | AI106: 312 | AJ106: 120 | AK106: 1 | AL106: 44 | AM106: 3220 | AN106: HoF | AR106: 44 | AS106: Ashley | AT106: 7 | AU106: Crevasse soils, frequently flooded | AV106: 0 | AW106: 0.5 | AX106: 1 | AY106: 15 | AZ106: 75 | BA106: 150 | BB106: 0.1 | BC106: 5 | BD106: Frequent | BE106: A | BF106: 106
C107: M | D107: 0.5 | F107: Occasional | G107: 0.5 | J107: 2 | K107: 0.2 | AE107: 18 | AF107: Crittenden | AG107: 774 | AH107: 799 | AI107: 338 | AJ107: 110 | AK107: 0 | AL107: 45 | AM107: 3221 | AN107: JaB | AR107: 45 | AS107: Ashley | AT107: 8 | AU107: Crowley silt loam, 0 to 1 percent slopes | AV107: 0 | AW107: 0.5 | AX107: 1 | AY107: 15 | AZ107: 75 | BA107: 150 | BB107: 0.43 | BC107: 5 | BD107: None | BE107: D | BF107: 107
C108: N | D108: 0.1 | F108: Rare | G108: 0.2 | J108: 3 | K108: 0.4 | R108: Fields Shown | AE108: 19 | AF108: Cross | AG108: 800 | AH108: 849 | AI108: 323 | AJ108: 120 | AK108: 0 | AL108: 46 | AM108: 3222 | AN108: JaC | AR108: 46 | AS108: Ashley | AT108: 10 | AU108: Grenada silt loam, 1 to 3 percent slopes | AV108: 1 | AW108: 2 | AX108: 3 | AY108: 15 | AZ108: 60 | BA108: 100 | BB108: 0.49 | BC108: 4 | BD108: None | BE108: D | BF108: 108
C109: VH | D109: 1.5 | J109: 5 | K109: 1 | R109: 10 | AE109: 20 | AF109: Dallas | AG109: 850 | AH109: 880 | AI109: 384 | AJ109: 150 | AK109: 0 | AL109: 47 | AM109: 3223 | AN109: Jo | AR109: 47 | AS109: Ashley | AT109: 11 | AU109: Grenada silt loam, 3 to 8 percent slopes | AV109: 3 | AW109: 5 | AX109: 8 | AY109: 15 | AZ109: 45 | BA109: 75 | BB109: 0.49 | BC109: 4 | BD109: None | BE109: D | BF109: 109
C110: VL | D110: 0.15 | J110: 100 | K110: 1 | AE110: 21 | AF110: Desha | AG110: 881 | AH110: 906 | AI110: 382 | AJ110: 140 | AK110: 0 | AL110: 48 | AM110: 3224 | AN110: Js | AR110: 48 | AS110: Ashley | AT110: 12 | AU110: Grenada silt loam, 8 to 12 percent slopes | AV110: 8 | AW110: 10 | AX110: 12 | AY110: 15 | AZ110: 30 | BA110: 45 | BB110: 0.49 | BC110: 4 | BD110: None | BE110: D | BF110: 110
Q111: Litter Production Rate Ranges | AE111: 22 | AF111: Drew | AG111: 907 | AH111: 945 | AI111: 399 | AJ111: 160 | AK111: 0 | AL111: 49 | AM111: 3225 | AN111: Le | AR111: 49 | AS111: Ashley | AT111: 13 | AU111: Guyton silt loam, 0 to 1 percent slopes | AV111: 0 | AW111: 0.5 | AX111: 1 | AY111: 15 | AZ111: 75 | BA111: 150 | BB111: 0.49 | BC111: 5 | BD111: None | BE111: D | BF111: 111
Q112: Type | R112: lb/bird/flock | AE112: 23 | AF112: Faulkner | AG112: 946 | AH112: 978 | AI112: 332 | AJ112: 140 | AK112: 1 | AL112: 50 | AM112: 3226 | AN112: Lf | AR112: 50 | AS112: Ashley | AT112: 14 | AU112: Guyton soils, frequently flooded | AV112: 0 | AW112: 0.5 | AX112: 1 | AY112: 15 | AZ112: 75 | BA112: 150 | BB112: 0.49 | BC112: 5 | BD112: Frequent | BE112: D | BF112: 112
R113: Min | S113: Max | T113: Suggested | AE113: 24 | AF113: Franklin | AG113: 979 | AH113: 1048 | AI113: 301 | AJ113: 120 | AK113: 1 | AL113: 51 | AM113: 3227 | AN113: LkB | AR113: 51 | AS113: Ashley | AT113: 15 | AU113: Hebert silt loam, 0 to 1 percent slopes | AV113: 0 | AW113: 0.5 | AX113: 1 | AY113: 30 | AZ113: 46 | BA113: 61 | BB113: 0.43 | BC113: 5 | BD113: None | BE113: C | BF113: 113
C114: P Index Class Boundries | G114: Soil Runoff Class | AE114: 25 | AF114: Fulton | AG114: 1049 | AH114: 1071 | AI114: 269 | AJ114: 100 | AK114: 1 | AL114: 52 | AM114: 3228 | AN114: LkC2 | AR114: 52 | AS114: Ashley | AT114: 16 | AU114: Henry silt loam, 0 to 1 percent slopes | AV114: 0 | AW114: 0.5 | AX114: 1 | AY114: 15 | AZ114: 75 | BA114: 150 | BB114: 0.49 | BC114: 4 | BD114: None | BE114: D | BF114: 114
C115: Min Value | D115: Class | H115: <50 | I115: 50-60 | J115: 61-65 | K115: 66-70 | L115: 71-75 | M115: 76-80 | N115: 81-85 | O115: >85 | Q115: Broiler | R115: 0.9 | S115: 5.2 | T115: 2 | AE115: 26 | AF115: Garland | AG115: 1072 | AH115: 1108 | AI115: 393 | AJ115: 120 | AK115: 1 | AL115: 53 | AM115: 3229 | AN115: LnC2 | AR115: 53 | AS115: Ashley | AT115: 17 | AU115: Lafe silt loam, 0 to 1 percent slopes | AV115: 0 | AW115: 0.5 | AX115: 1 | AY115: 15 | AZ115: 75 | BA115: 150 | BB115: 0.55 | BC115: 5 | BD115: None | BE115: D | BF115: 115
C116: 0 | D116: Low | H116: 0 | I116: 50 | J116: 61 | K116: 66 | L116: 71 | M116: 76 | N116: 81 | O116: 86 | Q116: Pullet | R116: 5.5 | S116: 13.4 | T116: 6.7 | AE116: 27 | AF116: Grant | AG116: 1109 | AH116: 1134 | AI116: 371 | AJ116: 150 | AK116: 0 | AL116: 54 | AM116: 3230 | AN116: LnD | AR116: 54 | AS116: Ashley | AT116: 18 | AU116: Ouachita silt loam, frequently flooded | AV116: 0 | AW116: 0.5 | AX116: 1 | AY116: 15 | AZ116: 75 | BA116: 150 | BB116: 0.49 | BC116: 5 | BD116: Frequent | BE116: C | BF116: 116
C117: 33 | D117: Medium | F117: <1% | G117: 0 | H117: N | I117: N | J117: N | K117: N | L117: N | M117: VL | N117: L | O117: M | Q117: Breeder Hen | R117: 32 | S117: 48 | T117: 33 | AE117: 28 | AF117: Greene | AG117: 1135 | AH117: 1180 | AI117: 297 | AJ117: 120 | AK117: 0 | AL117: 55 | AM117: 3231 | AN117: MoD | AR117: 55 | AS117: Ashley | AT117: 19 | AU117: Perry clay, 0 to 1 percent slopes | AV117: 0 | AW117: 0.5 | AX117: 1 | AY117: 30 | AZ117: 75 | BA117: 150 | BB117: 0.24 | BC117: 5 | BD117: None | BE117: D | BF117: 117
C118: 67 | D118: High | F118: 1-3% | G118: 1 | H118: N | I118: N | J118: N | K118: VL | L118: VL | M118: L | N118: L | O118: M | Q118: Table Egg Pullet | R118: 4.5 | S118: 4.5 | T118: 4.5 | AE118: 29 | AF118: Hempstead | AG118: 1181 | AH118: 1232 | AI118: 397 | AJ118: 120 | AK118: 0 | AL118: 56 | AM118: 3232 | AN118: MoE | AR118: 56 | AS118: Ashley | AT118: 20 | AU118: Pheba silt loam, 0 to 2 percent slopes | AV118: 0 | AW118: 1 | AX118: 2 | AY118: 15 | AZ118: 45 | BA118: 75 | BB118: 0.55 | BC118: 4 | BD118: None | BE118: D | BF118: 118
C119: 100.01 | D119: Very High | F119: 3-8% | G119: 3 | H119: N | I119: N | J119: VL | K119: L | L119: M | M119: M | N119: H | O119: H | Q119: Table Egg Hen | R119: 35 | S119: 39.4 | T119: 37 | AE119: 30 | AF119: Hot Spring | AG119: 1233 | AH119: 1308 | AI119: 393 | AJ119: 130 | AK119: 0 | AL119: 57 | AM119: 3233 | AN119: NaC | AR119: 57 | AS119: Ashley | AT119: 21 | AU119: Pikeville fine sandy loam, 3 to 8 percent slopes | AV119: 3 | AW119: 5 | AX119: 8 | AY119: 15 | AZ119: 45 | BA119: 75 | BB119: 0.28 | BC119: 4 | BD119: None | BE119: B | BF119: 119
F120: 8-15% | G120: 8 | H120: VL | I120: VL | J120: L | K120: M | L120: M | M120: H | N120: H | O120: VH | Q120: Turkey | R120: 10 | S120: 28 | T120: 12 | AE120: 31 | AF120: Howard | AG120: 1309 | AH120: 1350 | AI120: 397 | AJ120: 130 | AK120: 0 | AL120: 58 | AM120: 3234 | AN120: NaD | AR120: 58 | AS120: Ashley | AT120: 22 | AU120: Portland silt loam, 0 to 1 percent slopes | AV120: 0 | AW120: 0.5 | AX120: 1 | AY120: 30 | AZ120: 75 | BA120: 150 | BB120: 0.43 | BC120: 5 | BD120: None | BE120: D | BF120: 120
F121: >15% | G121: 16 | H121: VL | I121: L | J121: M | K121: M | L121: H | M121: H | N121: VH | O121: VH | Q121: Turkey Poult | R121: 1.5 | S121: 2 | T121: 1.7 | AE121: 32 | AF121: Independence | AG121: 1351 | AH121: 1414 | AI121: 309 | AJ121: 120 | AK121: 1 | AL121: 59 | AM121: 3235 | AN121: PeB | AR121: 59 | AS121: Ashley | AT121: 23 | AU121: Portland silty clay, 0 to 1 percent slopes | AV121: 0 | AW121: 0.5 | AX121: 1 | AY121: 15 | AZ121: 75 | BA121: 150 | BB121: 0.28 | BC121: 5 | BD121: None | BE121: D | BF121: 121
Q122: Turkey Breeder | R122: 74.46 | S122: 100 | T122: 87 | AE122: 33 | AF122: Izard | AG122: =VLOOKUP(AF122,$AS$62:$BF$3455,14,0) -> 1415 | AH122: 1447 | AI122: 279 | AJ122: 100 | AK122: 1 | AL122: 60 | AM122: 3236 | AN122: PeC2 | AR122: 60 | AS122: Ashley | AT122: 24 | AU122: Providence silt loam, 1 to 3 percent slopes | AV122: 1 | AW122: 2 | AX122: 3 | AY122: 15 | AZ122: 60 | BA122: 100 | BB122: 0.55 | BC122: 4 | BD122: None | BE122: D | BF122: 122
Q123: Other | R123: 0 | S123: 100 | T123: ? | AE123: 34 | AF123: Jackson | AG123: 1448 | AH123: 1476 | AI123: 311 | AJ123: 130 | AK123: 0 | AL123: 61 | AM123: 3237 | AN123: PgC2 | AR123: 61 | AS123: Ashley | AT123: 25 | AU123: Rilla silt loam, 0 to 1 percent slopes | AV123: 0 | AW123: 0.5 | AX123: 1 | AY123: 15 | AZ123: 45 | BA123: 75 | BB123: 0.49 | BC123: 5 | BD123: None | BE123: B | BF123: 123
AE124: 35 | AF124: Jefferson | AG124: 1477 | AH124: 1527 | AI124: 362 | AJ124: 160 | AK124: 0 | AL124: 62 | AM124: 3238 | AN124: PkC2 | AR124: 62 | AS124: Ashley | AT124: 26 | AU124: Rilla silt loam, 3 to 5 percent slopes | AV124: 3 | AW124: 4 | AX124: 5 | AY124: 15 | AZ124: 45 | BA124: 75 | BB124: 0.49 | BC124: 5 | BD124: None | BE124: B | BF124: 124
AE125: 36 | AF125: Johnson | AG125: 1528 | AH125: 1574 | AI125: 308 | AJ125: 120 | AK125: 1 | AL125: 63 | AM125: 3239 | AN125: PkD2 | AR125: 63 | AS125: Ashley | AT125: 27 | AU125: Ruston fine sandy loam, 1 to 3 percent slopes | AV125: 1 | AW125: 2 | AX125: 3 | AY125: 15 | AZ125: 60 | BA125: 100 | BB125: 0.28 | BC125: 5 | BD125: None | BE125: B | BF125: 125
C126: Rusle LS table | AE126: 37 | AF126: Lafayette | AG126: 1575 | AH126: 1655 | AI126: 391 | AJ126: 120 | AK126: 0 | AL126: 64 | AM126: 3240 | AN126: PsB | AR126: 64 | AS126: Ashley | AT126: 28 | AU126: Ruston fine sandy loam, 3 to 8 percent slopes | AV126: 3 | AW126: 5 | AX126: 8 | AY126: 7 | AZ126: 15 | BA126: 23 | BB126: 0.28 | BC126: 5 | BD126: None | BE126: B | BF126: 126
C127: %\Length | D127: 3 | E127: 6 | F127: 9 | G127: 12 | H127: 15 | I127: 25 | J127: 50 | K127: 75 | L127: 100 | M127: 150 | N127: 200 | O127: 250 | P127: 300 | Q127: 400 | R127: 600 | S127: 800 | T127: 1000 | AE127: 38 | AF127: Lawrence | AG127: 1656 | AH127: 1697 | AI127: 289 | AJ127: 120 | AK127: 1 | AL127: 65 | AM127: 3241 | AN127: =IF(AM127<=$AG$68,INDIRECT(ADDRESS(AM127,CELL("col",$AT$61),1,1)),"") -> PsC2 | AR127: 65 | AS127: Ashley | AT127: 29 | AU127: Sacul fine sandy loam, 1 to 3 percent slopes | AV127: 1 | AW127: 2 | AX127: 3 | AY127: 30 | AZ127: 91 | BA127: 91 | BB127: 0.32 | BC127: 5 | BD127: None | BE127: D | BF127: 127
C128: 0.2 | D128: 0.05 | E128: 0.05 | F128: 0.05 | G128: 0.05 | H128: 0.05 | I128: 0.05 | J128: 0.05 | K128: 0.05 | L128: 0.05 | M128: 0.05 | N128: 0.05 | O128: 0.05 | P128: 0.05 | Q128: 0.05 | R128: 0.05 | S128: 0.05 | T128: 0.05 | AE128: 39 | AF128: Lee | AG128: 1698 | AH128: 1739 | AI128: 351 | AJ128: 120 | AK128: 0 | AL128: 66 | AM128: =IF(AM127<$AG$68,AM127+1,$AG$68+1) -> 3242 | AN128: Ra | AR128: 66 | AS128: Ashley | AT128: 30 | AU128: Savannah fine sandy loam, 1 to 3 percent slopes | AV128: 1 | AW128: 2 | AX128: 3 | AY128: 15 | AZ128: 60 | BA128: 100 | BB128: 0.24 | BC128: 4 | BD128: None | BE128: C | BF128: 128
C129: 0.5 | D129: 0.08 | E129: 0.08 | F129: 0.08 | G129: 0.08 | H129: 0.08 | I129: 0.08 | J129: 0.08 | K129: 0.08 | L129: 0.09 | M129: 0.09 | N129: 0.09 | O129: 0.09 | P129: 0.09 | Q129: 0.09 | R129: 0.09 | S129: 0.09 | T129: 0.09 | AE129: 40 | AF129: Lincoln | AG129: 1740 | AH129: 1790 | AI129: 381 | AJ129: 160 | AK129: 0 | AL129: 67 | AM129: 3243 | AN129: Rg | AR129: 67 | AS129: Ashley | AT129: 31 | AU129: Savannah fine sandy loam, 3 to 8 percent slopes | AV129: 3 | AW129: 5 | AX129: 8 | AY129: 15 | AZ129: 60 | BA129: 100 | BB129: 0.24 | BC129: 4 | BD129: None | BE129: C | BF129: 129
C130: 1 | D130: 0.12 | E130: 0.12 | F130: 0.12 | G130: 0.12 | H130: 0.12 | I130: 0.13 | J130: 0.13 | K130: 0.14 | L130: 0.14 | M130: 0.15 | N130: 0.15 | O130: 0.15 | P130: 0.15 | Q130: 0.16 | R130: 0.16 | S130: 0.17 | T130: 0.17 | AE130: 41 | AF130: Little River | AG130: 1791 | AH130: 1871 | AI130: 375 | AJ130: 130 | AK130: 0 | AL130: 68 | AM130: 3244 | AN130: Rk | AR130: 68 | AS130: Ashley | AT130: 32 | AU130: Smithdale fine sandy loam, 8 to 12 percent slopes | AV130: 8 | AW130: 10 | AX130: 12 | AY130: 15 | AZ130: 45 | BA130: 75 | BB130: 0.28 | BC130: 5 | BD130: None | BE130: B | BF130: 130
C131: 2 | D131: 0.2 | E131: 0.2 | F131: 0.2 | G131: 0.2 | H131: 0.2 | I131: 0.21 | J131: 0.23 | K131: 0.25 | L131: 0.26 | M131: 0.27 | N131: 0.28 | O131: 0.29 | P131: 0.3 | Q131: 0.31 | R131: 0.33 | S131: 0.34 | T131: 0.35 | AE131: 42 | AF131: Logan | AG131: 1872 | AH131: 1905 | AI131: 315 | AJ131: 120 | AK131: 1 | AL131: 69 | AM131: 3245 | AN131: Sa | AR131: 69 | AS131: Ashley | AT131: 33 | AU131: Spadra variant fine sandy loam, occasionally flooded | AV131: 0 | AW131: 1.5 | AX131: 3 | AY131: 15 | AZ131: 45 | BA131: 75 | BB131: 0.24 | BC131: 5 | BD131: Occasional | BE131: B | BF131: 131
C132: 3 | D132: 0.26 | E132: 0.26 | F132: 0.26 | G132: 0.26 | H132: 0.26 | I132: 0.29 | J132: 0.33 | K132: 0.36 | L132: 0.38 | M132: 0.4 | N132: 0.43 | O132: 0.44 | P132: 0.46 | Q132: 0.48 | R132: 0.52 | S132: 0.55 | T132: 0.57 | AE132: 43 | AF132: Lonoke | AG132: 1906 | AH132: 1944 | AI132: 335 | AJ132: 150 | AK132: 0 | AL132: 70 | AM132: 3246 | AN132: Sb | AR132: 70 | AS132: Ashley | AT132: 34 | AU132: Tippah silt loam, 1 to 3 percent slopes | AV132: 1 | AW132: 2 | AX132: 3 | AY132: 15 | AZ132: 60 | BA132: 100 | BB132: 0.49 | BC132: 5 | BD132: None | BE132: C | BF132: 132
C133: 4 | D133: 0.33 | E133: 0.33 | F133: 0.33 | G133: 0.33 | H133: 0.33 | I133: 0.36 | J133: 0.43 | K133: 0.46 | L133: 0.5 | M133: 0.54 | N133: 0.58 | O133: 0.61 | P133: 0.63 | Q133: 0.67 | R133: 0.74 | S133: 0.78 | T133: 0.82 | AE133: 44 | AF133: Madison | AG133: 1945 | AH133: 1992 | AI133: 297 | AJ133: 110 | AK133: 1 | AL133: 71 | AM133: 3247 | AN133: SfB | AR133: 71 | AS133: Ashley | AT133: 35 | AU133: Yorktown silty clay, 0 to 1 percent slopes, frequently flooded, frequently ponded | AV133: 0 | AW133: 0.5 | AX133: 1 | AY133: 15 | AZ133: 75 | BA133: 150 | BB133: 0.28 | BC133: 5 | BD133: Frequent | BE133: D | BF133: 133
C134: 5 | D134: 0.38 | E134: 0.38 | F134: 0.38 | G134: 0.38 | H134: 0.38 | I134: 0.44 | J134: 0.52 | K134: 0.57 | L134: 0.62 | M134: 0.68 | N134: 0.73 | O134: 0.78 | P134: 0.81 | Q134: 0.87 | R134: 0.97 | S134: 1.04 | T134: 1.1 | AE134: 45 | AF134: Marion | AG134: 1993 | AH134: 2027 | AI134: 269 | AJ134: 100 | AK134: 1 | AL134: 72 | AM134: 3248 | AN134: SfC2 | AR134: 72 | AS134: Baxter | AT134: 1 | AU134: Arkana very cherty silt loam, 3 to 8 percent slopes | AV134: 3 | AW134: 5 | AX134: 8 | AY134: 15 | AZ134: 45 | BA134: 75 | BB134: 0.37 | BC134: 2 | BD134: None | BE134: D | BF134: 134
C135: 6 | D135: 0.44 | E135: 0.44 | F135: 0.44 | G135: 0.44 | H135: 0.44 | I135: 0.5 | J135: 0.61 | K135: 0.68 | L135: 0.74 | M135: 0.83 | N135: 0.9 | O135: 0.95 | P135: 1 | Q135: 1.08 | R135: 1.21 | S135: 1.31 | T135: 1.4 | AE135: 46 | AF135: Miller | AG135: 2028 | AH135: 2108 | AI135: 372 | AJ135: 130 | AK135: 0 | AL135: 73 | AM135: 3249 | AN135: Sn | AR135: 73 | AS135: Baxter | AT135: 2 | AU135: Arkana-Moko complex, 3 to 8 percent slopes, very rocky | AV135: 3 | AW135: 5 | AX135: 8 | AY135: 15 | AZ135: 45 | BA135: 75 | BB135: 0.37 | BC135: 2 | BD135: None | BE135: D | BF135: 135
C136: 8 | D136: 0.54 | E136: 0.54 | F136: 0.54 | G136: 0.54 | H136: 0.54 | I136: 0.64 | J136: 0.79 | K136: 0.9 | L136: 0.99 | M136: 1.12 | N136: 1.23 | O136: 1.32 | P136: 1.5 | Q136: 1.53 | R136: 1.74 | S136: 1.91 | T136: 2.05 | AE136: 47 | AF136: Mississippi | AG136: 2109 | AH136: 2138 | AI136: 310 | AJ136: 110 | AK136: 0 | AL136: 74 | AM136: 3250 | AN136: So | AR136: 74 | AS136: Baxter | AT136: 3 | AU136: Arkana-Moko complex, 8 to 20 percent slopes, very rocky | AV136: 8 | AW136: 14 | AX136: 20 | AY136: 15 | AZ136: 45 | BA136: 75 | BB136: 0.37 | BC136: 2 | BD136: None | BE136: D | BF136: 136
C137: 10 | D137: 0.6 | E137: 0.63 | F137: 0.65 | G137: 0.66 | H137: 0.68 | I137: 0.81 | J137: 1.03 | K137: 1.19 | L137: 1.31 | M137: 1.51 | N137: 1.67 | O137: 1.8 | P137: 1.92 | Q137: 2.13 | R137: 2.45 | S137: 2.71 | T137: 2.93 | AE137: 48 | AF137: Monroe | AG137: 2139 | AH137: 2169 | AI137: 348 | AJ137: 140 | AK137: 0 | AL137: 75 | AM137: 3251 | AN137: Sp | AR137: 75 | AS137: Baxter | AT137: 4 | AU137: Arkana-Moko complex, 20 to 40 percent slopes, very rocky | AV137: 20 | AW137: 30 | AX137: 40 | AY137: 15 | AZ137: 45 | BA137: 75 | BB137: 0.37 | BC137: 2 | BD137: None | BE137: D | BF137: 137
C138: 12 | D138: 0.61 | E138: 0.7 | F138: 0.75 | G138: 0.8 | H138: 0.83 | I138: 1.01 | J138: 1.31 | K138: 1.52 | L138: 1.69 | M138: 1.97 | N138: 2.2 | O138: 2.39 | P138: 2.56 | Q138: 2.85 | R138: 3.32 | S138: 3.7 | T138: 4.02 | AE138: 49 | AF138: Montgomery | AG138: 2170 | AH138: 2236 | AI138: 394 | AJ138: 120 | AK138: 1 | AL138: 76 | AM138: 3252 | AN138: SsA | AR138: 76 | AS138: Baxter | AT138: 5 | AU138: Britwater silt loam, 1 to 3 percent slopes | AV138: 1 | AW138: 2 | AX138: 3 | AY138: 60 | AZ138: 91 | BA138: 91 | BB138: 0.43 | BC138: 5 | BD138: None | BE138: B | BF138: 138
C139: 14 | D139: 0.63 | E139: 0.76 | F139: 0.85 | G139: 0.92 | H139: 0.98 | I139: 1.2 | J139: 1.58 | K139: 1.85 | L139: 2.08 | M139: 2.44 | N139: 2.73 | O139: 2.99 | P139: 3.21 | Q139: 3.6 | R139: 4.23 | S139: 4.74 | T139: 5.18 | AE139: 50 | AF139: Nevada | AG139: 2237 | AH139: 2276 | AI139: 398 | AJ139: 120 | AK139: 0 | AL139: 77 | AM139: 3253 | AN139: SsB | AR139: 77 | AS139: Baxter | AT139: 6 | AU139: Britwater silt loam, 3 to 8 percent slopes | AV139: 3 | AW139: 5 | AX139: 8 | AY139: 39 | AZ139: 48 | BA139: 60 | BB139: 0.43 | BC139: 5 | BD139: None | BE139: B | BF139: 139
C140: 16 | D140: 0.65 | E140: 0.82 | F140: 0.94 | G140: 1.04 | H140: 1.12 | I140: 1.38 | J140: 1.85 | K140: 2.18 | L140: 2.46 | M140: 2.91 | N140: 3.28 | O140: 3.6 | P140: 3.88 | Q140: 4.37 | R140: 5.17 | S140: 5.82 | T140: 6.39 | AE140: 51 | AF140: Newton | AG140: 2277 | AH140: 2328 | AI140: 300 | AJ140: 110 | AK140: 1 | AL140: 78 | AM140: 3254 | AN140: SsC2 | AR140: 78 | AS140: Baxter | AT140: 7 | AU140: Britwater gravelly silt loam, 3 to 8 percent slopes | AV140: 3 | AW140: 5 | AX140: 8 | AY140: 39 | AZ140: 48 | BA140: 60 | BB140: 0.43 | BC140: 5 | BD140: None | BE140: B | BF140: 140
C141: 20 | D141: 0.68 | E141: 0.93 | F141: 1.11 | G141: 1.26 | H141: 1.39 | I141: 1.74 | J141: 2.37 | K141: 2.84 | L141: 3.22 | M141: 3.85 | N141: 4.38 | O141: 4.83 | P141: 5.24 | Q141: 5.95 | R141: 7.13 | S141: 8.1 | T141: 8.94 | AE141: 52 | AF141: Ouachita | AG141: 2329 | AH141: 2363 | AI141: 391 | AJ141: 150 | AK141: 0 | AL141: 79 | AM141: 3255 | AN141: SsD2 | AR141: 79 | AS141: Baxter | AT141: 8 | AU141: Brockwell sandy loam, 3 to 8 percent slopes | AV141: 3 | AW141: 5 | AX141: 8 | AY141: 15 | AZ141: 45 | BA141: 75 | BB141: 0.24 | BC141: 5 | BD141: None | BE141: B | BF141: 141
C142: 25 | D142: 0.73 | E142: 1.05 | F142: 1.3 | G142: 1.51 | H142: 1.7 | I142: 2.17 | J142: 3 | K142: 3.63 | L142: 4.16 | M142: 5.03 | N142: 5.76 | O142: 6.39 | P142: 6.96 | Q142: 7.97 | R142: 9.65 | S142: 11.04 | T142: 12.26 | AE142: 53 | AF142: Perry | AG142: 2364 | AH142: 2394 | AI142: 350 | AJ142: 120 | AK142: 1 | AL142: 80 | AM142: 3256 | AN142: StD2 | AR142: 80 | AS142: Baxter | AT142: 9 | AU142: Brockwell gravelly sandy loam, 3 to 8 percent slopes | AV142: 3 | AW142: 5 | AX142: 8 | AY142: 15 | AZ142: 45 | BA142: 75 | BB142: 0.24 | BC142: 5 | BD142: None | BE142: B | BF142: 142
C143: 30 | D143: 0.77 | E143: 1.16 | F143: 1.48 | G143: 1.75 | H143: 2 | I143: 2.57 | J143: 3.6 | K143: 4.4 | L143: 5.06 | M143: 6.18 | N143: 7.11 | O143: 7.94 | P143: 8.68 | Q143: 9.99 | R143: 12.19 | S143: 14.04 | T143: 15.66 | AE143: 54 | AF143: Phillips | AG143: 2395 | AH143: 2437 | AI143: 370 | AJ143: 120 | AK143: 0 | AL143: 81 | AM143: 3257 | AN143: StE2 | AR143: 81 | AS143: Baxter | AT143: 10 | AU143: Brockwell gravelly sandy loam, 8 to 20 percent slopes | AV143: 8 | AW143: 14 | AX143: 20 | AY143: 15 | AZ143: 20 | BA143: 30 | BB143: 0.24 | BC143: 5 | BD143: None | BE143: B | BF143: 143
C144: 40 | D144: 0.85 | E144: 1.36 | F144: 1.79 | G144: 2.17 | H144: 2.53 | I144: 3.3 | J144: 4.73 | K144: 5.84 | L144: 6.78 | M144: 8.37 | N144: 9.71 | O144: 10.91 | P144: 11.99 | Q144: 13.92 | R144: 17.19 | S144: 19.96 | T144: 22.41 | AE144: 55 | AF144: Pike | AG144: 2438 | AH144: 2535 | AI144: 410 | AJ144: 120 | AK144: 0 | AL144: 82 | AM144: 3258 | AN144: Ta | AR144: 82 | AS144: Baxter | AT144: 11 | AU144: Captina silt loam, 1 to 3 percent slopes | AV144: 1 | AW144: 2 | AX144: 3 | AY144: 60 | AZ144: 91 | BA144: 91 | BB144: 0.43 | BC144: 3 | BD144: None | BE144: D | BF144: 144
C145: 50 | D145: 0.91 | E145: 1.52 | F145: 2.06 | G145: 2.54 | H145: 3 | I145: 3.95 | J145: 5.74 | K145: 7.14 | L145: 8.33 | M145: 10.37 | N145: 12.11 | O145: 13.65 | P145: 15.06 | Q145: 17.59 | R145: 21.88 | S145: 25.55 | T145: 28.82 | AE145: 56 | AF145: Poinsett | AG145: 2536 | AH145: 2565 | AI145: 311 | AJ145: 120 | AK145: 0 | AL145: 83 | AM145: 3259 | AN145: ToA | AR145: 83 | AS145: Baxter | AT145: 12 | AU145: Captina silt loam, 3 to 8 percent slopes | AV145: 3 | AW145: 5 | AX145: 8 | AY145: 39 | AZ145: 48 | BA145: 60 | BB145: 0.43 | BC145: 3 | BD145: None | BE145: D | BF145: 145
C146: 60 | D146: 0.97 | E146: 1.67 | F146: 2.29 | G146: 2.86 | H146: 3.41 | I146: 4.52 | J146: 6.63 | K146: 8.29 | L146: 9.72 | M146: 12.16 | N146: 14.26 | O146: 16.13 | P146: 18.84 | Q146: 20.92 | R146: 26.17 | S146: 30.68 | T146: 34.71 | AE146: 57 | AF146: Polk | AG146: 2566 | AH146: 2617 | AI146: 407 | AJ146: 130 | AK146: 1 | AL146: 84 | AM146: 3260 | AN146: ToB | AR146: 84 | AS146: Baxter | AT146: 13 | AU146: Clarksville very gravelly silt loam, 20 to 50 percent slopes | AV146: 20 | AW146: 35 | AX146: 50 | AY146: 15 | AZ146: 15 | BA146: 15 | BB146: 0.37 | BC146: 3 | BD146: None | BE146: B | BF146: 146
AE147: 58 | AF147: Pope | AG147: 2618 | AH147: 2664 | AI147: 315 | AJ147: 120 | AK147: 1 | AL147: 85 | AM147: 3261 | AR147: 85 | AS147: Baxter | AT147: 14 | AU147: Doniphan very cherty silt loam, 3 to 8 percent slopes | AV147: 3 | AW147: 5 | AX147: 8 | AY147: 15 | AZ147: 45 | BA147: 75 | BB147: 0.37 | BC147: 5 | BD147: None | BE147: B | BF147: 147
AE148: 59 | AF148: Prairie | AG148: 2665 | AH148: 2703 | AI148: 339 | AJ148: 150 | AK148: 0 | AL148: 86 | AM148: 3261 | AR148: 86 | AS148: Baxter | AT148: 15 | AU148: Doniphan very cherty silt loam, 8 to 20 percent slopes | AV148: 8 | AW148: 14 | AX148: 20 | AY148: 15 | AZ148: 20 | BA148: 30 | BB148: 0.37 | BC148: 5 | BD148: None | BE148: B | BF148: 148
AE149: 60 | AF149: Pulaski | AG149: 2704 | AH149: 2753 | AI149: 343 | AJ149: 150 | AK149: 0 | AL149: 87 | AM149: 3261 | AR149: 87 | AS149: Baxter | AT149: 16 | AU149: Elsah gravelly loam, 0 to 3 percent slopes, frequently flooded | AV149: 0 | AW149: 1 | AX149: 3 | AY149: 30 | AZ149: 60 | BA149: 91 | BB149: 0.32 | BC149: 5 | BD149: Frequent | BE149: B | BF149: 149
F150: 1 | G150: 2 | H150: 3 | I150: 4 | J150: 5 | K150: 6 | P150: 10 yr EI | AE150: 61 | AF150: Randolph | AG150: 2754 | AH150: 2784 | AI150: 284 | AJ150: 120 | AK150: 1 | AL150: 88 | AM150: 3261 | AR150: 88 | AS150: Baxter | AT150: 17 | AU150: Estate-Portia-Moko association, 8 to 20 percent slopes, stony | AV150: 8 | AW150: 14 | AX150: 20 | AY150: 15 | AZ150: 20 | BA150: 30 | BB150: 0.24 | BC150: 3 | BD150: None | BE150: C | BF150: 150
C151: Table 6-4. “C” Values for Pasture, Rangeland, Idle Land, and Woodland Grazed | P151: Very Low Ridge Height | AE151: 62 | AF151: Saline | AG151: 2785 | AH151: 2817 | AI151: 375 | AJ151: 130 | AK151: 0 | AL151: 89 | AM151: 3261 | AR151: 89 | AS151: Baxter | AT151: 18 | AU151: Estate-Portia-Moko association, steep | AV151: 20 | AW151: 30 | AX151: 40 | AY151: 5 | AZ151: 15 | BA151: 30 | BB151: 0.24 | BC151: 3 | BD151: None | BE151: C | BF151: 151
C152: Vegetal Canopy | F152: Cover That Contacts The Surface | R152: Hydrologic Soil Group | AE152: 63 | AF152: Scott | AG152: 2818 | AH152: 2857 | AI152: 339 | AJ152: 130 | AK152: 1 | AL152: 90 | AM152: 3261 | AR152: 90 | AS152: Baxter | AT152: 19 | AU152: Gassville very cherty silt loam, 20 to 40 percent slopes | AV152: 20 | AW152: 30 | AX152: 40 | AY152: 5 | AZ152: 15 | BA152: 30 | BB152: 0.43 | BC152: 3 | BD152: None | BE152: D | BF152: 152
C153: Type and Height of Raised Canopy | D153: Canopy Cover (percent) | E153: Type | F153: Percent of Ground Cover | M153: EI | N153: Start Row | O153: End row | P153: % | Q153: ? | R153: A | S153: B | T153: C | U153: D | AE153: 64 | AF153: Searcy | AG153: 2858 | AH153: 2907 | AI153: 289 | AJ153: 110 | AK153: 1 | AL153: 91 | AM153: 3261 | AR153: 91 | AS153: Baxter | AT153: 20 | AU153: Healing silt loam, 1 to 3 percent slopes, rarely flooded | AV153: 1 | AW153: 2 | AX153: 3 | AY153: 61 | AZ153: 91 | BA153: 91 | BB153: 0.37 | BC153: 5 | BD153: Rare | BE153: B | BF153: 153
F154: 0 | G154: 20 | H154: 40 | I154: 60 | J154: 80 | K154: 95-100 | M154: 100 | N154: =CELL("row",M154) -> 154 | O154: =CELL("row",M174)-1 -> 173 | P154: 0 | Q154: 1 | R154: 1 | S154: 1 | T154: 1 | U154: 1 | AE154: 65 | AF154: Sebastian | AG154: =VLOOKUP(AF154,$AS$62:$BF$3455,14,0) -> 2908 | AH154: 2936 | AI154: 302 | AJ154: 130 | AK154: 1 | AL154: 92 | AM154: 3261 | AR154: 92 | AS154: Baxter | AT154: 21 | AU154: Moko-Rock outcrop complex, 3 to 15 percent slopes | AV154: 3 | AW154: 9 | AX154: 15 | AY154: 15 | AZ154: 30 | BA154: 45 | BB154: 0.37 | BC154: 1 | BD154: None | BE154: D | BF154: 154
B155: 1 | C155: No appreciable canopy of tall weeds or brush | D155: 0 | E155: G | F155: 0.45 | G155: 0.2 | H155: 0.1 | I155: 0.042 | J155: 0.013 | K155: 0.003 | M155: 100 | P155: 1 | Q155: 0.56 | R155: 0.66 | S155: 0.82 | T155: 0.91 | U155: 0.95 | AE155: 66 | AF155: Sevier | AG155: 2937 | AH155: =AG156-1 -> 2983 | AI155: 385 | AJ155: 130 | AK155: 0 | AL155: 93 | AM155: 3261 | AR155: 93 | AS155: Baxter | AT155: 22 | AU155: Moko-Rock outcrop complex, 15 to 40 percent slopes | AV155: 15 | AW155: 28 | AX155: 40 | AY155: 5 | AZ155: 15 | BA155: 30 | BB155: 0.37 | BC155: 1 | BD155: None | BE155: D | BF155: 155
B156: 2 | E156: W | F156: 0.45 | G156: 0.24 | H156: 0.15 | I156: 0.09 | J156: 0.043 | K156: 0.011 | M156: 100 | P156: 2 | Q156: 0.5 | R156: 0.5 | S156: 0.73 | T156: 0.87 | U156: 0.93 | AE156: 67 | AF156: Sharp | AG156: 2984 | AH156: 3012 | AI156: 283 | AJ156: 110 | AK156: 1 | AL156: 94 | AM156: 3261 | AR156: 94 | AS156: Baxter | AT156: 23 | AU156: Mountainburg gravelly loam, 3 to 8 percent slopes | AV156: 3 | AW156: 5 | AX156: 8 | AY156: 15 | AZ156: 45 | BA156: 75 | BB156: 0.43 | BC156: 1 | BD156: None | BE156: D | BF156: 156
B157: 3 | C157: Canopy of tall weeds or short brush (20 in. fall ht.) | M157: 100 | P157: 3 | Q157: 50 | R157: 0.5 | S157: 0.7 | T157: 0.85 | U157: 0.92 | AE157: 68 | AF157: St. Francis | AG157: 3013 | AH157: 3067 | AI157: 340 | AJ157: 120 | AK157: 0 | AL157: 95 | AM157: 3261 | AR157: 95 | AS157: Baxter | AT157: 24 | AU157: Mountainburg very stony sandy loam, 3 to 15 percent slopes | AV157: 3 | AW157: 9 | AX157: 15 | AY157: 15 | AZ157: 30 | BA157: 45 | BB157: 0.28 | BC157: 1 | BD157: None | BE157: D | BF157: 157
B158: 4 | D158: 25 | E158: G | F158: 0.36 | G158: 0.17 | H158: 0.09 | I158: 0.038 | J158: 0.012 | K158: 0.003 | M158: 100 | P158: 4 | Q158: 0.5 | R158: 0.5 | S158: 0.69 | T158: 0.85 | U158: 0.92 | AE158: 69 | AF158: Stone | AG158: 3068 | AH158: 3116 | AI158: 304 | AJ158: 110 | AK158: 1 | AL158: 96 | AM158: 3261 | AR158: 96 | AS158: Baxter | AT158: 25 | AU158: Mountainburg very stony sandy loam, 15 to 40 percent slopes | AV158: 15 | AW158: 28 | AX158: 40 | AY158: 5 | AZ158: 15 | BA158: 30 | BB158: 0.32 | BC158: 1 | BD158: None | BE158: D | BF158: 158
B159: 5 | E159: W | F159: 0.36 | G159: 0.2 | H159: 0.13 | I159: 0.082 | J159: 0.041 | K159: 0.011 | M159: 100 | P159: 5 | Q159: 50 | R159: 0.5 | S159: 0.69 | T159: 0.85 | U159: 0.92 | AE159: 70 | AF159: Union | AG159: 3117 | AH159: 3143 | AI159: 410 | AJ159: 150 | AK159: 0 | AL159: 97 | AM159: 3261 | AN159: =IF(AM159<=$AG$68,INDIRECT(ADDRESS(AM159,CELL("col",$AT$61),1,1)),"") ->  | AR159: 97 | AS159: Baxter | AT159: 26 | AU159: Nixa very gravelly silt loam, 3 to 8 percent slopes | AV159: 3 | AW159: 5 | AX159: 8 | AY159: 39 | AZ159: 48 | BA159: 60 | BB159: 0.43 | BC159: 4 | BD159: None | BE159: D | BF159: 159
B160: 6 | D160: 50 | E160: G | F160: 0.26 | G160: 0.13 | H160: 0.07 | I160: 0.035 | J160: 0.012 | K160: 0.003 | M160: 100 | P160: 6 | Q160: 50 | R160: 0.5 | S160: 0.71 | T160: 0.86 | U160: 0.93 | AE160: 71 | AF160: Van Buren | AG160: 3144 | AH160: 3176 | AI160: 325 | AJ160: 120 | AK160: 1 | AL160: 98 | AM160: =IF(AM159<$AG$68,AM159+1,$AG$68+1) -> 3261 | AR160: 98 | AS160: Baxter | AT160: 27 | AU160: Nixa very gravelly silt loam, 8 to 12 percent slopes | AV160: 8 | AW160: 10 | AX160: 12 | AY160: 30 | AZ160: 36 | BA160: 39 | BB160: 0.43 | BC160: 3 | BD160: None | BE160: D | BF160: 160
B161: 7 | E161: W | F161: 0.26 | G161: 0.16 | H161: 0.11 | I161: 0.075 | J161: 0.039 | K161: 0.011 | M161: 100 | P161: 8 | Q161: 0.5 | R161: 0.5 | S161: 0.76 | T161: 0.9 | U161: 0.95 | AE161: 72 | AF161: Washington | AG161: 3177 | AH161: 3260 | AI161: 311 | AJ161: 120 | AK161: 1 | AL161: 99 | AM161: 3261 | AR161: 99 | AS161: Baxter | AT161: 30 | AU161: Nixa-Noark complex, 3 to 8 percent slopes | AV161: 3 | AW161: 5 | AX161: 8 | AY161: 39 | AZ161: 48 | BA161: 60 | BB161: 0.43 | BC161: 4 | BD161: None | BE161: D | BF161: 161
B162: 8 | D162: 75 | E162: G | F162: 0.17 | G162: 0.1 | H162: 0.06 | I162: 0.031 | J162: 0.011 | K162: 0.003 | M162: 100 | P162: 10 | Q162: 50 | R162: 0.53 | S162: 0.84 | T162: 0.96 | U162: 0.99 | AE162: 73 | AF162: White | AG162: 3261 | AH162: 3296 | AI162: 334 | AJ162: 140 | AK162: 0 | AL162: 100 | AM162: 3261 | AR162: 100 | AS162: Baxter | AT162: 31 | AU162: Nixa-Noark complex, 8 to 20 percent slopes | AV162: 8 | AW162: 15 | AX162: 20 | AY162: 15 | AZ162: 21 | BA162: 39 | BB162: 0.43 | BC162: 3 | BD162: None | BE162: D | BF162: 162
B163: 9 | E163: W | F163: 0.17 | G163: 0.12 | H163: 0.09 | I163: 0.067 | J163: 0.038 | K163: 0.011 | M163: 100 | P163: 12 | Q163: 0.5 | R163: 0.6 | S163: 0.94 | T163: 1 | U163: 1 | AE163: 74 | AF163: Woodruff | AG163: 3297 | AH163: 3339 | AI163: 333 | AJ163: 130 | AK163: 0 | AL163: 101 | AM163: 3261 | AR163: 101 | AS163: Baxter | AT163: 32 | AU163: Noark very gravelly silt loam, 3 to 8 percent slopes | AV163: 3 | AW163: 5 | AX163: 8 | AY163: 39 | AZ163: 48 | BA163: 60 | BB163: 0.37 | BC163: 5 | BD163: None | BE163: C | BF163: 163
B164: 10 | C164: Canopy of tall weeds or short brush (6.5 ft fall ht.) | M164: 100 | P164: 14 | Q164: 50 | R164: 0.69 | S164: 1 | T164: 1 | U164: 1 | AE164: 75 | AF164: Yell | AG164: 3340 | AH164: 3433 | AI164: 331 | AJ164: 120 | AK164: 1 | AL164: 102 | AM164: 3261 | AR164: 102 | AS164: Baxter | AT164: 33 | AU164: Noark very gravelly silt loam, 8 to 20 percent slopes | AV164: 8 | AW164: 15 | AX164: 20 | AY164: 15 | AZ164: 21 | BA164: 39 | BB164: 0.37 | BC164: 5 | BD164: None | BE164: C | BF164: 164
B165: 11 | D165: 25 | E165: G | F165: 0.4 | G165: 0.18 | H165: 0.09 | I165: 0.04 | J165: 0.013 | K165: 0.003 | M165: 100 | P165: 16 | Q165: 50 | R165: 0.78 | S165: 1 | T165: 1 | U165: 1 | AF165: =AS3434 -> End | AG165: 3434 | AL165: 103 | AM165: 3261 | AR165: 103 | AS165: Baxter | AT165: 34 | AU165: Noark very gravelly silt loam, 20 to 40 percent slopes | AV165: 20 | AW165: 30 | AX165: 40 | AY165: 15 | AZ165: 15 | BA165: 15 | BB165: 0.37 | BC165: 5 | BD165: None | BE165: C | BF165: 165
B166: 12 | E166: W | F166: 0.4 | G166: 0.22 | H166: 0.14 | I166: 0.085 | J166: 0.042 | K166: 0.011 | M166: 100 | P166: 18 | Q166: 0.53 | R166: 0.88 | S166: 1 | T166: 1 | U166: 1 | AL166: 104 | AM166: 3261 | AR166: 104 | AS166: Baxter | AT166: 35 | AU166: Portia fine sandy loam, 3 to 8 percent slopes | AV166: 3 | AW166: 5 | AX166: 8 | AY166: 15 | AZ166: 45 | BA166: 75 | BB166: 0.24 | BC166: 5 | BD166: None | BE166: B | BF166: 166
B167: 13 | D167: 50 | E167: G | F167: 0.34 | G167: 0.16 | H167: 0.085 | I167: 0.038 | J167: 0.012 | K167: 0.003 | M167: 100 | P167: 20 | Q167: 0.59 | R167: 0.94 | S167: 1 | T167: 1 | U167: 1 | AL167: 105 | AM167: 3261 | AR167: 105 | AS167: Baxter | AT167: 36 | AU167: Portia fine sandy loam, 8 to 12 percent slopes | AV167: 8 | AW167: 10 | AX167: 12 | AY167: 15 | AZ167: 30 | BA167: 45 | BB167: 0.24 | BC167: 5 | BD167: None | BE167: B | BF167: 167
B168: 14 | E168: W | F168: 0.34 | G168: 0.19 | H168: 0.13 | I168: 0.081 | J168: 0.041 | K168: 0.011 | M168: 100 | P168: 24 | Q168: 0.73 | R168: 1 | S168: 1 | T168: 1 | U168: 1 | AL168: 106 | AM168: 3261 | AR168: 106 | AS168: Baxter | AT168: 37 | AU168: Razort silt loam, frequently flooded | AV168: 0 | AW168: 0.5 | AX168: 1 | AY168: 15 | AZ168: 75 | BA168: 150 | BB168: 0.37 | BC168: 4 | BD168: Frequent | BE168: B | BF168: 168
B169: 15 | D169: 75 | E169: G | F169: 0.28 | G169: 0.14 | H169: 0.08 | I169: 0.036 | J169: 0.012 | K169: 0.003 | M169: 100 | P169: 32 | Q169: 1 | R169: 1 | S169: 1 | T169: 1 | U169: 1 | AL169: 107 | AM169: 3261 | AR169: 107 | AS169: Baxter | AT169: 38 | AU169: Sidon silt loam, 3 to 8 percent slopes | AV169: 3 | AW169: 5 | AX169: 8 | AY169: 15 | AZ169: 45 | BA169: 75 | BB169: 0.37 | BC169: 3 | BD169: None | BE169: C | BF169: 169
B170: 16 | E170: W | F170: 0.28 | G170: 0.17 | H170: 0.12 | I170: 0.077 | J170: 0.04 | K170: 0.011 | M170: 100 | P170: 36 | Q170: 1 | R170: 1 | S170: 1 | T170: 1 | U170: 1 | AL170: 108 | AM170: 3261 | AR170: 108 | AS170: Baxter | AT170: 39 | AU170: Tonti cherty silt loam, 3 to 8 percent slopes | AV170: 3 | AW170: 5 | AX170: 8 | AY170: 15 | AZ170: 45 | BA170: 75 | BB170: 0.37 | BC170: 3 | BD170: None | BE170: D | BF170: 170
B171: 17 | C171: Canopy of tall weeds or short brush (13 ft fall ht.) | M171: 100 | P171: 40 | Q171: 1 | R171: 1 | S171: 1 | T171: 1 | U171: 1 | AL171: 109 | AM171: 3261 | AR171: 109 | AS171: Baxter | AT171: 40 | AU171: Udorthents-Ramsey-Rock outcrop complex, 3 to 20 percent slopes | AV171: 10 | AW171: 15 | AX171: 20 | AY171: 15 | AZ171: 20 | BA171: 30 | BB171: 0.2 | BC171: 1 | BD171: None | BE171: D | BF171: 171
B172: 18 | D172: 25 | E172: G | F172: 0.42 | G172: 0.19 | H172: 0.1 | I172: 0.041 | J172: 0.013 | K172: 0.003 | M172: 100 | P172: 45 | Q172: 1 | R172: 1 | S172: 1 | T172: 1 | U172: 1 | AL172: 110 | AM172: 3261 | AR172: 110 | AS172: Baxter | AT172: 41 | AU172: Ventris cherty silt loam, 3 to 8 percent slopes | AV172: 3 | AW172: 5 | AX172: 8 | AY172: 15 | AZ172: 45 | BA172: 75 | BB172: 0.43 | BC172: 2 | BD172: None | BE172: D | BF172: 172
B173: 19 | E173: W | F173: 0.42 | G173: 0.23 | H173: 0.14 | I173: 0.087 | J173: 0.042 | K173: 0.011 | M173: 100 | P173: 50 | Q173: 1 | R173: 1 | S173: 1 | T173: 1 | U173: 1 | AR173: 111 | AS173: Baxter | AT173: 42 | AU173: Wideman sandy loam, frequently flooded | AV173: 0 | AW173: 0.5 | AX173: 1 | AY173: 15 | AZ173: 75 | BA173: 150 | BB173: 0.2 | BC173: 5 | BD173: Frequent | BE173: A | BF173: 173
B174: 20 | D174: 50 | E174: G | F174: 0.39 | G174: 0.18 | H174: 0.09 | I174: 0.04 | J174: 0.013 | K174: 0.003 | M174: 110 | N174: =CELL("row",M174) -> 174 | O174: =CELL("row",M194)-1 -> 193 | P174: 0 | Q174: 1 | R174: 1 | S174: 1 | T174: 1 | U174: 1 | AR174: 112 | AS174: Benton | AT174: BtC | AU174: Britwater gravelly silt loam, 3 to 8 percent slopes | AV174: 3 | AW174: 5 | AX174: 8 | AY174: 39 | AZ174: 48 | BA174: 60 | BB174: 0.43 | BC174: 5 | BD174: None | BE174: B | BF174: 174
B175: 21 | E175: W | F175: 0.39 | G175: 0.21 | H175: 0.14 | I175: 0.085 | J175: 0.042 | K175: 0.011 | M175: 110 | P175: 1 | Q175: 0.58 | R175: 0.69 | S175: 0.86 | T175: 0.96 | U175: 1 | AR175: 113 | AS175: Benton | AT175: BtD | AU175: Britwater gravelly silt loam, 8 to 12 percent slopes | AV175: 8 | AW175: 10 | AX175: 12 | AY175: 30 | AZ175: 36 | BA175: 39 | BB175: 0.43 | BC175: 5 | BD175: None | BE175: B | BF175: 175
B176: 22 | D176: 75 | E176: G | F176: 0.36 | G176: 0.17 | H176: 0.09 | I176: 0.039 | J176: 0.012 | K176: 0.003 | M176: 110 | P176: 2 | Q176: 0.5 | R176: 0.54 | S176: 0.79 | T176: 0.93 | U176: 1 | AR176: 114 | AS176: Benton | AT176: CeC | AU176: Cane loam, 3 to 8 percent slopes | AV176: 3 | AW176: 5 | AX176: 8 | AY176: 15 | AZ176: 45 | BA176: 75 | BB176: 0.32 | BC176: 4 | BD176: None | BE176: C | BF176: 176
B177: 23 | E177: W | F177: 0.36 | G177: 0.2 | H177: 0.13 | I177: 0.083 | J177: 0.041 | K177: 0.011 | M177: 110 | P177: 3 | Q177: 0.5 | R177: 0.5 | S177: 0.77 | T177: 0.93 | U177: 1 | AR177: 115 | AS177: Benton | AT177: CnB | AU177: Captina silt loam, 1 to 3 percent slopes | AV177: 1 | AW177: 2 | AX177: 3 | AY177: 60 | AZ177: 91 | BA177: 91 | BB177: 0.43 | BC177: 3 | BD177: None | BE177: D | BF177: 177
M178: 110 | P178: 4 | Q178: 0.5 | R178: 0.5 | S178: 0.76 | T178: 0.92 | U178: 1 | AR178: 116 | AS178: Benton | AT178: Co | AU178: Carytown silt loam | AV178: 0 | AW178: 0.5 | AX178: 1 | AY178: 15 | AZ178: 75 | BA178: 150 | BB178: 0.43 | BC178: 2 | BD178: None | BE178: D | BF178: 178
M179: 110 | P179: 5 | Q179: 0.5 | R179: 0.5 | S179: 0.76 | T179: 0.92 | U179: 1 | AR179: 117 | AS179: Benton | AT179: Cs | AU179: Cherokee silt loam | AV179: 0 | AW179: 0.5 | AX179: 1 | AY179: 15 | AZ179: 75 | BA179: 150 | BB179: 0.49 | BC179: 3 | BD179: None | BE179: D | BF179: 179
C180: 2008 PI | M180: 110 | P180: 6 | Q180: 50 | R180: 0.5 | S180: 0.78 | T180: 0.93 | U180: 1 | AR180: 118 | AS180: Benton | AT180: CvF | AU180: Clarksville extremely gravelly silt loam, 12 to 50 percent slopes | AV180: 12 | AW180: 31 | AX180: 50 | AY180: 5 | AZ180: 15 | BA180: 30 | BB180: 0.37 | BC180: 5 | BD180: None | BE180: A | BF180: 180
C181: Soil Runoff Class (12/21/07) | E181: <60 | F181: 60-65 | G181: 66-70 | H181: 71-75 | I181: 76-80 | J181: 81-85 | K181: >85 | M181: 110 | P181: 8 | Q181: 0.5 | R181: 0.53 | S181: 0.83 | T181: 0.96 | U181: 1 | AR181: 119 | AS181: Benton | AT181: Eg | AU181: Elsah soils, occasionally and frequently flooded | AV181: 0 | AW181: 1.5 | AX181: 3 | AY181: 15 | AZ181: 45 | BA181: 75 | BB181: 0.43 | BC181: 5 | BD181: Occasional | BE181: B | BF181: 181
D182: Slope% | E182: 0 | F182: 60 | G182: 66 | H182: 71 | I182: 76 | J182: 81 | K182: 85 | M182: 110 | P182: 10 | Q182: 50 | R182: 0.6 | S182: 0.9 | T182: 0.99 | U182: 1 | AR182: 120 | AS182: Benton | AT182: EnD | AU182: Enders very gravelly loam, 3 to 12 percent slopes | AV182: 3 | AW182: 8 | AX182: 12 | AY182: 15 | AZ182: 30 | BA182: 45 | BB182: 0.37 | BC182: 4 | BD182: None | BE182: D | BF182: 182
E183: 2 | F183: 3 | G183: 4 | H183: 5 | I183: 6 | J183: 7 | K183: 8 | M183: 110 | P183: 12 | Q183: 0.5 | R183: 0.68 | S183: 1 | T183: 1 | U183: 1 | AR183: 121 | AS183: Benton | AT183: EoD | AU183: Enders very stony loam, 3 to 12 percent slopes | AV183: 3 | AW183: 8 | AX183: 12 | AY183: 15 | AZ183: 30 | BA183: 45 | BB183: 0.28 | BC183: 4 | BD183: None | BE183: D | BF183: 183
D184: 0 | E184: N | F184: N | G184: N | H184: N | I184: VL | J184: VL | K184: VL | M184: 110 | P184: 14 | Q184: 0.5 | R184: 0.77 | S184: 1 | T184: 1 | U184: 1 | AR184: 122 | AS184: Benton | AT184: EoF | AU184: Enders very stony loam, 12 to 30 percent slopes | AV184: 12 | AW184: 21 | AX184: 30 | AY184: 5 | AZ184: 15 | BA184: 30 | BB184: 0.28 | BC184: 4 | BD184: None | BE184: D | BF184: 184
D185: 1 | E185: N | F185: N | G185: VL | H185: VL | I185: VL | J185: L | K185: L | M185: 110 | P185: 16 | Q185: 0.55 | R185: 0.88 | S185: 1 | T185: 1 | U185: 1 | AR185: 123 | AS185: Benton | AT185: Ft | AU185: Fatima silt loam, occasionally flooded | AV185: 0 | AW185: 0.5 | AX185: 1 | AY185: 15 | AZ185: 75 | BA185: 150 | BB185: 0.37 | BC185: 5 | BD185: Occasional | BE185: B | BF185: 185
D186: 2 | E186: N | F186: VL | G186: VL | H186: VL | I186: L | J186: L | K186: M | M186: 110 | P186: 18 | Q186: 0.62 | R186: 0.99 | S186: 1 | T186: 1 | U186: 1 | AR186: 124 | AS186: Benton | AT186: He | AU186: Healing silt loam, rarely flooded | AV186: 0 | AW186: 1 | AX186: 2 | AY186: 15 | AZ186: 45 | BA186: 75 | BB186: 0.37 | BC186: 5 | BD186: Rare | BE186: B | BF186: 186
D187: 3 | E187: N | F187: VL | G187: VL | H187: L | I187: L | J187: M | K187: M | M187: 110 | P187: 20 | Q187: 0.7 | R187: 1 | S187: 1 | T187: 1 | U187: 1 | AR187: 125 | AS187: Benton | AT187: Hf | AU187: Healing silt loam, 0 to 3 percent slopes, occasionally flooded | AV187: 0 | AW187: 2 | AX187: 3 | AY187: 30 | AZ187: 91 | BA187: 91 | BB187: 0.37 | BC187: 5 | BD187: Occasional | BE187: B | BF187: 187
D188: 4 | E188: N | F188: VL | G188: L | H188: L | I188: M | J188: M | K188: H | M188: 110 | P188: 24 | Q188: 0.86 | R188: 1 | S188: 1 | T188: 1 | U188: 1 | AR188: 126 | AS188: Benton | AT188: JaB | AU188: Jay silt loam, 1 to 3 percent slopes | AV188: 1 | AW188: 2 | AX188: 3 | AY188: 15 | AZ188: 84 | BA188: 152 | BB188: 0.43 | BC188: 4 | BD188: None | BE188: C | BF188: 188
D189: 5 | E189: N | F189: VL | G189: L | H189: L | I189: M | J189: M | K189: H | M189: 110 | P189: 32 | Q189: 1 | R189: 1 | S189: 1 | T189: 1 | U189: 1 | AR189: 127 | AS189: Benton | AT189: Jo | AU189: Johnsburg silt loam, 0 to 2 percent slopes | AV189: 0 | AW189: 1 | AX189: 2 | AY189: 15 | AZ189: 45 | BA189: 75 | BB189: 0.49 | BC189: 4 | BD189: None | BE189: D | BF189: 189
D190: 6 | E190: N | F190: VL | G190: L | H190: M | I190: M | J190: H | K190: H | M190: 110 | P190: 36 | Q190: 1 | R190: 1 | S190: 1 | T190: 1 | U190: 1 | AR190: 128 | AS190: Benton | AT190: LrC | AU190: Linker fine sandy loam, 3 to 8 percent slopes | AV190: 3 | AW190: 5 | AX190: 8 | AY190: 15 | AZ190: 45 | BA190: 75 | BB190: 0.24 | BC190: 2 | BD190: None | BE190: C | BF190: 190
D191: 7 | E191: N | F191: L | G191: L | H191: M | I191: M | J191: H | K191: H | M191: 110 | P191: 40 | Q191: 1 | R191: 1 | S191: 1 | T191: 1 | U191: 1 | AR191: 129 | AS191: Benton | AT191: Me | AU191: Mayes silty clay loam | AV191: 0 | AW191: 0.5 | AX191: 1 | AY191: 15 | AZ191: 75 | BA191: 150 | BB191: 0.37 | BC191: 5 | BD191: None | BE191: D | BF191: 191
D192: 8 | E192: N | F192: L | G192: L | H192: M | I192: M | J192: H | K192: VH | M192: 110 | P192: 45 | Q192: 1 | R192: 1 | S192: 1 | T192: 1 | U192: 1 | AR192: 130 | AS192: Benton | AT192: MuD | AU192: Mountainburg very stony sandy loam, 3 to 12 percent slopes | AV192: 3 | AW192: 8 | AX192: 12 | AY192: 15 | AZ192: 30 | BA192: 45 | BB192: 0.28 | BC192: 1 | BD192: None | BE192: D | BF192: 192
D193: 9 | E193: N | F193: L | G193: L | H193: M | I193: H | J193: H | K193: VH | M193: 110 | P193: 50 | Q193: 1 | R193: 1 | S193: 1 | T193: 1 | U193: 1 | AR193: 131 | AS193: Benton | AT193: MuE | AU193: Mountainburg very stony sandy loam, 12 to 40 percent slopes | AV193: 12 | AW193: 26 | AX193: 40 | AY193: 5 | AZ193: 15 | BA193: 30 | BB193: 0.28 | BC193: 1 | BD193: None | BE193: D | BF193: 193
D194: 10 | E194: N | F194: L | G194: M | H194: M | I194: H | J194: H | K194: VH | M194: 120 | N194: =CELL("row",M194) -> 194 | O194: =CELL("row",M214)-1 -> 213 | P194: 0 | Q194: 1 | R194: 1 | S194: 1 | T194: 1 | U194: 1 | AR194: 132 | AS194: Benton | AT194: NeB | AU194: Newtonia silt loam, 1 to 3 percent slopes | AV194: 1 | AW194: 2 | AX194: 3 | AY194: 61 | AZ194: 91 | BA194: 91 | BB194: 0.43 | BC194: 5 | BD194: None | BE194: B | BF194: 194
D195: 11 | E195: N | F195: L | G195: M | H195: M | I195: H | J195: H | K195: VH | M195: 120 | P195: 1 | Q195: 0.61 | R195: 0.72 | S195: 0.9 | T195: 1 | U195: 1 | AR195: 133 | AS195: Benton | AT195: NfC | AU195: Nixa very gravelly silt loam, 3 to 8 percent slopes | AV195: 3 | AW195: 5 | AX195: 8 | AY195: 39 | AZ195: 48 | BA195: 60 | BB195: 0.43 | BC195: 4 | BD195: None | BE195: D | BF195: 195
D196: 12 | E196: N | F196: L | G196: M | H196: M | I196: H | J196: VH | K196: VH | M196: 120 | P196: 2 | Q196: 0.5 | R196: 0.59 | S196: 0.85 | T196: 1 | U196: 1 | AR196: 134 | AS196: Benton | AT196: NfD | AU196: Nixa very gravelly silt loam, 8 to 12 percent slopes | AV196: 8 | AW196: 10 | AX196: 12 | AY196: 15 | AZ196: 30 | BA196: 45 | BB196: 0.43 | BC196: 3 | BD196: None | BE196: D | BF196: 196
D197: 13 | E197: N | F197: L | G197: M | H197: M | I197: H | J197: VH | K197: VH | M197: 120 | P197: 3 | Q197: 0.5 | R197: 0.54 | S197: 0.84 | T197: 1 | U197: 1 | AR197: 135 | AS197: Benton | AT197: NoD | AU197: Noark very gravelly silt loam, 8 to 12 percent slopes | AV197: 8 | AW197: 10 | AX197: 12 | AY197: 30 | AZ197: 36 | BA197: 39 | BB197: 0.37 | BC197: 5 | BD197: None | BE197: C | BF197: 197
D198: 14 | E198: N | F198: L | G198: M | H198: H | I198: H | J198: VH | K198: VH | M198: 120 | P198: 4 | Q198: 0.5 | R198: 0.53 | S198: 0.83 | T198: 1 | U198: 1 | AR198: 136 | AS198: Benton | AT198: NoE | AU198: Noark very gravelly silt loam, 12 to 20 percent slopes | AV198: 12 | AW198: 16 | AX198: 20 | AY198: 15 | AZ198: 20 | BA198: 30 | BB198: 0.37 | BC198: 5 | BD198: None | BE198: B | BF198: 198
D199: 15 | E199: N | F199: L | G199: M | H199: H | I199: H | J199: VH | K199: VH | M199: 120 | P199: 5 | Q199: 0.5 | R199: 0.53 | S199: 0.83 | T199: 1 | U199: 1 | AR199: 137 | AS199: Benton | AT199: NoF | AU199: Noark very gravelly silt loam, 20 to 40 percent slopes | AV199: 20 | AW199: 30 | AX199: 40 | AY199: 15 | AZ199: 15 | BA199: 15 | BB199: 0.37 | BC199: 5 | BD199: None | BE199: C | BF199: 199
D200: 100 | E200: N | F200: L | G200: M | H200: H | I200: H | J200: VH | K200: VH | M200: 120 | P200: 6 | Q200: 0.5 | R200: 0.54 | S200: 0.84 | T200: 1 | U200: 1 | AR200: 138 | AS200: Benton | AT200: PeB | AU200: Peridge silt loam, 1 to 3 percent slopes | AV200: 1 | AW200: 2 | AX200: 3 | AY200: 15 | AZ200: 60 | BA200: 100 | BB200: 0.43 | BC200: 5 | BD200: None | BE200: B | BF200: 200
M201: 120 | P201: 8 | Q201: 0.5 | R201: 0.59 | S201: 0.89 | T201: 1 | U201: 1 | AR201: 139 | AS201: Benton | AT201: PeC | AU201: Peridge silt loam, 3 to 8 percent slopes | AV201: 3 | AW201: 5 | AX201: 8 | AY201: 15 | AZ201: 45 | BA201: 75 | BB201: 0.43 | BC201: 5 | BD201: None | BE201: B | BF201: 201
M202: 120 | P202: 10 | Q202: 0.5 | R202: 0.66 | S202: 0.95 | T202: 1 | U202: 1 | AR202: 140 | AS202: Benton | AT202: Se | AU202: Secesh gravelly silt loam, occasionally flooded | AV202: 0 | AW202: 1 | AX202: 2 | AY202: 15 | AZ202: 45 | BA202: 75 | BB202: 0.37 | BC202: 4 | BD202: Occasional | BE202: B | BF202: 202
M203: 120 | P203: 12 | Q203: 0.5 | R203: 0.75 | S203: 1 | T203: 1 | U203: 1 | AR203: 141 | AS203: Benton | AT203: SoF | AU203: Sogn very cobbly silt loam, 12 to 40 percent slopes, very rocky (moko) | AV203: 12 | AW203: 26 | AX203: 40 | AY203: 5 | AZ203: 15 | BA203: 30 | BB203: 0.37 | BC203: 1 | BD203: None | BE203: D | BF203: 203
M204: 120 | P204: 14 | Q204: 0.56 | R204: 0.86 | S204: 1 | T204: 1 | U204: 1 | AR204: 142 | AS204: Benton | AT204: SrE | AU204: Sogn-Clareson complex, 8 to 20 percent slopes, rubbly (moko, arkana) | AV204: 8 | AW204: 14 | AX204: 20 | AY204: 15 | AZ204: 20 | BA204: 30 | BB204: 0.37 | BC204: 1 | BD204: None | BE204: D | BF204: 204
M205: 120 | P205: 16 | Q205: 0.63 | R205: 0.97 | S205: 1 | T205: 1 | U205: 1 | AR205: 143 | AS205: Benton | AT205: SsD2 | AU205: Summit silty clay, 3 to 15 percent slopes, eroded | AV205: 3 | AW205: 8 | AX205: 15 | AY205: 15 | AZ205: 30 | BA205: 45 | BB205: 0.2 | BC205: 5 | BD205: None | BE205: D | BF205: 205
M206: 120 | P206: 18 | Q206: 0.71 | R206: 1 | S206: 1 | T206: 1 | U206: 1 | AR206: 144 | AS206: Benton | AT206: ToA | AU206: Taloka silt loam, 0 to 1 percent slopes | AV206: 0 | AW206: 0.5 | AX206: 1 | AY206: 15 | AZ206: 99 | BA206: 182 | BB206: 0.37 | BC206: 4 | BD206: None | BE206: D | BF206: 206
M207: 120 | P207: 20 | Q207: 0.8 | R207: 1 | S207: 1 | T207: 1 | U207: 1 | AR207: 145 | AS207: Benton | AT207: TsC | AU207: Tonti gravelly silt loam, 3 to 8 percent slopes | AV207: 3 | AW207: 5 | AX207: 8 | AY207: 15 | AZ207: 45 | BA207: 75 | BB207: 0.49 | BC207: 3 | BD207: None | BE207: D | BF207: 207
M208: 120 | P208: 24 | Q208: 0.99 | R208: 1 | S208: 1 | T208: 1 | U208: 1 | AR208: 146 | AS208: Benton | AT208: VsF | AU208: Ventris very gravelly silt loam, 15 to 40 percent slopes, rubbly | AV208: 15 | AW208: 28 | AX208: 40 | AY208: 5 | AZ208: 15 | BA208: 30 | BB208: 0.43 | BC208: 2 | BD208: None | BE208: D | BF208: 208
M209: 120 | P209: 32 | Q209: 1 | R209: 1 | S209: 1 | T209: 1 | U209: 1 | AR209: 147 | AS209: Benton | AT209: WeC | AU209: Waben very gravelly silt loam, 3 to 8 percent slopes | AV209: 3 | AW209: 5 | AX209: 8 | AY209: 15 | AZ209: 45 | BA209: 75 | BB209: 0.49 | BC209: 5 | BD209: None | BE209: A | BF209: 209
M210: 120 | P210: 36 | Q210: 1 | R210: 1 | S210: 1 | T210: 1 | U210: 1 | AR210: 148 | AS210: Benton | AT210: WeD | AU210: Waben very gravelly silt loam, 8 to 12 percent slopes | AV210: 8 | AW210: 10 | AX210: 12 | AY210: 15 | AZ210: 30 | BA210: 45 | BB210: 0.49 | BC210: 5 | BD210: None | BE210: A | BF210: 210
M211: 120 | P211: 40 | Q211: 1 | R211: 1 | S211: 1 | T211: 1 | U211: 1 | AR211: 149 | AS211: Boone | AT211: 1 | AU211: Arkana cherty silt loam, 3 to 8 percent slopes | AV211: 3 | AW211: 5 | AX211: 8 | AY211: 15 | AZ211: 45 | BA211: 75 | BB211: 0.37 | BC211: 2 | BD211: None | BE211: D | BF211: 211
M212: 120 | P212: 45 | Q212: 1 | R212: 1 | S212: 1 | T212: 1 | U212: 1 | AR212: 150 | AS212: Boone | AT212: 2 | AU212: Arkana very cherty silt loam, 8 to 12 percent slopes | AV212: 8 | AW212: 10 | AX212: 12 | AY212: 15 | AZ212: 30 | BA212: 45 | BB212: 0.37 | BC212: 2 | BD212: None | BE212: D | BF212: 212
M213: 120 | P213: 50 | Q213: 1 | R213: 1 | S213: 1 | T213: 1 | U213: 1 | AR213: 151 | AS213: Boone | AT213: 3 | AU213: Arkana-Moko complex, 3 to 8 percent slopes, very rocky | AV213: 3 | AW213: 5 | AX213: 8 | AY213: 15 | AZ213: 45 | BA213: 75 | BB213: 0.37 | BC213: 2 | BD213: None | BE213: D | BF213: 213
M214: 130 | N214: =CELL("row",M214) -> 214 | O214: =CELL("row",M234)-1 -> 233 | P214: 0 | Q214: 1 | R214: 1 | S214: 1 | T214: 1 | U214: 1 | AR214: 152 | AS214: Boone | AT214: 4 | AU214: Arkana-Moko complex, 8 to 20 percent slopes, very rocky | AV214: 8 | AW214: 14 | AX214: 20 | AY214: 15 | AZ214: 45 | BA214: 75 | BB214: 0.37 | BC214: 2 | BD214: None | BE214: D | BF214: 214
M215: 130 | P215: 1 | Q215: 0.63 | R215: 0.75 | S215: 0.94 | T215: 1 | U215: 1 | AR215: 153 | AS215: Boone | AT215: 5 | AU215: Arkana-Moko complex, 20 to 40 percent slopes, very rocky | AV215: 20 | AW215: 30 | AX215: 40 | AY215: 15 | AZ215: 45 | BA215: 75 | BB215: 0.37 | BC215: 2 | BD215: None | BE215: D | BF215: 215
M216: 130 | P216: 2 | Q216: 0.5 | R216: 0.64 | S216: 0.91 | T216: 1 | U216: 1 | AR216: 154 | AS216: Boone | AT216: 6 | AU216: Boden stony sandy loam, 8 to 20 percent slopes | AV216: 8 | AW216: 14 | AX216: 20 | AY216: 15 | AZ216: 20 | BA216: 30 | BB216: 0.2 | BC216: 3 | BD216: None | BE216: C | BF216: 216
M217: 130 | P217: 3 | Q217: 50 | R217: 0.59 | S217: 0.9 | T217: 1 | U217: 1 | AR217: 155 | AS217: Boone | AT217: 7 | AU217: Boden variant-Rock outcrop complex, 20 to 40 percent slopes | AV217: 20 | AW217: 30 | AX217: 40 | AY217: 5 | AZ217: 15 | BA217: 30 | BB217: 0.2 | BC217: 2 | BD217: None | BE217: C | BF217: 217
M218: 130 | P218: 4 | Q218: 0.5 | R218: 0.58 | S218: 0.9 | T218: 1 | U218: 1 | AR218: 156 | AS218: Boone | AT218: 8 | AU218: Britwater gravelly silt loam, 3 to 8 percent slopes | AV218: 3 | AW218: 5 | AX218: 8 | AY218: 39 | AZ218: 48 | BA218: 60 | BB218: 0.43 | BC218: 5 | BD218: None | BE218: B | BF218: 218
M219: 130 | P219: 5 | Q219: 50 | R219: 0.58 | S219: 0.9 | T219: 1 | U219: 1 | AR219: 157 | AS219: Boone | AT219: 9 | AU219: Britwater gravelly silt loam, 8 to 12 percent slopes | AV219: 8 | AW219: 10 | AX219: 12 | AY219: 30 | AZ219: 36 | BA219: 39 | BB219: 0.43 | BC219: 5 | BD219: None | BE219: B | BF219: 219
M220: 130 | P220: 6 | Q220: 50 | R220: 0.6 | S220: 0.91 | T220: 1 | U220: 1 | AR220: 158 | AS220: Boone | AT220: 10 | AU220: Cane loam, 3 to 8 percent slopes | AV220: 3 | AW220: 5 | AX220: 8 | AY220: 15 | AZ220: 45 | BA220: 75 | BB220: 0.37 | BC220: 4 | BD220: None | BE220: C | BF220: 220
M221: 130 | P221: 8 | Q221: 0.5 | R221: 0.65 | S221: 0.94 | T221: 1 | U221: 1 | AR221: 159 | AS221: Boone | AT221: 11 | AU221: Cane loam, 8 to 12 percent slopes | AV221: 8 | AW221: 10 | AX221: 12 | AY221: 15 | AZ221: 30 | BA221: 45 | BB221: 0.37 | BC221: 4 | BD221: None | BE221: C | BF221: 221
M222: 130 | P222: 10 | Q222: 0.5 | R222: 0.73 | S222: 0.99 | T222: 1 | U222: 1 | AR222: 160 | AS222: Boone | AT222: 12 | AU222: Captina silt loam, 1 to 3 percent slopes | AV222: 1 | AW222: 2 | AX222: 3 | AY222: 60 | AZ222: 91 | BA222: 91 | BB222: 0.43 | BC222: 3 | BD222: None | BE222: D | BF222: 222
M223: 130 | P223: 12 | Q223: 0.55 | R223: 0.82 | S223: 1 | T223: 1 | U223: 1 | AR223: 161 | AS223: Boone | AT223: 13 | AU223: Captina silt loam, 3 to 8 percent slopes | AV223: 3 | AW223: 5 | AX223: 8 | AY223: 39 | AZ223: 48 | BA223: 60 | BB223: 0.43 | BC223: 3 | BD223: None | BE223: D | BF223: 223
M224: 130 | P224: 14 | Q224: 0.63 | R224: 0.93 | S224: 1 | T224: 1 | U224: 1 | AR224: 162 | AS224: Boone | AT224: 14 | AU224: Clarksville very gravelly silt loam, 20 to 50 percent slopes | AV224: 20 | AW224: 35 | AX224: 50 | AY224: 15 | AZ224: 15 | BA224: 15 | BB224: 0.37 | BC224: 3 | BD224: None | BE224: B | BF224: 224
M225: 130 | P225: 16 | Q225: 0.71 | R225: 1 | S225: 1 | T225: 1 | U225: 1 | AR225: 163 | AS225: Boone | AT225: 15 | AU225: Enders gravelly loam, 3 to 8 percent slopes | AV225: 3 | AW225: 5 | AX225: 8 | AY225: 15 | AZ225: 45 | BA225: 75 | BB225: 0.32 | BC225: 4 | BD225: None | BE225: D | BF225: 225
M226: 130 | P226: 18 | Q226: 0.8 | R226: 1 | S226: 1 | T226: 1 | U226: 1 | AR226: 164 | AS226: Boone | AT226: 16 | AU226: Enders-Nella complex, 8 to 20 percent slopes | AV226: 8 | AW226: 14 | AX226: 20 | AY226: 15 | AZ226: 20 | BA226: 30 | BB226: 0.24 | BC226: 4 | BD226: None | BE226: D | BF226: 226
M227: 130 | P227: 20 | Q227: 0.9 | R227: 1 | S227: 1 | T227: 1 | U227: 1 | AR227: 165 | AS227: Boone | AT227: 17 | AU227: Enders-Nella complex, 20 to 40 percent slopes | AV227: 20 | AW227: 30 | AX227: 40 | AY227: 5 | AZ227: 15 | BA227: 30 | BB227: 0.24 | BC227: 4 | BD227: None | BE227: D | BF227: 227
M228: 130 | P228: 24 | Q228: 1 | R228: 1 | S228: 1 | T228: 1 | U228: 1 | AR228: 166 | AS228: Boone | AT228: 18 | AU228: Gassville very cherty silt loam, 3 to 8 percent slopes | AV228: 3 | AW228: 5 | AX228: 8 | AY228: 15 | AZ228: 45 | BA228: 75 | BB228: 0.43 | BC228: 3 | BD228: None | BE228: D | BF228: 228
M229: 130 | P229: 32 | Q229: 1 | R229: 1 | S229: 1 | T229: 1 | U229: 1 | AR229: 167 | AS229: Boone | AT229: 19 | AU229: Gassville very cherty silt loam, 8 to 20 percent slopes | AV229: 8 | AW229: 14 | AX229: 20 | AY229: 15 | AZ229: 20 | BA229: 30 | BB229: 0.43 | BC229: 3 | BD229: None | BE229: D | BF229: 229
M230: 130 | P230: 36 | Q230: 1 | R230: 1 | S230: 1 | T230: 1 | U230: 1 | AR230: 168 | AS230: Boone | AT230: 20 | AU230: Leadvale silt loam, 1 to 3 percent slopes | AV230: 1 | AW230: 2 | AX230: 3 | AY230: 15 | AZ230: 45 | BA230: 75 | BB230: 0.49 | BC230: 4 | BD230: None | BE230: C | BF230: 230
M231: 130 | P231: 40 | Q231: 1 | R231: 1 | S231: 1 | T231: 1 | U231: 1 | AR231: 169 | AS231: Boone | AT231: 21 | AU231: Leadvale silt loam, 3 to 8 percent slopes | AV231: 3 | AW231: 5 | AX231: 8 | AY231: 15 | AZ231: 45 | BA231: 75 | BB231: 0.49 | BC231: 4 | BD231: None | BE231: C | BF231: 231
M232: 130 | P232: 45 | Q232: 1 | R232: 1 | S232: 1 | T232: 1 | U232: 1 | AR232: 170 | AS232: Boone | AT232: 22 | AU232: Linker fine sandy loam, 3 to 8 percent slopes | AV232: 3 | AW232: 5 | AX232: 8 | AY232: 15 | AZ232: 45 | BA232: 75 | BB232: 0.24 | BC232: 2 | BD232: None | BE232: C | BF232: 232
M233: 130 | P233: 50 | Q233: 1 | R233: 1 | S233: 1 | T233: 1 | U233: 1 | AR233: 171 | AS233: Boone | AT233: 23 | AU233: Linker gravelly fine sandy loam, 3 to 8 percent slopes | AV233: 3 | AW233: 5 | AX233: 8 | AY233: 15 | AZ233: 45 | BA233: 75 | BB233: 0.24 | BC233: 2 | BD233: None | BE233: C | BF233: 233
M234: 140 | N234: =CELL("row",M234) -> 234 | O234: =CELL("row",M254)-1 -> 253 | P234: 0 | Q234: 1 | R234: 1 | S234: 1 | T234: 1 | U234: 1 | AR234: 172 | AS234: Boone | AT234: 24 | AU234: Linker-Mountainburg complex, 8 to 20 percent slopes | AV234: 8 | AW234: 14 | AX234: 20 | AY234: 15 | AZ234: 20 | BA234: 30 | BB234: 0.37 | BC234: 2 | BD234: None | BE234: C | BF234: 234
M235: 140 | P235: 1 | Q235: 0.66 | R235: 0.79 | S235: 0.98 | T235: 1 | U235: 1 | AR235: 173 | AS235: Boone | AT235: 25 | AU235: Moko-Rock outcrop complex, 3 to 15 percent slopes | AV235: 3 | AW235: 9 | AX235: 15 | AY235: 15 | AZ235: 30 | BA235: 45 | BB235: 0.37 | BC235: 1 | BD235: None | BE235: D | BF235: 235
M236: 140 | P236: 2 | Q236: 0.5 | R236: 0.68 | S236: 0.97 | T236: 1 | U236: 1 | AR236: 174 | AS236: Boone | AT236: 26 | AU236: Moko-Rock outcrop complex, 15 to 50 percent slopes | AV236: 15 | AW236: 33 | AX236: 50 | AY236: 5 | AZ236: 15 | BA236: 30 | BB236: 0.37 | BC236: 1 | BD236: None | BE236: D | BF236: 236
M237: 140 | P237: 3 | Q237: 0.5 | R237: 0.65 | S237: 0.97 | T237: 1 | U237: 1 | AR237: 175 | AS237: Boone | AT237: 27 | AU237: Mountainburg very gravelly fine sandy loam, 3 to 8 percent slopes | AV237: 3 | AW237: 5 | AX237: 8 | AY237: 15 | AZ237: 45 | BA237: 75 | BB237: 0.32 | BC237: 1 | BD237: None | BE237: D | BF237: 237
M238: 140 | P238: 4 | Q238: 0.5 | R238: 0.64 | S238: 0.96 | T238: 1 | U238: 1 | AR238: 176 | AS238: Boone | AT238: 28 | AU238: Mountainburg-Steprock very stony fine sandy loam, 3 to 8 percent slopes | AV238: 3 | AW238: 5 | AX238: 8 | AY238: 15 | AZ238: 45 | BA238: 75 | BB238: 0.32 | BC238: 1 | BD238: None | BE238: D | BF238: 238
M239: 140 | P239: 5 | Q239: 0.5 | R239: 0.64 | S239: 0.96 | T239: 1 | U239: 1 | AR239: 177 | AS239: Boone | AT239: 29 | AU239: Mountainburg very stony fine sandy loam, 8 to 20 percent slopes | AV239: 8 | AW239: 14 | AX239: 20 | AY239: 15 | AZ239: 20 | BA239: 30 | BB239: 0.32 | BC239: 1 | BD239: None | BE239: D | BF239: 239
M240: 140 | P240: 6 | Q240: 0.5 | R240: 0.65 | S240: 0.97 | T240: 1 | U240: 1 | AR240: 178 | AS240: Boone | AT240: 30 | AU240: Mountainburg very stony fine sandy loam, 20 to 40 percent slopes | AV240: 20 | AW240: 30 | AX240: 40 | AY240: 5 | AZ240: 15 | BA240: 30 | BB240: 0.32 | BC240: 1 | BD240: None | BE240: D | BF240: 240
M241: 140 | P241: 8 | Q241: 0.5 | R241: 0.71 | S241: 0.98 | T241: 1 | U241: 1 | AR241: 179 | AS241: Boone | AT241: 31 | AU241: Nella-Mountainburg complex, 20 to 40 percent slopes | AV241: 20 | AW241: 30 | AX241: 40 | AY241: 5 | AZ241: 15 | BA241: 30 | BB241: 0.28 | BC241: 5 | BD241: None | BE241: B | BF241: 241
M242: 140 | P242: 10 | Q242: 0.54 | R242: 0.79 | S242: 1 | T242: 1 | U242: 1 | AR242: 180 | AS242: Boone | AT242: 32 | AU242: Nixa very gravelly silt loam, 3 to 8 percent slopes | AV242: 3 | AW242: 5 | AX242: 8 | AY242: 39 | AZ242: 48 | BA242: 60 | BB242: 0.43 | BC242: 4 | BD242: None | BE242: D | BF242: 242
M243: 140 | P243: 12 | Q243: 0.61 | R243: 0.88 | S243: 1 | T243: 1 | U243: 1 | AR243: 181 | AS243: Boone | AT243: 33 | AU243: Nixa very gravelly silt loam, 8 to 12 percent slopes | AV243: 8 | AW243: 10 | AX243: 12 | AY243: 30 | AZ243: 36 | BA243: 39 | BB243: 0.43 | BC243: 3 | BD243: None | BE243: D | BF243: 243
M244: 140 | P244: 14 | Q244: 0.7 | R244: 1 | S244: 1 | T244: 1 | U244: 1 | AR244: 182 | AS244: Boone | AT244: 34 | AU244: Noark very gravelly silt loam, 3 to 8 percent slopes | AV244: 3 | AW244: 5 | AX244: 8 | AY244: 39 | AZ244: 48 | BA244: 60 | BB244: 0.37 | BC244: 5 | BD244: None | BE244: C | BF244: 244
M245: 140 | P245: 16 | Q245: 0.79 | R245: 1 | S245: 1 | T245: 1 | U245: 1 | AR245: 183 | AS245: Boone | AT245: 35 | AU245: Noark very gravelly silt loam, 8 to 20 percent slopes | AV245: 8 | AW245: 15 | AX245: 20 | AY245: 15 | AZ245: 21 | BA245: 39 | BB245: 0.37 | BC245: 5 | BD245: None | BE245: C | BF245: 245
M246: 140 | P246: 18 | Q246: 0.89 | R246: 1 | S246: 1 | T246: 1 | U246: 1 | AR246: 184 | AS246: Boone | AT246: 36 | AU246: Noark very gravelly silt loam, 20 to 40 percent slopes | AV246: 20 | AW246: 30 | AX246: 40 | AY246: 15 | AZ246: 15 | BA246: 15 | BB246: 0.37 | BC246: 5 | BD246: None | BE246: C | BF246: 246
M247: 140 | P247: 20 | Q247: 1 | R247: 1 | S247: 1 | T247: 1 | U247: 1 | AR247: 185 | AS247: Boone | AT247: 37 | AU247: Peridge silt loam, 1 to 3 percent slopes | AV247: 1 | AW247: 2 | AX247: 3 | AY247: 15 | AZ247: 60 | BA247: 100 | BB247: 0.43 | BC247: 5 | BD247: None | BE247: B | BF247: 247
M248: 140 | P248: 24 | Q248: 1 | R248: 1 | S248: 1 | T248: 1 | U248: 1 | AR248: 186 | AS248: Boone | AT248: 38 | AU248: Peridge silt loam, 3 to 8 percent slopes | AV248: 3 | AW248: 5 | AX248: 8 | AY248: 15 | AZ248: 45 | BA248: 75 | BB248: 0.43 | BC248: 5 | BD248: None | BE248: B | BF248: 248
M249: 140 | P249: 32 | Q249: 1 | R249: 1 | S249: 1 | T249: 1 | U249: 1 | AR249: 187 | AS249: Boone | AT249: 39 | AU249: Portia sandy loam, 3 to 8 percent slopes, eroded | AV249: 3 | AW249: 5 | AX249: 8 | AY249: 15 | AZ249: 45 | BA249: 75 | BB249: 0.24 | BC249: 5 | BD249: None | BE249: B | BF249: 249
M250: 140 | P250: 36 | Q250: 1 | R250: 1 | S250: 1 | T250: 1 | U250: 1 | AR250: 188 | AS250: Boone | AT250: 40 | AU250: Portia sandy loam, 8 to 12 percent slopes | AV250: 8 | AW250: 10 | AX250: 12 | AY250: 15 | AZ250: 30 | BA250: 45 | BB250: 0.2 | BC250: 5 | BD250: None | BE250: B | BF250: 250
M251: 140 | P251: 40 | Q251: 1 | R251: 1 | S251: 1 | T251: 1 | U251: 1 | AR251: 189 | AS251: Boone | AT251: 41 | AU251: Razort soils, frequently flooded | AV251: 0 | AW251: 0.5 | AX251: 1 | AY251: 15 | AZ251: 75 | BA251: 150 | BB251: 0.32 | BC251: 5 | BD251: Frequent | BE251: B | BF251: 251
M252: 140 | P252: 45 | Q252: 1 | R252: 1 | S252: 1 | T252: 1 | U252: 1 | AR252: 190 | AS252: Boone | AT252: 42 | AU252: Samba silt loam, 0 to 1 percent slopes | AV252: 0 | AW252: 0.5 | AX252: 1 | AY252: 15 | AZ252: 75 | BA252: 150 | BB252: 0.43 | BC252: 5 | BD252: None | BE252: D | BF252: 252
M253: 140 | P253: 50 | Q253: 1 | R253: 1 | S253: 1 | T253: 1 | U253: 1 | AR253: 191 | AS253: Bradley | AT253: Bb | AU253: Bibb silt loam (guyton) | AV253: 0 | AW253: 0.5 | AX253: 1 | AY253: 30 | AZ253: 75 | BA253: 150 | BB253: 0.49 | BC253: 5 | BD253: Frequent | BE253: D | BF253: 253
M254: 150 | N254: =CELL("row",M254) -> 254 | O254: =CELL("row",M274)-1 -> 273 | P254: 0 | Q254: 1 | R254: 1 | S254: 1 | T254: 1 | U254: 1 | AR254: 192 | AS254: Bradley | AT254: BgB | AU254: Boswell gravelly fine sandy loam, nearly level phase (sacul) | AV254: 1 | AW254: 2 | AX254: 3 | AY254: 15 | AZ254: 60 | BA254: 100 | BB254: 0.32 | BC254: 5 | BD254: None | BE254: D | BF254: 254
M255: 150 | P255: 1 | Q255: 0.69 | R255: 0.82 | S255: 1 | T255: 1 | U255: 1 | AR255: 193 | AS255: Bradley | AT255: BgC | AU255: Boswell gravelly fine sandy loam, gently sloping phase (sacul) | AV255: 3 | AW255: 6 | AX255: 8 | AY255: 15 | AZ255: 45 | BA255: 75 | BB255: 0.32 | BC255: 5 | BD255: None | BE255: D | BF255: 255
M256: 150 | P256: 2 | Q256: 0.54 | R256: 0.73 | S256: 1 | T256: 1 | U256: 1 | AR256: 194 | AS256: Bradley | AT256: BgC2 | AU256: Boswell gravelly fine sandy loam, eroded gently sloping phase (sacul) | AV256: 3 | AW256: 6 | AX256: 8 | AY256: 15 | AZ256: 45 | BA256: 75 | BB256: 0.32 | BC256: 5 | BD256: None | BE256: D | BF256: 256
M257: 150 | P257: 3 | Q257: 0.5 | R257: 0.7 | S257: 1 | T257: 1 | U257: 1 | AR257: 195 | AS257: Bradley | AT257: BoC3 | AU257: Boswell sandy clay, severely eroded gently sloping phase (sacul) | AV257: 3 | AW257: 6 | AX257: 8 | AY257: 15 | AZ257: 45 | BA257: 75 | BB257: 0.2 | BC257: 4 | BD257: None | BE257: D | BF257: 257
... 848 more rows

Sheet Calcs (hidden)
B4: Reset Soil Map Unit Codes if County Changes
B5: VB code in Private Sub Worksheet_SelectionChange subroutine resets uses cells below
B6: CurrentCounty | C6: =Planning!C14 -> Washington
B7: OldCounty | C7: Washington | F7: Cell Color Flag To indicate use of Color in Printing (1= Color, Not 1 = B&W)
F8: Cond Color On | H8: 1
B9: if Soild Name can't Located
B10: Soil Name Can't be located
B13: Error Trapping Block
B15: Error Value | C15: Message
B16: =IF(SUM(COUNTIF(Planning!$A$22:$A$25,Planning!$A$21),COUNTIF(Planning!$A$23:$A$25,Planning!$A$22),COUNTIF(Planning!$A$24:$A$25,Planning!$A$23),COUNTIF(Planning!$A$25:$A$25,Planning!$A$24))>0,1,0) -> 0 | C16: WARNING! A nutrient source is listed more than once in the Nutrient Source and Description Information Section. Please correct this problem to ensure the program functions correctly.
B17: =IF(SUM(COUNTIF(Planning!$A$76:$A$102,Planning!$A$53),COUNTIF(Planning!$A$77:$A$102,Planning!$A$76),COUNTIF(Planning!$A$78:$A$102,Planning!$A$77),COUNTIF(Planning!$A$79:$A$102,Planning!$A$78),COUNTIF(Planning!$A$80:$A$102,Planning!$A$79),COUNTIF(Planning!$A$93:$A$102,Planning!$A$80),COUNTIF(Planning!$A$94:$A$102,Planning!$A$93),COUNTIF(Planning!$A$101:$A$102,Planning!$A$94),COUNTIF(Planning!$A$102:$A$102,Planning!$A$101))>0,1,0) -> 0 | C17: WARNING! A field is listed more than once in the section above. Please correct this problem to ensure the program functions correctly.
B18: =IF(COUNTIF(Planning!L267:L316,">0"),1,0) -> 0 | C18: WARNING! An application rate is planned that exceeds crop N needs. The application rate should be reduced.
B19: =IF(SUM(IF(Planning!A21="",0,IF(OR(CODE(UPPER(Planning!A21))<65,CODE(UPPER(Planning!A21))>95),1,0))+IF(Planning!A22="",0,IF(OR(CODE(UPPER(Planning!A22))<65,CODE(UPPER(Planning!A22))>95),1,0))+IF(Planning!A23="",0,IF(OR(CODE(UPPER(Planning!A23))<65,CODE(UPPER(Planning!A23))>95),1,0))+IF(Planning!A24="",0,IF(OR(CODE(UPPER(Planning!A24))<65,CODE(UPPER(Planning!A24))>95),1,0))+IF(Planning!A25="",0,IF(OR(CODE(UPPER(Planning!A25))<65,CODE(UPPER(Planning!A25))>95),1,0)))>0,1,0) -> 0 | C19: WARNING! A litter source name does not begin with a letter from a to z! Names should begin with a letter. Capitalization does not matter.
B20: =IF(SUM(IF(Planning!A53="",0,IF(OR(CODE(UPPER(Planning!A53))<65,CODE(UPPER(Planning!A53))>95),1,0))+IF(Planning!A76="",0,IF(OR(CODE(UPPER(Planning!A76))<65,CODE(UPPER(Planning!A76))>95),1,0))+IF(Planning!A77="",0,IF(OR(CODE(UPPER(Planning!A77))<65,CODE(UPPER(Planning!A77))>95),1,0))+IF(Planning!A78="",0,IF(OR(CODE(UPPER(Planning!A78))<65,CODE(UPPER(Planning!A78))>95),1,0))+IF(Planning!A79="",0,IF(OR(CODE(UPPER(Planning!A79))<65,CODE(UPPER(Planning!A79))>95),1,0))+IF(Planning!A80="",0,IF(OR(CODE(UPPER(Planning!A80))<65,CODE(UPPER(Planning!A80))>95),1,0))+IF(Planning!A93="",0,IF(OR(CODE(UPPER(Planning!A93))<65,CODE(UPPER(Planning!A93))>95),1,0))+IF(Planning!A94="",0,IF(OR(CODE(UPPER(Planning!A94))<65,CODE(UPPER(Planning!A94))>95),1,0))+IF(Planning!A101="",0,IF(OR(CODE(UPPER(Planning!A101))<65,CODE(UPPER(Planning!A101))>95),1,0))+IF(Planning!A102="",0,IF(OR(CODE(UPPER(Planning!A102))<65,CODE(UPPER(Planning!A102))>95),1,0)))>0,1,0) -> 0 | C20: WARNING! A field name does not begin with a letter from a to z! Names should begin with a letter. Capitalization does not matter.
B21: =IF(D133>0,1,0) -> 0 | C21: WARNING! An application is planned that exceeds the target PI rate. Either the rate should be reduced or the PI value reevaluated.
B24: 1
B25: Complete
B27: Supplemental Documentation of Inputs and Results for P Index and RUSLE Calculations
B28: Field | C28: Soil Map Unit | D28: Soil Name | E28: Primary Litter Source | F28: Source Type | G28: WEP (lb/ton) | H28: TP Used (lb/ton) | I28: Litter Appl. Rate (tons/acre) | J28: WEP rate (lb/ac) | K28: TP rate (lb/ac) | L28: Alum Used | M28: Mineralization Coef | N28: WEP coef | O28: WEP Source Value | P28: 4 in Soil Test P lb/ac | Q28: Soil coef | R28: Soil P Source Value | S28: Total P Source Value | T28: R factor | U28: Kf | V28: Adj Kf For Freezing? | W28: Kf Used | X28: Slope Gradient (%) | Y28: Slope Length (ft) | Z28: Rusle LS | AA28: Vegetal Canopy: Type | AB28: Percent of Ground Coverd | AC28: C Factor | AD28: Cons. Support Practices (P) | AE28: Calc. P Factor? | AF28: Soil Hydrologic Group | AG28: EI | AH28: P Factor | AI28: RUSLE 1 (ton/ac) | AJ28: RUSLE 2 (ton/ac) | AK28: RUSLE ? Used (ton/ac) | AL28: Soil Erosion LRV | AM28: Pasture Use | AN28: Runoff Curve Numbers | AO28: Soil Runoff Class | AP28: Soil Runoff Class LRV | AQ28: Flooding Frequency | AR28: Flooding Frequency LRV | AS28: Application Method | AT28: Application Method LRV | AU28: Application Timing | AV28: Application Timing LRV | AW28: Total P Transport Value | AX28: Calc PI | AY28: Pre BMP PI Value | AZ28: PI Range | BA28: Diversion % | BB28: Terrace % | BC28: Pond % | BD28: Filter Strip % | BE28: Grassed WaterWay % | BF28: Fencing % | BG28: Riparioan Forst Buffer % | BH28: Riparian Herbaceous Buffer % | BI28: Field Borderrs % | BJ28: Total SMV | BK28: Post BMP PI Value | BL28: PI Range
B29: =IF(ISBLANK(Planning!A159),"",Planning!A159) -> Rotation | C29: =IF(ISBLANK(Planning!D53),"",Planning!D53) -> NaC | D29: =IF(LEN(C29)=0,"",IF(ISNA(VLOOKUP(C29,INDIRECT(ADDRESS(Data!$AG$67,Data!$AG$65,1,1,"Data")):INDIRECT(ADDRESS(Data!$AG$68,Data!$AG$66,1,1,"Data")),Data!$AG$74,0)),$B$10,VLOOKUP(Planning!D53,INDIRECT(ADDRESS(Data!$AG$67,Data!$AG$65,1,1,"Data")):INDIRECT(ADDRESS(Data!$AG$68,Data!$AG$66,1,1,"Data")),Data!$AG$74,0))) -> Nixa very gravelly silt loam, 3 to 8 percent slopes | E29: =IF(ISBLANK(Planning!I159),"",Planning!I159) -> Cake | F29: =IF(ISBLANK(Planning!I159),"",INDEX(Planning!$A$21:$C$25,MATCH(E29,Planning!$A$21:$A$25,0),2)) -> Dry Litter | G29: =IF(ISNA(INDEX(Planning!$A$21:$N$25,MATCH(E29,Planning!$A$21:$A$25,0),12)),"",INDEX(Planning!$A$21:$N$25,MATCH(E29,Planning!$A$21:$A$25,0),12)) -> 4.9 | H29: =IF(ISNA(INDEX(Planning!$A$21:$N$25,MATCH(E29,Planning!$A$21:$A$25,0),8)/2.29),"",INDEX(Planning!$A$21:$N$25,MATCH(E29,Planning!$A$21:$A$25,0),8)/2.29) -> 26.89956332 | I29: =IF(ISBLANK(Planning!J159),"",Planning!J159) -> 1.62 | J29: =IF(ISERROR(I29*G29),"",I29*G29) -> 7.938 | K29: =IF(ISERROR(I29*H29),"",I29*H29) -> 43.57729258 | L29: =IF(ISNA(INDEX(Planning!$A$21:$N$25,MATCH(E29,Planning!$A$21:$A$25,0),14)),"",INDEX(Planning!$A$21:$N$25,MATCH(E29,Planning!$A$21:$A$25,0),14)) -> No | M29: =IF(ISERROR(VLOOKUP(L29,Data!$Q$65:$R$66,2,1)),"",VLOOKUP(L29,Data!$Q$65:$R$66,2,1)) -> 0.05 | N29: =IF(ISNA(VLOOKUP(F29,Nutrient_Table,2,0)),"",VLOOKUP(F29,Nutrient_Table,2,0)) -> 0.095 | O29: =IF(ISERROR(N29*(J29+M29*(K29-J29))),"",N29*(J29+M29*(K29-J29))) -> 0.9233966397 | P29: =IF(LEN(B29)=0,"",Planning!B53*(1.3333)) -> 182.6621 | Q29: =IF(ISNA(INDEX(Nutrient_Table,MATCH(F29,Manure_Type,0),3)),"",INDEX(Nutrient_Table,MATCH(F29,Manure_Type,0),3)) -> 0.0018 | R29: =IF(ISERROR(P29*Q29),"",P29*Q29) -> 0.32879178 | S29: =IF(ISERROR(O29+R29),"",O29+R29) -> 1.25218842 | T29: =IF(LEN(B29)=0,"",IF(ISBLANK(Data!$AG$69),"",Data!$AG$69)) -> 311 | U29: =IF(ISERROR(VLOOKUP(C29,INDIRECT(ADDRESS(Data!$AG$67,Data!$AG$65,1,1,"Data")):INDIRECT(ADDRESS(Data!$AG$68,Data!$AG$66,1,1,"Data")),Data!$AG$81,0)),"",VLOOKUP(C29,INDIRECT(ADDRESS(Data!$AG$67,Data!$AG$65,1,1,"Data")):INDIRECT(ADDRESS(Data!$AG$68,Data!$AG$66,1,1,"Data")),Data!$AG$81,0)) -> 0.43 | V29: =IF(LEN(B29)=0,"",IF(LEN(Data!$AG$71)=0,"",IF(Data!$AG$71=1,"Yes", "No"))) -> Yes | W29: =IF(ISERROR(IF(V29="NO",U29,VLOOKUP(U29,Data!$AA$72:$AB$85,2,0))),"",IF(V29="NO",U29,VLOOKUP(U29,Data!$AA$72:$AB$85,2,0))) -> 0.35 | X29: =IF(ISBLANK(Planning!H53),"",Planning!H53) -> 5 | Y29: =IF(ISBLANK(Planning!L53),"",Planning!L53) -> 48 | Z29: =IF(ISERROR(INDEX(Data!$D$128:$T$146,MATCH(X29,Data!$C$128:$C$146,1),MATCH(Y29,Data!$D$127:$T$127,1))),"",INDEX(Data!$D$128:$T$146,MATCH(X29,Data!$C$128:$C$146,1),MATCH(Y29,Data!$D$127:$T$127,1))) -> 0.44 | AA29: =IF(ISBLANK(Planning!F105),"",Planning!F105) -> Grass | AB29: =IF(ISBLANK(Planning!H105),"",Planning!H105) -> 95-100 | AC29: =IF(ISERROR(INDEX(Data!$F$155:$K$156,VLOOKUP(AA29,Data!$C$79:$D$81,2),VLOOKUP(AB29,Data!$G$79:$H$85,2,0))),"",INDEX(Data!$F$155:$K$156,VLOOKUP(AA29,Data!$C$79:$D$81,2),VLOOKUP(AB29,Data!$G$79:$H$85,2,0))) -> 0.003 | AD29: =IF(ISBLANK(Planning!J105),"",Planning!J105) -> None in place | AE29: =IF(ISERROR(VLOOKUP(AD29,Data!$J$79:$K$81,2,0)),"",VLOOKUP(AD29,Data!$J$79:$K$81,2,0)) -> No | AF29: =IF(ISERROR(VLOOKUP(C29,INDIRECT(ADDRESS(Data!$AG$67,Data!$AG$65,1,1,"Data")):INDIRECT(ADDRESS(Data!$AG$68,Data!$AG$66,1,1,"Data")),Data!$AG$84,0)),"",VLOOKUP(C29,INDIRECT(ADDRESS(Data!$AG$67,Data!$AG$65,1,1,"Data")):INDIRECT(ADDRESS(Data!$AG$68,Data!$AG$66,1,1,"Data")),Data!$AG$84,0)) -> D | AG29: =IF(LEN(B29)=0,"",IF(LEN(Data!$AG$70)=0,"",Data!$AG$70)) -> 120 | AH29: =IF(LEN(AE29)=0,"",IF(AE29="Yes",INDIRECT(ADDRESS((ROW(Data!$M$153)+MATCH(AG29,Data!$M$154:$M$293,0)+MATCH(X29,Data!$P$154:$P$174,1)-1),(COLUMN(Data!$Q$153)+MATCH(AF29,Data!$R$153:$U$153,0)),1,1,"Data"),TRUE),1)) -> 1 | AI29: =IF(ISERROR(T29*W29*Z29*AC29*AH29),"",T29*W29*Z29*AC29*AH29) -> 0.143682 | AJ29: =IF(ISBLANK(Planning!M105),"",Planning!M105) -> 0.1888392 | AK29: =AJ29 -> 0.1888392 | AL29: =IF(ISERROR(VLOOKUP(AK29,Data!$J$105:$K$109,2,1)),"",VLOOKUP(AK29,Data!$J$105:$K$109,2,1)) -> 0 | AM29: =IF(ISBLANK(Planning!B159),"",Planning!B159) -> Rotational Grazing | AN29: =IF(ISERROR(INDEX(Data!$D$91:$G$94,MATCH(AM29,Data!$C$91:$C$94,1),MATCH(AF29,Data!$D$90:$G$90,1))),"",INDEX(Data!$D$91:$G$94,MATCH(AM29,Data!$C$91:$C$94,1),MATCH(AF29,Data!$D$90:$G$90,1))) -> 80 | AO29: =IF(ISERROR(VLOOKUP(X29,Data!$D$184:$K$200,HLOOKUP(AN29,Data!$E$182:$K$183,2))),"",VLOOKUP(X29,Data!$D$184:$K$200,HLOOKUP(AN29,Data!$E$182:$K$183,2))) -> M | AP29: =IF(ISERROR(VLOOKUP(AO29,Data!$C$105:$D$110,2)),"",VLOOKUP(AO29,Data!$C$105:$D$110,2)) -> 0.5 | AQ29: =IF(ISBLANK(Planning!M53),"",Planning!M53) -> None | AR29: =IF(ISERROR(VLOOKUP(AQ29,Data!$F$105:$G$108,2,1)),"",VLOOKUP(AQ29,Data!$F$105:$G$108,2,1)) -> 0 | AS29: =IF(ISBLANK(Planning!F159),"",Planning!F159) -> Surface Applied | AT29: =IF(ISERROR(VLOOKUP(AS29,Data!$C$99:$D$101,2)),"",VLOOKUP(AS29,Data!$C$99:$D$101,2)) -> 0.2 | AU29: =IF(ISBLANK(Planning!H159),"",Planning!H159) -> March-June | AV29: =IF(ISERROR(VLOOKUP(AU29,Data!$G$99:$H$101,2)),"",VLOOKUP(AU29,Data!$G$99:$H$101,2)) -> 0.25 | AW29: =IF(ISERROR(AL29+AP29+AR29+AT29+AV29),"",AL29+AP29+AR29+AT29+AV29) -> 0.95 | AX29: =IF(LEN(B29)=0,"",COUNTIF(B29:AH29,"")+COUNTIF(AK29:AW29,"")+COUNTIF(B29:AW29,NA())) -> 0 | AY29: =IF(AX29=0,ROUND((S29*AW29)/1.8*100,0),"") -> 66 | AZ29: =IF(AX29=0,VLOOKUP(AY29,Data!$C$116:$D$119,2),"") -> Medium | BA29: =IF(LEN(B29)=0,"",IF(ISBLANK(Planning!B212),0,Planning!B212)) -> 0 | BB29: =IF(LEN(B29)=0,"",IF(ISBLANK(Planning!C212),0,Planning!C212)) -> 0 | BC29: =IF(LEN(B29)=0,"",IF(ISBLANK(Planning!D212),0,Planning!D212)) -> 0 | BD29: =IF(LEN(B29)=0,"",IF(ISBLANK(Planning!E212),0,Planning!E212)) -> 0 | BE29: =IF(LEN(B29)=0,"",IF(ISBLANK(Planning!F212),0,Planning!F212)) -> 0 | BF29: =IF(LEN(B29)=0,"",IF(ISBLANK(Planning!G212),0,Planning!G212)) -> 0 | BG29: =IF(LEN(B29)=0,"",IF(ISBLANK(Planning!H212),0,Planning!H212)) -> 0 | BH29: =IF(LEN(B29)=0,"",IF(ISBLANK(Planning!I212),0,Planning!I212)) -> 0 | BI29: =IF(LEN(B29)=0,"",IF(ISBLANK(Planning!J212),0,Planning!J212)) -> 0 | BJ29: =IF(LEN(B29)=0,"",(1-BA29)*(1-BB29)*(1-BC29)*(1-BD29)*(1-BE29)*(1-BF29)*(1-BG29)*(1-BH29)*(1-BI29)) -> 1 | BK29: =IF(AX29=0,ROUND((S29*AW29*BJ29)/1.8*100,0),"") -> 66 | BL29: =IF(AX29=0,VLOOKUP(BK29,Data!$C$116:$D$119,2),"") -> Medium
B30: =IF(ISBLANK(Planning!A160),"",Planning!A160) -> Continuous | C30: =IF(ISBLANK(Planning!D54),"",Planning!D54) -> ClG | D30: =IF(LEN(C30)=0,"",IF(ISNA(VLOOKUP(C30,INDIRECT(ADDRESS(Data!$AG$67,Data!$AG$65,1,1,"Data")):INDIRECT(ADDRESS(Data!$AG$68,Data!$AG$66,1,1,"Data")),Data!$AG$74,0)),$B$10,VLOOKUP(Planning!D54,INDIRECT(ADDRESS(Data!$AG$67,Data!$AG$65,1,1,"Data")):INDIRECT(ADDRESS(Data!$AG$68,Data!$AG$66,1,1,"Data")),Data!$AG$74,0))) -> Clarksville extremely gravelly silt loam, 12 to 60 percent slopes | E30: =IF(ISBLANK(Planning!I160),"",Planning!I160) -> Cake | F30: =IF(ISBLANK(Planning!I160),"",INDEX(Planning!$A$21:$C$25,MATCH(E30,Planning!$A$21:$A$25,0),2)) -> Dry Litter | G30: =IF(ISNA(INDEX(Planning!$A$21:$N$25,MATCH(E30,Planning!$A$21:$A$25,0),12)),"",INDEX(Planning!$A$21:$N$25,MATCH(E30,Planning!$A$21:$A$25,0),12)) -> 4.9 | H30: =IF(ISNA(INDEX(Planning!$A$21:$N$25,MATCH(E30,Planning!$A$21:$A$25,0),8)/2.29),"",INDEX(Planning!$A$21:$N$25,MATCH(E30,Planning!$A$21:$A$25,0),8)/2.29) -> 26.89956332 | I30: =IF(ISBLANK(Planning!J160),"",Planning!J160) -> 3.588157895 | J30: =IF(ISERROR(I30*G30),"",I30*G30) -> 17.58197368 | K30: =IF(ISERROR(I30*H30),"",I30*H30) -> 96.51988049 | L30: =IF(ISNA(INDEX(Planning!$A$21:$N$25,MATCH(E30,Planning!$A$21:$A$25,0),14)),"",INDEX(Planning!$A$21:$N$25,MATCH(E30,Planning!$A$21:$A$25,0),14)) -> No | M30: =IF(ISERROR(VLOOKUP(L30,Data!$Q$65:$R$66,2,1)),"",VLOOKUP(L30,Data!$Q$65:$R$66,2,1)) -> 0.05 | N30: =IF(ISNA(VLOOKUP(F30,Nutrient_Table,2,0)),"",VLOOKUP(F30,Nutrient_Table,2,0)) -> 0.095 | O30: =IF(ISERROR(N30*(J30+M30*(K30-J30))),"",N30*(J30+M30*(K30-J30))) -> 2.045242557 | P30: =IF(LEN(B30)=0,"",Planning!B54*(1.3333)) -> 61.3318 | Q30: =IF(ISNA(INDEX(Nutrient_Table,MATCH(F30,Manure_Type,0),3)),"",INDEX(Nutrient_Table,MATCH(F30,Manure_Type,0),3)) -> 0.0018 | R30: =IF(ISERROR(P30*Q30),"",P30*Q30) -> 0.11039724 | S30: =IF(ISERROR(O30+R30),"",O30+R30) -> 2.155639797 | T30: =IF(LEN(B30)=0,"",IF(ISBLANK(Data!$AG$69),"",Data!$AG$69)) -> 311 | U30: =IF(ISERROR(VLOOKUP(C30,INDIRECT(ADDRESS(Data!$AG$67,Data!$AG$65,1,1,"Data")):INDIRECT(ADDRESS(Data!$AG$68,Data!$AG$66,1,1,"Data")),Data!$AG$81,0)),"",VLOOKUP(C30,INDIRECT(ADDRESS(Data!$AG$67,Data!$AG$65,1,1,"Data")):INDIRECT(ADDRESS(Data!$AG$68,Data!$AG$66,1,1,"Data")),Data!$AG$81,0)) -> 0.37 | V30: =IF(LEN(B30)=0,"",IF(LEN(Data!$AG$71)=0,"",IF(Data!$AG$71=1,"Yes", "No"))) -> Yes | W30: =IF(ISERROR(IF(V30="NO",U30,VLOOKUP(U30,Data!$AA$72:$AB$85,2,0))),"",IF(V30="NO",U30,VLOOKUP(U30,Data!$AA$72:$AB$85,2,0))) -> 0.3 | X30: =IF(ISBLANK(Planning!H54),"",Planning!H54) -> 14 | Y30: =IF(ISBLANK(Planning!L54),"",Planning!L54) -> 15 | Z30: =IF(ISERROR(INDEX(Data!$D$128:$T$146,MATCH(X30,Data!$C$128:$C$146,1),MATCH(Y30,Data!$D$127:$T$127,1))),"",INDEX(Data!$D$128:$T$146,MATCH(X30,Data!$C$128:$C$146,1),MATCH(Y30,Data!$D$127:$T$127,1))) -> 0.98 | AA30: =IF(ISBLANK(Planning!F106),"",Planning!F106) -> Grass | AB30: =IF(ISBLANK(Planning!H106),"",Planning!H106) -> 95-100 | AC30: =IF(ISERROR(INDEX(Data!$F$155:$K$156,VLOOKUP(AA30,Data!$C$79:$D$81,2),VLOOKUP(AB30,Data!$G$79:$H$85,2,0))),"",INDEX(Data!$F$155:$K$156,VLOOKUP(AA30,Data!$C$79:$D$81,2),VLOOKUP(AB30,Data!$G$79:$H$85,2,0))) -> 0.003 | AD30: =IF(ISBLANK(Planning!J106),"",Planning!J106) -> None in place | AE30: =IF(ISERROR(VLOOKUP(AD30,Data!$J$79:$K$81,2,0)),"",VLOOKUP(AD30,Data!$J$79:$K$81,2,0)) -> No | AF30: =IF(ISERROR(VLOOKUP(C30,INDIRECT(ADDRESS(Data!$AG$67,Data!$AG$65,1,1,"Data")):INDIRECT(ADDRESS(Data!$AG$68,Data!$AG$66,1,1,"Data")),Data!$AG$84,0)),"",VLOOKUP(C30,INDIRECT(ADDRESS(Data!$AG$67,Data!$AG$65,1,1,"Data")):INDIRECT(ADDRESS(Data!$AG$68,Data!$AG$66,1,1,"Data")),Data!$AG$84,0)) -> A | AG30: =IF(LEN(B30)=0,"",IF(LEN(Data!$AG$70)=0,"",Data!$AG$70)) -> 120 | AH30: =IF(LEN(AE30)=0,"",IF(AE30="Yes",INDIRECT(ADDRESS((ROW(Data!$M$153)+MATCH(AG30,Data!$M$154:$M$293,0)+MATCH(X30,Data!$P$154:$P$174,1)-1),(COLUMN(Data!$Q$153)+MATCH(AF30,Data!$R$153:$U$153,0)),1,1,"Data"),TRUE),1)) -> 1 | AI30: =IF(ISERROR(T30*W30*Z30*AC30*AH30),"",T30*W30*Z30*AC30*AH30) -> 0.274302 | AJ30: =IF(ISBLANK(Planning!M106),"",Planning!M106) -> 0.274302 | AK30: =AJ30 -> 0.274302 | AL30: =IF(ISERROR(VLOOKUP(AK30,Data!$J$105:$K$109,2,1)),"",VLOOKUP(AK30,Data!$J$105:$K$109,2,1)) -> 0 | AM30: =IF(ISBLANK(Planning!B160),"",Planning!B160) -> Continuously Grazed <0.75 An.Units | AN30: =IF(ISERROR(INDEX(Data!$D$91:$G$94,MATCH(AM30,Data!$C$91:$C$94,1),MATCH(AF30,Data!$D$90:$G$90,1))),"",INDEX(Data!$D$91:$G$94,MATCH(AM30,Data!$C$91:$C$94,1),MATCH(AF30,Data!$D$90:$G$90,1))) -> 49 | AO30: =IF(ISERROR(VLOOKUP(X30,Data!$D$184:$K$200,HLOOKUP(AN30,Data!$E$182:$K$183,2))),"",VLOOKUP(X30,Data!$D$184:$K$200,HLOOKUP(AN30,Data!$E$182:$K$183,2))) -> N | AP30: =IF(ISERROR(VLOOKUP(AO30,Data!$C$105:$D$110,2)),"",VLOOKUP(AO30,Data!$C$105:$D$110,2)) -> 0.1 | AQ30: =IF(ISBLANK(Planning!M54),"",Planning!M54) -> None | AR30: =IF(ISERROR(VLOOKUP(AQ30,Data!$F$105:$G$108,2,1)),"",VLOOKUP(AQ30,Data!$F$105:$G$108,2,1)) -> 0 | AS30: =IF(ISBLANK(Planning!F160),"",Planning!F160) -> Surface Applied | AT30: =IF(ISERROR(VLOOKUP(AS30,Data!$C$99:$D$101,2)),"",VLOOKUP(AS30,Data!$C$99:$D$101,2)) -> 0.2 | AU30: =IF(ISBLANK(Planning!H160),"",Planning!H160) -> March-June | AV30: =IF(ISERROR(VLOOKUP(AU30,Data!$G$99:$H$101,2)),"",VLOOKUP(AU30,Data!$G$99:$H$101,2)) -> 0.25 | AW30: =IF(ISERROR(AL30+AP30+AR30+AT30+AV30),"",AL30+AP30+AR30+AT30+AV30) -> 0.55 | AX30: =IF(LEN(B30)=0,"",COUNTIF(B30:AH30,"")+COUNTIF(AK30:AW30,"")+COUNTIF(B30:AW30,NA())) -> 0 | AY30: =IF(AX30=0,ROUND((S30*AW30)/1.8*100,0),"") -> 66 | AZ30: =IF(AX30=0,VLOOKUP(AY30,Data!$C$116:$D$119,2),"") -> Medium | BA30: =IF(LEN(B30)=0,"",IF(ISBLANK(Planning!B213),0,Planning!B213)) -> 0 | BB30: =IF(LEN(B30)=0,"",IF(ISBLANK(Planning!C213),0,Planning!C213)) -> 0 | BC30: =IF(LEN(B30)=0,"",IF(ISBLANK(Planning!D213),0,Planning!D213)) -> 0 | BD30: =IF(LEN(B30)=0,"",IF(ISBLANK(Planning!E213),0,Planning!E213)) -> 0 | BE30: =IF(LEN(B30)=0,"",IF(ISBLANK(Planning!F213),0,Planning!F213)) -> 0 | BF30: =IF(LEN(B30)=0,"",IF(ISBLANK(Planning!G213),0,Planning!G213)) -> 0 | BG30: =IF(LEN(B30)=0,"",IF(ISBLANK(Planning!H213),0,Planning!H213)) -> 0 | BH30: =IF(LEN(B30)=0,"",IF(ISBLANK(Planning!I213),0,Planning!I213)) -> 0 | BI30: =IF(LEN(B30)=0,"",IF(ISBLANK(Planning!J213),0,Planning!J213)) -> 0 | BJ30: =IF(LEN(B30)=0,"",(1-BA30)*(1-BB30)*(1-BC30)*(1-BD30)*(1-BE30)*(1-BF30)*(1-BG30)*(1-BH30)*(1-BI30)) -> 1 | BK30: =IF(AX30=0,ROUND((S30*AW30*BJ30)/1.8*100,0),"") -> 66 | BL30: =IF(AX30=0,VLOOKUP(BK30,Data!$C$116:$D$119,2),"") -> Medium
B31: =IF(ISBLANK(Planning!A161),"",Planning!A161) ->  | C31: =IF(ISBLANK(Planning!D55),"",Planning!D55) ->  | D31: =IF(LEN(C31)=0,"",IF(ISNA(VLOOKUP(C31,INDIRECT(ADDRESS(Data!$AG$67,Data!$AG$65,1,1,"Data")):INDIRECT(ADDRESS(Data!$AG$68,Data!$AG$66,1,1,"Data")),Data!$AG$74,0)),$B$10,VLOOKUP(Planning!D55,INDIRECT(ADDRESS(Data!$AG$67,Data!$AG$65,1,1,"Data")):INDIRECT(ADDRESS(Data!$AG$68,Data!$AG$66,1,1,"Data")),Data!$AG$74,0))) ->  | E31: =IF(ISBLANK(Planning!I161),"",Planning!I161) ->  | F31: =IF(ISBLANK(Planning!I161),"",INDEX(Planning!$A$21:$C$25,MATCH(E31,Planning!$A$21:$A$25,0),2)) ->  | G31: =IF(ISNA(INDEX(Planning!$A$21:$N$25,MATCH(E31,Planning!$A$21:$A$25,0),12)),"",INDEX(Planning!$A$21:$N$25,MATCH(E31,Planning!$A$21:$A$25,0),12)) ->  | H31: =IF(ISNA(INDEX(Planning!$A$21:$N$25,MATCH(E31,Planning!$A$21:$A$25,0),8)/2.29),"",INDEX(Planning!$A$21:$N$25,MATCH(E31,Planning!$A$21:$A$25,0),8)/2.29) ->  | I31: =IF(ISBLANK(Planning!J161),"",Planning!J161) ->  | L31: =IF(ISNA(INDEX(Planning!$A$21:$N$25,MATCH(E31,Planning!$A$21:$A$25,0),14)),"",INDEX(Planning!$A$21:$N$25,MATCH(E31,Planning!$A$21:$A$25,0),14)) ->  | M31: =IF(ISERROR(VLOOKUP(L31,Data!$Q$65:$R$66,2,1)),"",VLOOKUP(L31,Data!$Q$65:$R$66,2,1)) ->  | P31: =IF(LEN(B31)=0,"",Planning!B55*(1.3333)) ->  | T31: =IF(LEN(B31)=0,"",IF(ISBLANK(Data!$AG$69),"",Data!$AG$69)) ->  | U31: =IF(ISERROR(VLOOKUP(C31,INDIRECT(ADDRESS(Data!$AG$67,Data!$AG$65,1,1,"Data")):INDIRECT(ADDRESS(Data!$AG$68,Data!$AG$66,1,1,"Data")),Data!$AG$81,0)),"",VLOOKUP(C31,INDIRECT(ADDRESS(Data!$AG$67,Data!$AG$65,1,1,"Data")):INDIRECT(ADDRESS(Data!$AG$68,Data!$AG$66,1,1,"Data")),Data!$AG$81,0)) ->  | V31: =IF(LEN(B31)=0,"",IF(LEN(Data!$AG$71)=0,"",IF(Data!$AG$71=1,"Yes", "No"))) ->  | W31: =IF(ISERROR(IF(V31="NO",U31,VLOOKUP(U31,Data!$AA$72:$AB$85,2,0))),"",IF(V31="NO",U31,VLOOKUP(U31,Data!$AA$72:$AB$85,2,0))) ->  | X31: =IF(ISBLANK(Planning!H55),"",Planning!H55) ->  | Y31: =IF(ISBLANK(Planning!L55),"",Planning!L55) ->  | Z31: =IF(ISERROR(INDEX(Data!$D$128:$T$146,MATCH(X31,Data!$C$128:$C$146,1),MATCH(Y31,Data!$D$127:$T$127,1))),"",INDEX(Data!$D$128:$T$146,MATCH(X31,Data!$C$128:$C$146,1),MATCH(Y31,Data!$D$127:$T$127,1))) ->  | AA31: =IF(ISBLANK(Planning!F107),"",Planning!F107) ->  | AB31: =IF(ISBLANK(Planning!H107),"",Planning!H107) ->  | AC31: =IF(ISERROR(INDEX(Data!$F$155:$K$156,VLOOKUP(AA31,Data!$C$79:$D$81,2),VLOOKUP(AB31,Data!$G$79:$H$85,2,0))),"",INDEX(Data!$F$155:$K$156,VLOOKUP(AA31,Data!$C$79:$D$81,2),VLOOKUP(AB31,Data!$G$79:$H$85,2,0))) ->  | AD31: =IF(ISBLANK(Planning!J107),"",Planning!J107) ->  | AE31: =IF(ISERROR(VLOOKUP(AD31,Data!$J$79:$K$81,2,0)),"",VLOOKUP(AD31,Data!$J$79:$K$81,2,0)) ->  | AF31: =IF(ISERROR(VLOOKUP(C31,INDIRECT(ADDRESS(Data!$AG$67,Data!$AG$65,1,1,"Data")):INDIRECT(ADDRESS(Data!$AG$68,Data!$AG$66,1,1,"Data")),Data!$AG$84,0)),"",VLOOKUP(C31,INDIRECT(ADDRESS(Data!$AG$67,Data!$AG$65,1,1,"Data")):INDIRECT(ADDRESS(Data!$AG$68,Data!$AG$66,1,1,"Data")),Data!$AG$84,0)) ->  | AG31: =IF(LEN(B31)=0,"",IF(LEN(Data!$AG$70)=0,"",Data!$AG$70)) ->  | AH31: =IF(LEN(AE31)=0,"",IF(AE31="Yes",INDIRECT(ADDRESS((ROW(Data!$M$153)+MATCH(AG31,Data!$M$154:$M$293,0)+MATCH(X31,Data!$P$154:$P$174,1)-1),(COLUMN(Data!$Q$153)+MATCH(AF31,Data!$R$153:$U$153,0)),1,1,"Data"),TRUE),1)) ->  | AJ31: =IF(ISBLANK(Planning!M107),"",Planning!M107) ->  | AL31: =IF(ISERROR(VLOOKUP(AK31,Data!$J$105:$K$109,2,1)),"",VLOOKUP(AK31,Data!$J$105:$K$109,2,1)) ->  | AM31: =IF(ISBLANK(Planning!B161),"",Planning!B161) ->  | AN31: =IF(ISERROR(INDEX(Data!$D$91:$G$94,MATCH(AM31,Data!$C$91:$C$94,1),MATCH(AF31,Data!$D$90:$G$90,1))),"",INDEX(Data!$D$91:$G$94,MATCH(AM31,Data!$C$91:$C$94,1),MATCH(AF31,Data!$D$90:$G$90,1))) ->  | AO31: =IF(ISERROR(VLOOKUP(X31,Data!$D$184:$K$200,HLOOKUP(AN31,Data!$E$182:$K$183,2))),"",VLOOKUP(X31,Data!$D$184:$K$200,HLOOKUP(AN31,Data!$E$182:$K$183,2))) ->  | AP31: =IF(ISERROR(VLOOKUP(AO31,Data!$C$105:$D$110,2)),"",VLOOKUP(AO31,Data!$C$105:$D$110,2)) ->  | AQ31: =IF(ISBLANK(Planning!M55),"",Planning!M55) ->  | AR31: =IF(ISERROR(VLOOKUP(AQ31,Data!$F$105:$G$108,2,1)),"",VLOOKUP(AQ31,Data!$F$105:$G$108,2,1)) ->  | AS31: =IF(ISBLANK(Planning!F161),"",Planning!F161) ->  | AT31: =IF(ISERROR(VLOOKUP(AS31,Data!$C$99:$D$101,2)),"",VLOOKUP(AS31,Data!$C$99:$D$101,2)) ->  | AU31: =IF(ISBLANK(Planning!H161),"",Planning!H161) ->  | AV31: =IF(ISERROR(VLOOKUP(AU31,Data!$G$99:$H$101,2)),"",VLOOKUP(AU31,Data!$G$99:$H$101,2)) ->  | AZ31: =IF(AX31=0,VLOOKUP(AY31,Data!$C$116:$D$119,2),"") ->  | BA31: =IF(LEN(B31)=0,"",IF(ISBLANK(Planning!B214),0,Planning!B214)) ->  | BB31: =IF(LEN(B31)=0,"",IF(ISBLANK(Planning!C214),0,Planning!C214)) ->  | BC31: =IF(LEN(B31)=0,"",IF(ISBLANK(Planning!D214),0,Planning!D214)) ->  | BD31: =IF(LEN(B31)=0,"",IF(ISBLANK(Planning!E214),0,Planning!E214)) ->  | BE31: =IF(LEN(B31)=0,"",IF(ISBLANK(Planning!F214),0,Planning!F214)) ->  | BF31: =IF(LEN(B31)=0,"",IF(ISBLANK(Planning!G214),0,Planning!G214)) ->  | BG31: =IF(LEN(B31)=0,"",IF(ISBLANK(Planning!H214),0,Planning!H214)) ->  | BH31: =IF(LEN(B31)=0,"",IF(ISBLANK(Planning!I214),0,Planning!I214)) ->  | BI31: =IF(LEN(B31)=0,"",IF(ISBLANK(Planning!J214),0,Planning!J214)) ->  | BL31: =IF(AX31=0,VLOOKUP(BK31,Data!$C$116:$D$119,2),"") -> 
B32: =IF(ISBLANK(Planning!A162),"",Planning!A162) ->  | C32: =IF(ISBLANK(Planning!D56),"",Planning!D56) ->  | D32: =IF(LEN(C32)=0,"",IF(ISNA(VLOOKUP(C32,INDIRECT(ADDRESS(Data!$AG$67,Data!$AG$65,1,1,"Data")):INDIRECT(ADDRESS(Data!$AG$68,Data!$AG$66,1,1,"Data")),Data!$AG$74,0)),$B$10,VLOOKUP(Planning!D56,INDIRECT(ADDRESS(Data!$AG$67,Data!$AG$65,1,1,"Data")):INDIRECT(ADDRESS(Data!$AG$68,Data!$AG$66,1,1,"Data")),Data!$AG$74,0))) ->  | E32: =IF(ISBLANK(Planning!I162),"",Planning!I162) ->  | F32: =IF(ISBLANK(Planning!I162),"",INDEX(Planning!$A$21:$C$25,MATCH(E32,Planning!$A$21:$A$25,0),2)) ->  | G32: =IF(ISNA(INDEX(Planning!$A$21:$N$25,MATCH(E32,Planning!$A$21:$A$25,0),12)),"",INDEX(Planning!$A$21:$N$25,MATCH(E32,Planning!$A$21:$A$25,0),12)) ->  | H32: =IF(ISNA(INDEX(Planning!$A$21:$N$25,MATCH(E32,Planning!$A$21:$A$25,0),8)/2.29),"",INDEX(Planning!$A$21:$N$25,MATCH(E32,Planning!$A$21:$A$25,0),8)/2.29) ->  | I32: =IF(ISBLANK(Planning!J162),"",Planning!J162) ->  | L32: =IF(ISNA(INDEX(Planning!$A$21:$N$25,MATCH(E32,Planning!$A$21:$A$25,0),14)),"",INDEX(Planning!$A$21:$N$25,MATCH(E32,Planning!$A$21:$A$25,0),14)) ->  | M32: =IF(ISERROR(VLOOKUP(L32,Data!$Q$65:$R$66,2,1)),"",VLOOKUP(L32,Data!$Q$65:$R$66,2,1)) ->  | P32: =IF(LEN(B32)=0,"",Planning!B56*(1.3333)) ->  | T32: =IF(LEN(B32)=0,"",IF(ISBLANK(Data!$AG$69),"",Data!$AG$69)) ->  | U32: =IF(ISERROR(VLOOKUP(C32,INDIRECT(ADDRESS(Data!$AG$67,Data!$AG$65,1,1,"Data")):INDIRECT(ADDRESS(Data!$AG$68,Data!$AG$66,1,1,"Data")),Data!$AG$81,0)),"",VLOOKUP(C32,INDIRECT(ADDRESS(Data!$AG$67,Data!$AG$65,1,1,"Data")):INDIRECT(ADDRESS(Data!$AG$68,Data!$AG$66,1,1,"Data")),Data!$AG$81,0)) ->  | V32: =IF(LEN(B32)=0,"",IF(LEN(Data!$AG$71)=0,"",IF(Data!$AG$71=1,"Yes", "No"))) ->  | W32: =IF(ISERROR(IF(V32="NO",U32,VLOOKUP(U32,Data!$AA$72:$AB$85,2,0))),"",IF(V32="NO",U32,VLOOKUP(U32,Data!$AA$72:$AB$85,2,0))) ->  | X32: =IF(ISBLANK(Planning!H56),"",Planning!H56) ->  | Y32: =IF(ISBLANK(Planning!L56),"",Planning!L56) ->  | Z32: =IF(ISERROR(INDEX(Data!$D$128:$T$146,MATCH(X32,Data!$C$128:$C$146,1),MATCH(Y32,Data!$D$127:$T$127,1))),"",INDEX(Data!$D$128:$T$146,MATCH(X32,Data!$C$128:$C$146,1),MATCH(Y32,Data!$D$127:$T$127,1))) ->  | AA32: =IF(ISBLANK(Planning!F108),"",Planning!F108) ->  | AB32: =IF(ISBLANK(Planning!H108),"",Planning!H108) ->  | AC32: =IF(ISERROR(INDEX(Data!$F$155:$K$156,VLOOKUP(AA32,Data!$C$79:$D$81,2),VLOOKUP(AB32,Data!$G$79:$H$85,2,0))),"",INDEX(Data!$F$155:$K$156,VLOOKUP(AA32,Data!$C$79:$D$81,2),VLOOKUP(AB32,Data!$G$79:$H$85,2,0))) ->  | AD32: =IF(ISBLANK(Planning!J108),"",Planning!J108) ->  | AE32: =IF(ISERROR(VLOOKUP(AD32,Data!$J$79:$K$81,2,0)),"",VLOOKUP(AD32,Data!$J$79:$K$81,2,0)) ->  | AF32: =IF(ISERROR(VLOOKUP(C32,INDIRECT(ADDRESS(Data!$AG$67,Data!$AG$65,1,1,"Data")):INDIRECT(ADDRESS(Data!$AG$68,Data!$AG$66,1,1,"Data")),Data!$AG$84,0)),"",VLOOKUP(C32,INDIRECT(ADDRESS(Data!$AG$67,Data!$AG$65,1,1,"Data")):INDIRECT(ADDRESS(Data!$AG$68,Data!$AG$66,1,1,"Data")),Data!$AG$84,0)) ->  | AG32: =IF(LEN(B32)=0,"",IF(LEN(Data!$AG$70)=0,"",Data!$AG$70)) ->  | AH32: =IF(LEN(AE32)=0,"",IF(AE32="Yes",INDIRECT(ADDRESS((ROW(Data!$M$153)+MATCH(AG32,Data!$M$154:$M$293,0)+MATCH(X32,Data!$P$154:$P$174,1)-1),(COLUMN(Data!$Q$153)+MATCH(AF32,Data!$R$153:$U$153,0)),1,1,"Data"),TRUE),1)) ->  | AJ32: =IF(ISBLANK(Planning!M108),"",Planning!M108) ->  | AL32: =IF(ISERROR(VLOOKUP(AK32,Data!$J$105:$K$109,2,1)),"",VLOOKUP(AK32,Data!$J$105:$K$109,2,1)) ->  | AM32: =IF(ISBLANK(Planning!B162),"",Planning!B162) ->  | AN32: =IF(ISERROR(INDEX(Data!$D$91:$G$94,MATCH(AM32,Data!$C$91:$C$94,1),MATCH(AF32,Data!$D$90:$G$90,1))),"",INDEX(Data!$D$91:$G$94,MATCH(AM32,Data!$C$91:$C$94,1),MATCH(AF32,Data!$D$90:$G$90,1))) ->  | AO32: =IF(ISERROR(VLOOKUP(X32,Data!$D$184:$K$200,HLOOKUP(AN32,Data!$E$182:$K$183,2))),"",VLOOKUP(X32,Data!$D$184:$K$200,HLOOKUP(AN32,Data!$E$182:$K$183,2))) ->  | AP32: =IF(ISERROR(VLOOKUP(AO32,Data!$C$105:$D$110,2)),"",VLOOKUP(AO32,Data!$C$105:$D$110,2)) ->  | AQ32: =IF(ISBLANK(Planning!M56),"",Planning!M56) ->  | AR32: =IF(ISERROR(VLOOKUP(AQ32,Data!$F$105:$G$108,2,1)),"",VLOOKUP(AQ32,Data!$F$105:$G$108,2,1)) ->  | AS32: =IF(ISBLANK(Planning!F162),"",Planning!F162) ->  | AT32: =IF(ISERROR(VLOOKUP(AS32,Data!$C$99:$D$101,2)),"",VLOOKUP(AS32,Data!$C$99:$D$101,2)) ->  | AU32: =IF(ISBLANK(Planning!H162),"",Planning!H162) ->  | AV32: =IF(ISERROR(VLOOKUP(AU32,Data!$G$99:$H$101,2)),"",VLOOKUP(AU32,Data!$G$99:$H$101,2)) ->  | AZ32: =IF(AX32=0,VLOOKUP(AY32,Data!$C$116:$D$119,2),"") ->  | BA32: =IF(LEN(B32)=0,"",IF(ISBLANK(Planning!B215),0,Planning!B215)) ->  | BB32: =IF(LEN(B32)=0,"",IF(ISBLANK(Planning!C215),0,Planning!C215)) ->  | BC32: =IF(LEN(B32)=0,"",IF(ISBLANK(Planning!D215),0,Planning!D215)) ->  | BD32: =IF(LEN(B32)=0,"",IF(ISBLANK(Planning!E215),0,Planning!E215)) ->  | BE32: =IF(LEN(B32)=0,"",IF(ISBLANK(Planning!F215),0,Planning!F215)) ->  | BF32: =IF(LEN(B32)=0,"",IF(ISBLANK(Planning!G215),0,Planning!G215)) ->  | BG32: =IF(LEN(B32)=0,"",IF(ISBLANK(Planning!H215),0,Planning!H215)) ->  | BH32: =IF(LEN(B32)=0,"",IF(ISBLANK(Planning!I215),0,Planning!I215)) ->  | BI32: =IF(LEN(B32)=0,"",IF(ISBLANK(Planning!J215),0,Planning!J215)) ->  | BL32: =IF(AX32=0,VLOOKUP(BK32,Data!$C$116:$D$119,2),"") -> 
B33: =IF(ISBLANK(Planning!A163),"",Planning!A163) ->  | C33: =IF(ISBLANK(Planning!D57),"",Planning!D57) ->  | D33: =IF(LEN(C33)=0,"",IF(ISNA(VLOOKUP(C33,INDIRECT(ADDRESS(Data!$AG$67,Data!$AG$65,1,1,"Data")):INDIRECT(ADDRESS(Data!$AG$68,Data!$AG$66,1,1,"Data")),Data!$AG$74,0)),$B$10,VLOOKUP(Planning!D57,INDIRECT(ADDRESS(Data!$AG$67,Data!$AG$65,1,1,"Data")):INDIRECT(ADDRESS(Data!$AG$68,Data!$AG$66,1,1,"Data")),Data!$AG$74,0))) ->  | E33: =IF(ISBLANK(Planning!I163),"",Planning!I163) ->  | F33: =IF(ISBLANK(Planning!I163),"",INDEX(Planning!$A$21:$C$25,MATCH(E33,Planning!$A$21:$A$25,0),2)) ->  | G33: =IF(ISNA(INDEX(Planning!$A$21:$N$25,MATCH(E33,Planning!$A$21:$A$25,0),12)),"",INDEX(Planning!$A$21:$N$25,MATCH(E33,Planning!$A$21:$A$25,0),12)) ->  | H33: =IF(ISNA(INDEX(Planning!$A$21:$N$25,MATCH(E33,Planning!$A$21:$A$25,0),8)/2.29),"",INDEX(Planning!$A$21:$N$25,MATCH(E33,Planning!$A$21:$A$25,0),8)/2.29) ->  | I33: =IF(ISBLANK(Planning!J163),"",Planning!J163) ->  | L33: =IF(ISNA(INDEX(Planning!$A$21:$N$25,MATCH(E33,Planning!$A$21:$A$25,0),14)),"",INDEX(Planning!$A$21:$N$25,MATCH(E33,Planning!$A$21:$A$25,0),14)) ->  | M33: =IF(ISERROR(VLOOKUP(L33,Data!$Q$65:$R$66,2,1)),"",VLOOKUP(L33,Data!$Q$65:$R$66,2,1)) ->  | P33: =IF(LEN(B33)=0,"",Planning!B57*(1.3333)) ->  | T33: =IF(LEN(B33)=0,"",IF(ISBLANK(Data!$AG$69),"",Data!$AG$69)) ->  | U33: =IF(ISERROR(VLOOKUP(C33,INDIRECT(ADDRESS(Data!$AG$67,Data!$AG$65,1,1,"Data")):INDIRECT(ADDRESS(Data!$AG$68,Data!$AG$66,1,1,"Data")),Data!$AG$81,0)),"",VLOOKUP(C33,INDIRECT(ADDRESS(Data!$AG$67,Data!$AG$65,1,1,"Data")):INDIRECT(ADDRESS(Data!$AG$68,Data!$AG$66,1,1,"Data")),Data!$AG$81,0)) ->  | V33: =IF(LEN(B33)=0,"",IF(LEN(Data!$AG$71)=0,"",IF(Data!$AG$71=1,"Yes", "No"))) ->  | W33: =IF(ISERROR(IF(V33="NO",U33,VLOOKUP(U33,Data!$AA$72:$AB$85,2,0))),"",IF(V33="NO",U33,VLOOKUP(U33,Data!$AA$72:$AB$85,2,0))) ->  | X33: =IF(ISBLANK(Planning!H57),"",Planning!H57) ->  | Y33: =IF(ISBLANK(Planning!L57),"",Planning!L57) ->  | Z33: =IF(ISERROR(INDEX(Data!$D$128:$T$146,MATCH(X33,Data!$C$128:$C$146,1),MATCH(Y33,Data!$D$127:$T$127,1))),"",INDEX(Data!$D$128:$T$146,MATCH(X33,Data!$C$128:$C$146,1),MATCH(Y33,Data!$D$127:$T$127,1))) ->  | AA33: =IF(ISBLANK(Planning!F109),"",Planning!F109) ->  | AB33: =IF(ISBLANK(Planning!H109),"",Planning!H109) ->  | AC33: =IF(ISERROR(INDEX(Data!$F$155:$K$156,VLOOKUP(AA33,Data!$C$79:$D$81,2),VLOOKUP(AB33,Data!$G$79:$H$85,2,0))),"",INDEX(Data!$F$155:$K$156,VLOOKUP(AA33,Data!$C$79:$D$81,2),VLOOKUP(AB33,Data!$G$79:$H$85,2,0))) ->  | AD33: =IF(ISBLANK(Planning!J109),"",Planning!J109) ->  | AE33: =IF(ISERROR(VLOOKUP(AD33,Data!$J$79:$K$81,2,0)),"",VLOOKUP(AD33,Data!$J$79:$K$81,2,0)) ->  | AF33: =IF(ISERROR(VLOOKUP(C33,INDIRECT(ADDRESS(Data!$AG$67,Data!$AG$65,1,1,"Data")):INDIRECT(ADDRESS(Data!$AG$68,Data!$AG$66,1,1,"Data")),Data!$AG$84,0)),"",VLOOKUP(C33,INDIRECT(ADDRESS(Data!$AG$67,Data!$AG$65,1,1,"Data")):INDIRECT(ADDRESS(Data!$AG$68,Data!$AG$66,1,1,"Data")),Data!$AG$84,0)) ->  | AG33: =IF(LEN(B33)=0,"",IF(LEN(Data!$AG$70)=0,"",Data!$AG$70)) ->  | AH33: =IF(LEN(AE33)=0,"",IF(AE33="Yes",INDIRECT(ADDRESS((ROW(Data!$M$153)+MATCH(AG33,Data!$M$154:$M$293,0)+MATCH(X33,Data!$P$154:$P$174,1)-1),(COLUMN(Data!$Q$153)+MATCH(AF33,Data!$R$153:$U$153,0)),1,1,"Data"),TRUE),1)) ->  | AJ33: =IF(ISBLANK(Planning!M109),"",Planning!M109) ->  | AL33: =IF(ISERROR(VLOOKUP(AK33,Data!$J$105:$K$109,2,1)),"",VLOOKUP(AK33,Data!$J$105:$K$109,2,1)) ->  | AM33: =IF(ISBLANK(Planning!B163),"",Planning!B163) ->  | AN33: =IF(ISERROR(INDEX(Data!$D$91:$G$94,MATCH(AM33,Data!$C$91:$C$94,1),MATCH(AF33,Data!$D$90:$G$90,1))),"",INDEX(Data!$D$91:$G$94,MATCH(AM33,Data!$C$91:$C$94,1),MATCH(AF33,Data!$D$90:$G$90,1))) ->  | AO33: =IF(ISERROR(VLOOKUP(X33,Data!$D$184:$K$200,HLOOKUP(AN33,Data!$E$182:$K$183,2))),"",VLOOKUP(X33,Data!$D$184:$K$200,HLOOKUP(AN33,Data!$E$182:$K$183,2))) ->  | AP33: =IF(ISERROR(VLOOKUP(AO33,Data!$C$105:$D$110,2)),"",VLOOKUP(AO33,Data!$C$105:$D$110,2)) ->  | AQ33: =IF(ISBLANK(Planning!M57),"",Planning!M57) ->  | AR33: =IF(ISERROR(VLOOKUP(AQ33,Data!$F$105:$G$108,2,1)),"",VLOOKUP(AQ33,Data!$F$105:$G$108,2,1)) ->  | AS33: =IF(ISBLANK(Planning!F163),"",Planning!F163) ->  | AT33: =IF(ISERROR(VLOOKUP(AS33,Data!$C$99:$D$101,2)),"",VLOOKUP(AS33,Data!$C$99:$D$101,2)) ->  | AU33: =IF(ISBLANK(Planning!H163),"",Planning!H163) ->  | AV33: =IF(ISERROR(VLOOKUP(AU33,Data!$G$99:$H$101,2)),"",VLOOKUP(AU33,Data!$G$99:$H$101,2)) ->  | AZ33: =IF(AX33=0,VLOOKUP(AY33,Data!$C$116:$D$119,2),"") ->  | BA33: =IF(LEN(B33)=0,"",IF(ISBLANK(Planning!B216),0,Planning!B216)) ->  | BB33: =IF(LEN(B33)=0,"",IF(ISBLANK(Planning!C216),0,Planning!C216)) ->  | BC33: =IF(LEN(B33)=0,"",IF(ISBLANK(Planning!D216),0,Planning!D216)) ->  | BD33: =IF(LEN(B33)=0,"",IF(ISBLANK(Planning!E216),0,Planning!E216)) ->  | BE33: =IF(LEN(B33)=0,"",IF(ISBLANK(Planning!F216),0,Planning!F216)) ->  | BF33: =IF(LEN(B33)=0,"",IF(ISBLANK(Planning!G216),0,Planning!G216)) ->  | BG33: =IF(LEN(B33)=0,"",IF(ISBLANK(Planning!H216),0,Planning!H216)) ->  | BH33: =IF(LEN(B33)=0,"",IF(ISBLANK(Planning!I216),0,Planning!I216)) ->  | BI33: =IF(LEN(B33)=0,"",IF(ISBLANK(Planning!J216),0,Planning!J216)) ->  | BL33: =IF(AX33=0,VLOOKUP(BK33,Data!$C$116:$D$119,2),"") -> 
B34: =IF(ISBLANK(Planning!A164),"",Planning!A164) ->  | C34: =IF(ISBLANK(Planning!D58),"",Planning!D58) ->  | D34: =IF(LEN(C34)=0,"",IF(ISNA(VLOOKUP(C34,INDIRECT(ADDRESS(Data!$AG$67,Data!$AG$65,1,1,"Data")):INDIRECT(ADDRESS(Data!$AG$68,Data!$AG$66,1,1,"Data")),Data!$AG$74,0)),$B$10,VLOOKUP(Planning!D58,INDIRECT(ADDRESS(Data!$AG$67,Data!$AG$65,1,1,"Data")):INDIRECT(ADDRESS(Data!$AG$68,Data!$AG$66,1,1,"Data")),Data!$AG$74,0))) ->  | E34: =IF(ISBLANK(Planning!I164),"",Planning!I164) ->  | F34: =IF(ISBLANK(Planning!I164),"",INDEX(Planning!$A$21:$C$25,MATCH(E34,Planning!$A$21:$A$25,0),2)) ->  | G34: =IF(ISNA(INDEX(Planning!$A$21:$N$25,MATCH(E34,Planning!$A$21:$A$25,0),12)),"",INDEX(Planning!$A$21:$N$25,MATCH(E34,Planning!$A$21:$A$25,0),12)) ->  | H34: =IF(ISNA(INDEX(Planning!$A$21:$N$25,MATCH(E34,Planning!$A$21:$A$25,0),8)/2.29),"",INDEX(Planning!$A$21:$N$25,MATCH(E34,Planning!$A$21:$A$25,0),8)/2.29) ->  | I34: =IF(ISBLANK(Planning!J164),"",Planning!J164) ->  | L34: =IF(ISNA(INDEX(Planning!$A$21:$N$25,MATCH(E34,Planning!$A$21:$A$25,0),14)),"",INDEX(Planning!$A$21:$N$25,MATCH(E34,Planning!$A$21:$A$25,0),14)) ->  | M34: =IF(ISERROR(VLOOKUP(L34,Data!$Q$65:$R$66,2,1)),"",VLOOKUP(L34,Data!$Q$65:$R$66,2,1)) ->  | P34: =IF(LEN(B34)=0,"",Planning!B58*(1.3333)) ->  | T34: =IF(LEN(B34)=0,"",IF(ISBLANK(Data!$AG$69),"",Data!$AG$69)) ->  | U34: =IF(ISERROR(VLOOKUP(C34,INDIRECT(ADDRESS(Data!$AG$67,Data!$AG$65,1,1,"Data")):INDIRECT(ADDRESS(Data!$AG$68,Data!$AG$66,1,1,"Data")),Data!$AG$81,0)),"",VLOOKUP(C34,INDIRECT(ADDRESS(Data!$AG$67,Data!$AG$65,1,1,"Data")):INDIRECT(ADDRESS(Data!$AG$68,Data!$AG$66,1,1,"Data")),Data!$AG$81,0)) ->  | V34: =IF(LEN(B34)=0,"",IF(LEN(Data!$AG$71)=0,"",IF(Data!$AG$71=1,"Yes", "No"))) ->  | W34: =IF(ISERROR(IF(V34="NO",U34,VLOOKUP(U34,Data!$AA$72:$AB$85,2,0))),"",IF(V34="NO",U34,VLOOKUP(U34,Data!$AA$72:$AB$85,2,0))) ->  | X34: =IF(ISBLANK(Planning!H58),"",Planning!H58) ->  | Y34: =IF(ISBLANK(Planning!L58),"",Planning!L58) ->  | Z34: =IF(ISERROR(INDEX(Data!$D$128:$T$146,MATCH(X34,Data!$C$128:$C$146,1),MATCH(Y34,Data!$D$127:$T$127,1))),"",INDEX(Data!$D$128:$T$146,MATCH(X34,Data!$C$128:$C$146,1),MATCH(Y34,Data!$D$127:$T$127,1))) ->  | AA34: =IF(ISBLANK(Planning!F110),"",Planning!F110) ->  | AB34: =IF(ISBLANK(Planning!H110),"",Planning!H110) ->  | AC34: =IF(ISERROR(INDEX(Data!$F$155:$K$156,VLOOKUP(AA34,Data!$C$79:$D$81,2),VLOOKUP(AB34,Data!$G$79:$H$85,2,0))),"",INDEX(Data!$F$155:$K$156,VLOOKUP(AA34,Data!$C$79:$D$81,2),VLOOKUP(AB34,Data!$G$79:$H$85,2,0))) ->  | AD34: =IF(ISBLANK(Planning!J110),"",Planning!J110) ->  | AE34: =IF(ISERROR(VLOOKUP(AD34,Data!$J$79:$K$81,2,0)),"",VLOOKUP(AD34,Data!$J$79:$K$81,2,0)) ->  | AF34: =IF(ISERROR(VLOOKUP(C34,INDIRECT(ADDRESS(Data!$AG$67,Data!$AG$65,1,1,"Data")):INDIRECT(ADDRESS(Data!$AG$68,Data!$AG$66,1,1,"Data")),Data!$AG$84,0)),"",VLOOKUP(C34,INDIRECT(ADDRESS(Data!$AG$67,Data!$AG$65,1,1,"Data")):INDIRECT(ADDRESS(Data!$AG$68,Data!$AG$66,1,1,"Data")),Data!$AG$84,0)) ->  | AG34: =IF(LEN(B34)=0,"",IF(LEN(Data!$AG$70)=0,"",Data!$AG$70)) ->  | AH34: =IF(LEN(AE34)=0,"",IF(AE34="Yes",INDIRECT(ADDRESS((ROW(Data!$M$153)+MATCH(AG34,Data!$M$154:$M$293,0)+MATCH(X34,Data!$P$154:$P$174,1)-1),(COLUMN(Data!$Q$153)+MATCH(AF34,Data!$R$153:$U$153,0)),1,1,"Data"),TRUE),1)) ->  | AJ34: =IF(ISBLANK(Planning!M110),"",Planning!M110) ->  | AL34: =IF(ISERROR(VLOOKUP(AK34,Data!$J$105:$K$109,2,1)),"",VLOOKUP(AK34,Data!$J$105:$K$109,2,1)) ->  | AM34: =IF(ISBLANK(Planning!B164),"",Planning!B164) ->  | AN34: =IF(ISERROR(INDEX(Data!$D$91:$G$94,MATCH(AM34,Data!$C$91:$C$94,1),MATCH(AF34,Data!$D$90:$G$90,1))),"",INDEX(Data!$D$91:$G$94,MATCH(AM34,Data!$C$91:$C$94,1),MATCH(AF34,Data!$D$90:$G$90,1))) ->  | AO34: =IF(ISERROR(VLOOKUP(X34,Data!$D$184:$K$200,HLOOKUP(AN34,Data!$E$182:$K$183,2))),"",VLOOKUP(X34,Data!$D$184:$K$200,HLOOKUP(AN34,Data!$E$182:$K$183,2))) ->  | AP34: =IF(ISERROR(VLOOKUP(AO34,Data!$C$105:$D$110,2)),"",VLOOKUP(AO34,Data!$C$105:$D$110,2)) ->  | AQ34: =IF(ISBLANK(Planning!M58),"",Planning!M58) ->  | AR34: =IF(ISERROR(VLOOKUP(AQ34,Data!$F$105:$G$108,2,1)),"",VLOOKUP(AQ34,Data!$F$105:$G$108,2,1)) ->  | AS34: =IF(ISBLANK(Planning!F164),"",Planning!F164) ->  | AT34: =IF(ISERROR(VLOOKUP(AS34,Data!$C$99:$D$101,2)),"",VLOOKUP(AS34,Data!$C$99:$D$101,2)) ->  | AU34: =IF(ISBLANK(Planning!H164),"",Planning!H164) ->  | AV34: =IF(ISERROR(VLOOKUP(AU34,Data!$G$99:$H$101,2)),"",VLOOKUP(AU34,Data!$G$99:$H$101,2)) ->  | AZ34: =IF(AX34=0,VLOOKUP(AY34,Data!$C$116:$D$119,2),"") ->  | BA34: =IF(LEN(B34)=0,"",IF(ISBLANK(Planning!B217),0,Planning!B217)) ->  | BB34: =IF(LEN(B34)=0,"",IF(ISBLANK(Planning!C217),0,Planning!C217)) ->  | BC34: =IF(LEN(B34)=0,"",IF(ISBLANK(Planning!D217),0,Planning!D217)) ->  | BD34: =IF(LEN(B34)=0,"",IF(ISBLANK(Planning!E217),0,Planning!E217)) ->  | BE34: =IF(LEN(B34)=0,"",IF(ISBLANK(Planning!F217),0,Planning!F217)) ->  | BF34: =IF(LEN(B34)=0,"",IF(ISBLANK(Planning!G217),0,Planning!G217)) ->  | BG34: =IF(LEN(B34)=0,"",IF(ISBLANK(Planning!H217),0,Planning!H217)) ->  | BH34: =IF(LEN(B34)=0,"",IF(ISBLANK(Planning!I217),0,Planning!I217)) ->  | BI34: =IF(LEN(B34)=0,"",IF(ISBLANK(Planning!J217),0,Planning!J217)) ->  | BL34: =IF(AX34=0,VLOOKUP(BK34,Data!$C$116:$D$119,2),"") -> 
B35: =IF(ISBLANK(Planning!A165),"",Planning!A165) ->  | C35: =IF(ISBLANK(Planning!D59),"",Planning!D59) ->  | D35: =IF(LEN(C35)=0,"",IF(ISNA(VLOOKUP(C35,INDIRECT(ADDRESS(Data!$AG$67,Data!$AG$65,1,1,"Data")):INDIRECT(ADDRESS(Data!$AG$68,Data!$AG$66,1,1,"Data")),Data!$AG$74,0)),$B$10,VLOOKUP(Planning!D59,INDIRECT(ADDRESS(Data!$AG$67,Data!$AG$65,1,1,"Data")):INDIRECT(ADDRESS(Data!$AG$68,Data!$AG$66,1,1,"Data")),Data!$AG$74,0))) ->  | E35: =IF(ISBLANK(Planning!I165),"",Planning!I165) ->  | F35: =IF(ISBLANK(Planning!I165),"",INDEX(Planning!$A$21:$C$25,MATCH(E35,Planning!$A$21:$A$25,0),2)) ->  | G35: =IF(ISNA(INDEX(Planning!$A$21:$N$25,MATCH(E35,Planning!$A$21:$A$25,0),12)),"",INDEX(Planning!$A$21:$N$25,MATCH(E35,Planning!$A$21:$A$25,0),12)) ->  | H35: =IF(ISNA(INDEX(Planning!$A$21:$N$25,MATCH(E35,Planning!$A$21:$A$25,0),8)/2.29),"",INDEX(Planning!$A$21:$N$25,MATCH(E35,Planning!$A$21:$A$25,0),8)/2.29) ->  | I35: =IF(ISBLANK(Planning!J165),"",Planning!J165) ->  | L35: =IF(ISNA(INDEX(Planning!$A$21:$N$25,MATCH(E35,Planning!$A$21:$A$25,0),14)),"",INDEX(Planning!$A$21:$N$25,MATCH(E35,Planning!$A$21:$A$25,0),14)) ->  | M35: =IF(ISERROR(VLOOKUP(L35,Data!$Q$65:$R$66,2,1)),"",VLOOKUP(L35,Data!$Q$65:$R$66,2,1)) ->  | P35: =IF(LEN(B35)=0,"",Planning!B59*(1.3333)) ->  | T35: =IF(LEN(B35)=0,"",IF(ISBLANK(Data!$AG$69),"",Data!$AG$69)) ->  | U35: =IF(ISERROR(VLOOKUP(C35,INDIRECT(ADDRESS(Data!$AG$67,Data!$AG$65,1,1,"Data")):INDIRECT(ADDRESS(Data!$AG$68,Data!$AG$66,1,1,"Data")),Data!$AG$81,0)),"",VLOOKUP(C35,INDIRECT(ADDRESS(Data!$AG$67,Data!$AG$65,1,1,"Data")):INDIRECT(ADDRESS(Data!$AG$68,Data!$AG$66,1,1,"Data")),Data!$AG$81,0)) ->  | V35: =IF(LEN(B35)=0,"",IF(LEN(Data!$AG$71)=0,"",IF(Data!$AG$71=1,"Yes", "No"))) ->  | W35: =IF(ISERROR(IF(V35="NO",U35,VLOOKUP(U35,Data!$AA$72:$AB$85,2,0))),"",IF(V35="NO",U35,VLOOKUP(U35,Data!$AA$72:$AB$85,2,0))) ->  | X35: =IF(ISBLANK(Planning!H59),"",Planning!H59) ->  | Y35: =IF(ISBLANK(Planning!L59),"",Planning!L59) ->  | Z35: =IF(ISERROR(INDEX(Data!$D$128:$T$146,MATCH(X35,Data!$C$128:$C$146,1),MATCH(Y35,Data!$D$127:$T$127,1))),"",INDEX(Data!$D$128:$T$146,MATCH(X35,Data!$C$128:$C$146,1),MATCH(Y35,Data!$D$127:$T$127,1))) ->  | AA35: =IF(ISBLANK(Planning!F111),"",Planning!F111) ->  | AB35: =IF(ISBLANK(Planning!H111),"",Planning!H111) ->  | AC35: =IF(ISERROR(INDEX(Data!$F$155:$K$156,VLOOKUP(AA35,Data!$C$79:$D$81,2),VLOOKUP(AB35,Data!$G$79:$H$85,2,0))),"",INDEX(Data!$F$155:$K$156,VLOOKUP(AA35,Data!$C$79:$D$81,2),VLOOKUP(AB35,Data!$G$79:$H$85,2,0))) ->  | AD35: =IF(ISBLANK(Planning!J111),"",Planning!J111) ->  | AE35: =IF(ISERROR(VLOOKUP(AD35,Data!$J$79:$K$81,2,0)),"",VLOOKUP(AD35,Data!$J$79:$K$81,2,0)) ->  | AF35: =IF(ISERROR(VLOOKUP(C35,INDIRECT(ADDRESS(Data!$AG$67,Data!$AG$65,1,1,"Data")):INDIRECT(ADDRESS(Data!$AG$68,Data!$AG$66,1,1,"Data")),Data!$AG$84,0)),"",VLOOKUP(C35,INDIRECT(ADDRESS(Data!$AG$67,Data!$AG$65,1,1,"Data")):INDIRECT(ADDRESS(Data!$AG$68,Data!$AG$66,1,1,"Data")),Data!$AG$84,0)) ->  | AG35: =IF(LEN(B35)=0,"",IF(LEN(Data!$AG$70)=0,"",Data!$AG$70)) ->  | AH35: =IF(LEN(AE35)=0,"",IF(AE35="Yes",INDIRECT(ADDRESS((ROW(Data!$M$153)+MATCH(AG35,Data!$M$154:$M$293,0)+MATCH(X35,Data!$P$154:$P$174,1)-1),(COLUMN(Data!$Q$153)+MATCH(AF35,Data!$R$153:$U$153,0)),1,1,"Data"),TRUE),1)) ->  | AJ35: =IF(ISBLANK(Planning!M111),"",Planning!M111) ->  | AL35: =IF(ISERROR(VLOOKUP(AK35,Data!$J$105:$K$109,2,1)),"",VLOOKUP(AK35,Data!$J$105:$K$109,2,1)) ->  | AM35: =IF(ISBLANK(Planning!B165),"",Planning!B165) ->  | AN35: =IF(ISERROR(INDEX(Data!$D$91:$G$94,MATCH(AM35,Data!$C$91:$C$94,1),MATCH(AF35,Data!$D$90:$G$90,1))),"",INDEX(Data!$D$91:$G$94,MATCH(AM35,Data!$C$91:$C$94,1),MATCH(AF35,Data!$D$90:$G$90,1))) ->  | AO35: =IF(ISERROR(VLOOKUP(X35,Data!$D$184:$K$200,HLOOKUP(AN35,Data!$E$182:$K$183,2))),"",VLOOKUP(X35,Data!$D$184:$K$200,HLOOKUP(AN35,Data!$E$182:$K$183,2))) ->  | AP35: =IF(ISERROR(VLOOKUP(AO35,Data!$C$105:$D$110,2)),"",VLOOKUP(AO35,Data!$C$105:$D$110,2)) ->  | AQ35: =IF(ISBLANK(Planning!M59),"",Planning!M59) ->  | AR35: =IF(ISERROR(VLOOKUP(AQ35,Data!$F$105:$G$108,2,1)),"",VLOOKUP(AQ35,Data!$F$105:$G$108,2,1)) ->  | AS35: =IF(ISBLANK(Planning!F165),"",Planning!F165) ->  | AT35: =IF(ISERROR(VLOOKUP(AS35,Data!$C$99:$D$101,2)),"",VLOOKUP(AS35,Data!$C$99:$D$101,2)) ->  | AU35: =IF(ISBLANK(Planning!H165),"",Planning!H165) ->  | AV35: =IF(ISERROR(VLOOKUP(AU35,Data!$G$99:$H$101,2)),"",VLOOKUP(AU35,Data!$G$99:$H$101,2)) ->  | AZ35: =IF(AX35=0,VLOOKUP(AY35,Data!$C$116:$D$119,2),"") ->  | BA35: =IF(LEN(B35)=0,"",IF(ISBLANK(Planning!B218),0,Planning!B218)) ->  | BB35: =IF(LEN(B35)=0,"",IF(ISBLANK(Planning!C218),0,Planning!C218)) ->  | BC35: =IF(LEN(B35)=0,"",IF(ISBLANK(Planning!D218),0,Planning!D218)) ->  | BD35: =IF(LEN(B35)=0,"",IF(ISBLANK(Planning!E218),0,Planning!E218)) ->  | BE35: =IF(LEN(B35)=0,"",IF(ISBLANK(Planning!F218),0,Planning!F218)) ->  | BF35: =IF(LEN(B35)=0,"",IF(ISBLANK(Planning!G218),0,Planning!G218)) ->  | BG35: =IF(LEN(B35)=0,"",IF(ISBLANK(Planning!H218),0,Planning!H218)) ->  | BH35: =IF(LEN(B35)=0,"",IF(ISBLANK(Planning!I218),0,Planning!I218)) ->  | BI35: =IF(LEN(B35)=0,"",IF(ISBLANK(Planning!J218),0,Planning!J218)) ->  | BL35: =IF(AX35=0,VLOOKUP(BK35,Data!$C$116:$D$119,2),"") -> 
B36: =IF(ISBLANK(Planning!A166),"",Planning!A166) ->  | C36: =IF(ISBLANK(Planning!D60),"",Planning!D60) ->  | D36: =IF(LEN(C36)=0,"",IF(ISNA(VLOOKUP(C36,INDIRECT(ADDRESS(Data!$AG$67,Data!$AG$65,1,1,"Data")):INDIRECT(ADDRESS(Data!$AG$68,Data!$AG$66,1,1,"Data")),Data!$AG$74,0)),$B$10,VLOOKUP(Planning!D60,INDIRECT(ADDRESS(Data!$AG$67,Data!$AG$65,1,1,"Data")):INDIRECT(ADDRESS(Data!$AG$68,Data!$AG$66,1,1,"Data")),Data!$AG$74,0))) ->  | E36: =IF(ISBLANK(Planning!I166),"",Planning!I166) ->  | F36: =IF(ISBLANK(Planning!I166),"",INDEX(Planning!$A$21:$C$25,MATCH(E36,Planning!$A$21:$A$25,0),2)) ->  | G36: =IF(ISNA(INDEX(Planning!$A$21:$N$25,MATCH(E36,Planning!$A$21:$A$25,0),12)),"",INDEX(Planning!$A$21:$N$25,MATCH(E36,Planning!$A$21:$A$25,0),12)) ->  | H36: =IF(ISNA(INDEX(Planning!$A$21:$N$25,MATCH(E36,Planning!$A$21:$A$25,0),8)/2.29),"",INDEX(Planning!$A$21:$N$25,MATCH(E36,Planning!$A$21:$A$25,0),8)/2.29) ->  | I36: =IF(ISBLANK(Planning!J166),"",Planning!J166) ->  | L36: =IF(ISNA(INDEX(Planning!$A$21:$N$25,MATCH(E36,Planning!$A$21:$A$25,0),14)),"",INDEX(Planning!$A$21:$N$25,MATCH(E36,Planning!$A$21:$A$25,0),14)) ->  | M36: =IF(ISERROR(VLOOKUP(L36,Data!$Q$65:$R$66,2,1)),"",VLOOKUP(L36,Data!$Q$65:$R$66,2,1)) ->  | P36: =IF(LEN(B36)=0,"",Planning!B60*(1.3333)) ->  | T36: =IF(LEN(B36)=0,"",IF(ISBLANK(Data!$AG$69),"",Data!$AG$69)) ->  | U36: =IF(ISERROR(VLOOKUP(C36,INDIRECT(ADDRESS(Data!$AG$67,Data!$AG$65,1,1,"Data")):INDIRECT(ADDRESS(Data!$AG$68,Data!$AG$66,1,1,"Data")),Data!$AG$81,0)),"",VLOOKUP(C36,INDIRECT(ADDRESS(Data!$AG$67,Data!$AG$65,1,1,"Data")):INDIRECT(ADDRESS(Data!$AG$68,Data!$AG$66,1,1,"Data")),Data!$AG$81,0)) ->  | V36: =IF(LEN(B36)=0,"",IF(LEN(Data!$AG$71)=0,"",IF(Data!$AG$71=1,"Yes", "No"))) ->  | W36: =IF(ISERROR(IF(V36="NO",U36,VLOOKUP(U36,Data!$AA$72:$AB$85,2,0))),"",IF(V36="NO",U36,VLOOKUP(U36,Data!$AA$72:$AB$85,2,0))) ->  | X36: =IF(ISBLANK(Planning!H60),"",Planning!H60) ->  | Y36: =IF(ISBLANK(Planning!L60),"",Planning!L60) ->  | Z36: =IF(ISERROR(INDEX(Data!$D$128:$T$146,MATCH(X36,Data!$C$128:$C$146,1),MATCH(Y36,Data!$D$127:$T$127,1))),"",INDEX(Data!$D$128:$T$146,MATCH(X36,Data!$C$128:$C$146,1),MATCH(Y36,Data!$D$127:$T$127,1))) ->  | AA36: =IF(ISBLANK(Planning!F112),"",Planning!F112) ->  | AB36: =IF(ISBLANK(Planning!H112),"",Planning!H112) ->  | AC36: =IF(ISERROR(INDEX(Data!$F$155:$K$156,VLOOKUP(AA36,Data!$C$79:$D$81,2),VLOOKUP(AB36,Data!$G$79:$H$85,2,0))),"",INDEX(Data!$F$155:$K$156,VLOOKUP(AA36,Data!$C$79:$D$81,2),VLOOKUP(AB36,Data!$G$79:$H$85,2,0))) ->  | AD36: =IF(ISBLANK(Planning!J112),"",Planning!J112) ->  | AE36: =IF(ISERROR(VLOOKUP(AD36,Data!$J$79:$K$81,2,0)),"",VLOOKUP(AD36,Data!$J$79:$K$81,2,0)) ->  | AF36: =IF(ISERROR(VLOOKUP(C36,INDIRECT(ADDRESS(Data!$AG$67,Data!$AG$65,1,1,"Data")):INDIRECT(ADDRESS(Data!$AG$68,Data!$AG$66,1,1,"Data")),Data!$AG$84,0)),"",VLOOKUP(C36,INDIRECT(ADDRESS(Data!$AG$67,Data!$AG$65,1,1,"Data")):INDIRECT(ADDRESS(Data!$AG$68,Data!$AG$66,1,1,"Data")),Data!$AG$84,0)) ->  | AG36: =IF(LEN(B36)=0,"",IF(LEN(Data!$AG$70)=0,"",Data!$AG$70)) ->  | AH36: =IF(LEN(AE36)=0,"",IF(AE36="Yes",INDIRECT(ADDRESS((ROW(Data!$M$153)+MATCH(AG36,Data!$M$154:$M$293,0)+MATCH(X36,Data!$P$154:$P$174,1)-1),(COLUMN(Data!$Q$153)+MATCH(AF36,Data!$R$153:$U$153,0)),1,1,"Data"),TRUE),1)) ->  | AJ36: =IF(ISBLANK(Planning!M112),"",Planning!M112) ->  | AL36: =IF(ISERROR(VLOOKUP(AK36,Data!$J$105:$K$109,2,1)),"",VLOOKUP(AK36,Data!$J$105:$K$109,2,1)) ->  | AM36: =IF(ISBLANK(Planning!B166),"",Planning!B166) ->  | AN36: =IF(ISERROR(INDEX(Data!$D$91:$G$94,MATCH(AM36,Data!$C$91:$C$94,1),MATCH(AF36,Data!$D$90:$G$90,1))),"",INDEX(Data!$D$91:$G$94,MATCH(AM36,Data!$C$91:$C$94,1),MATCH(AF36,Data!$D$90:$G$90,1))) ->  | AO36: =IF(ISERROR(VLOOKUP(X36,Data!$D$184:$K$200,HLOOKUP(AN36,Data!$E$182:$K$183,2))),"",VLOOKUP(X36,Data!$D$184:$K$200,HLOOKUP(AN36,Data!$E$182:$K$183,2))) ->  | AP36: =IF(ISERROR(VLOOKUP(AO36,Data!$C$105:$D$110,2)),"",VLOOKUP(AO36,Data!$C$105:$D$110,2)) ->  | AQ36: =IF(ISBLANK(Planning!M60),"",Planning!M60) ->  | AR36: =IF(ISERROR(VLOOKUP(AQ36,Data!$F$105:$G$108,2,1)),"",VLOOKUP(AQ36,Data!$F$105:$G$108,2,1)) ->  | AS36: =IF(ISBLANK(Planning!F166),"",Planning!F166) ->  | AT36: =IF(ISERROR(VLOOKUP(AS36,Data!$C$99:$D$101,2)),"",VLOOKUP(AS36,Data!$C$99:$D$101,2)) ->  | AU36: =IF(ISBLANK(Planning!H166),"",Planning!H166) ->  | AV36: =IF(ISERROR(VLOOKUP(AU36,Data!$G$99:$H$101,2)),"",VLOOKUP(AU36,Data!$G$99:$H$101,2)) ->  | AZ36: =IF(AX36=0,VLOOKUP(AY36,Data!$C$116:$D$119,2),"") ->  | BA36: =IF(LEN(B36)=0,"",IF(ISBLANK(Planning!B219),0,Planning!B219)) ->  | BB36: =IF(LEN(B36)=0,"",IF(ISBLANK(Planning!C219),0,Planning!C219)) ->  | BC36: =IF(LEN(B36)=0,"",IF(ISBLANK(Planning!D219),0,Planning!D219)) ->  | BD36: =IF(LEN(B36)=0,"",IF(ISBLANK(Planning!E219),0,Planning!E219)) ->  | BE36: =IF(LEN(B36)=0,"",IF(ISBLANK(Planning!F219),0,Planning!F219)) ->  | BF36: =IF(LEN(B36)=0,"",IF(ISBLANK(Planning!G219),0,Planning!G219)) ->  | BG36: =IF(LEN(B36)=0,"",IF(ISBLANK(Planning!H219),0,Planning!H219)) ->  | BH36: =IF(LEN(B36)=0,"",IF(ISBLANK(Planning!I219),0,Planning!I219)) ->  | BI36: =IF(LEN(B36)=0,"",IF(ISBLANK(Planning!J219),0,Planning!J219)) ->  | BL36: =IF(AX36=0,VLOOKUP(BK36,Data!$C$116:$D$119,2),"") -> 
B37: =IF(ISBLANK(Planning!A167),"",Planning!A167) ->  | C37: =IF(ISBLANK(Planning!D61),"",Planning!D61) ->  | D37: =IF(LEN(C37)=0,"",IF(ISNA(VLOOKUP(C37,INDIRECT(ADDRESS(Data!$AG$67,Data!$AG$65,1,1,"Data")):INDIRECT(ADDRESS(Data!$AG$68,Data!$AG$66,1,1,"Data")),Data!$AG$74,0)),$B$10,VLOOKUP(Planning!D61,INDIRECT(ADDRESS(Data!$AG$67,Data!$AG$65,1,1,"Data")):INDIRECT(ADDRESS(Data!$AG$68,Data!$AG$66,1,1,"Data")),Data!$AG$74,0))) ->  | E37: =IF(ISBLANK(Planning!I167),"",Planning!I167) ->  | F37: =IF(ISBLANK(Planning!I167),"",INDEX(Planning!$A$21:$C$25,MATCH(E37,Planning!$A$21:$A$25,0),2)) ->  | G37: =IF(ISNA(INDEX(Planning!$A$21:$N$25,MATCH(E37,Planning!$A$21:$A$25,0),12)),"",INDEX(Planning!$A$21:$N$25,MATCH(E37,Planning!$A$21:$A$25,0),12)) ->  | H37: =IF(ISNA(INDEX(Planning!$A$21:$N$25,MATCH(E37,Planning!$A$21:$A$25,0),8)/2.29),"",INDEX(Planning!$A$21:$N$25,MATCH(E37,Planning!$A$21:$A$25,0),8)/2.29) ->  | I37: =IF(ISBLANK(Planning!J167),"",Planning!J167) ->  | L37: =IF(ISNA(INDEX(Planning!$A$21:$N$25,MATCH(E37,Planning!$A$21:$A$25,0),14)),"",INDEX(Planning!$A$21:$N$25,MATCH(E37,Planning!$A$21:$A$25,0),14)) ->  | M37: =IF(ISERROR(VLOOKUP(L37,Data!$Q$65:$R$66,2,1)),"",VLOOKUP(L37,Data!$Q$65:$R$66,2,1)) ->  | P37: =IF(LEN(B37)=0,"",Planning!B61*(1.3333)) ->  | T37: =IF(LEN(B37)=0,"",IF(ISBLANK(Data!$AG$69),"",Data!$AG$69)) ->  | U37: =IF(ISERROR(VLOOKUP(C37,INDIRECT(ADDRESS(Data!$AG$67,Data!$AG$65,1,1,"Data")):INDIRECT(ADDRESS(Data!$AG$68,Data!$AG$66,1,1,"Data")),Data!$AG$81,0)),"",VLOOKUP(C37,INDIRECT(ADDRESS(Data!$AG$67,Data!$AG$65,1,1,"Data")):INDIRECT(ADDRESS(Data!$AG$68,Data!$AG$66,1,1,"Data")),Data!$AG$81,0)) ->  | V37: =IF(LEN(B37)=0,"",IF(LEN(Data!$AG$71)=0,"",IF(Data!$AG$71=1,"Yes", "No"))) ->  | W37: =IF(ISERROR(IF(V37="NO",U37,VLOOKUP(U37,Data!$AA$72:$AB$85,2,0))),"",IF(V37="NO",U37,VLOOKUP(U37,Data!$AA$72:$AB$85,2,0))) ->  | X37: =IF(ISBLANK(Planning!H61),"",Planning!H61) ->  | Y37: =IF(ISBLANK(Planning!L61),"",Planning!L61) ->  | Z37: =IF(ISERROR(INDEX(Data!$D$128:$T$146,MATCH(X37,Data!$C$128:$C$146,1),MATCH(Y37,Data!$D$127:$T$127,1))),"",INDEX(Data!$D$128:$T$146,MATCH(X37,Data!$C$128:$C$146,1),MATCH(Y37,Data!$D$127:$T$127,1))) ->  | AA37: =IF(ISBLANK(Planning!F113),"",Planning!F113) ->  | AB37: =IF(ISBLANK(Planning!H113),"",Planning!H113) ->  | AC37: =IF(ISERROR(INDEX(Data!$F$155:$K$156,VLOOKUP(AA37,Data!$C$79:$D$81,2),VLOOKUP(AB37,Data!$G$79:$H$85,2,0))),"",INDEX(Data!$F$155:$K$156,VLOOKUP(AA37,Data!$C$79:$D$81,2),VLOOKUP(AB37,Data!$G$79:$H$85,2,0))) ->  | AD37: =IF(ISBLANK(Planning!J113),"",Planning!J113) ->  | AE37: =IF(ISERROR(VLOOKUP(AD37,Data!$J$79:$K$81,2,0)),"",VLOOKUP(AD37,Data!$J$79:$K$81,2,0)) ->  | AF37: =IF(ISERROR(VLOOKUP(C37,INDIRECT(ADDRESS(Data!$AG$67,Data!$AG$65,1,1,"Data")):INDIRECT(ADDRESS(Data!$AG$68,Data!$AG$66,1,1,"Data")),Data!$AG$84,0)),"",VLOOKUP(C37,INDIRECT(ADDRESS(Data!$AG$67,Data!$AG$65,1,1,"Data")):INDIRECT(ADDRESS(Data!$AG$68,Data!$AG$66,1,1,"Data")),Data!$AG$84,0)) ->  | AG37: =IF(LEN(B37)=0,"",IF(LEN(Data!$AG$70)=0,"",Data!$AG$70)) ->  | AH37: =IF(LEN(AE37)=0,"",IF(AE37="Yes",INDIRECT(ADDRESS((ROW(Data!$M$153)+MATCH(AG37,Data!$M$154:$M$293,0)+MATCH(X37,Data!$P$154:$P$174,1)-1),(COLUMN(Data!$Q$153)+MATCH(AF37,Data!$R$153:$U$153,0)),1,1,"Data"),TRUE),1)) ->  | AJ37: =IF(ISBLANK(Planning!M113),"",Planning!M113) ->  | AL37: =IF(ISERROR(VLOOKUP(AK37,Data!$J$105:$K$109,2,1)),"",VLOOKUP(AK37,Data!$J$105:$K$109,2,1)) ->  | AM37: =IF(ISBLANK(Planning!B167),"",Planning!B167) ->  | AN37: =IF(ISERROR(INDEX(Data!$D$91:$G$94,MATCH(AM37,Data!$C$91:$C$94,1),MATCH(AF37,Data!$D$90:$G$90,1))),"",INDEX(Data!$D$91:$G$94,MATCH(AM37,Data!$C$91:$C$94,1),MATCH(AF37,Data!$D$90:$G$90,1))) ->  | AO37: =IF(ISERROR(VLOOKUP(X37,Data!$D$184:$K$200,HLOOKUP(AN37,Data!$E$182:$K$183,2))),"",VLOOKUP(X37,Data!$D$184:$K$200,HLOOKUP(AN37,Data!$E$182:$K$183,2))) ->  | AP37: =IF(ISERROR(VLOOKUP(AO37,Data!$C$105:$D$110,2)),"",VLOOKUP(AO37,Data!$C$105:$D$110,2)) ->  | AQ37: =IF(ISBLANK(Planning!M61),"",Planning!M61) ->  | AR37: =IF(ISERROR(VLOOKUP(AQ37,Data!$F$105:$G$108,2,1)),"",VLOOKUP(AQ37,Data!$F$105:$G$108,2,1)) ->  | AS37: =IF(ISBLANK(Planning!F167),"",Planning!F167) ->  | AT37: =IF(ISERROR(VLOOKUP(AS37,Data!$C$99:$D$101,2)),"",VLOOKUP(AS37,Data!$C$99:$D$101,2)) ->  | AU37: =IF(ISBLANK(Planning!H167),"",Planning!H167) ->  | AV37: =IF(ISERROR(VLOOKUP(AU37,Data!$G$99:$H$101,2)),"",VLOOKUP(AU37,Data!$G$99:$H$101,2)) ->  | AZ37: =IF(AX37=0,VLOOKUP(AY37,Data!$C$116:$D$119,2),"") ->  | BA37: =IF(LEN(B37)=0,"",IF(ISBLANK(Planning!B220),0,Planning!B220)) ->  | BB37: =IF(LEN(B37)=0,"",IF(ISBLANK(Planning!C220),0,Planning!C220)) ->  | BC37: =IF(LEN(B37)=0,"",IF(ISBLANK(Planning!D220),0,Planning!D220)) ->  | BD37: =IF(LEN(B37)=0,"",IF(ISBLANK(Planning!E220),0,Planning!E220)) ->  | BE37: =IF(LEN(B37)=0,"",IF(ISBLANK(Planning!F220),0,Planning!F220)) ->  | BF37: =IF(LEN(B37)=0,"",IF(ISBLANK(Planning!G220),0,Planning!G220)) ->  | BG37: =IF(LEN(B37)=0,"",IF(ISBLANK(Planning!H220),0,Planning!H220)) ->  | BH37: =IF(LEN(B37)=0,"",IF(ISBLANK(Planning!I220),0,Planning!I220)) ->  | BI37: =IF(LEN(B37)=0,"",IF(ISBLANK(Planning!J220),0,Planning!J220)) ->  | BL37: =IF(AX37=0,VLOOKUP(BK37,Data!$C$116:$D$119,2),"") -> 
B38: =IF(ISBLANK(Planning!A168),"",Planning!A168) ->  | C38: =IF(ISBLANK(Planning!D62),"",Planning!D62) ->  | D38: =IF(LEN(C38)=0,"",IF(ISNA(VLOOKUP(C38,INDIRECT(ADDRESS(Data!$AG$67,Data!$AG$65,1,1,"Data")):INDIRECT(ADDRESS(Data!$AG$68,Data!$AG$66,1,1,"Data")),Data!$AG$74,0)),$B$10,VLOOKUP(Planning!D62,INDIRECT(ADDRESS(Data!$AG$67,Data!$AG$65,1,1,"Data")):INDIRECT(ADDRESS(Data!$AG$68,Data!$AG$66,1,1,"Data")),Data!$AG$74,0))) ->  | E38: =IF(ISBLANK(Planning!I168),"",Planning!I168) ->  | F38: =IF(ISBLANK(Planning!I168),"",INDEX(Planning!$A$21:$C$25,MATCH(E38,Planning!$A$21:$A$25,0),2)) ->  | G38: =IF(ISNA(INDEX(Planning!$A$21:$N$25,MATCH(E38,Planning!$A$21:$A$25,0),12)),"",INDEX(Planning!$A$21:$N$25,MATCH(E38,Planning!$A$21:$A$25,0),12)) ->  | H38: =IF(ISNA(INDEX(Planning!$A$21:$N$25,MATCH(E38,Planning!$A$21:$A$25,0),8)/2.29),"",INDEX(Planning!$A$21:$N$25,MATCH(E38,Planning!$A$21:$A$25,0),8)/2.29) ->  | I38: =IF(ISBLANK(Planning!J168),"",Planning!J168) ->  | L38: =IF(ISNA(INDEX(Planning!$A$21:$N$25,MATCH(E38,Planning!$A$21:$A$25,0),14)),"",INDEX(Planning!$A$21:$N$25,MATCH(E38,Planning!$A$21:$A$25,0),14)) ->  | M38: =IF(ISERROR(VLOOKUP(L38,Data!$Q$65:$R$66,2,1)),"",VLOOKUP(L38,Data!$Q$65:$R$66,2,1)) ->  | P38: =IF(LEN(B38)=0,"",Planning!B62*(1.3333)) ->  | T38: =IF(LEN(B38)=0,"",IF(ISBLANK(Data!$AG$69),"",Data!$AG$69)) ->  | U38: =IF(ISERROR(VLOOKUP(C38,INDIRECT(ADDRESS(Data!$AG$67,Data!$AG$65,1,1,"Data")):INDIRECT(ADDRESS(Data!$AG$68,Data!$AG$66,1,1,"Data")),Data!$AG$81,0)),"",VLOOKUP(C38,INDIRECT(ADDRESS(Data!$AG$67,Data!$AG$65,1,1,"Data")):INDIRECT(ADDRESS(Data!$AG$68,Data!$AG$66,1,1,"Data")),Data!$AG$81,0)) ->  | V38: =IF(LEN(B38)=0,"",IF(LEN(Data!$AG$71)=0,"",IF(Data!$AG$71=1,"Yes", "No"))) ->  | W38: =IF(ISERROR(IF(V38="NO",U38,VLOOKUP(U38,Data!$AA$72:$AB$85,2,0))),"",IF(V38="NO",U38,VLOOKUP(U38,Data!$AA$72:$AB$85,2,0))) ->  | X38: =IF(ISBLANK(Planning!H62),"",Planning!H62) ->  | Y38: =IF(ISBLANK(Planning!L62),"",Planning!L62) ->  | Z38: =IF(ISERROR(INDEX(Data!$D$128:$T$146,MATCH(X38,Data!$C$128:$C$146,1),MATCH(Y38,Data!$D$127:$T$127,1))),"",INDEX(Data!$D$128:$T$146,MATCH(X38,Data!$C$128:$C$146,1),MATCH(Y38,Data!$D$127:$T$127,1))) ->  | AA38: =IF(ISBLANK(Planning!F114),"",Planning!F114) ->  | AB38: =IF(ISBLANK(Planning!H114),"",Planning!H114) ->  | AC38: =IF(ISERROR(INDEX(Data!$F$155:$K$156,VLOOKUP(AA38,Data!$C$79:$D$81,2),VLOOKUP(AB38,Data!$G$79:$H$85,2,0))),"",INDEX(Data!$F$155:$K$156,VLOOKUP(AA38,Data!$C$79:$D$81,2),VLOOKUP(AB38,Data!$G$79:$H$85,2,0))) ->  | AD38: =IF(ISBLANK(Planning!J114),"",Planning!J114) ->  | AE38: =IF(ISERROR(VLOOKUP(AD38,Data!$J$79:$K$81,2,0)),"",VLOOKUP(AD38,Data!$J$79:$K$81,2,0)) ->  | AF38: =IF(ISERROR(VLOOKUP(C38,INDIRECT(ADDRESS(Data!$AG$67,Data!$AG$65,1,1,"Data")):INDIRECT(ADDRESS(Data!$AG$68,Data!$AG$66,1,1,"Data")),Data!$AG$84,0)),"",VLOOKUP(C38,INDIRECT(ADDRESS(Data!$AG$67,Data!$AG$65,1,1,"Data")):INDIRECT(ADDRESS(Data!$AG$68,Data!$AG$66,1,1,"Data")),Data!$AG$84,0)) ->  | AG38: =IF(LEN(B38)=0,"",IF(LEN(Data!$AG$70)=0,"",Data!$AG$70)) ->  | AH38: =IF(LEN(AE38)=0,"",IF(AE38="Yes",INDIRECT(ADDRESS((ROW(Data!$M$153)+MATCH(AG38,Data!$M$154:$M$293,0)+MATCH(X38,Data!$P$154:$P$174,1)-1),(COLUMN(Data!$Q$153)+MATCH(AF38,Data!$R$153:$U$153,0)),1,1,"Data"),TRUE),1)) ->  | AJ38: =IF(ISBLANK(Planning!M114),"",Planning!M114) ->  | AL38: =IF(ISERROR(VLOOKUP(AK38,Data!$J$105:$K$109,2,1)),"",VLOOKUP(AK38,Data!$J$105:$K$109,2,1)) ->  | AM38: =IF(ISBLANK(Planning!B168),"",Planning!B168) ->  | AN38: =IF(ISERROR(INDEX(Data!$D$91:$G$94,MATCH(AM38,Data!$C$91:$C$94,1),MATCH(AF38,Data!$D$90:$G$90,1))),"",INDEX(Data!$D$91:$G$94,MATCH(AM38,Data!$C$91:$C$94,1),MATCH(AF38,Data!$D$90:$G$90,1))) ->  | AO38: =IF(ISERROR(VLOOKUP(X38,Data!$D$184:$K$200,HLOOKUP(AN38,Data!$E$182:$K$183,2))),"",VLOOKUP(X38,Data!$D$184:$K$200,HLOOKUP(AN38,Data!$E$182:$K$183,2))) ->  | AP38: =IF(ISERROR(VLOOKUP(AO38,Data!$C$105:$D$110,2)),"",VLOOKUP(AO38,Data!$C$105:$D$110,2)) ->  | AQ38: =IF(ISBLANK(Planning!M62),"",Planning!M62) ->  | AR38: =IF(ISERROR(VLOOKUP(AQ38,Data!$F$105:$G$108,2,1)),"",VLOOKUP(AQ38,Data!$F$105:$G$108,2,1)) ->  | AS38: =IF(ISBLANK(Planning!F168),"",Planning!F168) ->  | AT38: =IF(ISERROR(VLOOKUP(AS38,Data!$C$99:$D$101,2)),"",VLOOKUP(AS38,Data!$C$99:$D$101,2)) ->  | AU38: =IF(ISBLANK(Planning!H168),"",Planning!H168) ->  | AV38: =IF(ISERROR(VLOOKUP(AU38,Data!$G$99:$H$101,2)),"",VLOOKUP(AU38,Data!$G$99:$H$101,2)) ->  | AZ38: =IF(AX38=0,VLOOKUP(AY38,Data!$C$116:$D$119,2),"") ->  | BA38: =IF(LEN(B38)=0,"",IF(ISBLANK(Planning!B221),0,Planning!B221)) ->  | BB38: =IF(LEN(B38)=0,"",IF(ISBLANK(Planning!C221),0,Planning!C221)) ->  | BC38: =IF(LEN(B38)=0,"",IF(ISBLANK(Planning!D221),0,Planning!D221)) ->  | BD38: =IF(LEN(B38)=0,"",IF(ISBLANK(Planning!E221),0,Planning!E221)) ->  | BE38: =IF(LEN(B38)=0,"",IF(ISBLANK(Planning!F221),0,Planning!F221)) ->  | BF38: =IF(LEN(B38)=0,"",IF(ISBLANK(Planning!G221),0,Planning!G221)) ->  | BG38: =IF(LEN(B38)=0,"",IF(ISBLANK(Planning!H221),0,Planning!H221)) ->  | BH38: =IF(LEN(B38)=0,"",IF(ISBLANK(Planning!I221),0,Planning!I221)) ->  | BI38: =IF(LEN(B38)=0,"",IF(ISBLANK(Planning!J221),0,Planning!J221)) ->  | BL38: =IF(AX38=0,VLOOKUP(BK38,Data!$C$116:$D$119,2),"") -> 
B39: =IF(ISBLANK(Planning!A169),"",Planning!A169) ->  | C39: =IF(ISBLANK(Planning!D63),"",Planning!D63) ->  | D39: =IF(LEN(C39)=0,"",IF(ISNA(VLOOKUP(C39,INDIRECT(ADDRESS(Data!$AG$67,Data!$AG$65,1,1,"Data")):INDIRECT(ADDRESS(Data!$AG$68,Data!$AG$66,1,1,"Data")),Data!$AG$74,0)),$B$10,VLOOKUP(Planning!D63,INDIRECT(ADDRESS(Data!$AG$67,Data!$AG$65,1,1,"Data")):INDIRECT(ADDRESS(Data!$AG$68,Data!$AG$66,1,1,"Data")),Data!$AG$74,0))) ->  | E39: =IF(ISBLANK(Planning!I169),"",Planning!I169) ->  | F39: =IF(ISBLANK(Planning!I169),"",INDEX(Planning!$A$21:$C$25,MATCH(E39,Planning!$A$21:$A$25,0),2)) ->  | G39: =IF(ISNA(INDEX(Planning!$A$21:$N$25,MATCH(E39,Planning!$A$21:$A$25,0),12)),"",INDEX(Planning!$A$21:$N$25,MATCH(E39,Planning!$A$21:$A$25,0),12)) ->  | H39: =IF(ISNA(INDEX(Planning!$A$21:$N$25,MATCH(E39,Planning!$A$21:$A$25,0),8)/2.29),"",INDEX(Planning!$A$21:$N$25,MATCH(E39,Planning!$A$21:$A$25,0),8)/2.29) ->  | I39: =IF(ISBLANK(Planning!J169),"",Planning!J169) ->  | L39: =IF(ISNA(INDEX(Planning!$A$21:$N$25,MATCH(E39,Planning!$A$21:$A$25,0),14)),"",INDEX(Planning!$A$21:$N$25,MATCH(E39,Planning!$A$21:$A$25,0),14)) ->  | M39: =IF(ISERROR(VLOOKUP(L39,Data!$Q$65:$R$66,2,1)),"",VLOOKUP(L39,Data!$Q$65:$R$66,2,1)) ->  | P39: =IF(LEN(B39)=0,"",Planning!B63*(1.3333)) ->  | T39: =IF(LEN(B39)=0,"",IF(ISBLANK(Data!$AG$69),"",Data!$AG$69)) ->  | U39: =IF(ISERROR(VLOOKUP(C39,INDIRECT(ADDRESS(Data!$AG$67,Data!$AG$65,1,1,"Data")):INDIRECT(ADDRESS(Data!$AG$68,Data!$AG$66,1,1,"Data")),Data!$AG$81,0)),"",VLOOKUP(C39,INDIRECT(ADDRESS(Data!$AG$67,Data!$AG$65,1,1,"Data")):INDIRECT(ADDRESS(Data!$AG$68,Data!$AG$66,1,1,"Data")),Data!$AG$81,0)) ->  | V39: =IF(LEN(B39)=0,"",IF(LEN(Data!$AG$71)=0,"",IF(Data!$AG$71=1,"Yes", "No"))) ->  | W39: =IF(ISERROR(IF(V39="NO",U39,VLOOKUP(U39,Data!$AA$72:$AB$85,2,0))),"",IF(V39="NO",U39,VLOOKUP(U39,Data!$AA$72:$AB$85,2,0))) ->  | X39: =IF(ISBLANK(Planning!H63),"",Planning!H63) ->  | Y39: =IF(ISBLANK(Planning!L63),"",Planning!L63) ->  | Z39: =IF(ISERROR(INDEX(Data!$D$128:$T$146,MATCH(X39,Data!$C$128:$C$146,1),MATCH(Y39,Data!$D$127:$T$127,1))),"",INDEX(Data!$D$128:$T$146,MATCH(X39,Data!$C$128:$C$146,1),MATCH(Y39,Data!$D$127:$T$127,1))) ->  | AA39: =IF(ISBLANK(Planning!F115),"",Planning!F115) ->  | AB39: =IF(ISBLANK(Planning!H115),"",Planning!H115) ->  | AC39: =IF(ISERROR(INDEX(Data!$F$155:$K$156,VLOOKUP(AA39,Data!$C$79:$D$81,2),VLOOKUP(AB39,Data!$G$79:$H$85,2,0))),"",INDEX(Data!$F$155:$K$156,VLOOKUP(AA39,Data!$C$79:$D$81,2),VLOOKUP(AB39,Data!$G$79:$H$85,2,0))) ->  | AD39: =IF(ISBLANK(Planning!J115),"",Planning!J115) ->  | AE39: =IF(ISERROR(VLOOKUP(AD39,Data!$J$79:$K$81,2,0)),"",VLOOKUP(AD39,Data!$J$79:$K$81,2,0)) ->  | AF39: =IF(ISERROR(VLOOKUP(C39,INDIRECT(ADDRESS(Data!$AG$67,Data!$AG$65,1,1,"Data")):INDIRECT(ADDRESS(Data!$AG$68,Data!$AG$66,1,1,"Data")),Data!$AG$84,0)),"",VLOOKUP(C39,INDIRECT(ADDRESS(Data!$AG$67,Data!$AG$65,1,1,"Data")):INDIRECT(ADDRESS(Data!$AG$68,Data!$AG$66,1,1,"Data")),Data!$AG$84,0)) ->  | AG39: =IF(LEN(B39)=0,"",IF(LEN(Data!$AG$70)=0,"",Data!$AG$70)) ->  | AH39: =IF(LEN(AE39)=0,"",IF(AE39="Yes",INDIRECT(ADDRESS((ROW(Data!$M$153)+MATCH(AG39,Data!$M$154:$M$293,0)+MATCH(X39,Data!$P$154:$P$174,1)-1),(COLUMN(Data!$Q$153)+MATCH(AF39,Data!$R$153:$U$153,0)),1,1,"Data"),TRUE),1)) ->  | AJ39: =IF(ISBLANK(Planning!M115),"",Planning!M115) ->  | AL39: =IF(ISERROR(VLOOKUP(AK39,Data!$J$105:$K$109,2,1)),"",VLOOKUP(AK39,Data!$J$105:$K$109,2,1)) ->  | AM39: =IF(ISBLANK(Planning!B169),"",Planning!B169) ->  | AN39: =IF(ISERROR(INDEX(Data!$D$91:$G$94,MATCH(AM39,Data!$C$91:$C$94,1),MATCH(AF39,Data!$D$90:$G$90,1))),"",INDEX(Data!$D$91:$G$94,MATCH(AM39,Data!$C$91:$C$94,1),MATCH(AF39,Data!$D$90:$G$90,1))) ->  | AO39: =IF(ISERROR(VLOOKUP(X39,Data!$D$184:$K$200,HLOOKUP(AN39,Data!$E$182:$K$183,2))),"",VLOOKUP(X39,Data!$D$184:$K$200,HLOOKUP(AN39,Data!$E$182:$K$183,2))) ->  | AP39: =IF(ISERROR(VLOOKUP(AO39,Data!$C$105:$D$110,2)),"",VLOOKUP(AO39,Data!$C$105:$D$110,2)) ->  | AQ39: =IF(ISBLANK(Planning!M63),"",Planning!M63) ->  | AR39: =IF(ISERROR(VLOOKUP(AQ39,Data!$F$105:$G$108,2,1)),"",VLOOKUP(AQ39,Data!$F$105:$G$108,2,1)) ->  | AS39: =IF(ISBLANK(Planning!F169),"",Planning!F169) ->  | AT39: =IF(ISERROR(VLOOKUP(AS39,Data!$C$99:$D$101,2)),"",VLOOKUP(AS39,Data!$C$99:$D$101,2)) ->  | AU39: =IF(ISBLANK(Planning!H169),"",Planning!H169) ->  | AV39: =IF(ISERROR(VLOOKUP(AU39,Data!$G$99:$H$101,2)),"",VLOOKUP(AU39,Data!$G$99:$H$101,2)) ->  | AZ39: =IF(AX39=0,VLOOKUP(AY39,Data!$C$116:$D$119,2),"") ->  | BA39: =IF(LEN(B39)=0,"",IF(ISBLANK(Planning!B222),0,Planning!B222)) ->  | BB39: =IF(LEN(B39)=0,"",IF(ISBLANK(Planning!C222),0,Planning!C222)) ->  | BC39: =IF(LEN(B39)=0,"",IF(ISBLANK(Planning!D222),0,Planning!D222)) ->  | BD39: =IF(LEN(B39)=0,"",IF(ISBLANK(Planning!E222),0,Planning!E222)) ->  | BE39: =IF(LEN(B39)=0,"",IF(ISBLANK(Planning!F222),0,Planning!F222)) ->  | BF39: =IF(LEN(B39)=0,"",IF(ISBLANK(Planning!G222),0,Planning!G222)) ->  | BG39: =IF(LEN(B39)=0,"",IF(ISBLANK(Planning!H222),0,Planning!H222)) ->  | BH39: =IF(LEN(B39)=0,"",IF(ISBLANK(Planning!I222),0,Planning!I222)) ->  | BI39: =IF(LEN(B39)=0,"",IF(ISBLANK(Planning!J222),0,Planning!J222)) ->  | BL39: =IF(AX39=0,VLOOKUP(BK39,Data!$C$116:$D$119,2),"") -> 
B40: =IF(ISBLANK(Planning!A170),"",Planning!A170) ->  | C40: =IF(ISBLANK(Planning!D64),"",Planning!D64) ->  | D40: =IF(LEN(C40)=0,"",IF(ISNA(VLOOKUP(C40,INDIRECT(ADDRESS(Data!$AG$67,Data!$AG$65,1,1,"Data")):INDIRECT(ADDRESS(Data!$AG$68,Data!$AG$66,1,1,"Data")),Data!$AG$74,0)),$B$10,VLOOKUP(Planning!D64,INDIRECT(ADDRESS(Data!$AG$67,Data!$AG$65,1,1,"Data")):INDIRECT(ADDRESS(Data!$AG$68,Data!$AG$66,1,1,"Data")),Data!$AG$74,0))) ->  | E40: =IF(ISBLANK(Planning!I170),"",Planning!I170) ->  | F40: =IF(ISBLANK(Planning!I170),"",INDEX(Planning!$A$21:$C$25,MATCH(E40,Planning!$A$21:$A$25,0),2)) ->  | G40: =IF(ISNA(INDEX(Planning!$A$21:$N$25,MATCH(E40,Planning!$A$21:$A$25,0),12)),"",INDEX(Planning!$A$21:$N$25,MATCH(E40,Planning!$A$21:$A$25,0),12)) ->  | H40: =IF(ISNA(INDEX(Planning!$A$21:$N$25,MATCH(E40,Planning!$A$21:$A$25,0),8)/2.29),"",INDEX(Planning!$A$21:$N$25,MATCH(E40,Planning!$A$21:$A$25,0),8)/2.29) ->  | I40: =IF(ISBLANK(Planning!J170),"",Planning!J170) ->  | L40: =IF(ISNA(INDEX(Planning!$A$21:$N$25,MATCH(E40,Planning!$A$21:$A$25,0),14)),"",INDEX(Planning!$A$21:$N$25,MATCH(E40,Planning!$A$21:$A$25,0),14)) ->  | M40: =IF(ISERROR(VLOOKUP(L40,Data!$Q$65:$R$66,2,1)),"",VLOOKUP(L40,Data!$Q$65:$R$66,2,1)) ->  | P40: =IF(LEN(B40)=0,"",Planning!B64*(1.3333)) ->  | T40: =IF(LEN(B40)=0,"",IF(ISBLANK(Data!$AG$69),"",Data!$AG$69)) ->  | U40: =IF(ISERROR(VLOOKUP(C40,INDIRECT(ADDRESS(Data!$AG$67,Data!$AG$65,1,1,"Data")):INDIRECT(ADDRESS(Data!$AG$68,Data!$AG$66,1,1,"Data")),Data!$AG$81,0)),"",VLOOKUP(C40,INDIRECT(ADDRESS(Data!$AG$67,Data!$AG$65,1,1,"Data")):INDIRECT(ADDRESS(Data!$AG$68,Data!$AG$66,1,1,"Data")),Data!$AG$81,0)) ->  | V40: =IF(LEN(B40)=0,"",IF(LEN(Data!$AG$71)=0,"",IF(Data!$AG$71=1,"Yes", "No"))) ->  | W40: =IF(ISERROR(IF(V40="NO",U40,VLOOKUP(U40,Data!$AA$72:$AB$85,2,0))),"",IF(V40="NO",U40,VLOOKUP(U40,Data!$AA$72:$AB$85,2,0))) ->  | X40: =IF(ISBLANK(Planning!H64),"",Planning!H64) ->  | Y40: =IF(ISBLANK(Planning!L64),"",Planning!L64) ->  | Z40: =IF(ISERROR(INDEX(Data!$D$128:$T$146,MATCH(X40,Data!$C$128:$C$146,1),MATCH(Y40,Data!$D$127:$T$127,1))),"",INDEX(Data!$D$128:$T$146,MATCH(X40,Data!$C$128:$C$146,1),MATCH(Y40,Data!$D$127:$T$127,1))) ->  | AA40: =IF(ISBLANK(Planning!F116),"",Planning!F116) ->  | AB40: =IF(ISBLANK(Planning!H116),"",Planning!H116) ->  | AC40: =IF(ISERROR(INDEX(Data!$F$155:$K$156,VLOOKUP(AA40,Data!$C$79:$D$81,2),VLOOKUP(AB40,Data!$G$79:$H$85,2,0))),"",INDEX(Data!$F$155:$K$156,VLOOKUP(AA40,Data!$C$79:$D$81,2),VLOOKUP(AB40,Data!$G$79:$H$85,2,0))) ->  | AD40: =IF(ISBLANK(Planning!J116),"",Planning!J116) ->  | AE40: =IF(ISERROR(VLOOKUP(AD40,Data!$J$79:$K$81,2,0)),"",VLOOKUP(AD40,Data!$J$79:$K$81,2,0)) ->  | AF40: =IF(ISERROR(VLOOKUP(C40,INDIRECT(ADDRESS(Data!$AG$67,Data!$AG$65,1,1,"Data")):INDIRECT(ADDRESS(Data!$AG$68,Data!$AG$66,1,1,"Data")),Data!$AG$84,0)),"",VLOOKUP(C40,INDIRECT(ADDRESS(Data!$AG$67,Data!$AG$65,1,1,"Data")):INDIRECT(ADDRESS(Data!$AG$68,Data!$AG$66,1,1,"Data")),Data!$AG$84,0)) ->  | AG40: =IF(LEN(B40)=0,"",IF(LEN(Data!$AG$70)=0,"",Data!$AG$70)) ->  | AH40: =IF(LEN(AE40)=0,"",IF(AE40="Yes",INDIRECT(ADDRESS((ROW(Data!$M$153)+MATCH(AG40,Data!$M$154:$M$293,0)+MATCH(X40,Data!$P$154:$P$174,1)-1),(COLUMN(Data!$Q$153)+MATCH(AF40,Data!$R$153:$U$153,0)),1,1,"Data"),TRUE),1)) ->  | AJ40: =IF(ISBLANK(Planning!M116),"",Planning!M116) ->  | AL40: =IF(ISERROR(VLOOKUP(AK40,Data!$J$105:$K$109,2,1)),"",VLOOKUP(AK40,Data!$J$105:$K$109,2,1)) ->  | AM40: =IF(ISBLANK(Planning!B170),"",Planning!B170) ->  | AN40: =IF(ISERROR(INDEX(Data!$D$91:$G$94,MATCH(AM40,Data!$C$91:$C$94,1),MATCH(AF40,Data!$D$90:$G$90,1))),"",INDEX(Data!$D$91:$G$94,MATCH(AM40,Data!$C$91:$C$94,1),MATCH(AF40,Data!$D$90:$G$90,1))) ->  | AO40: =IF(ISERROR(VLOOKUP(X40,Data!$D$184:$K$200,HLOOKUP(AN40,Data!$E$182:$K$183,2))),"",VLOOKUP(X40,Data!$D$184:$K$200,HLOOKUP(AN40,Data!$E$182:$K$183,2))) ->  | AP40: =IF(ISERROR(VLOOKUP(AO40,Data!$C$105:$D$110,2)),"",VLOOKUP(AO40,Data!$C$105:$D$110,2)) ->  | AQ40: =IF(ISBLANK(Planning!M64),"",Planning!M64) ->  | AR40: =IF(ISERROR(VLOOKUP(AQ40,Data!$F$105:$G$108,2,1)),"",VLOOKUP(AQ40,Data!$F$105:$G$108,2,1)) ->  | AS40: =IF(ISBLANK(Planning!F170),"",Planning!F170) ->  | AT40: =IF(ISERROR(VLOOKUP(AS40,Data!$C$99:$D$101,2)),"",VLOOKUP(AS40,Data!$C$99:$D$101,2)) ->  | AU40: =IF(ISBLANK(Planning!H170),"",Planning!H170) ->  | AV40: =IF(ISERROR(VLOOKUP(AU40,Data!$G$99:$H$101,2)),"",VLOOKUP(AU40,Data!$G$99:$H$101,2)) ->  | AZ40: =IF(AX40=0,VLOOKUP(AY40,Data!$C$116:$D$119,2),"") ->  | BA40: =IF(LEN(B40)=0,"",IF(ISBLANK(Planning!B223),0,Planning!B223)) ->  | BB40: =IF(LEN(B40)=0,"",IF(ISBLANK(Planning!C223),0,Planning!C223)) ->  | BC40: =IF(LEN(B40)=0,"",IF(ISBLANK(Planning!D223),0,Planning!D223)) ->  | BD40: =IF(LEN(B40)=0,"",IF(ISBLANK(Planning!E223),0,Planning!E223)) ->  | BE40: =IF(LEN(B40)=0,"",IF(ISBLANK(Planning!F223),0,Planning!F223)) ->  | BF40: =IF(LEN(B40)=0,"",IF(ISBLANK(Planning!G223),0,Planning!G223)) ->  | BG40: =IF(LEN(B40)=0,"",IF(ISBLANK(Planning!H223),0,Planning!H223)) ->  | BH40: =IF(LEN(B40)=0,"",IF(ISBLANK(Planning!I223),0,Planning!I223)) ->  | BI40: =IF(LEN(B40)=0,"",IF(ISBLANK(Planning!J223),0,Planning!J223)) ->  | BL40: =IF(AX40=0,VLOOKUP(BK40,Data!$C$116:$D$119,2),"") -> 
B41: =IF(ISBLANK(Planning!A171),"",Planning!A171) ->  | C41: =IF(ISBLANK(Planning!D65),"",Planning!D65) ->  | D41: =IF(LEN(C41)=0,"",IF(ISNA(VLOOKUP(C41,INDIRECT(ADDRESS(Data!$AG$67,Data!$AG$65,1,1,"Data")):INDIRECT(ADDRESS(Data!$AG$68,Data!$AG$66,1,1,"Data")),Data!$AG$74,0)),$B$10,VLOOKUP(Planning!D65,INDIRECT(ADDRESS(Data!$AG$67,Data!$AG$65,1,1,"Data")):INDIRECT(ADDRESS(Data!$AG$68,Data!$AG$66,1,1,"Data")),Data!$AG$74,0))) ->  | E41: =IF(ISBLANK(Planning!I171),"",Planning!I171) ->  | F41: =IF(ISBLANK(Planning!I171),"",INDEX(Planning!$A$21:$C$25,MATCH(E41,Planning!$A$21:$A$25,0),2)) ->  | G41: =IF(ISNA(INDEX(Planning!$A$21:$N$25,MATCH(E41,Planning!$A$21:$A$25,0),12)),"",INDEX(Planning!$A$21:$N$25,MATCH(E41,Planning!$A$21:$A$25,0),12)) ->  | H41: =IF(ISNA(INDEX(Planning!$A$21:$N$25,MATCH(E41,Planning!$A$21:$A$25,0),8)/2.29),"",INDEX(Planning!$A$21:$N$25,MATCH(E41,Planning!$A$21:$A$25,0),8)/2.29) ->  | I41: =IF(ISBLANK(Planning!J171),"",Planning!J171) ->  | L41: =IF(ISNA(INDEX(Planning!$A$21:$N$25,MATCH(E41,Planning!$A$21:$A$25,0),14)),"",INDEX(Planning!$A$21:$N$25,MATCH(E41,Planning!$A$21:$A$25,0),14)) ->  | M41: =IF(ISERROR(VLOOKUP(L41,Data!$Q$65:$R$66,2,1)),"",VLOOKUP(L41,Data!$Q$65:$R$66,2,1)) ->  | P41: =IF(LEN(B41)=0,"",Planning!B65*(1.3333)) ->  | T41: =IF(LEN(B41)=0,"",IF(ISBLANK(Data!$AG$69),"",Data!$AG$69)) ->  | U41: =IF(ISERROR(VLOOKUP(C41,INDIRECT(ADDRESS(Data!$AG$67,Data!$AG$65,1,1,"Data")):INDIRECT(ADDRESS(Data!$AG$68,Data!$AG$66,1,1,"Data")),Data!$AG$81,0)),"",VLOOKUP(C41,INDIRECT(ADDRESS(Data!$AG$67,Data!$AG$65,1,1,"Data")):INDIRECT(ADDRESS(Data!$AG$68,Data!$AG$66,1,1,"Data")),Data!$AG$81,0)) ->  | V41: =IF(LEN(B41)=0,"",IF(LEN(Data!$AG$71)=0,"",IF(Data!$AG$71=1,"Yes", "No"))) ->  | W41: =IF(ISERROR(IF(V41="NO",U41,VLOOKUP(U41,Data!$AA$72:$AB$85,2,0))),"",IF(V41="NO",U41,VLOOKUP(U41,Data!$AA$72:$AB$85,2,0))) ->  | X41: =IF(ISBLANK(Planning!H65),"",Planning!H65) ->  | Y41: =IF(ISBLANK(Planning!L65),"",Planning!L65) ->  | Z41: =IF(ISERROR(INDEX(Data!$D$128:$T$146,MATCH(X41,Data!$C$128:$C$146,1),MATCH(Y41,Data!$D$127:$T$127,1))),"",INDEX(Data!$D$128:$T$146,MATCH(X41,Data!$C$128:$C$146,1),MATCH(Y41,Data!$D$127:$T$127,1))) ->  | AA41: =IF(ISBLANK(Planning!F117),"",Planning!F117) ->  | AB41: =IF(ISBLANK(Planning!H117),"",Planning!H117) ->  | AC41: =IF(ISERROR(INDEX(Data!$F$155:$K$156,VLOOKUP(AA41,Data!$C$79:$D$81,2),VLOOKUP(AB41,Data!$G$79:$H$85,2,0))),"",INDEX(Data!$F$155:$K$156,VLOOKUP(AA41,Data!$C$79:$D$81,2),VLOOKUP(AB41,Data!$G$79:$H$85,2,0))) ->  | AD41: =IF(ISBLANK(Planning!J117),"",Planning!J117) ->  | AE41: =IF(ISERROR(VLOOKUP(AD41,Data!$J$79:$K$81,2,0)),"",VLOOKUP(AD41,Data!$J$79:$K$81,2,0)) ->  | AF41: =IF(ISERROR(VLOOKUP(C41,INDIRECT(ADDRESS(Data!$AG$67,Data!$AG$65,1,1,"Data")):INDIRECT(ADDRESS(Data!$AG$68,Data!$AG$66,1,1,"Data")),Data!$AG$84,0)),"",VLOOKUP(C41,INDIRECT(ADDRESS(Data!$AG$67,Data!$AG$65,1,1,"Data")):INDIRECT(ADDRESS(Data!$AG$68,Data!$AG$66,1,1,"Data")),Data!$AG$84,0)) ->  | AG41: =IF(LEN(B41)=0,"",IF(LEN(Data!$AG$70)=0,"",Data!$AG$70)) ->  | AH41: =IF(LEN(AE41)=0,"",IF(AE41="Yes",INDIRECT(ADDRESS((ROW(Data!$M$153)+MATCH(AG41,Data!$M$154:$M$293,0)+MATCH(X41,Data!$P$154:$P$174,1)-1),(COLUMN(Data!$Q$153)+MATCH(AF41,Data!$R$153:$U$153,0)),1,1,"Data"),TRUE),1)) ->  | AJ41: =IF(ISBLANK(Planning!M117),"",Planning!M117) ->  | AL41: =IF(ISERROR(VLOOKUP(AK41,Data!$J$105:$K$109,2,1)),"",VLOOKUP(AK41,Data!$J$105:$K$109,2,1)) ->  | AM41: =IF(ISBLANK(Planning!B171),"",Planning!B171) ->  | AN41: =IF(ISERROR(INDEX(Data!$D$91:$G$94,MATCH(AM41,Data!$C$91:$C$94,1),MATCH(AF41,Data!$D$90:$G$90,1))),"",INDEX(Data!$D$91:$G$94,MATCH(AM41,Data!$C$91:$C$94,1),MATCH(AF41,Data!$D$90:$G$90,1))) ->  | AO41: =IF(ISERROR(VLOOKUP(X41,Data!$D$184:$K$200,HLOOKUP(AN41,Data!$E$182:$K$183,2))),"",VLOOKUP(X41,Data!$D$184:$K$200,HLOOKUP(AN41,Data!$E$182:$K$183,2))) ->  | AP41: =IF(ISERROR(VLOOKUP(AO41,Data!$C$105:$D$110,2)),"",VLOOKUP(AO41,Data!$C$105:$D$110,2)) ->  | AQ41: =IF(ISBLANK(Planning!M65),"",Planning!M65) ->  | AR41: =IF(ISERROR(VLOOKUP(AQ41,Data!$F$105:$G$108,2,1)),"",VLOOKUP(AQ41,Data!$F$105:$G$108,2,1)) ->  | AS41: =IF(ISBLANK(Planning!F171),"",Planning!F171) ->  | AT41: =IF(ISERROR(VLOOKUP(AS41,Data!$C$99:$D$101,2)),"",VLOOKUP(AS41,Data!$C$99:$D$101,2)) ->  | AU41: =IF(ISBLANK(Planning!H171),"",Planning!H171) ->  | AV41: =IF(ISERROR(VLOOKUP(AU41,Data!$G$99:$H$101,2)),"",VLOOKUP(AU41,Data!$G$99:$H$101,2)) ->  | AZ41: =IF(AX41=0,VLOOKUP(AY41,Data!$C$116:$D$119,2),"") ->  | BA41: =IF(LEN(B41)=0,"",IF(ISBLANK(Planning!B224),0,Planning!B224)) ->  | BB41: =IF(LEN(B41)=0,"",IF(ISBLANK(Planning!C224),0,Planning!C224)) ->  | BC41: =IF(LEN(B41)=0,"",IF(ISBLANK(Planning!D224),0,Planning!D224)) ->  | BD41: =IF(LEN(B41)=0,"",IF(ISBLANK(Planning!E224),0,Planning!E224)) ->  | BE41: =IF(LEN(B41)=0,"",IF(ISBLANK(Planning!F224),0,Planning!F224)) ->  | BF41: =IF(LEN(B41)=0,"",IF(ISBLANK(Planning!G224),0,Planning!G224)) ->  | BG41: =IF(LEN(B41)=0,"",IF(ISBLANK(Planning!H224),0,Planning!H224)) ->  | BH41: =IF(LEN(B41)=0,"",IF(ISBLANK(Planning!I224),0,Planning!I224)) ->  | BI41: =IF(LEN(B41)=0,"",IF(ISBLANK(Planning!J224),0,Planning!J224)) ->  | BL41: =IF(AX41=0,VLOOKUP(BK41,Data!$C$116:$D$119,2),"") -> 
B42: =IF(ISBLANK(Planning!A172),"",Planning!A172) ->  | C42: =IF(ISBLANK(Planning!D66),"",Planning!D66) ->  | D42: =IF(LEN(C42)=0,"",IF(ISNA(VLOOKUP(C42,INDIRECT(ADDRESS(Data!$AG$67,Data!$AG$65,1,1,"Data")):INDIRECT(ADDRESS(Data!$AG$68,Data!$AG$66,1,1,"Data")),Data!$AG$74,0)),$B$10,VLOOKUP(Planning!D66,INDIRECT(ADDRESS(Data!$AG$67,Data!$AG$65,1,1,"Data")):INDIRECT(ADDRESS(Data!$AG$68,Data!$AG$66,1,1,"Data")),Data!$AG$74,0))) ->  | E42: =IF(ISBLANK(Planning!I172),"",Planning!I172) ->  | F42: =IF(ISBLANK(Planning!I172),"",INDEX(Planning!$A$21:$C$25,MATCH(E42,Planning!$A$21:$A$25,0),2)) ->  | G42: =IF(ISNA(INDEX(Planning!$A$21:$N$25,MATCH(E42,Planning!$A$21:$A$25,0),12)),"",INDEX(Planning!$A$21:$N$25,MATCH(E42,Planning!$A$21:$A$25,0),12)) ->  | H42: =IF(ISNA(INDEX(Planning!$A$21:$N$25,MATCH(E42,Planning!$A$21:$A$25,0),8)/2.29),"",INDEX(Planning!$A$21:$N$25,MATCH(E42,Planning!$A$21:$A$25,0),8)/2.29) ->  | I42: =IF(ISBLANK(Planning!J172),"",Planning!J172) ->  | L42: =IF(ISNA(INDEX(Planning!$A$21:$N$25,MATCH(E42,Planning!$A$21:$A$25,0),14)),"",INDEX(Planning!$A$21:$N$25,MATCH(E42,Planning!$A$21:$A$25,0),14)) ->  | M42: =IF(ISERROR(VLOOKUP(L42,Data!$Q$65:$R$66,2,1)),"",VLOOKUP(L42,Data!$Q$65:$R$66,2,1)) ->  | P42: =IF(LEN(B42)=0,"",Planning!B66*(1.3333)) ->  | T42: =IF(LEN(B42)=0,"",IF(ISBLANK(Data!$AG$69),"",Data!$AG$69)) ->  | U42: =IF(ISERROR(VLOOKUP(C42,INDIRECT(ADDRESS(Data!$AG$67,Data!$AG$65,1,1,"Data")):INDIRECT(ADDRESS(Data!$AG$68,Data!$AG$66,1,1,"Data")),Data!$AG$81,0)),"",VLOOKUP(C42,INDIRECT(ADDRESS(Data!$AG$67,Data!$AG$65,1,1,"Data")):INDIRECT(ADDRESS(Data!$AG$68,Data!$AG$66,1,1,"Data")),Data!$AG$81,0)) ->  | V42: =IF(LEN(B42)=0,"",IF(LEN(Data!$AG$71)=0,"",IF(Data!$AG$71=1,"Yes", "No"))) ->  | W42: =IF(ISERROR(IF(V42="NO",U42,VLOOKUP(U42,Data!$AA$72:$AB$85,2,0))),"",IF(V42="NO",U42,VLOOKUP(U42,Data!$AA$72:$AB$85,2,0))) ->  | X42: =IF(ISBLANK(Planning!H66),"",Planning!H66) ->  | Y42: =IF(ISBLANK(Planning!L66),"",Planning!L66) ->  | Z42: =IF(ISERROR(INDEX(Data!$D$128:$T$146,MATCH(X42,Data!$C$128:$C$146,1),MATCH(Y42,Data!$D$127:$T$127,1))),"",INDEX(Data!$D$128:$T$146,MATCH(X42,Data!$C$128:$C$146,1),MATCH(Y42,Data!$D$127:$T$127,1))) ->  | AA42: =IF(ISBLANK(Planning!F118),"",Planning!F118) ->  | AB42: =IF(ISBLANK(Planning!H118),"",Planning!H118) ->  | AC42: =IF(ISERROR(INDEX(Data!$F$155:$K$156,VLOOKUP(AA42,Data!$C$79:$D$81,2),VLOOKUP(AB42,Data!$G$79:$H$85,2,0))),"",INDEX(Data!$F$155:$K$156,VLOOKUP(AA42,Data!$C$79:$D$81,2),VLOOKUP(AB42,Data!$G$79:$H$85,2,0))) ->  | AD42: =IF(ISBLANK(Planning!J118),"",Planning!J118) ->  | AE42: =IF(ISERROR(VLOOKUP(AD42,Data!$J$79:$K$81,2,0)),"",VLOOKUP(AD42,Data!$J$79:$K$81,2,0)) ->  | AF42: =IF(ISERROR(VLOOKUP(C42,INDIRECT(ADDRESS(Data!$AG$67,Data!$AG$65,1,1,"Data")):INDIRECT(ADDRESS(Data!$AG$68,Data!$AG$66,1,1,"Data")),Data!$AG$84,0)),"",VLOOKUP(C42,INDIRECT(ADDRESS(Data!$AG$67,Data!$AG$65,1,1,"Data")):INDIRECT(ADDRESS(Data!$AG$68,Data!$AG$66,1,1,"Data")),Data!$AG$84,0)) ->  | AG42: =IF(LEN(B42)=0,"",IF(LEN(Data!$AG$70)=0,"",Data!$AG$70)) ->  | AH42: =IF(LEN(AE42)=0,"",IF(AE42="Yes",INDIRECT(ADDRESS((ROW(Data!$M$153)+MATCH(AG42,Data!$M$154:$M$293,0)+MATCH(X42,Data!$P$154:$P$174,1)-1),(COLUMN(Data!$Q$153)+MATCH(AF42,Data!$R$153:$U$153,0)),1,1,"Data"),TRUE),1)) ->  | AJ42: =IF(ISBLANK(Planning!M118),"",Planning!M118) ->  | AL42: =IF(ISERROR(VLOOKUP(AK42,Data!$J$105:$K$109,2,1)),"",VLOOKUP(AK42,Data!$J$105:$K$109,2,1)) ->  | AM42: =IF(ISBLANK(Planning!B172),"",Planning!B172) ->  | AN42: =IF(ISERROR(INDEX(Data!$D$91:$G$94,MATCH(AM42,Data!$C$91:$C$94,1),MATCH(AF42,Data!$D$90:$G$90,1))),"",INDEX(Data!$D$91:$G$94,MATCH(AM42,Data!$C$91:$C$94,1),MATCH(AF42,Data!$D$90:$G$90,1))) ->  | AO42: =IF(ISERROR(VLOOKUP(X42,Data!$D$184:$K$200,HLOOKUP(AN42,Data!$E$182:$K$183,2))),"",VLOOKUP(X42,Data!$D$184:$K$200,HLOOKUP(AN42,Data!$E$182:$K$183,2))) ->  | AP42: =IF(ISERROR(VLOOKUP(AO42,Data!$C$105:$D$110,2)),"",VLOOKUP(AO42,Data!$C$105:$D$110,2)) ->  | AQ42: =IF(ISBLANK(Planning!M66),"",Planning!M66) ->  | AR42: =IF(ISERROR(VLOOKUP(AQ42,Data!$F$105:$G$108,2,1)),"",VLOOKUP(AQ42,Data!$F$105:$G$108,2,1)) ->  | AS42: =IF(ISBLANK(Planning!F172),"",Planning!F172) ->  | AT42: =IF(ISERROR(VLOOKUP(AS42,Data!$C$99:$D$101,2)),"",VLOOKUP(AS42,Data!$C$99:$D$101,2)) ->  | AU42: =IF(ISBLANK(Planning!H172),"",Planning!H172) ->  | AV42: =IF(ISERROR(VLOOKUP(AU42,Data!$G$99:$H$101,2)),"",VLOOKUP(AU42,Data!$G$99:$H$101,2)) ->  | AZ42: =IF(AX42=0,VLOOKUP(AY42,Data!$C$116:$D$119,2),"") ->  | BA42: =IF(LEN(B42)=0,"",IF(ISBLANK(Planning!B225),0,Planning!B225)) ->  | BB42: =IF(LEN(B42)=0,"",IF(ISBLANK(Planning!C225),0,Planning!C225)) ->  | BC42: =IF(LEN(B42)=0,"",IF(ISBLANK(Planning!D225),0,Planning!D225)) ->  | BD42: =IF(LEN(B42)=0,"",IF(ISBLANK(Planning!E225),0,Planning!E225)) ->  | BE42: =IF(LEN(B42)=0,"",IF(ISBLANK(Planning!F225),0,Planning!F225)) ->  | BF42: =IF(LEN(B42)=0,"",IF(ISBLANK(Planning!G225),0,Planning!G225)) ->  | BG42: =IF(LEN(B42)=0,"",IF(ISBLANK(Planning!H225),0,Planning!H225)) ->  | BH42: =IF(LEN(B42)=0,"",IF(ISBLANK(Planning!I225),0,Planning!I225)) ->  | BI42: =IF(LEN(B42)=0,"",IF(ISBLANK(Planning!J225),0,Planning!J225)) ->  | BL42: =IF(AX42=0,VLOOKUP(BK42,Data!$C$116:$D$119,2),"") -> 
B43: =IF(ISBLANK(Planning!A173),"",Planning!A173) ->  | C43: =IF(ISBLANK(Planning!D67),"",Planning!D67) ->  | D43: =IF(LEN(C43)=0,"",IF(ISNA(VLOOKUP(C43,INDIRECT(ADDRESS(Data!$AG$67,Data!$AG$65,1,1,"Data")):INDIRECT(ADDRESS(Data!$AG$68,Data!$AG$66,1,1,"Data")),Data!$AG$74,0)),$B$10,VLOOKUP(Planning!D67,INDIRECT(ADDRESS(Data!$AG$67,Data!$AG$65,1,1,"Data")):INDIRECT(ADDRESS(Data!$AG$68,Data!$AG$66,1,1,"Data")),Data!$AG$74,0))) ->  | E43: =IF(ISBLANK(Planning!I173),"",Planning!I173) ->  | F43: =IF(ISBLANK(Planning!I173),"",INDEX(Planning!$A$21:$C$25,MATCH(E43,Planning!$A$21:$A$25,0),2)) ->  | G43: =IF(ISNA(INDEX(Planning!$A$21:$N$25,MATCH(E43,Planning!$A$21:$A$25,0),12)),"",INDEX(Planning!$A$21:$N$25,MATCH(E43,Planning!$A$21:$A$25,0),12)) ->  | H43: =IF(ISNA(INDEX(Planning!$A$21:$N$25,MATCH(E43,Planning!$A$21:$A$25,0),8)/2.29),"",INDEX(Planning!$A$21:$N$25,MATCH(E43,Planning!$A$21:$A$25,0),8)/2.29) ->  | I43: =IF(ISBLANK(Planning!J173),"",Planning!J173) ->  | L43: =IF(ISNA(INDEX(Planning!$A$21:$N$25,MATCH(E43,Planning!$A$21:$A$25,0),14)),"",INDEX(Planning!$A$21:$N$25,MATCH(E43,Planning!$A$21:$A$25,0),14)) ->  | M43: =IF(ISERROR(VLOOKUP(L43,Data!$Q$65:$R$66,2,1)),"",VLOOKUP(L43,Data!$Q$65:$R$66,2,1)) ->  | P43: =IF(LEN(B43)=0,"",Planning!B67*(1.3333)) ->  | T43: =IF(LEN(B43)=0,"",IF(ISBLANK(Data!$AG$69),"",Data!$AG$69)) ->  | U43: =IF(ISERROR(VLOOKUP(C43,INDIRECT(ADDRESS(Data!$AG$67,Data!$AG$65,1,1,"Data")):INDIRECT(ADDRESS(Data!$AG$68,Data!$AG$66,1,1,"Data")),Data!$AG$81,0)),"",VLOOKUP(C43,INDIRECT(ADDRESS(Data!$AG$67,Data!$AG$65,1,1,"Data")):INDIRECT(ADDRESS(Data!$AG$68,Data!$AG$66,1,1,"Data")),Data!$AG$81,0)) ->  | V43: =IF(LEN(B43)=0,"",IF(LEN(Data!$AG$71)=0,"",IF(Data!$AG$71=1,"Yes", "No"))) ->  | W43: =IF(ISERROR(IF(V43="NO",U43,VLOOKUP(U43,Data!$AA$72:$AB$85,2,0))),"",IF(V43="NO",U43,VLOOKUP(U43,Data!$AA$72:$AB$85,2,0))) ->  | X43: =IF(ISBLANK(Planning!H67),"",Planning!H67) ->  | Y43: =IF(ISBLANK(Planning!L67),"",Planning!L67) ->  | Z43: =IF(ISERROR(INDEX(Data!$D$128:$T$146,MATCH(X43,Data!$C$128:$C$146,1),MATCH(Y43,Data!$D$127:$T$127,1))),"",INDEX(Data!$D$128:$T$146,MATCH(X43,Data!$C$128:$C$146,1),MATCH(Y43,Data!$D$127:$T$127,1))) ->  | AA43: =IF(ISBLANK(Planning!F119),"",Planning!F119) ->  | AB43: =IF(ISBLANK(Planning!H119),"",Planning!H119) ->  | AC43: =IF(ISERROR(INDEX(Data!$F$155:$K$156,VLOOKUP(AA43,Data!$C$79:$D$81,2),VLOOKUP(AB43,Data!$G$79:$H$85,2,0))),"",INDEX(Data!$F$155:$K$156,VLOOKUP(AA43,Data!$C$79:$D$81,2),VLOOKUP(AB43,Data!$G$79:$H$85,2,0))) ->  | AD43: =IF(ISBLANK(Planning!J119),"",Planning!J119) ->  | AE43: =IF(ISERROR(VLOOKUP(AD43,Data!$J$79:$K$81,2,0)),"",VLOOKUP(AD43,Data!$J$79:$K$81,2,0)) ->  | AF43: =IF(ISERROR(VLOOKUP(C43,INDIRECT(ADDRESS(Data!$AG$67,Data!$AG$65,1,1,"Data")):INDIRECT(ADDRESS(Data!$AG$68,Data!$AG$66,1,1,"Data")),Data!$AG$84,0)),"",VLOOKUP(C43,INDIRECT(ADDRESS(Data!$AG$67,Data!$AG$65,1,1,"Data")):INDIRECT(ADDRESS(Data!$AG$68,Data!$AG$66,1,1,"Data")),Data!$AG$84,0)) ->  | AG43: =IF(LEN(B43)=0,"",IF(LEN(Data!$AG$70)=0,"",Data!$AG$70)) ->  | AH43: =IF(LEN(AE43)=0,"",IF(AE43="Yes",INDIRECT(ADDRESS((ROW(Data!$M$153)+MATCH(AG43,Data!$M$154:$M$293,0)+MATCH(X43,Data!$P$154:$P$174,1)-1),(COLUMN(Data!$Q$153)+MATCH(AF43,Data!$R$153:$U$153,0)),1,1,"Data"),TRUE),1)) ->  | AJ43: =IF(ISBLANK(Planning!M119),"",Planning!M119) ->  | AL43: =IF(ISERROR(VLOOKUP(AK43,Data!$J$105:$K$109,2,1)),"",VLOOKUP(AK43,Data!$J$105:$K$109,2,1)) ->  | AM43: =IF(ISBLANK(Planning!B173),"",Planning!B173) ->  | AN43: =IF(ISERROR(INDEX(Data!$D$91:$G$94,MATCH(AM43,Data!$C$91:$C$94,1),MATCH(AF43,Data!$D$90:$G$90,1))),"",INDEX(Data!$D$91:$G$94,MATCH(AM43,Data!$C$91:$C$94,1),MATCH(AF43,Data!$D$90:$G$90,1))) ->  | AO43: =IF(ISERROR(VLOOKUP(X43,Data!$D$184:$K$200,HLOOKUP(AN43,Data!$E$182:$K$183,2))),"",VLOOKUP(X43,Data!$D$184:$K$200,HLOOKUP(AN43,Data!$E$182:$K$183,2))) ->  | AP43: =IF(ISERROR(VLOOKUP(AO43,Data!$C$105:$D$110,2)),"",VLOOKUP(AO43,Data!$C$105:$D$110,2)) ->  | AQ43: =IF(ISBLANK(Planning!M67),"",Planning!M67) ->  | AR43: =IF(ISERROR(VLOOKUP(AQ43,Data!$F$105:$G$108,2,1)),"",VLOOKUP(AQ43,Data!$F$105:$G$108,2,1)) ->  | AS43: =IF(ISBLANK(Planning!F173),"",Planning!F173) ->  | AT43: =IF(ISERROR(VLOOKUP(AS43,Data!$C$99:$D$101,2)),"",VLOOKUP(AS43,Data!$C$99:$D$101,2)) ->  | AU43: =IF(ISBLANK(Planning!H173),"",Planning!H173) ->  | AV43: =IF(ISERROR(VLOOKUP(AU43,Data!$G$99:$H$101,2)),"",VLOOKUP(AU43,Data!$G$99:$H$101,2)) ->  | AZ43: =IF(AX43=0,VLOOKUP(AY43,Data!$C$116:$D$119,2),"") ->  | BA43: =IF(LEN(B43)=0,"",IF(ISBLANK(Planning!B226),0,Planning!B226)) ->  | BB43: =IF(LEN(B43)=0,"",IF(ISBLANK(Planning!C226),0,Planning!C226)) ->  | BC43: =IF(LEN(B43)=0,"",IF(ISBLANK(Planning!D226),0,Planning!D226)) ->  | BD43: =IF(LEN(B43)=0,"",IF(ISBLANK(Planning!E226),0,Planning!E226)) ->  | BE43: =IF(LEN(B43)=0,"",IF(ISBLANK(Planning!F226),0,Planning!F226)) ->  | BF43: =IF(LEN(B43)=0,"",IF(ISBLANK(Planning!G226),0,Planning!G226)) ->  | BG43: =IF(LEN(B43)=0,"",IF(ISBLANK(Planning!H226),0,Planning!H226)) ->  | BH43: =IF(LEN(B43)=0,"",IF(ISBLANK(Planning!I226),0,Planning!I226)) ->  | BI43: =IF(LEN(B43)=0,"",IF(ISBLANK(Planning!J226),0,Planning!J226)) ->  | BL43: =IF(AX43=0,VLOOKUP(BK43,Data!$C$116:$D$119,2),"") -> 
B44: =IF(ISBLANK(Planning!A174),"",Planning!A174) ->  | C44: =IF(ISBLANK(Planning!D68),"",Planning!D68) ->  | D44: =IF(LEN(C44)=0,"",IF(ISNA(VLOOKUP(C44,INDIRECT(ADDRESS(Data!$AG$67,Data!$AG$65,1,1,"Data")):INDIRECT(ADDRESS(Data!$AG$68,Data!$AG$66,1,1,"Data")),Data!$AG$74,0)),$B$10,VLOOKUP(Planning!D68,INDIRECT(ADDRESS(Data!$AG$67,Data!$AG$65,1,1,"Data")):INDIRECT(ADDRESS(Data!$AG$68,Data!$AG$66,1,1,"Data")),Data!$AG$74,0))) ->  | E44: =IF(ISBLANK(Planning!I174),"",Planning!I174) ->  | F44: =IF(ISBLANK(Planning!I174),"",INDEX(Planning!$A$21:$C$25,MATCH(E44,Planning!$A$21:$A$25,0),2)) ->  | G44: =IF(ISNA(INDEX(Planning!$A$21:$N$25,MATCH(E44,Planning!$A$21:$A$25,0),12)),"",INDEX(Planning!$A$21:$N$25,MATCH(E44,Planning!$A$21:$A$25,0),12)) ->  | H44: =IF(ISNA(INDEX(Planning!$A$21:$N$25,MATCH(E44,Planning!$A$21:$A$25,0),8)/2.29),"",INDEX(Planning!$A$21:$N$25,MATCH(E44,Planning!$A$21:$A$25,0),8)/2.29) ->  | I44: =IF(ISBLANK(Planning!J174),"",Planning!J174) ->  | L44: =IF(ISNA(INDEX(Planning!$A$21:$N$25,MATCH(E44,Planning!$A$21:$A$25,0),14)),"",INDEX(Planning!$A$21:$N$25,MATCH(E44,Planning!$A$21:$A$25,0),14)) ->  | M44: =IF(ISERROR(VLOOKUP(L44,Data!$Q$65:$R$66,2,1)),"",VLOOKUP(L44,Data!$Q$65:$R$66,2,1)) ->  | P44: =IF(LEN(B44)=0,"",Planning!B68*(1.3333)) ->  | T44: =IF(LEN(B44)=0,"",IF(ISBLANK(Data!$AG$69),"",Data!$AG$69)) ->  | U44: =IF(ISERROR(VLOOKUP(C44,INDIRECT(ADDRESS(Data!$AG$67,Data!$AG$65,1,1,"Data")):INDIRECT(ADDRESS(Data!$AG$68,Data!$AG$66,1,1,"Data")),Data!$AG$81,0)),"",VLOOKUP(C44,INDIRECT(ADDRESS(Data!$AG$67,Data!$AG$65,1,1,"Data")):INDIRECT(ADDRESS(Data!$AG$68,Data!$AG$66,1,1,"Data")),Data!$AG$81,0)) ->  | V44: =IF(LEN(B44)=0,"",IF(LEN(Data!$AG$71)=0,"",IF(Data!$AG$71=1,"Yes", "No"))) ->  | W44: =IF(ISERROR(IF(V44="NO",U44,VLOOKUP(U44,Data!$AA$72:$AB$85,2,0))),"",IF(V44="NO",U44,VLOOKUP(U44,Data!$AA$72:$AB$85,2,0))) ->  | X44: =IF(ISBLANK(Planning!H68),"",Planning!H68) ->  | Y44: =IF(ISBLANK(Planning!L68),"",Planning!L68) ->  | Z44: =IF(ISERROR(INDEX(Data!$D$128:$T$146,MATCH(X44,Data!$C$128:$C$146,1),MATCH(Y44,Data!$D$127:$T$127,1))),"",INDEX(Data!$D$128:$T$146,MATCH(X44,Data!$C$128:$C$146,1),MATCH(Y44,Data!$D$127:$T$127,1))) ->  | AA44: =IF(ISBLANK(Planning!F120),"",Planning!F120) ->  | AB44: =IF(ISBLANK(Planning!H120),"",Planning!H120) ->  | AC44: =IF(ISERROR(INDEX(Data!$F$155:$K$156,VLOOKUP(AA44,Data!$C$79:$D$81,2),VLOOKUP(AB44,Data!$G$79:$H$85,2,0))),"",INDEX(Data!$F$155:$K$156,VLOOKUP(AA44,Data!$C$79:$D$81,2),VLOOKUP(AB44,Data!$G$79:$H$85,2,0))) ->  | AD44: =IF(ISBLANK(Planning!J120),"",Planning!J120) ->  | AE44: =IF(ISERROR(VLOOKUP(AD44,Data!$J$79:$K$81,2,0)),"",VLOOKUP(AD44,Data!$J$79:$K$81,2,0)) ->  | AF44: =IF(ISERROR(VLOOKUP(C44,INDIRECT(ADDRESS(Data!$AG$67,Data!$AG$65,1,1,"Data")):INDIRECT(ADDRESS(Data!$AG$68,Data!$AG$66,1,1,"Data")),Data!$AG$84,0)),"",VLOOKUP(C44,INDIRECT(ADDRESS(Data!$AG$67,Data!$AG$65,1,1,"Data")):INDIRECT(ADDRESS(Data!$AG$68,Data!$AG$66,1,1,"Data")),Data!$AG$84,0)) ->  | AG44: =IF(LEN(B44)=0,"",IF(LEN(Data!$AG$70)=0,"",Data!$AG$70)) ->  | AH44: =IF(LEN(AE44)=0,"",IF(AE44="Yes",INDIRECT(ADDRESS((ROW(Data!$M$153)+MATCH(AG44,Data!$M$154:$M$293,0)+MATCH(X44,Data!$P$154:$P$174,1)-1),(COLUMN(Data!$Q$153)+MATCH(AF44,Data!$R$153:$U$153,0)),1,1,"Data"),TRUE),1)) ->  | AJ44: =IF(ISBLANK(Planning!M120),"",Planning!M120) ->  | AL44: =IF(ISERROR(VLOOKUP(AK44,Data!$J$105:$K$109,2,1)),"",VLOOKUP(AK44,Data!$J$105:$K$109,2,1)) ->  | AM44: =IF(ISBLANK(Planning!B174),"",Planning!B174) ->  | AN44: =IF(ISERROR(INDEX(Data!$D$91:$G$94,MATCH(AM44,Data!$C$91:$C$94,1),MATCH(AF44,Data!$D$90:$G$90,1))),"",INDEX(Data!$D$91:$G$94,MATCH(AM44,Data!$C$91:$C$94,1),MATCH(AF44,Data!$D$90:$G$90,1))) ->  | AO44: =IF(ISERROR(VLOOKUP(X44,Data!$D$184:$K$200,HLOOKUP(AN44,Data!$E$182:$K$183,2))),"",VLOOKUP(X44,Data!$D$184:$K$200,HLOOKUP(AN44,Data!$E$182:$K$183,2))) ->  | AP44: =IF(ISERROR(VLOOKUP(AO44,Data!$C$105:$D$110,2)),"",VLOOKUP(AO44,Data!$C$105:$D$110,2)) ->  | AQ44: =IF(ISBLANK(Planning!M68),"",Planning!M68) ->  | AR44: =IF(ISERROR(VLOOKUP(AQ44,Data!$F$105:$G$108,2,1)),"",VLOOKUP(AQ44,Data!$F$105:$G$108,2,1)) ->  | AS44: =IF(ISBLANK(Planning!F174),"",Planning!F174) ->  | AT44: =IF(ISERROR(VLOOKUP(AS44,Data!$C$99:$D$101,2)),"",VLOOKUP(AS44,Data!$C$99:$D$101,2)) ->  | AU44: =IF(ISBLANK(Planning!H174),"",Planning!H174) ->  | AV44: =IF(ISERROR(VLOOKUP(AU44,Data!$G$99:$H$101,2)),"",VLOOKUP(AU44,Data!$G$99:$H$101,2)) ->  | AZ44: =IF(AX44=0,VLOOKUP(AY44,Data!$C$116:$D$119,2),"") ->  | BA44: =IF(LEN(B44)=0,"",IF(ISBLANK(Planning!B227),0,Planning!B227)) ->  | BB44: =IF(LEN(B44)=0,"",IF(ISBLANK(Planning!C227),0,Planning!C227)) ->  | BC44: =IF(LEN(B44)=0,"",IF(ISBLANK(Planning!D227),0,Planning!D227)) ->  | BD44: =IF(LEN(B44)=0,"",IF(ISBLANK(Planning!E227),0,Planning!E227)) ->  | BE44: =IF(LEN(B44)=0,"",IF(ISBLANK(Planning!F227),0,Planning!F227)) ->  | BF44: =IF(LEN(B44)=0,"",IF(ISBLANK(Planning!G227),0,Planning!G227)) ->  | BG44: =IF(LEN(B44)=0,"",IF(ISBLANK(Planning!H227),0,Planning!H227)) ->  | BH44: =IF(LEN(B44)=0,"",IF(ISBLANK(Planning!I227),0,Planning!I227)) ->  | BI44: =IF(LEN(B44)=0,"",IF(ISBLANK(Planning!J227),0,Planning!J227)) ->  | BL44: =IF(AX44=0,VLOOKUP(BK44,Data!$C$116:$D$119,2),"") -> 
B45: =IF(ISBLANK(Planning!A175),"",Planning!A175) ->  | C45: =IF(ISBLANK(Planning!D69),"",Planning!D69) ->  | D45: =IF(LEN(C45)=0,"",IF(ISNA(VLOOKUP(C45,INDIRECT(ADDRESS(Data!$AG$67,Data!$AG$65,1,1,"Data")):INDIRECT(ADDRESS(Data!$AG$68,Data!$AG$66,1,1,"Data")),Data!$AG$74,0)),$B$10,VLOOKUP(Planning!D69,INDIRECT(ADDRESS(Data!$AG$67,Data!$AG$65,1,1,"Data")):INDIRECT(ADDRESS(Data!$AG$68,Data!$AG$66,1,1,"Data")),Data!$AG$74,0))) ->  | E45: =IF(ISBLANK(Planning!I175),"",Planning!I175) ->  | F45: =IF(ISBLANK(Planning!I175),"",INDEX(Planning!$A$21:$C$25,MATCH(E45,Planning!$A$21:$A$25,0),2)) ->  | G45: =IF(ISNA(INDEX(Planning!$A$21:$N$25,MATCH(E45,Planning!$A$21:$A$25,0),12)),"",INDEX(Planning!$A$21:$N$25,MATCH(E45,Planning!$A$21:$A$25,0),12)) ->  | H45: =IF(ISNA(INDEX(Planning!$A$21:$N$25,MATCH(E45,Planning!$A$21:$A$25,0),8)/2.29),"",INDEX(Planning!$A$21:$N$25,MATCH(E45,Planning!$A$21:$A$25,0),8)/2.29) ->  | I45: =IF(ISBLANK(Planning!J175),"",Planning!J175) ->  | L45: =IF(ISNA(INDEX(Planning!$A$21:$N$25,MATCH(E45,Planning!$A$21:$A$25,0),14)),"",INDEX(Planning!$A$21:$N$25,MATCH(E45,Planning!$A$21:$A$25,0),14)) ->  | M45: =IF(ISERROR(VLOOKUP(L45,Data!$Q$65:$R$66,2,1)),"",VLOOKUP(L45,Data!$Q$65:$R$66,2,1)) ->  | P45: =IF(LEN(B45)=0,"",Planning!B69*(1.3333)) ->  | T45: =IF(LEN(B45)=0,"",IF(ISBLANK(Data!$AG$69),"",Data!$AG$69)) ->  | U45: =IF(ISERROR(VLOOKUP(C45,INDIRECT(ADDRESS(Data!$AG$67,Data!$AG$65,1,1,"Data")):INDIRECT(ADDRESS(Data!$AG$68,Data!$AG$66,1,1,"Data")),Data!$AG$81,0)),"",VLOOKUP(C45,INDIRECT(ADDRESS(Data!$AG$67,Data!$AG$65,1,1,"Data")):INDIRECT(ADDRESS(Data!$AG$68,Data!$AG$66,1,1,"Data")),Data!$AG$81,0)) ->  | V45: =IF(LEN(B45)=0,"",IF(LEN(Data!$AG$71)=0,"",IF(Data!$AG$71=1,"Yes", "No"))) ->  | W45: =IF(ISERROR(IF(V45="NO",U45,VLOOKUP(U45,Data!$AA$72:$AB$85,2,0))),"",IF(V45="NO",U45,VLOOKUP(U45,Data!$AA$72:$AB$85,2,0))) ->  | X45: =IF(ISBLANK(Planning!H69),"",Planning!H69) ->  | Y45: =IF(ISBLANK(Planning!L69),"",Planning!L69) ->  | Z45: =IF(ISERROR(INDEX(Data!$D$128:$T$146,MATCH(X45,Data!$C$128:$C$146,1),MATCH(Y45,Data!$D$127:$T$127,1))),"",INDEX(Data!$D$128:$T$146,MATCH(X45,Data!$C$128:$C$146,1),MATCH(Y45,Data!$D$127:$T$127,1))) ->  | AA45: =IF(ISBLANK(Planning!F121),"",Planning!F121) ->  | AB45: =IF(ISBLANK(Planning!H121),"",Planning!H121) ->  | AC45: =IF(ISERROR(INDEX(Data!$F$155:$K$156,VLOOKUP(AA45,Data!$C$79:$D$81,2),VLOOKUP(AB45,Data!$G$79:$H$85,2,0))),"",INDEX(Data!$F$155:$K$156,VLOOKUP(AA45,Data!$C$79:$D$81,2),VLOOKUP(AB45,Data!$G$79:$H$85,2,0))) ->  | AD45: =IF(ISBLANK(Planning!J121),"",Planning!J121) ->  | AE45: =IF(ISERROR(VLOOKUP(AD45,Data!$J$79:$K$81,2,0)),"",VLOOKUP(AD45,Data!$J$79:$K$81,2,0)) ->  | AF45: =IF(ISERROR(VLOOKUP(C45,INDIRECT(ADDRESS(Data!$AG$67,Data!$AG$65,1,1,"Data")):INDIRECT(ADDRESS(Data!$AG$68,Data!$AG$66,1,1,"Data")),Data!$AG$84,0)),"",VLOOKUP(C45,INDIRECT(ADDRESS(Data!$AG$67,Data!$AG$65,1,1,"Data")):INDIRECT(ADDRESS(Data!$AG$68,Data!$AG$66,1,1,"Data")),Data!$AG$84,0)) ->  | AG45: =IF(LEN(B45)=0,"",IF(LEN(Data!$AG$70)=0,"",Data!$AG$70)) ->  | AH45: =IF(LEN(AE45)=0,"",IF(AE45="Yes",INDIRECT(ADDRESS((ROW(Data!$M$153)+MATCH(AG45,Data!$M$154:$M$293,0)+MATCH(X45,Data!$P$154:$P$174,1)-1),(COLUMN(Data!$Q$153)+MATCH(AF45,Data!$R$153:$U$153,0)),1,1,"Data"),TRUE),1)) ->  | AJ45: =IF(ISBLANK(Planning!M121),"",Planning!M121) ->  | AL45: =IF(ISERROR(VLOOKUP(AK45,Data!$J$105:$K$109,2,1)),"",VLOOKUP(AK45,Data!$J$105:$K$109,2,1)) ->  | AM45: =IF(ISBLANK(Planning!B175),"",Planning!B175) ->  | AN45: =IF(ISERROR(INDEX(Data!$D$91:$G$94,MATCH(AM45,Data!$C$91:$C$94,1),MATCH(AF45,Data!$D$90:$G$90,1))),"",INDEX(Data!$D$91:$G$94,MATCH(AM45,Data!$C$91:$C$94,1),MATCH(AF45,Data!$D$90:$G$90,1))) ->  | AO45: =IF(ISERROR(VLOOKUP(X45,Data!$D$184:$K$200,HLOOKUP(AN45,Data!$E$182:$K$183,2))),"",VLOOKUP(X45,Data!$D$184:$K$200,HLOOKUP(AN45,Data!$E$182:$K$183,2))) ->  | AP45: =IF(ISERROR(VLOOKUP(AO45,Data!$C$105:$D$110,2)),"",VLOOKUP(AO45,Data!$C$105:$D$110,2)) ->  | AQ45: =IF(ISBLANK(Planning!M69),"",Planning!M69) ->  | AR45: =IF(ISERROR(VLOOKUP(AQ45,Data!$F$105:$G$108,2,1)),"",VLOOKUP(AQ45,Data!$F$105:$G$108,2,1)) ->  | AS45: =IF(ISBLANK(Planning!F175),"",Planning!F175) ->  | AT45: =IF(ISERROR(VLOOKUP(AS45,Data!$C$99:$D$101,2)),"",VLOOKUP(AS45,Data!$C$99:$D$101,2)) ->  | AU45: =IF(ISBLANK(Planning!H175),"",Planning!H175) ->  | AV45: =IF(ISERROR(VLOOKUP(AU45,Data!$G$99:$H$101,2)),"",VLOOKUP(AU45,Data!$G$99:$H$101,2)) ->  | AZ45: =IF(AX45=0,VLOOKUP(AY45,Data!$C$116:$D$119,2),"") ->  | BA45: =IF(LEN(B45)=0,"",IF(ISBLANK(Planning!B228),0,Planning!B228)) ->  | BB45: =IF(LEN(B45)=0,"",IF(ISBLANK(Planning!C228),0,Planning!C228)) ->  | BC45: =IF(LEN(B45)=0,"",IF(ISBLANK(Planning!D228),0,Planning!D228)) ->  | BD45: =IF(LEN(B45)=0,"",IF(ISBLANK(Planning!E228),0,Planning!E228)) ->  | BE45: =IF(LEN(B45)=0,"",IF(ISBLANK(Planning!F228),0,Planning!F228)) ->  | BF45: =IF(LEN(B45)=0,"",IF(ISBLANK(Planning!G228),0,Planning!G228)) ->  | BG45: =IF(LEN(B45)=0,"",IF(ISBLANK(Planning!H228),0,Planning!H228)) ->  | BH45: =IF(LEN(B45)=0,"",IF(ISBLANK(Planning!I228),0,Planning!I228)) ->  | BI45: =IF(LEN(B45)=0,"",IF(ISBLANK(Planning!J228),0,Planning!J228)) ->  | BL45: =IF(AX45=0,VLOOKUP(BK45,Data!$C$116:$D$119,2),"") -> 
B46: =IF(ISBLANK(Planning!A176),"",Planning!A176) ->  | C46: =IF(ISBLANK(Planning!D70),"",Planning!D70) ->  | D46: =IF(LEN(C46)=0,"",IF(ISNA(VLOOKUP(C46,INDIRECT(ADDRESS(Data!$AG$67,Data!$AG$65,1,1,"Data")):INDIRECT(ADDRESS(Data!$AG$68,Data!$AG$66,1,1,"Data")),Data!$AG$74,0)),$B$10,VLOOKUP(Planning!D70,INDIRECT(ADDRESS(Data!$AG$67,Data!$AG$65,1,1,"Data")):INDIRECT(ADDRESS(Data!$AG$68,Data!$AG$66,1,1,"Data")),Data!$AG$74,0))) ->  | E46: =IF(ISBLANK(Planning!I176),"",Planning!I176) ->  | F46: =IF(ISBLANK(Planning!I176),"",INDEX(Planning!$A$21:$C$25,MATCH(E46,Planning!$A$21:$A$25,0),2)) ->  | G46: =IF(ISNA(INDEX(Planning!$A$21:$N$25,MATCH(E46,Planning!$A$21:$A$25,0),12)),"",INDEX(Planning!$A$21:$N$25,MATCH(E46,Planning!$A$21:$A$25,0),12)) ->  | H46: =IF(ISNA(INDEX(Planning!$A$21:$N$25,MATCH(E46,Planning!$A$21:$A$25,0),8)/2.29),"",INDEX(Planning!$A$21:$N$25,MATCH(E46,Planning!$A$21:$A$25,0),8)/2.29) ->  | I46: =IF(ISBLANK(Planning!J176),"",Planning!J176) ->  | L46: =IF(ISNA(INDEX(Planning!$A$21:$N$25,MATCH(E46,Planning!$A$21:$A$25,0),14)),"",INDEX(Planning!$A$21:$N$25,MATCH(E46,Planning!$A$21:$A$25,0),14)) ->  | M46: =IF(ISERROR(VLOOKUP(L46,Data!$Q$65:$R$66,2,1)),"",VLOOKUP(L46,Data!$Q$65:$R$66,2,1)) ->  | P46: =IF(LEN(B46)=0,"",Planning!B70*(1.3333)) ->  | T46: =IF(LEN(B46)=0,"",IF(ISBLANK(Data!$AG$69),"",Data!$AG$69)) ->  | U46: =IF(ISERROR(VLOOKUP(C46,INDIRECT(ADDRESS(Data!$AG$67,Data!$AG$65,1,1,"Data")):INDIRECT(ADDRESS(Data!$AG$68,Data!$AG$66,1,1,"Data")),Data!$AG$81,0)),"",VLOOKUP(C46,INDIRECT(ADDRESS(Data!$AG$67,Data!$AG$65,1,1,"Data")):INDIRECT(ADDRESS(Data!$AG$68,Data!$AG$66,1,1,"Data")),Data!$AG$81,0)) ->  | V46: =IF(LEN(B46)=0,"",IF(LEN(Data!$AG$71)=0,"",IF(Data!$AG$71=1,"Yes", "No"))) ->  | W46: =IF(ISERROR(IF(V46="NO",U46,VLOOKUP(U46,Data!$AA$72:$AB$85,2,0))),"",IF(V46="NO",U46,VLOOKUP(U46,Data!$AA$72:$AB$85,2,0))) ->  | X46: =IF(ISBLANK(Planning!H70),"",Planning!H70) ->  | Y46: =IF(ISBLANK(Planning!L70),"",Planning!L70) ->  | Z46: =IF(ISERROR(INDEX(Data!$D$128:$T$146,MATCH(X46,Data!$C$128:$C$146,1),MATCH(Y46,Data!$D$127:$T$127,1))),"",INDEX(Data!$D$128:$T$146,MATCH(X46,Data!$C$128:$C$146,1),MATCH(Y46,Data!$D$127:$T$127,1))) ->  | AA46: =IF(ISBLANK(Planning!F122),"",Planning!F122) ->  | AB46: =IF(ISBLANK(Planning!H122),"",Planning!H122) ->  | AC46: =IF(ISERROR(INDEX(Data!$F$155:$K$156,VLOOKUP(AA46,Data!$C$79:$D$81,2),VLOOKUP(AB46,Data!$G$79:$H$85,2,0))),"",INDEX(Data!$F$155:$K$156,VLOOKUP(AA46,Data!$C$79:$D$81,2),VLOOKUP(AB46,Data!$G$79:$H$85,2,0))) ->  | AD46: =IF(ISBLANK(Planning!J122),"",Planning!J122) ->  | AE46: =IF(ISERROR(VLOOKUP(AD46,Data!$J$79:$K$81,2,0)),"",VLOOKUP(AD46,Data!$J$79:$K$81,2,0)) ->  | AF46: =IF(ISERROR(VLOOKUP(C46,INDIRECT(ADDRESS(Data!$AG$67,Data!$AG$65,1,1,"Data")):INDIRECT(ADDRESS(Data!$AG$68,Data!$AG$66,1,1,"Data")),Data!$AG$84,0)),"",VLOOKUP(C46,INDIRECT(ADDRESS(Data!$AG$67,Data!$AG$65,1,1,"Data")):INDIRECT(ADDRESS(Data!$AG$68,Data!$AG$66,1,1,"Data")),Data!$AG$84,0)) ->  | AG46: =IF(LEN(B46)=0,"",IF(LEN(Data!$AG$70)=0,"",Data!$AG$70)) ->  | AH46: =IF(LEN(AE46)=0,"",IF(AE46="Yes",INDIRECT(ADDRESS((ROW(Data!$M$153)+MATCH(AG46,Data!$M$154:$M$293,0)+MATCH(X46,Data!$P$154:$P$174,1)-1),(COLUMN(Data!$Q$153)+MATCH(AF46,Data!$R$153:$U$153,0)),1,1,"Data"),TRUE),1)) ->  | AJ46: =IF(ISBLANK(Planning!M122),"",Planning!M122) ->  | AL46: =IF(ISERROR(VLOOKUP(AK46,Data!$J$105:$K$109,2,1)),"",VLOOKUP(AK46,Data!$J$105:$K$109,2,1)) ->  | AM46: =IF(ISBLANK(Planning!B176),"",Planning!B176) ->  | AN46: =IF(ISERROR(INDEX(Data!$D$91:$G$94,MATCH(AM46,Data!$C$91:$C$94,1),MATCH(AF46,Data!$D$90:$G$90,1))),"",INDEX(Data!$D$91:$G$94,MATCH(AM46,Data!$C$91:$C$94,1),MATCH(AF46,Data!$D$90:$G$90,1))) ->  | AO46: =IF(ISERROR(VLOOKUP(X46,Data!$D$184:$K$200,HLOOKUP(AN46,Data!$E$182:$K$183,2))),"",VLOOKUP(X46,Data!$D$184:$K$200,HLOOKUP(AN46,Data!$E$182:$K$183,2))) ->  | AP46: =IF(ISERROR(VLOOKUP(AO46,Data!$C$105:$D$110,2)),"",VLOOKUP(AO46,Data!$C$105:$D$110,2)) ->  | AQ46: =IF(ISBLANK(Planning!M70),"",Planning!M70) ->  | AR46: =IF(ISERROR(VLOOKUP(AQ46,Data!$F$105:$G$108,2,1)),"",VLOOKUP(AQ46,Data!$F$105:$G$108,2,1)) ->  | AS46: =IF(ISBLANK(Planning!F176),"",Planning!F176) ->  | AT46: =IF(ISERROR(VLOOKUP(AS46,Data!$C$99:$D$101,2)),"",VLOOKUP(AS46,Data!$C$99:$D$101,2)) ->  | AU46: =IF(ISBLANK(Planning!H176),"",Planning!H176) ->  | AV46: =IF(ISERROR(VLOOKUP(AU46,Data!$G$99:$H$101,2)),"",VLOOKUP(AU46,Data!$G$99:$H$101,2)) ->  | AZ46: =IF(AX46=0,VLOOKUP(AY46,Data!$C$116:$D$119,2),"") ->  | BA46: =IF(LEN(B46)=0,"",IF(ISBLANK(Planning!B229),0,Planning!B229)) ->  | BB46: =IF(LEN(B46)=0,"",IF(ISBLANK(Planning!C229),0,Planning!C229)) ->  | BC46: =IF(LEN(B46)=0,"",IF(ISBLANK(Planning!D229),0,Planning!D229)) ->  | BD46: =IF(LEN(B46)=0,"",IF(ISBLANK(Planning!E229),0,Planning!E229)) ->  | BE46: =IF(LEN(B46)=0,"",IF(ISBLANK(Planning!F229),0,Planning!F229)) ->  | BF46: =IF(LEN(B46)=0,"",IF(ISBLANK(Planning!G229),0,Planning!G229)) ->  | BG46: =IF(LEN(B46)=0,"",IF(ISBLANK(Planning!H229),0,Planning!H229)) ->  | BH46: =IF(LEN(B46)=0,"",IF(ISBLANK(Planning!I229),0,Planning!I229)) ->  | BI46: =IF(LEN(B46)=0,"",IF(ISBLANK(Planning!J229),0,Planning!J229)) ->  | BL46: =IF(AX46=0,VLOOKUP(BK46,Data!$C$116:$D$119,2),"") -> 
B47: =IF(ISBLANK(Planning!A177),"",Planning!A177) ->  | C47: =IF(ISBLANK(Planning!D71),"",Planning!D71) ->  | D47: =IF(LEN(C47)=0,"",IF(ISNA(VLOOKUP(C47,INDIRECT(ADDRESS(Data!$AG$67,Data!$AG$65,1,1,"Data")):INDIRECT(ADDRESS(Data!$AG$68,Data!$AG$66,1,1,"Data")),Data!$AG$74,0)),$B$10,VLOOKUP(Planning!D71,INDIRECT(ADDRESS(Data!$AG$67,Data!$AG$65,1,1,"Data")):INDIRECT(ADDRESS(Data!$AG$68,Data!$AG$66,1,1,"Data")),Data!$AG$74,0))) ->  | E47: =IF(ISBLANK(Planning!I177),"",Planning!I177) ->  | F47: =IF(ISBLANK(Planning!I177),"",INDEX(Planning!$A$21:$C$25,MATCH(E47,Planning!$A$21:$A$25,0),2)) ->  | G47: =IF(ISNA(INDEX(Planning!$A$21:$N$25,MATCH(E47,Planning!$A$21:$A$25,0),12)),"",INDEX(Planning!$A$21:$N$25,MATCH(E47,Planning!$A$21:$A$25,0),12)) ->  | H47: =IF(ISNA(INDEX(Planning!$A$21:$N$25,MATCH(E47,Planning!$A$21:$A$25,0),8)/2.29),"",INDEX(Planning!$A$21:$N$25,MATCH(E47,Planning!$A$21:$A$25,0),8)/2.29) ->  | I47: =IF(ISBLANK(Planning!J177),"",Planning!J177) ->  | L47: =IF(ISNA(INDEX(Planning!$A$21:$N$25,MATCH(E47,Planning!$A$21:$A$25,0),14)),"",INDEX(Planning!$A$21:$N$25,MATCH(E47,Planning!$A$21:$A$25,0),14)) ->  | M47: =IF(ISERROR(VLOOKUP(L47,Data!$Q$65:$R$66,2,1)),"",VLOOKUP(L47,Data!$Q$65:$R$66,2,1)) ->  | P47: =IF(LEN(B47)=0,"",Planning!B71*(1.3333)) ->  | T47: =IF(LEN(B47)=0,"",IF(ISBLANK(Data!$AG$69),"",Data!$AG$69)) ->  | U47: =IF(ISERROR(VLOOKUP(C47,INDIRECT(ADDRESS(Data!$AG$67,Data!$AG$65,1,1,"Data")):INDIRECT(ADDRESS(Data!$AG$68,Data!$AG$66,1,1,"Data")),Data!$AG$81,0)),"",VLOOKUP(C47,INDIRECT(ADDRESS(Data!$AG$67,Data!$AG$65,1,1,"Data")):INDIRECT(ADDRESS(Data!$AG$68,Data!$AG$66,1,1,"Data")),Data!$AG$81,0)) ->  | V47: =IF(LEN(B47)=0,"",IF(LEN(Data!$AG$71)=0,"",IF(Data!$AG$71=1,"Yes", "No"))) ->  | W47: =IF(ISERROR(IF(V47="NO",U47,VLOOKUP(U47,Data!$AA$72:$AB$85,2,0))),"",IF(V47="NO",U47,VLOOKUP(U47,Data!$AA$72:$AB$85,2,0))) ->  | X47: =IF(ISBLANK(Planning!H71),"",Planning!H71) ->  | Y47: =IF(ISBLANK(Planning!L71),"",Planning!L71) ->  | Z47: =IF(ISERROR(INDEX(Data!$D$128:$T$146,MATCH(X47,Data!$C$128:$C$146,1),MATCH(Y47,Data!$D$127:$T$127,1))),"",INDEX(Data!$D$128:$T$146,MATCH(X47,Data!$C$128:$C$146,1),MATCH(Y47,Data!$D$127:$T$127,1))) ->  | AA47: =IF(ISBLANK(Planning!F123),"",Planning!F123) ->  | AB47: =IF(ISBLANK(Planning!H123),"",Planning!H123) ->  | AC47: =IF(ISERROR(INDEX(Data!$F$155:$K$156,VLOOKUP(AA47,Data!$C$79:$D$81,2),VLOOKUP(AB47,Data!$G$79:$H$85,2,0))),"",INDEX(Data!$F$155:$K$156,VLOOKUP(AA47,Data!$C$79:$D$81,2),VLOOKUP(AB47,Data!$G$79:$H$85,2,0))) ->  | AD47: =IF(ISBLANK(Planning!J123),"",Planning!J123) ->  | AE47: =IF(ISERROR(VLOOKUP(AD47,Data!$J$79:$K$81,2,0)),"",VLOOKUP(AD47,Data!$J$79:$K$81,2,0)) ->  | AF47: =IF(ISERROR(VLOOKUP(C47,INDIRECT(ADDRESS(Data!$AG$67,Data!$AG$65,1,1,"Data")):INDIRECT(ADDRESS(Data!$AG$68,Data!$AG$66,1,1,"Data")),Data!$AG$84,0)),"",VLOOKUP(C47,INDIRECT(ADDRESS(Data!$AG$67,Data!$AG$65,1,1,"Data")):INDIRECT(ADDRESS(Data!$AG$68,Data!$AG$66,1,1,"Data")),Data!$AG$84,0)) ->  | AG47: =IF(LEN(B47)=0,"",IF(LEN(Data!$AG$70)=0,"",Data!$AG$70)) ->  | AH47: =IF(LEN(AE47)=0,"",IF(AE47="Yes",INDIRECT(ADDRESS((ROW(Data!$M$153)+MATCH(AG47,Data!$M$154:$M$293,0)+MATCH(X47,Data!$P$154:$P$174,1)-1),(COLUMN(Data!$Q$153)+MATCH(AF47,Data!$R$153:$U$153,0)),1,1,"Data"),TRUE),1)) ->  | AJ47: =IF(ISBLANK(Planning!M123),"",Planning!M123) ->  | AL47: =IF(ISERROR(VLOOKUP(AK47,Data!$J$105:$K$109,2,1)),"",VLOOKUP(AK47,Data!$J$105:$K$109,2,1)) ->  | AM47: =IF(ISBLANK(Planning!B177),"",Planning!B177) ->  | AN47: =IF(ISERROR(INDEX(Data!$D$91:$G$94,MATCH(AM47,Data!$C$91:$C$94,1),MATCH(AF47,Data!$D$90:$G$90,1))),"",INDEX(Data!$D$91:$G$94,MATCH(AM47,Data!$C$91:$C$94,1),MATCH(AF47,Data!$D$90:$G$90,1))) ->  | AO47: =IF(ISERROR(VLOOKUP(X47,Data!$D$184:$K$200,HLOOKUP(AN47,Data!$E$182:$K$183,2))),"",VLOOKUP(X47,Data!$D$184:$K$200,HLOOKUP(AN47,Data!$E$182:$K$183,2))) ->  | AP47: =IF(ISERROR(VLOOKUP(AO47,Data!$C$105:$D$110,2)),"",VLOOKUP(AO47,Data!$C$105:$D$110,2)) ->  | AQ47: =IF(ISBLANK(Planning!M71),"",Planning!M71) ->  | AR47: =IF(ISERROR(VLOOKUP(AQ47,Data!$F$105:$G$108,2,1)),"",VLOOKUP(AQ47,Data!$F$105:$G$108,2,1)) ->  | AS47: =IF(ISBLANK(Planning!F177),"",Planning!F177) ->  | AT47: =IF(ISERROR(VLOOKUP(AS47,Data!$C$99:$D$101,2)),"",VLOOKUP(AS47,Data!$C$99:$D$101,2)) ->  | AU47: =IF(ISBLANK(Planning!H177),"",Planning!H177) ->  | AV47: =IF(ISERROR(VLOOKUP(AU47,Data!$G$99:$H$101,2)),"",VLOOKUP(AU47,Data!$G$99:$H$101,2)) ->  | AZ47: =IF(AX47=0,VLOOKUP(AY47,Data!$C$116:$D$119,2),"") ->  | BA47: =IF(LEN(B47)=0,"",IF(ISBLANK(Planning!B230),0,Planning!B230)) ->  | BB47: =IF(LEN(B47)=0,"",IF(ISBLANK(Planning!C230),0,Planning!C230)) ->  | BC47: =IF(LEN(B47)=0,"",IF(ISBLANK(Planning!D230),0,Planning!D230)) ->  | BD47: =IF(LEN(B47)=0,"",IF(ISBLANK(Planning!E230),0,Planning!E230)) ->  | BE47: =IF(LEN(B47)=0,"",IF(ISBLANK(Planning!F230),0,Planning!F230)) ->  | BF47: =IF(LEN(B47)=0,"",IF(ISBLANK(Planning!G230),0,Planning!G230)) ->  | BG47: =IF(LEN(B47)=0,"",IF(ISBLANK(Planning!H230),0,Planning!H230)) ->  | BH47: =IF(LEN(B47)=0,"",IF(ISBLANK(Planning!I230),0,Planning!I230)) ->  | BI47: =IF(LEN(B47)=0,"",IF(ISBLANK(Planning!J230),0,Planning!J230)) ->  | BL47: =IF(AX47=0,VLOOKUP(BK47,Data!$C$116:$D$119,2),"") -> 
B48: =IF(ISBLANK(Planning!A178),"",Planning!A178) ->  | C48: =IF(ISBLANK(Planning!D72),"",Planning!D72) ->  | D48: =IF(LEN(C48)=0,"",IF(ISNA(VLOOKUP(C48,INDIRECT(ADDRESS(Data!$AG$67,Data!$AG$65,1,1,"Data")):INDIRECT(ADDRESS(Data!$AG$68,Data!$AG$66,1,1,"Data")),Data!$AG$74,0)),$B$10,VLOOKUP(Planning!D72,INDIRECT(ADDRESS(Data!$AG$67,Data!$AG$65,1,1,"Data")):INDIRECT(ADDRESS(Data!$AG$68,Data!$AG$66,1,1,"Data")),Data!$AG$74,0))) ->  | E48: =IF(ISBLANK(Planning!I178),"",Planning!I178) ->  | F48: =IF(ISBLANK(Planning!I178),"",INDEX(Planning!$A$21:$C$25,MATCH(E48,Planning!$A$21:$A$25,0),2)) ->  | G48: =IF(ISNA(INDEX(Planning!$A$21:$N$25,MATCH(E48,Planning!$A$21:$A$25,0),12)),"",INDEX(Planning!$A$21:$N$25,MATCH(E48,Planning!$A$21:$A$25,0),12)) ->  | H48: =IF(ISNA(INDEX(Planning!$A$21:$N$25,MATCH(E48,Planning!$A$21:$A$25,0),8)/2.29),"",INDEX(Planning!$A$21:$N$25,MATCH(E48,Planning!$A$21:$A$25,0),8)/2.29) ->  | I48: =IF(ISBLANK(Planning!J178),"",Planning!J178) ->  | L48: =IF(ISNA(INDEX(Planning!$A$21:$N$25,MATCH(E48,Planning!$A$21:$A$25,0),14)),"",INDEX(Planning!$A$21:$N$25,MATCH(E48,Planning!$A$21:$A$25,0),14)) ->  | M48: =IF(ISERROR(VLOOKUP(L48,Data!$Q$65:$R$66,2,1)),"",VLOOKUP(L48,Data!$Q$65:$R$66,2,1)) ->  | P48: =IF(LEN(B48)=0,"",Planning!B72*(1.3333)) ->  | T48: =IF(LEN(B48)=0,"",IF(ISBLANK(Data!$AG$69),"",Data!$AG$69)) ->  | U48: =IF(ISERROR(VLOOKUP(C48,INDIRECT(ADDRESS(Data!$AG$67,Data!$AG$65,1,1,"Data")):INDIRECT(ADDRESS(Data!$AG$68,Data!$AG$66,1,1,"Data")),Data!$AG$81,0)),"",VLOOKUP(C48,INDIRECT(ADDRESS(Data!$AG$67,Data!$AG$65,1,1,"Data")):INDIRECT(ADDRESS(Data!$AG$68,Data!$AG$66,1,1,"Data")),Data!$AG$81,0)) ->  | V48: =IF(LEN(B48)=0,"",IF(LEN(Data!$AG$71)=0,"",IF(Data!$AG$71=1,"Yes", "No"))) ->  | W48: =IF(ISERROR(IF(V48="NO",U48,VLOOKUP(U48,Data!$AA$72:$AB$85,2,0))),"",IF(V48="NO",U48,VLOOKUP(U48,Data!$AA$72:$AB$85,2,0))) ->  | X48: =IF(ISBLANK(Planning!H72),"",Planning!H72) ->  | Y48: =IF(ISBLANK(Planning!L72),"",Planning!L72) ->  | Z48: =IF(ISERROR(INDEX(Data!$D$128:$T$146,MATCH(X48,Data!$C$128:$C$146,1),MATCH(Y48,Data!$D$127:$T$127,1))),"",INDEX(Data!$D$128:$T$146,MATCH(X48,Data!$C$128:$C$146,1),MATCH(Y48,Data!$D$127:$T$127,1))) ->  | AA48: =IF(ISBLANK(Planning!F124),"",Planning!F124) ->  | AB48: =IF(ISBLANK(Planning!H124),"",Planning!H124) ->  | AC48: =IF(ISERROR(INDEX(Data!$F$155:$K$156,VLOOKUP(AA48,Data!$C$79:$D$81,2),VLOOKUP(AB48,Data!$G$79:$H$85,2,0))),"",INDEX(Data!$F$155:$K$156,VLOOKUP(AA48,Data!$C$79:$D$81,2),VLOOKUP(AB48,Data!$G$79:$H$85,2,0))) ->  | AD48: =IF(ISBLANK(Planning!J124),"",Planning!J124) ->  | AE48: =IF(ISERROR(VLOOKUP(AD48,Data!$J$79:$K$81,2,0)),"",VLOOKUP(AD48,Data!$J$79:$K$81,2,0)) ->  | AF48: =IF(ISERROR(VLOOKUP(C48,INDIRECT(ADDRESS(Data!$AG$67,Data!$AG$65,1,1,"Data")):INDIRECT(ADDRESS(Data!$AG$68,Data!$AG$66,1,1,"Data")),Data!$AG$84,0)),"",VLOOKUP(C48,INDIRECT(ADDRESS(Data!$AG$67,Data!$AG$65,1,1,"Data")):INDIRECT(ADDRESS(Data!$AG$68,Data!$AG$66,1,1,"Data")),Data!$AG$84,0)) ->  | AG48: =IF(LEN(B48)=0,"",IF(LEN(Data!$AG$70)=0,"",Data!$AG$70)) ->  | AH48: =IF(LEN(AE48)=0,"",IF(AE48="Yes",INDIRECT(ADDRESS((ROW(Data!$M$153)+MATCH(AG48,Data!$M$154:$M$293,0)+MATCH(X48,Data!$P$154:$P$174,1)-1),(COLUMN(Data!$Q$153)+MATCH(AF48,Data!$R$153:$U$153,0)),1,1,"Data"),TRUE),1)) ->  | AJ48: =IF(ISBLANK(Planning!M124),"",Planning!M124) ->  | AL48: =IF(ISERROR(VLOOKUP(AK48,Data!$J$105:$K$109,2,1)),"",VLOOKUP(AK48,Data!$J$105:$K$109,2,1)) ->  | AM48: =IF(ISBLANK(Planning!B178),"",Planning!B178) ->  | AN48: =IF(ISERROR(INDEX(Data!$D$91:$G$94,MATCH(AM48,Data!$C$91:$C$94,1),MATCH(AF48,Data!$D$90:$G$90,1))),"",INDEX(Data!$D$91:$G$94,MATCH(AM48,Data!$C$91:$C$94,1),MATCH(AF48,Data!$D$90:$G$90,1))) ->  | AO48: =IF(ISERROR(VLOOKUP(X48,Data!$D$184:$K$200,HLOOKUP(AN48,Data!$E$182:$K$183,2))),"",VLOOKUP(X48,Data!$D$184:$K$200,HLOOKUP(AN48,Data!$E$182:$K$183,2))) ->  | AP48: =IF(ISERROR(VLOOKUP(AO48,Data!$C$105:$D$110,2)),"",VLOOKUP(AO48,Data!$C$105:$D$110,2)) ->  | AQ48: =IF(ISBLANK(Planning!M72),"",Planning!M72) ->  | AR48: =IF(ISERROR(VLOOKUP(AQ48,Data!$F$105:$G$108,2,1)),"",VLOOKUP(AQ48,Data!$F$105:$G$108,2,1)) ->  | AS48: =IF(ISBLANK(Planning!F178),"",Planning!F178) ->  | AT48: =IF(ISERROR(VLOOKUP(AS48,Data!$C$99:$D$101,2)),"",VLOOKUP(AS48,Data!$C$99:$D$101,2)) ->  | AU48: =IF(ISBLANK(Planning!H178),"",Planning!H178) ->  | AV48: =IF(ISERROR(VLOOKUP(AU48,Data!$G$99:$H$101,2)),"",VLOOKUP(AU48,Data!$G$99:$H$101,2)) ->  | AZ48: =IF(AX48=0,VLOOKUP(AY48,Data!$C$116:$D$119,2),"") ->  | BA48: =IF(LEN(B48)=0,"",IF(ISBLANK(Planning!B231),0,Planning!B231)) ->  | BB48: =IF(LEN(B48)=0,"",IF(ISBLANK(Planning!C231),0,Planning!C231)) ->  | BC48: =IF(LEN(B48)=0,"",IF(ISBLANK(Planning!D231),0,Planning!D231)) ->  | BD48: =IF(LEN(B48)=0,"",IF(ISBLANK(Planning!E231),0,Planning!E231)) ->  | BE48: =IF(LEN(B48)=0,"",IF(ISBLANK(Planning!F231),0,Planning!F231)) ->  | BF48: =IF(LEN(B48)=0,"",IF(ISBLANK(Planning!G231),0,Planning!G231)) ->  | BG48: =IF(LEN(B48)=0,"",IF(ISBLANK(Planning!H231),0,Planning!H231)) ->  | BH48: =IF(LEN(B48)=0,"",IF(ISBLANK(Planning!I231),0,Planning!I231)) ->  | BI48: =IF(LEN(B48)=0,"",IF(ISBLANK(Planning!J231),0,Planning!J231)) ->  | BL48: =IF(AX48=0,VLOOKUP(BK48,Data!$C$116:$D$119,2),"") -> 
B49: =IF(ISBLANK(Planning!A179),"",Planning!A179) ->  | C49: =IF(ISBLANK(Planning!D73),"",Planning!D73) ->  | D49: =IF(LEN(C49)=0,"",IF(ISNA(VLOOKUP(C49,INDIRECT(ADDRESS(Data!$AG$67,Data!$AG$65,1,1,"Data")):INDIRECT(ADDRESS(Data!$AG$68,Data!$AG$66,1,1,"Data")),Data!$AG$74,0)),$B$10,VLOOKUP(Planning!D73,INDIRECT(ADDRESS(Data!$AG$67,Data!$AG$65,1,1,"Data")):INDIRECT(ADDRESS(Data!$AG$68,Data!$AG$66,1,1,"Data")),Data!$AG$74,0))) ->  | E49: =IF(ISBLANK(Planning!I179),"",Planning!I179) ->  | F49: =IF(ISBLANK(Planning!I179),"",INDEX(Planning!$A$21:$C$25,MATCH(E49,Planning!$A$21:$A$25,0),2)) ->  | G49: =IF(ISNA(INDEX(Planning!$A$21:$N$25,MATCH(E49,Planning!$A$21:$A$25,0),12)),"",INDEX(Planning!$A$21:$N$25,MATCH(E49,Planning!$A$21:$A$25,0),12)) ->  | H49: =IF(ISNA(INDEX(Planning!$A$21:$N$25,MATCH(E49,Planning!$A$21:$A$25,0),8)/2.29),"",INDEX(Planning!$A$21:$N$25,MATCH(E49,Planning!$A$21:$A$25,0),8)/2.29) ->  | I49: =IF(ISBLANK(Planning!J179),"",Planning!J179) ->  | L49: =IF(ISNA(INDEX(Planning!$A$21:$N$25,MATCH(E49,Planning!$A$21:$A$25,0),14)),"",INDEX(Planning!$A$21:$N$25,MATCH(E49,Planning!$A$21:$A$25,0),14)) ->  | M49: =IF(ISERROR(VLOOKUP(L49,Data!$Q$65:$R$66,2,1)),"",VLOOKUP(L49,Data!$Q$65:$R$66,2,1)) ->  | P49: =IF(LEN(B49)=0,"",Planning!B73*(1.3333)) ->  | T49: =IF(LEN(B49)=0,"",IF(ISBLANK(Data!$AG$69),"",Data!$AG$69)) ->  | U49: =IF(ISERROR(VLOOKUP(C49,INDIRECT(ADDRESS(Data!$AG$67,Data!$AG$65,1,1,"Data")):INDIRECT(ADDRESS(Data!$AG$68,Data!$AG$66,1,1,"Data")),Data!$AG$81,0)),"",VLOOKUP(C49,INDIRECT(ADDRESS(Data!$AG$67,Data!$AG$65,1,1,"Data")):INDIRECT(ADDRESS(Data!$AG$68,Data!$AG$66,1,1,"Data")),Data!$AG$81,0)) ->  | V49: =IF(LEN(B49)=0,"",IF(LEN(Data!$AG$71)=0,"",IF(Data!$AG$71=1,"Yes", "No"))) ->  | W49: =IF(ISERROR(IF(V49="NO",U49,VLOOKUP(U49,Data!$AA$72:$AB$85,2,0))),"",IF(V49="NO",U49,VLOOKUP(U49,Data!$AA$72:$AB$85,2,0))) ->  | X49: =IF(ISBLANK(Planning!H73),"",Planning!H73) ->  | Y49: =IF(ISBLANK(Planning!L73),"",Planning!L73) ->  | Z49: =IF(ISERROR(INDEX(Data!$D$128:$T$146,MATCH(X49,Data!$C$128:$C$146,1),MATCH(Y49,Data!$D$127:$T$127,1))),"",INDEX(Data!$D$128:$T$146,MATCH(X49,Data!$C$128:$C$146,1),MATCH(Y49,Data!$D$127:$T$127,1))) ->  | AA49: =IF(ISBLANK(Planning!F125),"",Planning!F125) ->  | AB49: =IF(ISBLANK(Planning!H125),"",Planning!H125) ->  | AC49: =IF(ISERROR(INDEX(Data!$F$155:$K$156,VLOOKUP(AA49,Data!$C$79:$D$81,2),VLOOKUP(AB49,Data!$G$79:$H$85,2,0))),"",INDEX(Data!$F$155:$K$156,VLOOKUP(AA49,Data!$C$79:$D$81,2),VLOOKUP(AB49,Data!$G$79:$H$85,2,0))) ->  | AD49: =IF(ISBLANK(Planning!J125),"",Planning!J125) ->  | AE49: =IF(ISERROR(VLOOKUP(AD49,Data!$J$79:$K$81,2,0)),"",VLOOKUP(AD49,Data!$J$79:$K$81,2,0)) ->  | AF49: =IF(ISERROR(VLOOKUP(C49,INDIRECT(ADDRESS(Data!$AG$67,Data!$AG$65,1,1,"Data")):INDIRECT(ADDRESS(Data!$AG$68,Data!$AG$66,1,1,"Data")),Data!$AG$84,0)),"",VLOOKUP(C49,INDIRECT(ADDRESS(Data!$AG$67,Data!$AG$65,1,1,"Data")):INDIRECT(ADDRESS(Data!$AG$68,Data!$AG$66,1,1,"Data")),Data!$AG$84,0)) ->  | AG49: =IF(LEN(B49)=0,"",IF(LEN(Data!$AG$70)=0,"",Data!$AG$70)) ->  | AH49: =IF(LEN(AE49)=0,"",IF(AE49="Yes",INDIRECT(ADDRESS((ROW(Data!$M$153)+MATCH(AG49,Data!$M$154:$M$293,0)+MATCH(X49,Data!$P$154:$P$174,1)-1),(COLUMN(Data!$Q$153)+MATCH(AF49,Data!$R$153:$U$153,0)),1,1,"Data"),TRUE),1)) ->  | AJ49: =IF(ISBLANK(Planning!M125),"",Planning!M125) ->  | AL49: =IF(ISERROR(VLOOKUP(AK49,Data!$J$105:$K$109,2,1)),"",VLOOKUP(AK49,Data!$J$105:$K$109,2,1)) ->  | AM49: =IF(ISBLANK(Planning!B179),"",Planning!B179) ->  | AN49: =IF(ISERROR(INDEX(Data!$D$91:$G$94,MATCH(AM49,Data!$C$91:$C$94,1),MATCH(AF49,Data!$D$90:$G$90,1))),"",INDEX(Data!$D$91:$G$94,MATCH(AM49,Data!$C$91:$C$94,1),MATCH(AF49,Data!$D$90:$G$90,1))) ->  | AO49: =IF(ISERROR(VLOOKUP(X49,Data!$D$184:$K$200,HLOOKUP(AN49,Data!$E$182:$K$183,2))),"",VLOOKUP(X49,Data!$D$184:$K$200,HLOOKUP(AN49,Data!$E$182:$K$183,2))) ->  | AP49: =IF(ISERROR(VLOOKUP(AO49,Data!$C$105:$D$110,2)),"",VLOOKUP(AO49,Data!$C$105:$D$110,2)) ->  | AQ49: =IF(ISBLANK(Planning!M73),"",Planning!M73) ->  | AR49: =IF(ISERROR(VLOOKUP(AQ49,Data!$F$105:$G$108,2,1)),"",VLOOKUP(AQ49,Data!$F$105:$G$108,2,1)) ->  | AS49: =IF(ISBLANK(Planning!F179),"",Planning!F179) ->  | AT49: =IF(ISERROR(VLOOKUP(AS49,Data!$C$99:$D$101,2)),"",VLOOKUP(AS49,Data!$C$99:$D$101,2)) ->  | AU49: =IF(ISBLANK(Planning!H179),"",Planning!H179) ->  | AV49: =IF(ISERROR(VLOOKUP(AU49,Data!$G$99:$H$101,2)),"",VLOOKUP(AU49,Data!$G$99:$H$101,2)) ->  | AZ49: =IF(AX49=0,VLOOKUP(AY49,Data!$C$116:$D$119,2),"") ->  | BA49: =IF(LEN(B49)=0,"",IF(ISBLANK(Planning!B232),0,Planning!B232)) ->  | BB49: =IF(LEN(B49)=0,"",IF(ISBLANK(Planning!C232),0,Planning!C232)) ->  | BC49: =IF(LEN(B49)=0,"",IF(ISBLANK(Planning!D232),0,Planning!D232)) ->  | BD49: =IF(LEN(B49)=0,"",IF(ISBLANK(Planning!E232),0,Planning!E232)) ->  | BE49: =IF(LEN(B49)=0,"",IF(ISBLANK(Planning!F232),0,Planning!F232)) ->  | BF49: =IF(LEN(B49)=0,"",IF(ISBLANK(Planning!G232),0,Planning!G232)) ->  | BG49: =IF(LEN(B49)=0,"",IF(ISBLANK(Planning!H232),0,Planning!H232)) ->  | BH49: =IF(LEN(B49)=0,"",IF(ISBLANK(Planning!I232),0,Planning!I232)) ->  | BI49: =IF(LEN(B49)=0,"",IF(ISBLANK(Planning!J232),0,Planning!J232)) ->  | BL49: =IF(AX49=0,VLOOKUP(BK49,Data!$C$116:$D$119,2),"") -> 
